Workbook

Sheet Załącznik 13-F.O. Zad 11-15
C1: Oznaczenie sprawy: 1400/DW00/ZU/KZ/2022/0000079539
C3: ZAŁĄCZNIK NR 13 - FORMULARZ OFERTY DLA ZADAŃ: OD 11 DO 15
D6: (pieczęć wykonawcy)
C8: Ja, niżej podpisany (My niżej podpisani):
C11: działając w imieniu i na rzecz:
C14: Składam(y) ofertę na wykonanie zamówienia, którego przedmiotem jest:
C15: Dostawa artykułów biurowych, spożywczych i higienicznych dla spółek GK ENEA
C17: Oferujemy wykonanie zamówienia zgodnie z opisem przedmiotu zamówienia:
C19: ŁĄCZNA CENA NETTO OFERTY DLA ZADANIA 11 | D19: =IF(V55=TRUE,K55,"Wykonawca nie składa oferty") -> Wykonawca nie składa oferty
C20: CENA NETTO SŁOWNIE: | D20: =IF(V55=TRUE,zad1!E13,"") -> 
C22: ŁĄCZNA CENA NETTO OFERTY DLA ZADANIA 12 | D22: =IF(V56=TRUE,K56,"Wykonawca nie składa oferty") -> Wykonawca nie składa oferty
C23: CENA NETTO SŁOWNIE: | D23: =IF(V55=TRUE,zad2!E13,"") -> 
C25: ŁĄCZNA CENA NETTO OFERTY DLA ZADANIA 13 | D25: =IF(V57=TRUE,K57,"Wykonawca nie składa oferty") -> Wykonawca nie składa oferty
C26: CENA NETTO SŁOWNIE: | D26: =IF(V55=TRUE,zad3!E13,"") -> 
C28: ŁĄCZNA CENA NETTO OFERTY DLA ZADANIA 14 | D28: =IF(V58=TRUE,K58,"Wykonawca nie składa oferty") -> Wykonawca nie składa oferty
C29: CENA NETTO SŁOWNIE: | D29: =IF(V55=TRUE,zad4!E13,"") -> 
C31: ŁĄCZNA CENA NETTO OFERTY DLA ZADANIA 15 | D31: =IF(V59=TRUE,K59,"Wykonawca nie składa oferty") -> Wykonawca nie składa oferty
C32: CENA NETTO SŁOWNIE: | D32: =IF(V55=TRUE,zad5!E13,"") -> 
C41: INSTRUKCJA DLA WYKONAWCY: 1.Wykonawca w załączniku "FORMULARZ OFERTY DLA ZADAŃ: OD 11 DO 15" uzupełnia ceny jednostkowe netto oraz stawki vat dla wszystkich produktów (kolumna "F" i "G" Wiersze od 53). 2. Ceny jednostkowe netto wpisane w arkuszu "FORMULARZ OFERTY DLA ZADAŃ: OD 11 DO 15" zaciągają się do kolejnych arkuszy Zadań i wyliczają wartość oferty. 3. Cena netto Oferty dla danego Zadania (łącznie z cenami jednostkowymi netto) musi być podana w złotych polskich, z dokładnością do dwóch miejsc po przecinku poprzez zastosowanie w arkuszu kalkulacyjnym excel funkcji zaokrąglenia. tj. ZAOKR (=ZAOKR(A1;2), gdzie A1 oznacza liczbę). 4. Cena Oferty netto dla danego Zadania, w tym ceny jednostkowe netto, muszą być wyższe niż 0,00 PLN.
C42: Uwaga: na niebiesko zostały zaznaczone pola do uzupełnienia przez Wykonawców (załączniki: "FORMULARZ OFERTY DLA ZADAŃ: OD 11 DO 15" oraz Załączniki dla Zadania od 11 do 15).
C43: W celu złożenia oferty Wykonawca zobowiązany jest do uzupełnienia i podpisania arkusza: "FORMULARZ OFERTY DLA ZADAŃ: OD 11 DO 15" oraz uzupełnienia i podpisania załączników dla wszystkich Zadań, na które składa Ofertę, np. Wykonawca składając ofertę dla Zadania 11 i Zadania 15 powinien złożyć wypełniony i podpisany załącznik: "FORMULARZ OFERTY DLA ZADAŃ: OD 11 DO 15" (wypełniony zgodnie z powyższa instrukcją) oraz Załącznik nr 14 dla Zadanie 11 i Załącznik nr 18 dla Zadanie 15 (należy wypełnić tylko pola oznaczone na niebiesko).
B52: lp | C52: Opis | D52: Opis szczegółowy | E52: Jednostka | F52: Stawka VAT | G52: Cena jednostkowa netto | H52: numer katalogowy
B53: 1 | C53: Filtr do expresu DELONGHI 45.76X | D53: Filtr do expresu DELONGHI 45.76X | E53: szt | J53: Wartość łączna oferty netto | K53: =SUM(K55:K61) -> 0
B54: 2 | C54: ODKAMIENIACZ DO EKSPRESU MELITTA 250ML | D54: odkamieniacz do ekspresu MELITA poj. 250 ml. | E54: szt. (250 ml) | J54: Zaznacz zadanie/zadania na które składana jest oferta:
B55: 3 | C55: Odkamieniacz KAMIX, w proszku, 150 g | D55: Środek do usuwania osadów z kamienia Pojemność: 150 g Jednostka sprzedaży: 1 opakowanie | E55: op. ( 150 g) | K55: =IF(V55=TRUE,'Załącznik14-F.O. dla Zadania 11'!D19,0) -> 0 | V55: FALSE
B56: 4 | C56: Odkamieniacz uniwersalny KAMIX, w płynie, 500 ml | D56: Środek w płynie do usuwania osadów kamienia Pojemność: 500 ml Jednostka sprzedaży: 1 opakowanie | E56: op. (500 ml) | K56: =IF(V56=TRUE,'Załącznik15-F.O. dla Zadania 12'!D19,0) -> 0 | V56: FALSE
B57: 5 | C57: Tabletki do czyszczenia sekcji mlecznej ekspresu | D57: Tabletki do codziennego czyszczenia sekcji mlecznej zapewniają dokładne i higieniczne użytkowanie sekcji mlecznej Jednostka sprzedaży: 1 opakowanie | E57: op. ( 62 szt ) | K57: =IF(V57=TRUE,'Załącznik16-F.O. dla Zadania 13'!D19,0) -> 0 | V57: FALSE
B58: 6 | C58: Płyn odkamieniający DELONGHI "EcoDecalk" | D58: odkamieniacz do ekspresu DELONGHI | E58: szt. | K58: =IF(V58=TRUE,'Załącznik17-F.O. dla Zadanie 14'!D19,0) -> 0 | V58: FALSE
B59: 7 | C59: Tabletki czyszczące KRUPS XS3000, 10 sztuk | D59: Tabletki czyszczące przeznaczone do ekspresów ciśnieniowych i przelewowych Usuwają tłuszcz i pozostałości po kawie wewnątrz ekspresu. Regularne stosowanie gwarantuje utrzymanie wysokiej jakości kawy Jednostka sprzedaży: 1 opakowanie (10 sztuk) | E59: op (10 szt) | K59: =IF(V59=TRUE,'Załącznik18-F.O. dla Zadania 15'!D19,0) -> 0 | V59: FALSE
B60: 8 | C60: Tabletki do zmywarek FINISH All-in-1, 50 tabletek | D60: Jego unikalna formuła łączy w sobie działanie 10 funkcji Power Actions: usuwanie zaplamień, usuwanie tłuszczu, namaczanie, usuwanie zabrudzeń po herbacie, kryształowy połyski, lśniące sztućce, ochrona przed osadzaniem się kamienia w zmywarce, aktywna ochrona szkła, ochrona srebra, usuwanie opornych zabrudzeń, Dodatkowo spełnia funkcje soli i płynu nabłyszczającego, Składniki: 5 - 15 % związki wybielające na bazie tlenu, niejonowe środki powierzchniowo czynne, do 5 % polikarboksylany, fosfoniany. Enzymy (subtylizyna, amylaza), kompozycja zapachowa. | E60: op (50 szt)
B61: 9 | C61: UNIWERSALNY zestaw do odkamieniania ekspresów | D61: Uniwerslany zestaw do odkamieniania ekspresów Nespresso. Ilość sztuk w opakowaniu: 2 Jednostka sprzedaży: 1 opakowanie | E61: op
B62: 10 | C62: Wkłady filtrujące BRITA Maxtra+ Pure Performance, 3 sztuki | D62: Wybierając wkłady filtrujące Brita Maxtra+ Pure Performance, zapewniasz sobie czystą wodę o doskonałym smaku. Zastosowane perełki węgla aktywnego skutecznie zatrzymują chlor i redukują mogące występować w wodzie zanieczyszczenia, jak herbicydy, pestycydy czy pozostałości po farmaceutykach. Z kolei perełki wymiennika jonowego zmiękczają wodę i zmniejszają występowanie metali w rodzaju miedzi i ołowiu. Wkłady filtrując są rekomendowane do wody miękkiej i średnio twardej. | E62: op (3 szt)
B63: 11 | C63: Worki papierowe do odkurzacza MERIDA Dex, 3 sztuki | D63: Worki papierowe do odkurzacza MERIDA Dex, 3 sztuki | E63: op (3 szt)
B64: 12 | C64: Wymienne wkłady do filtra wody AQUAPHOR MAXFOR | D64: Największa na rynku wydajność - do 200 l, Zawiera innowacyjne włókno Aqualen, dzięki czemu skutecznie usuwa z wody chlor, metale ciężkie, fenol, pestycydy i inne zanieczyszczenia, Redukuje twardość wody i zapobiega pojawianiu się osadu i kamienia na urządzeniach AGD np. w czajnikach i ekspresach, Produkt wolny od bisfenolu A (BPA FREE), wykonany z ekologicznych materiałów | E64: op (3 szt)
B65: 13 | C65: Zestaw do odkamieniania KRUPS F054, 2 saszetki po 40 g | D65: Zestaw polecany do ekspresów KRUPS Informacje na temat sposobu użytkowania dostępne w instrukcji obsługi ekspresu W opakowaniu: 2 saszetki środka odkamieniającego Jednostka sprzedaży: 1 opakowanie (2 saszetki x 40 g) | E65: op (2 saszetki)
B66: 14 | C66: Apteczka VERA TOP 15 PLUS, DIN 13157, w walizce z ABS | D66: Apteczka w walizce z tworzywa ABS. Zawiera stelaż mocujący do ściany W skład wyposażenia wchodzą: kompres zimny – 1 szt., kompres na oko – 2 szt., kompres 10 x 10 cm - 3 opakowania (po 2 sztuki) opaska elastyczna 4 m x 6 cm – 2 szt., opaska elastyczna 4 m x 8 cm – 2 szt., zestaw plastrów 10 x 6 cm (8 szt.) – 1 komplet, zestaw plastrów (14 szt.) – 1 komplet, plaster 5 m x 2,5 cm – 1 szt., opatrunek indywidualny M sterylny – 3 szt. opatrunek indywidualny G sterylny – 1 szt., opatrunek indywidualny K sterylny – 1 szt., chusta opatrunkowa 60 x 80 cm – 1 szt. chusta trójkątna – 1 szt., chusta z flizeliny (5 szt.) – 1 komplet, koc ratunkowy 160 x 210 cm – 1 szt. nożyczki 19 cm – 1 szt., rękawice winylowe – 4 szt. chusteczka dezynfekująca – 6 sztuk, ustnik do sztucznego oddychania – 1 szt., instrukcja udzielania pierwszej pomocy Skład zgodny z normą DIN 13157. Rozmiar: 330 x 235 x 125 mm Jednostka sprzedaży: 1 sztuka | E66: szt
B67: 15 | C67: Wyposażenie apteczki DIN 13157 PLUS | D67: W skład wyposażenia wchodzą: kompres zimny – 1 szt., kompres na oko – 2 szt., kompres 10 x 10 cm - 3 opakowania (po 2 sztuki) opaska elastyczna 4 m x 6 cm – 2 szt., opaska elastyczna 4 m x 8 cm – 2 szt., zestaw plastrów 10 x 6 cm (8 szt.) – 1 komplet, zestaw plastrów (14 szt.) – 1 komplet, plaster 5 m x 2,5 cm – 1 szt., opatrunek indywidualny M sterylny – 3 szt. opatrunek indywidualny G sterylny – 1 szt., opatrunek indywidualny K sterylny – 1 szt., chusta opatrunkowa 60 x 80 cm – 1 szt. chusta trójkątna – 1 szt., chusta z flizeliny (5 szt.) – 1 komplet, koc ratunkowy 160 x 210 cm – 1 szt. nożyczki 19 cm – 1 szt., rękawice winylowe – 4 szt. chusteczka dezynfekująca – 6 sztuk, ustnik do sztucznego oddychania – 1 szt., instrukcja udzielania pierwszej pomocy Skład zgodny z normą DIN 13157. Rozmiar: 330 x 235 x 125 mm Jednostka sprzedaży: 1 sztuka | E67: op
B68: 16 | C68: Chusteczki KATRIN Plus, 100 sztuk | D68: Białe, dwuwarstwowe chusteczki higieniczne w praktycznym podajniku Testowane dermatologicznie Jednostka sprzedaży: 1 opakowanie (100 sztuk) | E68: op (100 szt)
B69: 17 | C69: Czajnik elektryczny TEFAL Express 1,5 l, biały | D69: Filtr antywapienny i dwustronny wskaźnik poziomu wody, Możliwość zagotowania minimalnej ilości wody (250 ml), Pojemność: 1,5 l, Moc: 2400 W | E69: szt
B70: 18 | C70: Czajnik elektryczny TEFAL Loft, 1,7 l, czarny | D70: Zdejmowana pokrywa ułatwia napełnianie wodą, Czajnik posiada filtr antywapienny, który zapobiega przedostawaniu się kamienia do szklanki, Pojemność: 1,7 l, Moc: 2400 W | E70: szt
B71: 19 | C71: Czyściwo włókninowe, wielozadaniowe do trudnych zabrudzeń TORK, 1 rolka | D71: Jednowarstwowe, grube i mocne czyściwo wielozadaniowe non-woven (syntetyczno-celulozowe) Duża chłonność, także oleistych substancji Niskopylne i odporne na rozerwania Współpracuje z rozpuszczalnikami, ograniczając ich zużycie Polecane do stosowania w przemyśle maszynowym, poligraficznym, spożywczym nawet do najcięższych zadań związanych z czyszczeniem Atest PZH i certyfikat ISEGA, zezwalający na stosowanie produktu w przemyśle spożywczym W wygodnym kartonie mogącym służyć jako dozownik Perforacja co 38 cm Materiał: włóknina jednowarstwowa Tłoczenie: nie Ilość listków: 280 szerokość listka: 320 mm Długość roli: 106,4 m średnica r[...] | E71: szt
B72: 20 | C72: Kij z mopem sznurkowym, 1 komplet | D72: Kij z mopem sznurkowym, Waga: 345 g, Jednostka sprzedaży: 1 sztuka | E72: szt
B73: 21 | C73: Nakładka CEG z mikrofibry na mop triple, długość 40 cm | D73: Mop trójskładnikowy DUO (kieszeń + klips), Wykonany z bawełny, mikrowłókna i poliestru, Długość: 40 cm | E73: szt
B74: 22 | C74: Ściereczki gąbczaste niebieskie, 3 sztuki | D74: Bardzo trwałe i chłonne ścierki gąbczaste, wzmocnione wewnętrzną bawełnianą siatką, Najlepsze do wycierania wody, zmywania powierzchni i usuwania brudu | E74: op. (3 szt)
B75: 23 | C75: Ścierka do podłogi, 50 x 60 cm, pomarańczowa | D75: Ścierka do podłogi, 50 x 60 cm, pomarańczowaWymiary: 50 x 60 cm, Do czyszczenia dużych powierzchni | E75: szt
B76: 24 | C76: Ścierka z mikrofibry KOLORADO, 35 x 35 cm | D76: Ścierka z mikrofibry przeznaczona do czyszczenia powierzchni szklanych i stosowania w łazience, Skuteczna na sucho i mokro, Nie pozostawia smug, zacieków ani kłaczków, Skład: 80% poliester, 20% poliamid (nylon) | E76: szt
B77: 25 | C77: Ścierki uniwersalne Practi Maxi 50sztuk | D77: Ścierki uniwersalne Practi Maxi 50sztuk rozmiar 25 x 40 | E77: op (50 szt)
B78: 26 | C78: Ścierki uniwersalne, 5 sztuk | D78: Ścierki wielokrotnego użytku Można je prać i sterylizować Wykonane z wiskozy, pachnące Miks kolorów Wymiary: 37 x 38 cm | E78: op (5 szt)
B79: 27 | C79: Proszek do prania tkanin kolorowych DOSIA, 300 g | D79: Proszek do prania tkanin kolorowych do wszystkich typów pralek i do prania ręcznego Zawiera enzymy i aktywne składniki piorące Nie zawiera chlorowych wybielaczy: jest delikatna dla kolorowych i ciemnych tkanin Jednostka sprzedaży: 1 sztuka (300 g) | E79: op (300g)
B80: 28 | C80: Proszek do prania tkanin PUROX, 5 kg | D80: Do wszystkich typów pralek i do prania ręcznego, Jednostka sprzedaży: 1 opakowanie (5 kg), Składniki: do 5% anionowe i niejonowe środki powierzchniowo czynne, enzymy, kompozycja zapachowa, krzemiany, niejonowe środki powierzchniowo, czynne, regulatory piany, rozjaśniacze optyczne, związki wybielające na bazie tlenu | E80: op (5 kg)
B81: 29 | C81: Chusteczki FELLOWES do czyszczenia ekranów, opakowanie 100szt | D81: Chusteczki FELLOWES do czyszczenia ekranów, opakowanie 100szt | E81: op (100 szt)
B82: 30 | C82: Płyn AJAX Floral Fiesta, 1 l | D82: Doskonale usuwa kurz i brud, pozostawiając na długo świeży zapach Miks zapachów Pojemność: 1 l Jednostka sprzedaży 1 sztuka | E82: op (1l)
B83: 31 | C83: Preparat do usuwania tłustego brudu VOIGT C457 Ultra Clean plus 1 l | D83: Odtłuszczanie, gruntowne mycie bez fosforanów – Produkt do profesjonalnego zastosowania, Nie zawierający fosforanów, Usuwa zabrudzenia pochodzenia tłuszczowego i przemysłowego m.in. oleje, smary. Zalecany do: warsztatów, hal produkcyjnych, galerii handlowych, centrów logistycznych | E83: op (1l)
B84: 32 | C84: Rozpuszczalnik do etykiet w sprayu, pojemność 200 ml | D84: Produkt zapewnia w pełni bezpieczne usunięcie etykiet z dowolnej powierzchni, nie pozostawiając żadnych, śladów kleju. Pojemność 200 ml. | E84: op (200 ml)
B85: 33 | C85: Gąbka do zmywania różowa, 5 sztuk | D85: Gąbka do różnorodnych zastosowań, Kolor: różowy | E85: op (5 szt)
B86: 34 | C86: Gąbki do zmywania standardowa, 5 sztuk | D86: Do zmywania naczyń, szkła, ceramiki, powierzchni emaliowanych Wytrzymała Miks kolorów w opakowaniu Jednostka sprzedaży: 1 opakowanie (5 sztuk) | E86: op (5 szt)
B87: 35 | C87: Kuchenka mikrofalowa SEVERIN 7890/7862, biała | D87: 5 poziomów mocy, Rozmrażanie w oparciu o czas i wagę, 35-minutowy timer z sygnałem akustycznym, Pokrętło regulacyjne z chromowanymi elementami, Średnica wyjmowanego talerza ok. 25,4 cm, Wysokość komory ok. 16,5 cm, Obudowa i komora lakierowana powłoką odporną na wysokie temperatur, Wymiary: szer. 43,5, gł. 34,5, wys. 25,4 cm, Moc: 700 W | E87: szt
B88: 36 | C88: Jednorazowa maska higieniczna 3-warstwowa, niebieska, 50 sztuk | D88: Trójwarstwowa maska higieniczna. Wykonana z włókniny polipropylenowej (100%). | E88: op (50szt)
B89: 37 | C89: Półmaska FILTERSERVICE FS-623V NR D, FFP2, z zaworem, 10 sztuk | D89: Czasza półmaski: - Igłowana włóknina poliestrowa, - Włóknina polipropylenowa typu melt blown, - Włóknina osłonowa, - Zawór wydechowy, - Zapinki taśm nagłowia, - Taśma nagłowia | E89: op (10szt)
B90: 38 | C90: Nawilżacz powietrza NU 5N | D90: 4 poziomy intensywności nawilżania, Automatyczna kontrola wilgotności, Demontowany zasobnik wody 5,2 l, Funkcja jonizacji | E90: szt
B91: 39 | C91: Odświeżacz powietrza AMBI PUR, zapach kwiatowy, 300 ml | D91: Wypełnia pomieszczenie zapachem najpiękniejszego wiosennego bukietu Pojemność: 300 ml Jednostka sprzedaży: 1 sztuka | E91: szt
B92: 40 | C92: Odświeżacz powietrza BRISE w sprayu | D92: Odświeżając pomieszczenia pozostawia przyjemny zapach Pojemność: 300 ml Jednostka sprzedaży: 1 sztuka | E92: szt.
B93: 41 | C93: Odświeżacz powietrza BRISE w żelu, miks zapachów | D93: Masa netto: 150 g Miks zapachów Jednostka sprzedaży: 1 sztuka | E93: szt.
B94: 42 | C94: Odświeżacz powietrza GREEN FRESH, 400 ml | D94: Skutecznie neutralizuje i pochłania nieprzyjemne zapachy Odświeża i nawilża powietrze, pozostawiając w pomieszczeniu uczucie świeżości i czystości Pojemność: 400 ml Jednostka sprzedaży: 1 sztuka | E94: op. (400 ml)
B95: 43 | C95: Patyczki zapachowe PACHNĄCA SZAFA, Słoneczne popołudnie, 50 ml | D95: Patyczki zapachowe PACHNĄCA SZAFA nadają przyjemny i odświeżający zapach w każdym pomieszczeniu. Odświeżać ma bardzo ładną formę eleganckich patyczków w szklanym flakoniku. | E95: op (50 ml)
B96: 44 | C96: Wkład do odświeżacza AMBI PUR, zapach ocean and wind | D96: Wkład do elektrycznego odświeżacza powietrza AMBI PUR Wydajność wkładów: do 80 dni Jednostka sprzedaży: 1 sztuka | E96: szt
B97: 45 | C97: Papier toaletowy CLASSIC, biały, 8 rolek | D97: Papier toaletowy CLASSIC, biały, 8 rolek Wymiary listka: szer. 100 x dł. 112 mm, Szerokość taśmy: 100 mm | E97: op. (8 rolek)
B98: 46 | C98: Papier toaletowy ELLIS PROFESSIONAL JUMBO 130/2, 12 rolek | D98: Papier do użytku profesjonalnego w pomieszczeniach o zwiększonym natężeniu użytkowania, Materiał: celuloza dwuwarstwowa, Gramatura: 2 x 16 g/m², Długość roli: 120 m; średnica roli: 19 cm; średnica gilzy: 6 cm | E98: op (12 rolek)
B99: 47 | C99: Papier toaletowy KATRIN 11296 PLUS 160, biały, 8 rolek | D99: Papier toaletowy KATRIN 11296 PLUS 160, biały, 8 rolek Gramatura: 2 x 16,5 g/m², Długość jednej rolki: 18,3 m | E99: op. (8 rolek)
B100: 48 | C100: Supermocny Plaster do cięcia VISCOPLAST, 1 m x 8 cm | D100: Opatrunek włókninowy o wysokiej chłonności, Plaster natychmiast przykleja się do skóry, nawet do wilgotnej, Ogranicza przywieranie opatrunku do rany | E100: op (1m)
B101: 49 | C101: Uniwersalny zestaw plastrów 3M VISCOPLAST, 24 sztuki | D101: Plastry z opatrunkiem do opatrywania drobnych ran i skaleczeń Hypoalergiczne i wodoodporne Przepuszczające powietrze W opakowaniu 24 plastry: plastry Minifol: 72 x 25 mm - 4 sztuki, 72 x 19 mm - 8 sztuk, 57 x 16 mm - 6 sztuk, 38x10 mm - 4 sztuki Plaster Prestopor 10 x 6 cm Plaster Prestovis Plus 10 x 6 cm Jednostka sprzedaży: 1 opakowanie | E101: op. ( 24 szt)
B102: 50 | C102: Krem do rąk EVELINE ''Niewidzialne rękawiczki'', 100 ml | D102: Odżywczo-ochronny krem do rąk z formułą witaminową Polecany do suchych i podrażnionych dłoni Pojemność: 100 ml Jednostka sprzedaży: 1 sztuka | E102: op do (100 ml)
B103: 51 | C103: Krem do rąk GARNIER do skóry bardzo suchej, 100 g | D103: Regeneruje i odżywia zniszczoną skórę dłoni Zawiera alantoinę, glicerynę oraz czynnik filtrującyJednostka sprzedaży: 1 sztuka (100 g) | E103: op. (100 g)
B104: 52 | C104: Ręcznik MALFINI, chabrowy, 70x140 cm | D104: Tkana metka, która może również służyć jako wieszaczek, Ozdobiony wyszywaną bordiurą po obu brzegach, Sklad: 100% bawełna, frotte, Gramatura: 450g/m², Kolor: chabrowy, Rozmiar: 70x140 cm | E104: szt
B105: 53 | C105: Ręcznik MALFINI, granatowy, 50x100 cm | D105: Tkana metka, która może również służyć jako wieszaczek, Ozdobiony wyszywaną bordiurą po obu brzegach, Sklad: 100% bawełna, frotte, Gramatura: 450g/m², Kolor: granatowy | E105: szt
B106: 54 | C106: Ręcznik MALFINI, szaro-czarny, 50x100 cm | D106: Wykonane z wysokiej jakości frotte, odpowiednie pod haft, Miękkie, miłe w dotyku, dobrze absorbują wodę, Tkana metka, która może również służyć jako wieszaczek, Ozdobiony wyszywaną bordiurą po obu brzegach, Sklad: 100% bawełna, frotte, Gramatura: 450g/m² kolor szaroczany | E106: szt
B107: 55 | C107: Ręcznik MALFINI, szaro-czarny, 70x140 cm | D107: Tkana metka, która może również służyć jako wieszaczek, Ozdobiony wyszywaną bordiurą po obu brzegach, Sklad: 100% bawełna, frotte, Gramatura: 450g/m², Kolor: szaroczarny Rozmiar: 70x140 cm | E107: szt
B108: 56 | C108: Chusteczki higieniczne VELVET, 120 sztuk | D108: Chusteczki higieniczne VELVET, 120 sztuk. W opakowaniu 120 sztuk, Produkt ma atest PZH, | E108: op (120 szt)
B109: 57 | C109: Ręcznik w roli ESTIMO 100/2, 500 listków | D109: Wytrzymały, dwuwarstwowy ręcznik w 100% wykonany z celulozy o wysokich parametrach i pięknym designie Długość rolki: 100 m W rolce 500 odcinków o wymiarach: 20,3 x 20 cm Kolor biały Jednostka sprzedaży: 1 rolka | E109: op. (rolka 100 m)
B110: 58 | C110: Ręczniki papierowe białe, składka V, 20 x 200 listków | D110: Gofrowane ręczniki w składce Kompatybilne ze standardowymi dozownikami do ręczników typu ZZ Materiał: makulatura jednowarstwowa Wymiary listka: 25 x 23 cm Gramatura: 1 x 30 g/m² Ilość bind w opakowaniu: 20 Ilość listków w bindzie: 200 Kolor: biały Jednostka sprzedaży: 1 karton (4000 listków) | E110: op. (20 x 200 listków)
B111: 59 | C111: Ręczniki papierowe MERIDA składka V, 20 x 160 listków | D111: Gofrowane ręczniki w składce wysokiej chłonności Kompatybilne ze standardowymi dozownikami do ręczników typu ZZ Materiał: makulatura dwuwarstwowa Wymiary listka: 25 x 23 cm Gramatura:2 x 19 g/m² Tłoczenie: nie Ilość bind w opakowaniu: 20 Ilość listków w bindzie: 160 Kolor: biały Jednostka sprzedaży: 1 karton (3200 listków) | E111: op. (20 x 160 listków)
B112: 60 | C112: Ręczniki papierowe zielone, składka V, 20 x 200 listków | D112: Gofrowane ręczniki w składce wysokiej chłonności Kompatybilne ze standardowymi dozownikami do ręczników typu ZZ Materiał: makulatura jednowarstwowa Wymiary listka: 25 x 23 cm Gramatura:2 x 19 g/m² Tłoczenie: nie Ilość bind w opakowaniu: 20 Ilość listków w bindzie: 160 Kolor: zielon. | E112: op. (20 x 200 listków)
B113: 61 | C113: Ręczniki w roli TORK UNIVERSAL Extra Długie do systemu TORK Matic H1, 6 rolek | D113: Materiał: makulatura jednowarstwowa, Tłoczenie: nie, Ilość listków:1120, Długość roli: 280 m; wysokość roli: 21 cm; średnica roli: 19 cm; średnica gilzy: 3,8 cm | E113: op. (6 rolek)
B114: 62 | C114: Rękawice antystatyczne ANSELL HyFlex® 11-800, rozmiar 9, para | D114: Nylonowe rękawice z powłoką z pianki nitrylowej, wykonane w technologii KnitZonz™ Wszechstronne rozwiązanie do precyzyjnego montażu i prac ogólnych Zaawansowana technologia dziania zapewnia większą rozciągliwość i elastyczność w miejscach o zwiększonym nacisku Antystatyczne, zgodne z normą EN 1149 Norma EN 388 3131 Rozmiar: 9 Jednostka sprzedaży: 1 para | E114: op. (1 para)
B115: 63 | C115: Rękawice DELTAPLUS VV835 Chemsafe, rozmiar 11, para | D115: Rękawica z podwójną powłoką nitrylową na wkładzie z poliamidu, Trzecia powłoka z szorstkiej pianki nitrylowej na stronie chwytnej i końcach palców, Długość: 35 cm, Grubość: 1,15 mm - 1,30 mm na stronie chwytnej | E115: op, 1 (para)
B116: 64 | C116: Rękawice nitrylowe MEDASEPT PF, czarne, rozmiar S, 100 sztuk | D116: Uniwersalne, rękawice pasujące na prawą i lewą dłoń, Nitrylowe, Tekstura na końcach palców, Rozmiar S | E116: op. (100 szt)
B117: 65 | C117: Rękawice nitrylowe MEDASEPT PREMIER, niebieskie, rozmiar XL, 100 sztuk | D117: Rękawice nitrylowe diagnostyczne i ochronne (kat. III), Bezpudrowe., Uniwersalny kształt pasuje na obie dłonie, Tekstura na końcach palców, Przeznaczone do kontaktu z żywnością. | E117: op. (100 szt)
B118: 66 | C118: Rękawice nitrylowe MEDASEPT PRIME, niebieskie, rozmiar L, 100 sztuk | D118: Rękawice nitrylowe diagnostyczne i ochronne, Bezpudrowe. Uniwersalny kształt pasuje na obie dłonie. | E118: op. (100 szt)
B119: 67 | C119: Rękawice nitrylowe MEDASEPT PRIME, niebieskie, rozmiar M, 100 sztuk | D119: Rękawice nitrylowe diagnostyczne i ochronne | E119: op. (100 szt)
B120: 68 | C120: Ręcznik kuchenny VELVET Jumbo, 1 rolka | D120: Dwuwarstwowy ręcznik papierowy, który świetnie nadaje się do generalnych porządków, prac w garażu, ogrodzie oraz w kuchni Giga rola = 13 standardowych rolek Nie tylko chłonny i wytrzymały, ale także wyjątkowo wydajny Jedna rolka zawiera aż 520 listków Wysokość rolki: 22 cm Kolor biały Jednostka sprzedaży: 1 rolka | E120: szt ( 1 rolka)
B121: 69 | C121: Ręcznik papierowy BRATEK biały, 2 rolki | D121: Ręczniki kuchenne, dwuwarstwowe, celulozowe Szerokość rolki: 22 cm Długość rolki: 11 m Jednostka sprzedaży: 1 opakowanie (2 sztuki) | E121: op (2 rolki)
B122: 70 | C122: Ręczniki kuchenne AHA, 2 rolki | D122: Dwuwarstwowy ręcznik wykonany z czystej celulozy W rolce 50 odcinków o wymiarach: 23 x 20 cm W opakowaniu: 2 rolki Kolor biały Jednostka sprzedaży: 1 opakowanie | E122: op (2 rolki)
B123: 71 | C123: Ręczniki kuchenne VELVET, 2 rolki | D123: Produkt wolny od bisfenolu A (BPA FREE), posiada atest NIZP-PZH | E123: op. (2 rolki)
B124: 72 | C124: Łyżeczki do herbaty AMEFA Bologna, 12 sztuk | D124: subtelne i eleganckie łyżeczki do herbaty, Sztućce polerowane, stal 18/0 | E124: op (12 szt)
B125: 73 | C125: Łyżeczki do kawy AMEFA Bologna, 12 sztuk | D125: Klasyczne, proste w formie, subtelne i eleganckie łyżeczki do kawy Dobra jakość w atrakcyjnej cenie powodują, iż linia od lat cieszy się wyjątkową popularnością Sztućce polerowane, stal 18/0 | E125: op (12 szt)
B126: 74 | C126: Łyżki AMEFA Bologna, 12 sztuk | D126: Sztućce polerowane, stal 18/0 | E126: op (12 szt)
B127: 75 | C127: Widelce AMEFA Bologna, 12 sztuk | D127: Sztućce polerowane, stal 18/0, | E127: op (12 szt)
B128: 76 | C128: Ściereczki mokre do mebli drewnianych PRESTO, opakowanie 72 sztuki | D128: Ściereczki nawilżane do czyszczenia różnych powierzchni, Usuwają kurz i zapobiegają jego osadzaniu, Nadają połysk czyszczonym powierzchniom | E128: op. (72 szt)
B129: 77 | C129: Kulki do toalet BREF Power Activ, 50 g, zapach cytrynowy | D129: Nowoczesne rozwiązanie w postaci czterech kulek na wygodnej zawieszce Czyszczą, pozostawiają przyjemny zapach i chronią przed osadzaniem się kamienia Masa netto: 50 g Jednostka sprzedaży: 1 sztuka | E129: op. (50 g)
B130: 78 | C130: Kulki do toalet BREF Power Activ, 50 g, zapach morski | D130: Nowoczesne rozwiązanie w postaci czterech kulek na wygodnej zawieszce Czyszczą, pozostawiają przyjemny zapach i chronią przed osadzaniem się kamienia Masa netto: 50 g Jednostka sprzedaży: 1 sztuka | E130: op. (50 g)
B131: 79 | C131: Płyn CILIT Bang Kamień i brud, 750 ml | D131: Żel CILIT kamień i brud z Turbo Power. Do czyszczenia wanien, kabin prysznicowych, płytek, toalet, armatury kuchennej i łazienkowej Usuwa kamień, rdzawe zacieki z twardej wody, osad z mydła i inne zabrudzenia Pojemność: 750 ml Jednostka sprzedaży: 1 sztuka | E131: op. (750 ml)
B132: 80 | C132: Płyn do toalet DOMESTOS Toilet Limescale Remover, 750 ml | D132: Gęsty płyn do czyszczenia muszli klozetowych Formuła ściśle przylegająca do czyszczonych powierzchni, rozpuszcza kamień wapienny Przeznaczony do powierzchni porcelanowych i szkliwionych Butelka z wygodnym dozownikiem Pojemność: 750 ml Jednostka sprzedaży: 1 sztuka | E132: op. (750 ml)
B133: 81 | C133: Płyn do WC DOMESTOS 24H, 1,25 l, cytrynowy | D133: Produkt czyszcząco-dezynfekująco-wybielający Możliwość stosowania do: muszli klozetowych, umywalek, zlewów itp. Produkt nadaje się także do wybielania tkanin Jednostka sprzedaży: 1 sztuka Pojemność: 1,25 l | E133: op. (1,25 l)
B134: 82 | C134: Płyn do WC DOMESTOS 24H, 1,25 l, leśny | D134: Produkt czyszcząco-dezynfekująco-wybielający Możliwość stosowania do: muszli klozetowych, umywalek, zlewów itp. Produkt nadaje się także do wybielania tkanin Pojemność: 1,25 l Jednostka sprzedaży: 1 sztuka | E134: op. (1,25 l)
B135: 83 | C135: Wkład zapachowy do pisuarów MERIDA, czerwony | D135: Winylowy, elastyczny wkład zapachowy do pisuarów, Zapach utrzymuje się przez około 30 dni, Dodatkowo wkład zabezpiecza pisuar przed zapchaniem | E135: szt.
B136: 84 | C136: Zawieszka do WC DOMESTOS, zapach leśny | D136: Zawieszki czyszczące do toalet Chronią przed osadzaniem się kamienia i pozostawiają świeży zapach Jednostka sprzedaży 1 sztuka | E136: szt
B137: 85 | C137: Żel BREF do WC Fresh Mist, 700 ml | D137: Usuwa kamień, brud i osad, Gęsta formuła żelu sprawia, że działa on również pod powierzchnią wody. | E137: op. (700 ml)
B138: 86 | C138: Żel CLINEX Drill do udrażniania odpływów, 1 l | D138: Szybko rozpuszcza wszelkie stałe i organiczne zanieczyszczenia takie jak: tłuszcz, papier, wata, odpadki kuchenne, Forma żelowa pozwala na osadzanie się preparatu na ściankach rur, przedłużając proces działania, Likwiduje nieprzyjemne zapachy, Nadaje się do udrażniania rur zarówno w kuchni, jak i w łazience | E138: op. (1 l)
B139: 87 | C139: Biobójczy płyn do dezynfekcji rąk HISKIN, 1 l | D139: Produkt przeznaczony do codziennego stosowania przez użytkownika powszechnego. Wykazuje działanie bakteriobójcze, grzybobójcze i wirusobójcze | E139: op. (1 l)
B140: 88 | C140: Dozownik do mydła w płynie MERIDA TOP, biały | D140: Mocny i trwały dozownik do mydła w płynie wykonany z tworzywa ABS Okienko umożliwiające kontrolę zużycia mydła Pojemność: 0,8 l Zestaw do montażu w komplecie Wymiary: dł. 11,5 x szer.11,5 x wys. 25 cm Kolor: biały Jednostka sprzedaży: 1 sztuka | E140: szt.
B141: 89 | C141: Mydło toaletowe NIVEA, 100 g | D141: Kremowe mydło z odżywczym olejkiem migdałowym Miks zapachów Jednostka sprzedaży: 1 sztuka | E141: szt. (100 g)
B142: 90 | C142: Mydło w płynie MERIDA Silva, 5 l | D142: Mydło w płynie typu „dwa w jednym”, Zawiera m.in. glukopony mające doskonałe właściwości pielęgnacyjne skóry, jak również gluadyny – roślinne proteiny, szczególnie cenne składniki pielęgnacyjne chroniące skórę i włosy | E142: op. (5l)
B143: 91 | C143: Mydło w płynie PALMOLIVE, migdałowe, 300 ml | D143: Dzięki naturalnemu pH nie podrażnia nawet wrażliwej skóry Zawiera kombinację substancji czyszczących i odżywczych Opakowanie z dozownikiem Pojemność 300 ml Jednostka sprzedaży: 1 sztuka Opakowanie zbiorcze: 12 sztuk | E143: op. (300 ml)
B144: 92 | C144: Pasta BHP do rąk, ścierna, 500 g | D144: Usuwa silne zabrudzenia smarami, tłuszczami, sadzami | E144: op. (500g)
B145: 93 | C145: Pasta do rąk MERIDA PA12, 500 ml | D145: Usuwa wszelkie zabrudzenia nawet powstałe od smarów i olejów, Oszczędna w użyciu, Jest niealkaliczna i nie zawiera mineralnych środków ściernych | E145: op. (500 ml)
B146: 94 | C146: Kapsułki do zmywarek FAIRY Jar All in 1, 115 kapsułek | D146: Wydajne kapsułki do maszynowego mycia naczyń Jednostka sprzedaży: 1 opakowanie (115 kapsułek) | E146: op. ( 115 szt)
B147: 95 | C147: Płyn do czyszczenia zmywarek FINISH, 250 ml | D147: Płyn do czyszczenia zmywarek o zapachu cytrynowym Pojemność: 250 ml Jednostka sprzedaży 1 opakowanie | E147: op (250 ml)
B148: 96 | C148: Płyn do mycia naczyń LUDWIK 1150 g | D148: Posiada bardzo dobre właściwości myjące oraz wysoką zdolność do emulgowania tłuszczów zarówno w ciepłej, jak i zimnej wodzie. Nie pozostawia zacieków na umytych powierzchniach, nadaje im połysk bez konieczności wycierania do sucha. Nowa receptura została również wzbogacona kompleksem witamin A,E,F,H, mającym działanie ochronne i odżywcze dla skóry rąk, Polecany również do mycia mebli, lodówek, wykładzin, podłóg, glazury, dywanów i tworzyw sztucznych | E148: op. (1150 g)
B149: 97 | C149: Płyn do mycia naczyń LUDWIK cytrynowy, 5 kg | D149: Posiada bardzo dobre właściwości myjące oraz wysoką zdolność do emulgowania tłuszczów zarówno w ciepłej, jak i zimnej wodzie. Nie pozostawia zacieków na umytych powierzchniach, nadaje im połysk bez konieczności wycierania do sucha. Nowa receptura została również wzbogacona kompleksem witamin A,E,F,H, mającym działanie ochronne i odżywcze dla skóry rąk, Polecany również do mycia mebli, lodówek, wykładzin, podłóg, glazury, dywanów i tworzyw sztucznych | E149: 5 kg
B150: 98 | C150: Płyn do mycia naczyń LUDWIK Miętowy 1 l. | D150: Posiada bardzo dobre właściwości myjące oraz wysoką zdolność do emulgowania tłuszczów zarówno w ciepłej, jak i zimnej wodzie. Nie pozostawia zacieków na umytych powierzchniach, nadaje im połysk bez konieczności wycierania do sucha. Nowa receptura została również wzbogacona kompleksem witamin A,E,F,H, mającym działanie ochronne i odżywcze dla skóry rąk, Polecany również do mycia mebli, lodówek, wykładzin, podłóg, glazury, dywanów i tworzyw sztucznych | E150: op. (1 l)
B151: 99 | C151: Płyn do mycia naczyń LUDWIK, cytrynowy, 450 g | D151: Posiada bardzo dobre właściwości myjące oraz wysoką zdolność do emulgowania tłuszczów zarówno w ciepłej, jak i zimnej wodzie. Nie pozostawia zacieków na umytych powierzchniach, nadaje im połysk bez konieczności wycierania do sucha. Nowa receptura została również wzbogacona kompleksem witamin A,E,F,H, mającym działanie ochronne i odżywcze dla skóry rąk, Polecany również do mycia mebli, lodówek, wykładzin, podłóg, glazury, dywanów i tworzyw sztucznych | E151: op. (450g)
B152: 100 | C152: Płyn do naczyń LUDWIK, 450 g, miętowy | D152: Nie pozostawia zacieków na umytych powierzchniach, nadaje im połysk bez konieczności wycierania do sucha. Polecany również do mycia mebli, lodówek, wykładzin, podłóg, glazury, dywanów i tworzyw sztucznych. | E152: op.(450g)
B153: 101 | C153: Płyn nabłyszczający do zmywarek LUDWIK, 750 ml | D153: Przeznaczony do płukania i nabłyszczania naczyń zmywanych w zmywarce Dzięki właściwie dobranym składnikom i zawartości kwasku cytrynowego płyn sprawia, że myte naczynia wysychają bez plam i zacieków Jednostka sprzedaży: 1 opakowanie (750 ml) | E153: op. (750 ml)
B154: 102 | C154: Płyn nabłyszczający FINISH, 400 ml | D154: Usuwa ślady po kroplach wody i osad z kamienia, pozostawiając Diamentowy Połysk Jednostka sprzedaży: 1 opakowanie (400 ml) | E154: op. (400 ml)
B155: 103 | C155: Sól ochronna do zmywarki LUDWIK, 1,5 kg | D155: Preparat chroniący zmywarkę przed osadzaniem się kamienia w jej wnętrzu i na mytych naczyniach Skutecznie zmiękcza wodę dzięki zastosowanej formule, preparat zawiera całkowicie rozpuszczalną szlachetną sól z granulkami o odpowiedniej wielkości Regularne stosowanie soli ochronnej Ludwik zapewnia prawidłowe funkcjonowanie zmywarki i długotrwałą ochronę jej mechanizmów Jednostka sprzedaży: 1 opakowanie (1,5 kg) | E155: op. (1 l)
B156: 104 | C156: Sól SOMAT do zmywarek, 1,5 kg | D156: Zabezpiecza zmywarkę oraz naczynia przed osadzaniem się kamienia Wygodna w użyciu sól ma postać granulek Opakowanie: 1,5 kg Jednostka sprzedaży: 1 sztuka | E156: op. (5 kg)
B157: 105 | C157: Tabletki do zmywarek LUDWIK, 30 sztuk | D157: Wielofunkcyjne tabletki czyszczą, nabłyszczają, chronią szkło i stal nierdzewną przed matowieniem oraz zabezpieczają zmywarkę przed osadzaniem się kamienia Funkcja zmiękczania wody pozwala na jeszcze bardziej efektywne wykorzystanie składników myjących Enzymy są aktywne już w 30°C Cytrusowy aromat tabletek nadaje długotrwały zapach świeżości w kuchni Zapewniają oszczędność wody i energii Jednostka sprzedaży: 1 opakowanie ( 30 tabletek) | E157: op. (30 szt)
B158: 106 | C158: Płyn do mycia szyb i glazury LUDWIK grapefruit z octem, 750 ml | D158: Nie pozostawia smug, zacieków i szybko odparowuje., Skład: do 5% anionowe środki powierzchniowo czynne, konserwant (2-bromo-2-nitropropane-1,3-diol, methylchloroisothiazolinone, methylisothiazolinone), kompozycja zapachowa (limonene, linalool). | E158: op. (750ml)
B159: 107 | C159: Płyn do mycia szyb KUBUŚ z atomizerem, 1 l | D159: Przeznaczony do mycia szyb okiennych, luster oraz innych powierzchni szklanych, Doskonale usuwa brud, nie pozostawia smug | E159: op. (1 l)
B160: 108 | C160: Płyn do szyb i luster BUZIL G522 Profiglass, 600 ml | D160: Gotowy do użycia środek do mycia szyb i luster Skutecznie usuwa zabrudzenia, również te tłuste Butelka posiada specjalnie przyciętą końcówkę rozpryskującą, która ułatwia nanoszenie środka czyszczącego Wygodna butelka 600 ml ze spryskiwaczem | E160: op (600 ml)
B161: 109 | C161: Mleczko do czyszczenia CIF Regular Cream, 650 ml/780 g | D161: Uniwersalne mleczko CIF z mikrokryształkami, które pomaga utrzymać powierzchnie w czystości, jest delikatne i nie rysuje powierzchni. Usuwa najbardziej oporny brud taki jak: przypieczony tłuszcz, przypalone jedzenie, plamy z kamienia w łazience. Składniki: do 5% anionowe środki powierzchniowo, czynne niejonowe środki powierzchniowo czynne, mydło, kompozycja zapachowa Limonene, Benzisothiazolinone, Linalool, Butylphenyl Methylpropional, Hexyl Cinnamal. Sposób użycia: nanieść na wilgotną ściereczkę lub bezpośrednio na czyszczoną powierzchnię. Po wyczyszczeniu dokładnie spłukać. Nie połykać. Mleczko do czyszczenia powierzchni twardych. | E161: op (650 ml)
B162: 110 | C162: Czajnik elektryczny TEFAL Express 1,5 l, biały | D162: Czajnik z ukrytym elementem grzejnym i obrotową podstawą, Filtr antywapienny i dwustronny wskaźnik poziomu wody, Możliwość zagotowania minimalnej ilości wody (250 ml), Pojemność: 1,5 l | E162: szt.
B163: 111 | C163: Dzbanek filtrujący wodę AQUAPHOR Onyx 4,2 l + 3 wkłady filtrujące, biały | D163: Klasyczny i elegancki kształt pasuje do biur i sal konferencyjnych, Produkt wolny od bisfenolu A (BPA FREE), posiada atest NIZP-PZH, W zestawie 3 wkłady Maxfor MG wzbogacające wodę w magnez | E163: op. (1 szt dzbanek + 3 szt. filtrów)
B164: 112 | C164: Filtr wody KRUPS F08801 do ekspresu ciśnieniowego, 1 sztuka | D164: Zapobiega nadmiernemu osadzaniu się kamienia Dostosowany do ekspresów Krups Artese oraz Krups Orchestro Jednostka sprzedaży: 1 sztuka | E164: szt
B165: 113 | C165: Termos TEFAL Campo, 1 l, czarny | D165: Termos TEFAL Campo, 1 l, czarnyObudowa ze stali nierdzewnej z kolorową powłoką z wkładką szklaną, Kolor: czarny | E165: szt
B166: 114 | C166: Reklamówki foliowe 9 micronów 210 + 2 x 60 x 435 mm (+/-12), 150 sztuk | D166: Reklamówki o wymiarach 210 + 2 x 60 x 435 mm (+/-12) Nawój: 150 sztuk Folia HDPE / grubość 9 mikronówJednostka sprzedaży: 1 rolka (150sztuk) | E166: op. (150 szt.)
B167: 115 | C167: Worki do segregacji 60 l, niebieskie na papier, 60 x 72 cm | D167: Wytrzymałe worki ułatwiające segregację śmieci dzięki kodowi kolorystycznemu, Mają nadruk informujący, jakie typy odpadów należy do nich wrzucać, a jakich nie należy, Wymiary: 60 x 72 cm | E167: op. (10 worków)
B168: 116 | C168: Worki do segregacji 60 l, zielone na szkło, 60 x 72 cm | D168: Wytrzymałe worki ułatwiające segregację śmieci dzięki kodowi kolorystycznemu, Mają nadruk informujący, jakie typy odpadów należy do nich wrzucać, a jakich nie należy, Wymiary: 60 x 72 cm | E168: op. (10 worków)
B169: 117 | C169: Worki do segregacji 60 l, zółte na plastik, 60 x 72 cm | D169: Wytrzymałe worki ułatwiające segregację śmieci dzięki kodowi kolorystycznemu, Mają nadruk informujący, jakie typy odpadów należy do nich wrzucać, a jakich nie należy, Wymiary: 60 x 72 cm | E169: op. (10 worków)
B170: 118 | C170: Worki na śmieci LDPE sanitarne 120 l, niebieskie, 10 sztuk | D170: Wymiary: 110 x 70 cm, Grubość: folii: 0,03 mm | E170: op (10 szt)
B171: 119 | C171: Worki na śmieci LDPE sanitarne 160 l, czarne, 20 sztuk | D171: Worki na śmieci LDPE sanitarne 160 l, czarne, 20 sztuk Pojemność: 160 l Wymiary: 150 x 90 cm Grubość: folii: 0,027 mm Kolor folii: czarny Jednostka sprzedaży: 1 opakowanie (20 sztuk) | E171: op. (20 sztuk)
B172: 120 | C172: Worki na śmieci LDPE z taśmą ściągającą 60 l, czarne, 10 sztuk | D172: Posiadają taśmę ściągającą Pojemność: 60 l Wymiary: 72 x 60 cm Grubość: folii: 0,02 mm Kolor folii: czarny Jednostka sprzedaży: 1 opakowanie (10 sztuk) | E172: op. (10 sztuk)
B173: 121 | C173: Worki na śmieci łazienkowe, 20 l, białe, 40 sztuk | D173: Idealne worki na odpady łazienkowe, Pojemność: 20 l, Kolor: biały, Rozmiar: 40 x 50 cm | E173: op: (40 sztuk)
B174: 122 | C174: Worki na śmieci MDPE 35 l, niebieskie 20 sztuk | D174: Pojemność: 35 l Wymiary: 58 x 49 cm Grubość: folii: 0,011 mm Kolor folii: niebieski Jednostka sprzedaży: 1 opakowanie (20 sztuk) | E174: op. (20 sztuk)
B178: miejscowość i data | D178: Pieczęć imienna i podpis przedstawiciela(i) Wykonawcy

Sheet zadanie 11-12 (hidden)
A1: 1 | B1: Filtr do expresu DELONGHI 45.76X | C1: Filtr do expresu DELONGHI 45.76X | D1: szt
A2: 2 | B2: ODKAMIENIACZ DO EKSPRESU MELITTA 250ML | C2: odkamieniacz do ekspresu MELITA poj. 250 ml. | D2: szt. (250 ml)
A3: 3 | B3: Odkamieniacz KAMIX, w proszku, 150 g | C3: Środek do usuwania osadów z kamienia Pojemność: 150 g Jednostka sprzedaży: 1 opakowanie | D3: op. ( 150 g)
A4: 4 | B4: Odkamieniacz uniwersalny KAMIX, w płynie, 500 ml | C4: Środek w płynie do usuwania osadów kamienia Pojemność: 500 ml Jednostka sprzedaży: 1 opakowanie | D4: op. (500 ml)
A5: 5 | B5: płyn do czyszczenia sekcji mlecznej ekspresu | C5: Tabletki do codziennego czyszczenia sekcji mlecznej zapewniają dokładne i higieniczne użytkowanie sekcji mlecznej Jednostka sprzedaży: 1 opakowanie | D5: op.
A6: 6 | B6: Płyn odkamieniający DELONGHI "EcoDecalk" | C6: odkamieniacz do ekspresu DELONGHI | D6: szt.
A7: 7 | B7: Tabletki czyszczące KRUPS XS3000, 10 sztuk | C7: Tabletki czyszczące przeznaczone do ekspresów ciśnieniowych i przelewowych Usuwają tłuszcz i pozostałości po kawie wewnątrz ekspresu. Regularne stosowanie gwarantuje utrzymanie wysokiej jakości kawy Jednostka sprzedaży: 1 opakowanie (10 sztuk) | D7: op (10 szt)
A8: 8 | B8: Tabletki do zmywarek FINISH All-in-1, 50 tabletek | C8: Jego unikalna formuła łączy w sobie działanie 10 funkcji Power Actions: usuwanie zaplamień, usuwanie tłuszczu, namaczanie, usuwanie zabrudzeń po herbacie, kryształowy połyski, lśniące sztućce, ochrona przed osadzaniem się kamienia w zmywarce, aktywna ochrona szkła, ochrona srebra, usuwanie opornych zabrudzeń, Dodatkowo spełnia funkcje soli i płynu nabłyszczającego, Składniki: 5 - 15 % związki wybielające na bazie tlenu, niejonowe środki powierzchniowo czynne, do 5 % polikarboksylany, fosfoniany. Enzymy (subtylizyna, amylaza), kompozycja zapachowa. | D8: op (50 szt)
A9: 9 | B9: UNIWERSALNY zestaw do odkamieniania ekspresów | C9: Uniwerslany zestaw do odkamieniania ekspresów Nespresso. Ilość sztuk w opakowaniu: 2 Jednostka sprzedaży: 1 opakowanie | D9: op
A10: 10 | B10: Wkłady filtrujące BRITA Maxtra+ Pure Performance, 3 sztuki | C10: Wybierając wkłady filtrujące Brita Maxtra+ Pure Performance, zapewniasz sobie czystą wodę o doskonałym smaku. Zastosowane perełki węgla aktywnego skutecznie zatrzymują chlor i redukują mogące występować w wodzie zanieczyszczenia, jak herbicydy, pestycydy czy pozostałości po farmaceutykach. Z kolei perełki wymiennika jonowego zmiękczają wodę i zmniejszają występowanie metali w rodzaju miedzi i ołowiu. Wkłady filtrując są rekomendowane do wody miękkiej i średnio twardej. | D10: op (3 szt)
A11: 11 | B11: Worki papierowe do odkurzacza MERIDA Dex, 3 sztuki | C11: Worki papierowe do odkurzacza MERIDA Dex, 3 sztuki | D11: op (3 szt)
A12: 12 | B12: Wymienne wkłady do filtra wody AQUAPHOR MAXFOR | C12: Największa na rynku wydajność - do 200 l, Zawiera innowacyjne włókno Aqualen, dzięki czemu skutecznie usuwa z wody chlor, metale ciężkie, fenol, pestycydy i inne zanieczyszczenia, Redukuje twardość wody i zapobiega pojawianiu się osadu i kamienia na urządzeniach AGD np. w czajnikach i ekspresach, Produkt wolny od bisfenolu A (BPA FREE), wykonany z ekologicznych materiałów | D12: op
A13: 13 | B13: Zestaw do odkamieniania KRUPS F054, 2 saszetki po 40 g | C13: Zestaw polecany do ekspresów KRUPS Informacje na temat sposobu użytkowania dostępne w instrukcji obsługi ekspresu W opakowaniu: 2 saszetki środka odkamieniającego Jednostka sprzedaży: 1 opakowanie (2 saszetki x 40 g) | D13: op (2 saszetki)
A14: 14 | B14: Apteczka VERA TOP 15 PLUS, DIN 13157, w walizce z ABS | C14: Apteczka w walizce z tworzywa ABS. Zawiera stelaż mocujący do ściany W skład wyposażenia wchodzą: kompres zimny – 1 szt., kompres na oko – 2 szt., kompres 10 x 10 cm - 3 opakowania (po 2 sztuki) opaska elastyczna 4 m x 6 cm – 2 szt., opaska elastyczna 4 m x 8 cm – 2 szt., zestaw plastrów 10 x 6 cm (8 szt.) – 1 komplet, zestaw plastrów (14 szt.) – 1 komplet, plaster 5 m x 2,5 cm – 1 szt., opatrunek indywidualny M sterylny – 3 szt. opatrunek indywidualny G sterylny – 1 szt., opatrunek indywidualny K sterylny – 1 szt., chusta opatrunkowa 60 x 80 cm – 1 szt. chusta trójkątna – 1 szt., chusta z flizeliny (5 szt.) – 1 komplet, koc ratunkowy 160 x 210 cm – 1 szt. nożyczki 19 cm – 1 szt., rękawice winylowe – 4 szt. chusteczka dezynfekująca – 6 sztuk, ustnik do sztucznego oddychania – 1 szt., instrukcja udzielania pierwszej pomocy Skład zgodny z normą DIN 13157. Rozmiar: 330 x 235 x 125 mm Jednostka sprzedaży: 1 sztuka | D14: szt
A15: 15 | B15: Wyposażenie apteczki DIN 13157 PLUS | C15: Czajnik posiada filtr antywapienny, który zapobiega przedostawaniu się kamienia do szklanki, Pojemność: 1,7 l Moc: 2400 W | D15: op
A16: 16 | B16: Chusteczki KATRIN Plus, 100 sztuk | C16: Białe, dwuwarstwowe chusteczki higieniczne w praktycznym podajniku Testowane dermatologicznie Jednostka sprzedaży: 1 opakowanie (100 sztuk) | D16: op (100 szt)
A17: 17 | B17: Czajnik elektryczny TEFAL Express 1,5 l, biały | C17: Filtr antywapienny i dwustronny wskaźnik poziomu wody, Możliwość zagotowania minimalnej ilości wody (250 ml), Pojemność: 1,5 l, Moc: 2400 W | D17: szt
A18: 18 | B18: Czajnik elektryczny TEFAL Loft, 1,7 l, czarny | C18: Zdejmowana pokrywa ułatwia napełnianie wodą, Czajnik posiada filtr antywapienny, który zapobiega przedostawaniu się kamienia do szklanki, Pojemność: 1,7 l, Moc: 2400 W | D18: szt
A19: 19 | B19: Czyściwo włókninowe, wielozadaniowe do trudnych zabrudzeń TORK, 1 rolka | C19: Jednowarstwowe, grube i mocne czyściwo wielozadaniowe non-woven (syntetyczno-celulozowe) Duża chłonność, także oleistych substancji Niskopylne i odporne na rozerwania Współpracuje z rozpuszczalnikami, ograniczając ich zużycie Polecane do stosowania w przemyśle maszynowym, poligraficznym, spożywczym nawet do najcięższych zadań związanych z czyszczeniem Atest PZH i certyfikat ISEGA, zezwalający na stosowanie produktu w przemyśle spożywczym W wygodnym kartonie mogącym służyć jako dozownik Perforacja co 38 cm Materiał: włóknina jednowarstwowa Tłoczenie: nie Ilość listków: 280 szerokość listka: 320 mm Długość roli: 106,4 m średnica r[...] | D19: szt
A20: 20 | B20: Kij z mopem sznurkowym, 1 komplet | C20: Kij z mopem sznurkowym, Waga: 345 g, Jednostka sprzedaży: 1 sztuka | D20: szt
A21: 21 | B21: Nakładka CEG z mikrofibry na mop triple, długość 40 cm | C21: Mop trójskładnikowy DUO (kieszeń + klips), Wykonany z bawełny, mikrowłókna i poliestru, Długość: 40 cm | D21: szt
A22: 22 | B22: Ściereczki gąbczaste niebieskie, 3 sztuki | C22: Bardzo trwałe i chłonne ścierki gąbczaste, wzmocnione wewnętrzną bawełnianą siatką, Najlepsze do wycierania wody, zmywania powierzchni i usuwania brudu | D22: op. (3 szt)
A23: 23 | B23: Ścierka do podłogi, 50 x 60 cm, pomarańczowa | C23: Ścierka do podłogi, 50 x 60 cm, pomarańczowaWymiary: 50 x 60 cm, Do czyszczenia dużych powierzchni | D23: szt
A24: 24 | B24: Ścierka z mikrofibry KOLORADO, 35 x 35 cm | C24: Ścierka z mikrofibry przeznaczona do czyszczenia powierzchni szklanych i stosowania w łazience, Skuteczna na sucho i mokro, Nie pozostawia smug, zacieków ani kłaczków, Skład: 80% poliester, 20% poliamid (nylon) | D24: szt
A25: 25 | B25: Ścierki uniwersalne Practi Maxi 50sztuk | C25: Ścierki uniwersalne Practi Maxi 50sztuk rozmiar 25 x 40 | D25: op (50 szt)
A26: 26 | B26: Ścierki uniwersalne, 5 sztuk | C26: Ścierki wielokrotnego użytku Można je prać i sterylizować Wykonane z wiskozy, pachnące Miks kolorów Wymiary: 37 x 38 cm | D26: op (5 szt)
A27: 27 | B27: Proszek do prania tkanin kolorowych DOSIA, 300 g | C27: Proszek do prania tkanin kolorowych do wszystkich typów pralek i do prania ręcznego Zawiera enzymy i aktywne składniki piorące Nie zawiera chlorowych wybielaczy: jest delikatna dla kolorowych i ciemnych tkanin Jednostka sprzedaży: 1 sztuka (300 g) | D27: op (300g)
A28: 28 | B28: Proszek do prania tkanin PUROX, 5 kg | C28: Do wszystkich typów pralek i do prania ręcznego, Jednostka sprzedaży: 1 opakowanie (5 kg), Składniki: do 5% anionowe i niejonowe środki powierzchniowo czynne, enzymy, kompozycja zapachowa, krzemiany, niejonowe środki powierzchniowo, czynne, regulatory piany, rozjaśniacze optyczne, związki wybielające na bazie tlenu | D28: op (5 kg)
A29: 29 | B29: Chusteczki FELLOWES do czyszczenia ekranów, opakowanie 100szt | C29: Chusteczki FELLOWES do czyszczenia ekranów, opakowanie 100szt | D29: op (100 szt)
A30: 30 | B30: Płyn AJAX Floral Fiesta, 1 l | C30: Doskonale usuwa kurz i brud, pozostawiając na długo świeży zapach Miks zapachów Pojemność: 1 l Jednostka sprzedaży 1 sztuka | D30: op (1l)
A31: 31 | B31: Preparat do usuwania tłustego brudu VOIGT C457 Ultra Clean plus 1 l | C31: Odtłuszczanie, gruntowne mycie bez fosforanów – Produkt do profesjonalnego zastosowania, Nie zawierający fosforanów, Usuwa zabrudzenia pochodzenia tłuszczowego i przemysłowego m.in. oleje, smary. Zalecany do: warsztatów, hal produkcyjnych, galerii handlowych, centrów logistycznych | D31: op (1l)
A32: 32 | B32: Rozpuszczalnik do etykiet w sprayu, pojemność 200 ml | C32: Produkt zapewnia w pełni bezpieczne usunięcie etykiet z dowolnej powierzchni, nie pozostawiając żadnych, śladów kleju. Pojemność 200 ml. | D32: op (200 ml)
A33: 33 | B33: Gąbka do zmywania różowa, 5 sztuk | C33: Gąbka do różnorodnych zastosowań, Kolor: różowy | D33: op (5 szt)
A34: 34 | B34: Gąbki do zmywania standardowa, 5 sztuk | C34: Do zmywania naczyń, szkła, ceramiki, powierzchni emaliowanych Wytrzymała Miks kolorów w opakowaniu Jednostka sprzedaży: 1 opakowanie (5 sztuk) Opakowanie zbiorcze: 18 opakowań | D34: op (5 szt)
A35: 35 | B35: Kuchenka mikrofalowa SEVERIN 7890/7862, biała | C35: 5 poziomów mocy, Rozmrażanie w oparciu o czas i wagę, 35-minutowy timer z sygnałem akustycznym, Pokrętło regulacyjne z chromowanymi elementami, Średnica wyjmowanego talerza ok. 25,4 cm, Wysokość komory ok. 16,5 cm, Obudowa i komora lakierowana powłoką odporną na wysokie temperatur, Wymiary: szer. 43,5, gł. 34,5, wys. 25,4 cm, Moc: 700 W | D35: szt
A36: 36 | B36: Jednorazowa maska higieniczna 3-warstwowa, niebieska, 50 sztuk | C36: Trójwarstwowa maska higieniczna. Wykonana z włókniny polipropylenowej (100%). Materiał: Texfil 25 (Spunbond) + Texfil 25 (Spunbond) + Texfil 25 (Spunbond). Gramatura: 25 gsm + 25 gsm + 25 gsm= 75 gsm. Gumki – długość 16cm - 18cm (± 1cm). | D36: op (50szt)
A37: 37 | B37: Półmaska FILTERSERVICE FS-623V NR D, FFP2, z zaworem, 10 sztuk | C37: Czasza półmaski: - Igłowana włóknina poliestrowa, - Włóknina polipropylenowa typu melt blown, - Włóknina osłonowa, - Zawór wydechowy, - Zapinki taśm nagłowia, - Taśma nagłowia | D37: op (10szt)
A38: 38 | B38: Nawilżacz powietrza NU 5N | C38: 4 poziomy intensywności nawilżania, Automatyczna kontrola wilgotności, Demontowany zasobnik wody 5,2 l, Funkcja jonizacji | D38: szt
A39: 39 | B39: Odświeżacz powietrza AMBI PUR, zapach kwiatowy, 300 ml | C39: Wypełnia pomieszczenie zapachem najpiękniejszego wiosennego bukietu Pojemność: 300 ml Jednostka sprzedaży: 1 sztuka Opakowanie zbiorcze: 6 sztuk | D39: szt
A40: 40 | B40: Odświeżacz powietrza BRISE w sprayu | C40: Odświeżając pomieszczenia pozostawia przyjemny zapach Pojemność: 300 ml Jednostka sprzedaży: 1 sztuka | D40: szt.
A41: 41 | B41: Odświeżacz powietrza BRISE w żelu, miks zapachów | C41: Masa netto: 150 g Miks zapachów Jednostka sprzedaży: 1 sztuka | D41: szt.
A42: 42 | B42: Odświeżacz powietrza GREEN FRESH, 400 ml | C42: Skutecznie neutralizuje i pochłania nieprzyjemne zapachy Odświeża i nawilża powietrze, pozostawiając w pomieszczeniu uczucie świeżości i czystości Pojemność: 400 ml Jednostka sprzedaży: 1 sztuka | D42: op. (400 ml)
A43: 43 | B43: Patyczki zapachowe PACHNĄCA SZAFA, Słoneczne popołudnie, 50 ml | C43: Patyczki zapachowe PACHNĄCA SZAFA nadają przyjemny i odświeżający zapach w każdym pomieszczeniu. Odświeżać ma bardzo ładną formę eleganckich patyczków w szklanym flakoniku. | D43: op (50 ml)
A44: 44 | B44: Wkład do odświeżacza AMBI PUR, zapach ocean and wind | C44: Wkład do elektrycznego odświeżacza powietrza AMBI PUR (6.630.347) Wydajność wkładów: do 80 dni Jednostka sprzedaży: 1 sztuka | D44: szt
A45: 45 | B45: Papier toaletowy CLASSIC, biały, 8 rolek | C45: Papier toaletowy CLASSIC, biały, 8 rolek Wymiary listka: szer. 100 x dł. 112 mm, Szerokość taśmy: 100 mm | D45: op. (8 rolek)
A46: 46 | B46: Papier toaletowy ELLIS PROFESSIONAL JUMBO 130/2, 12 rolek | C46: Papier do użytku profesjonalnego w pomieszczeniach o zwiększonym natężeniu użytkowania, Materiał: celuloza dwuwarstwowa, Gramatura: 2 x 16 g/m², Długość roli: 120 m; średnica roli: 19 cm; średnica gilzy: 6 cm | D46: op (12 rolek)
A47: 47 | B47: Papier toaletowy KATRIN 11296 PLUS 160, biały, 8 rolek | C47: Papier toaletowy KATRIN 11296 PLUS 160, biały, 8 rolek Gramatura: 2 x 16,5 g/m², Długość jednej rolki: 18,3 m | D47: op. (8 rolek)
A48: 48 | B48: Supermocny Plaster do cięcia VISCOPLAST, 1 m x 8 cm | C48: Opatrunek włókninowy o wysokiej chłonności, Plaster natychmiast przykleja się do skóry, nawet do wilgotnej, Ogranicza przywieranie opatrunku do rany | D48: op (1m)
A49: 49 | B49: Uniwersalny zestaw plastrów 3M VISCOPLAST, 24 sztuki | C49: Plastry z opatrunkiem do opatrywania drobnych ran i skaleczeń Hypoalergiczne i wodoodporne Przepuszczające powietrze W opakowaniu 24 plastry: plastry Minifol: 72 x 25 mm - 4 sztuki, 72 x 19 mm - 8 sztuk, 57 x 16 mm - 6 sztuk, 38x10 mm - 4 sztuki Plaster Prestopor 10 x 6 cm Plaster Prestovis Plus 10 x 6 cm Jednostka sprzedaży: 1 opakowanie | D49: op. ( 24 szt)
A50: 50 | B50: Krem do rąk EVELINE ''Niewidzialne rękawiczki'', 100 ml | C50: Odżywczo-ochronny krem do rąk z formułą witaminową Polecany do suchych i podrażnionych dłoni Pojemność: 100 ml Jednostka sprzedaży: 1 sztuka | D50: op do (100 ml)
A51: 51 | B51: Krem do rąk GARNIER do skóry bardzo suchej, 100 g | C51: Regeneruje i odżywia zniszczoną skórę dłoni Zawiera alantoinę, glicerynę oraz czynnik filtrującyJednostka sprzedaży: 1 sztuka (100 g) | D51: op. (100 g)
A52: 52 | B52: Ręcznik MALFINI, chabrowy, 70x140 cm | C52: Tkana metka, która może również służyć jako wieszaczek, Ozdobiony wyszywaną bordiurą po obu brzegach, Sklad: 100% bawełna, frotte, Gramatura: 450g/m², Kolor: chabrowy, Rozmiar: 70x140 cm | D52: szt
A53: 53 | B53: Ręcznik MALFINI, granatowy, 50x100 cm | C53: Tkana metka, która może również służyć jako wieszaczek, Ozdobiony wyszywaną bordiurą po obu brzegach, Sklad: 100% bawełna, frotte, Gramatura: 450g/m², Kolor: granatowy | D53: szt
A54: 54 | B54: Ręcznik MALFINI, szaro-czarny, 50x100 cm | C54: Wykonane z wysokiej jakości frotte, odpowiednie pod haft, Miękkie, miłe w dotyku, dobrze absorbują wodę, Tkana metka, która może również służyć jako wieszaczek, Ozdobiony wyszywaną bordiurą po obu brzegach, Sklad: 100% bawełna, frotte, Gramatura: 450g/m² kolor szaroczany | D54: szt
A55: 55 | B55: Ręcznik MALFINI, szaro-czarny, 70x140 cm | C55: Tkana metka, która może również służyć jako wieszaczek, Ozdobiony wyszywaną bordiurą po obu brzegach, Sklad: 100% bawełna, frotte, Gramatura: 450g/m², Kolor: szaroczarny Rozmiar: 70x140 cm | D55: szt
A56: 56 | B56: Chusteczki higieniczne VELVET, 120 sztuk | C56: Chusteczki higieniczne VELVET, 120 sztuk. W opakowaniu 120 sztuk, Produkt ma atest PZH, | D56: op (120 szt)
A57: 57 | B57: Ręcznik w roli ESTIMO 100/2, 500 listków | C57: Wytrzymały, dwuwarstwowy ręcznik w 100% wykonany z celulozy o wysokich parametrach i pięknym designie Długość rolki: 100 m W rolce 500 odcinków o wymiarach: 20,3 x 20 cm Kolor biały Jednostka sprzedaży: 1 rolka | D57: op. (rolka 100 m)
A58: 58 | B58: Ręczniki papierowe białe, składka V, 20 x 200 listków | C58: Gofrowane ręczniki w składce Kompatybilne ze standardowymi dozownikami do ręczników typu ZZ Materiał: makulatura jednowarstwowa Wymiary listka: 25 x 23 cm Gramatura: 1 x 30 g/m² Ilość bind w opakowaniu: 20 Ilość listków w bindzie: 200 Kolor: biały Jednostka sprzedaży: 1 karton (4000 listków) | D58: op. (20 x 200 listków)
A59: 59 | B59: Ręczniki papierowe MERIDA składka V, 20 x 160 listków | C59: Gofrowane ręczniki w składce wysokiej chłonności Kompatybilne ze standardowymi dozownikami do ręczników typu ZZ Materiał: makulatura dwuwarstwowa Wymiary listka: 25 x 23 cm Gramatura:2 x 19 g/m² Tłoczenie: nie Ilość bind w opakowaniu: 20 Ilość listków w bindzie: 160 Kolor: biały Jednostka sprzedaży: 1 karton (3200 listków) | D59: op. (20 x 160 listków)
A60: 60 | B60: Ręczniki papierowe zielone, składka V, 20 x 200 listków | C60: Gofrowane ręczniki w składce wysokiej chłonności Kompatybilne ze standardowymi dozownikami do ręczników typu ZZ Materiał: makulatura dwuwarstwowa Wymiary listka: 25 x 23 cm Gramatura:2 x 19 g/m² Tłoczenie: nie Ilość bind w opakowaniu: 20 Ilość listków w bindzie: 160 Kolor: zielon. Jednostka sprzedaży: 1 karton (3200 listków) | D60: op. (20 x 200 listków)
A61: 61 | B61: Ręczniki w roli TORK UNIVERSAL Extra Długie do systemu TORK Matic H1, 6 rolek | C61: Materiał: makulatura jednowarstwowa, Tłoczenie: nie, Ilość listków:1120, Długość roli: 280 m; wysokość roli: 21 cm; średnica roli: 19 cm; średnica gilzy: 3,8 cm | D61: op. (1120 listków)
A62: 62 | B62: Rękawice antystatyczne ANSELL HyFlex® 11-800, rozmiar 9, para | C62: Nylonowe rękawice z powłoką z pianki nitrylowej, wykonane w technologii KnitZonz™ Wszechstronne rozwiązanie do precyzyjnego montażu i prac ogólnych Zaawansowana technologia dziania zapewnia większą rozciągliwość i elastyczność w miejscach o zwiększonym nacisku Antystatyczne, zgodne z normą EN 1149 Norma EN 388 3131 (EN 388:2016 3131A) Rozmiar: 9 Jednostka sprzedaży: 1 para | D62: op. (1 para)
A63: 63 | B63: Rękawice DELTAPLUS VV835 Chemsafe, rozmiar 11, para | C63: Rękawica z podwójną powłoką nitrylową na wkładzie z poliamidu, Trzecia powłoka z szorstkiej pianki nitrylowej na stronie chwytnej i końcach palców, Długość: 35 cm, Grubość: 1,15 mm - 1,30 mm na stronie chwytnej | D63: op, 1 (para)
A64: 64 | B64: Rękawice nitrylowe MEDASEPT PF, czarne, rozmiar S, 100 sztuk | C64: Uniwersalne, rękawice pasujące na prawą i lewą dłoń, Nitrylowe, Tekstura na końcach palców, Rozmiar S | D64: op. (100 szt)
A65: 65 | B65: Rękawice nitrylowe MEDASEPT PREMIER, niebieskie, rozmiar XL, 100 sztuk | C65: Rękawice nitrylowe diagnostyczne i ochronne (kat. III), Bezpudrowe., Uniwersalny kształt pasuje na obie dłonie, Tekstura na końcach palców, Przeznaczone do kontaktu z żywnością. | D65: op. (100 szt)
A66: 66 | B66: Rękawice nitrylowe MEDASEPT PRIME, niebieskie, rozmiar L, 100 sztuk | C66: Rękawice nitrylowe diagnostyczne i ochronne, Bezpudrowe. Uniwersalny kształt pasuje na obie dłonie. | D66: op. (100 szt)
A67: 67 | B67: Rękawice nitrylowe MEDASEPT PRIME, niebieskie, rozmiar M, 100 sztuk | C67: Rękawice nitrylowe diagnostyczne i ochronne | D67: op. (100 szt)
A68: 68 | B68: Ręcznik kuchenny VELVET Jumbo, 1 rolka | C68: Dwuwarstwowy ręcznik papierowy, który świetnie nadaje się do generalnych porządków, prac w garażu, ogrodzie oraz w kuchni Giga rola = 13 standardowych rolek Nie tylko chłonny i wytrzymały, ale także wyjątkowo wydajny Jedna rolka zawiera aż 520 listków Wysokość rolki: 22 cm Kolor biały Jednostka sprzedaży: 1 rolka | D68: szt ( 1 rolka)
A69: 69 | B69: Ręcznik papierowy BRATEK biały, 2 rolki | C69: Ręczniki kuchenne, dwuwarstwowe, celulozowe Szerokość rolki: 22 cm Długość rolki: 11 m Jednostka sprzedaży: 1 opakowanie (2 sztuki) | D69: op (2 rolki)
A70: 70 | B70: Ręczniki kuchenne AHA, 2 rolki | C70: Dwuwarstwowy ręcznik wykonany z czystej celulozy W rolce 50 odcinków o wymiarach: 23 x 20 cm W opakowaniu: 2 rolki Kolor biały Jednostka sprzedaży: 1 opakowanie | D70: op (2 rolki)
A71: 71 | B71: Ręczniki kuchenne VELVET, 2 rolki | C71: Produkt wolny od bisfenolu A (BPA FREE), posiada atest NIZP-PZH | D71: op. (2 rolki)
A72: 72 | B72: Łyżeczki do herbaty AMEFA Bologna, 12 sztuk | C72: subtelne i eleganckie łyżeczki do herbaty, Sztućce polerowane, stal 18/0 | D72: op (12 szt)
A73: 73 | B73: Łyżeczki do kawy AMEFA Bologna, 12 sztuk | C73: Klasyczne, proste w formie, subtelne i eleganckie łyżeczki do kawy Dobra jakość w atrakcyjnej cenie powodują, iż linia od lat cieszy się wyjątkową popularnością Sztućce polerowane, stal 18/0 | D73: op (12 szt)
A74: 74 | B74: Łyżki AMEFA Bologna, 12 sztuk | C74: Sztućce polerowane, stal 18/0 | D74: op (12 szt)
A75: 75 | B75: Widelce AMEFA Bologna, 12 sztuk | C75: Sztućce polerowane, stal 18/0, | D75: op (12 szt)
A76: 76 | B76: Ściereczki mokre do mebli drewnianych PRESTO, opakowanie 72 sztuki | C76: Ściereczki nawilżane do czyszczenia różnych powierzchni, Usuwają kurz i zapobiegają jego osadzaniu, Nadają połysk czyszczonym powierzchniom | D76: op. (72 szt)
A77: 77 | B77: Kulki do toalet BREF Power Activ, 50 g, zapach cytrynowy | C77: Nowoczesne rozwiązanie w postaci czterech kulek na wygodnej zawieszce Czyszczą, pozostawiają przyjemny zapach i chronią przed osadzaniem się kamienia Masa netto: 50 g Jednostka sprzedaży: 1 sztuka Opakowanie zbiorcze: 10 sztuk | D77: op. (50 g)
A78: 78 | B78: Kulki do toalet BREF Power Activ, 50 g, zapach morski | C78: Nowoczesne rozwiązanie w postaci czterech kulek na wygodnej zawieszce Czyszczą, pozostawiają przyjemny zapach i chronią przed osadzaniem się kamienia Masa netto: 50 g Jednostka sprzedaży: 1 sztuka | D78: op. (50 g)
A79: 79 | B79: Płyn CILIT Bang Kamień i brud, 750 ml | C79: Żel CILIT kamień i brud z Turbo Power. Do czyszczenia wanien, kabin prysznicowych, płytek, toalet, armatury kuchennej i łazienkowej Usuwa kamień, rdzawe zacieki z twardej wody, osad z mydła i inne zabrudzenia Pojemność: 750 ml Jednostka sprzedaży: 1 sztuka | D79: op. (750 ml)
A80: 80 | B80: Płyn do toalet DOMESTOS Toilet Limescale Remover, 750 ml | C80: Gęsty płyn do czyszczenia muszli klozetowych Formuła ściśle przylegająca do czyszczonych powierzchni, rozpuszcza kamień wapienny Przeznaczony do powierzchni porcelanowych i szkliwionych Butelka z wygodnym dozownikiem Pojemność: 750 ml Jednostka sprzedaży: 1 sztuka Opakowanie zbiorcze: 6 sztuk | D80: op. (750 ml)
A81: 81 | B81: Płyn do WC DOMESTOS 24H, 1,25 l, cytrynowy | C81: Produkt czyszcząco-dezynfekująco-wybielający Możliwość stosowania do: muszli klozetowych, umywalek, zlewów itp. Produkt nadaje się także do wybielania tkanin Jednostka sprzedaży: 1 sztuka Pojemność: 1,25 l | D81: op. (1,25 l)
A82: 82 | B82: Płyn do WC DOMESTOS 24H, 1,25 l, leśny | C82: Produkt czyszcząco-dezynfekująco-wybielający Możliwość stosowania do: muszli klozetowych, umywalek, zlewów itp. Produkt nadaje się także do wybielania tkanin Pojemność: 1,25 l Jednostka sprzedaży: 1 sztuka | D82: op. (1,25 l)
A83: 83 | B83: Wkład zapachowy do pisuarów MERIDA, czerwony | C83: Winylowy, elastyczny wkład zapachowy do pisuarów, Zapach utrzymuje się przez około 30 dni, Dodatkowo wkład zabezpiecza pisuar przed zapchaniem | D83: szt.
A84: 84 | B84: Zawieszka do WC DOMESTOS, zapach leśny | C84: Zawieszki czyszczące do toalet Chronią przed osadzaniem się kamienia i pozostawiają świeży zapach Jednostka sprzedaży 1 sztuka | D84: szt
A85: 85 | B85: Żel BREF do WC Fresh Mist, 700 ml | C85: Usuwa kamień, brud i osad, Gęsta formuła żelu sprawia, że działa on również pod powierzchnią wody. | D85: op. (700 ml)
A86: 86 | B86: Żel CLINEX Drill do udrażniania odpływów, 1 l | C86: Szybko rozpuszcza wszelkie stałe i organiczne zanieczyszczenia takie jak: tłuszcz, papier, wata, odpadki kuchenne, Forma żelowa pozwala na osadzanie się preparatu na ściankach rur, przedłużając proces działania, Likwiduje nieprzyjemne zapachy, Nadaje się do udrażniania rur zarówno w kuchni, jak i w łazience | D86: op. (1 l)
A87: 87 | B87: Biobójczy płyn do dezynfekcji rąk HISKIN, 1 l | C87: Produkt przeznaczony do codziennego stosowania przez użytkownika powszechnego. Wykazuje działanie bakteriobójcze, grzybobójcze i wirusobójcze | D87: op. (1 l)
A88: 88 | B88: Dozownik do mydła w płynie MERIDA TOP, biały | C88: Mocny i trwały dozownik do mydła w płynie wykonany z tworzywa ABS Okienko umożliwiające kontrolę zużycia mydła Pojemność: 0,8 l Zestaw do montażu w komplecie Wymiary: dł. 11,5 x szer.11,5 x wys. 25 cm Kolor: biały Jednostka sprzedaży: 1 sztuka | D88: szt.
A89: 89 | B89: Mydło toaletowe NIVEA, 100 g | C89: Kremowe mydło z odżywczym olejkiem migdałowym Miks zapachów Jednostka sprzedaży: 1 sztuka | D89: szt. (100 g)
A90: 90 | B90: Mydło w płynie MERIDA Silva, 5 l | C90: Mydło w płynie typu „dwa w jednym”, Zawiera m.in. glukopony mające doskonałe właściwości pielęgnacyjne skóry, jak również gluadyny – roślinne proteiny, szczególnie cenne składniki pielęgnacyjne chroniące skórę i włosy | D90: op. (5l)
A91: 91 | B91: Mydło w płynie PALMOLIVE, migdałowe, 300 ml | C91: Dzięki naturalnemu pH nie podrażnia nawet wrażliwej skóry Zawiera kombinację substancji czyszczących i odżywczych Opakowanie z dozownikiem Pojemność 300 ml Jednostka sprzedaży: 1 sztuka Opakowanie zbiorcze: 12 sztuk | D91: op. (300 ml)
A92: 92 | B92: Pasta BHP do rąk, ścierna, 500 g | C92: Usuwa silne zabrudzenia smarami, tłuszczami, sadzami | D92: op. (500g)
A93: 93 | B93: Pasta do rąk MERIDA PA12, 500 ml | C93: Usuwa wszelkie zabrudzenia nawet powstałe od smarów i olejów, Oszczędna w użyciu, Jest niealkaliczna i nie zawiera mineralnych środków ściernych | D93: op. (500 ml)
A94: 94 | B94: Kapsułki do zmywarek FAIRY Jar All in 1, 115 kapsułek | C94: Wydajne kapsułki do maszynowego mycia naczyń Jednostka sprzedaży: 1 opakowanie (115 kapsułek) | D94: op. ( 115 szt)
A95: 95 | B95: Płyn do czyszczenia zmywarek FINISH, 250 ml | C95: Płyn do czyszczenia zmywarek o zapachu cytrynowym Pojemność: 250 ml Jednostka sprzedaży 1 opakowanie | D95: op (250 ml)
A96: 96 | B96: Płyn do mycia naczyń LUDWIK 1150 g | C96: Posiada bardzo dobre właściwości myjące oraz wysoką zdolność do emulgowania tłuszczów zarówno w ciepłej, jak i zimnej wodzie. Nie pozostawia zacieków na umytych powierzchniach, nadaje im połysk bez konieczności wycierania do sucha. Nowa receptura została również wzbogacona kompleksem witamin A,E,F,H, mającym działanie ochronne i odżywcze dla skóry rąk, Polecany również do mycia mebli, lodówek, wykładzin, podłóg, glazury, dywanów i tworzyw sztucznych | D96: op. (1150 g)
A97: 97 | B97: Płyn do mycia naczyń LUDWIK cytrynowy, 5 kg | C97: Posiada bardzo dobre właściwości myjące oraz wysoką zdolność do emulgowania tłuszczów zarówno w ciepłej, jak i zimnej wodzie. Nie pozostawia zacieków na umytych powierzchniach, nadaje im połysk bez konieczności wycierania do sucha. Nowa receptura została również wzbogacona kompleksem witamin A,E,F,H, mającym działanie ochronne i odżywcze dla skóry rąk, Polecany również do mycia mebli, lodówek, wykładzin, podłóg, glazury, dywanów i tworzyw sztucznych | D97: 5 kg
A98: 98 | B98: Płyn do mycia naczyń LUDWIK Miętowy 1 l. | C98: Posiada bardzo dobre właściwości myjące oraz wysoką zdolność do emulgowania tłuszczów zarówno w ciepłej, jak i zimnej wodzie. Nie pozostawia zacieków na umytych powierzchniach, nadaje im połysk bez konieczności wycierania do sucha. Nowa receptura została również wzbogacona kompleksem witamin A,E,F,H, mającym działanie ochronne i odżywcze dla skóry rąk, Polecany również do mycia mebli, lodówek, wykładzin, podłóg, glazury, dywanów i tworzyw sztucznych | D98: op. (1 l)
A99: 99 | B99: Płyn do mycia naczyń LUDWIK, cytrynowy, 450 g | C99: Posiada bardzo dobre właściwości myjące oraz wysoką zdolność do emulgowania tłuszczów zarówno w ciepłej, jak i zimnej wodzie. Nie pozostawia zacieków na umytych powierzchniach, nadaje im połysk bez konieczności wycierania do sucha. Nowa receptura została również wzbogacona kompleksem witamin A,E,F,H, mającym działanie ochronne i odżywcze dla skóry rąk, Polecany również do mycia mebli, lodówek, wykładzin, podłóg, glazury, dywanów i tworzyw sztucznych | D99: op. (450g)
A100: 100 | B100: Płyn do naczyń LUDWIK, 450 g, miętowy | C100: Nie pozostawia zacieków na umytych powierzchniach, nadaje im połysk bez konieczności wycierania do sucha. Polecany również do mycia mebli, lodówek, wykładzin, podłóg, glazury, dywanów i tworzyw sztucznych. | D100: op.(450g)
A101: 101 | B101: Płyn nabłyszczający do zmywarek LUDWIK, 750 ml | C101: Przeznaczony do płukania i nabłyszczania naczyń zmywanych w zmywarce Dzięki właściwie dobranym składnikom i zawartości kwasku cytrynowego płyn sprawia, że myte naczynia wysychają bez plam i zacieków Jednostka sprzedaży: 1 opakowanie (750 ml) | D101: op. (750 ml)
A102: 102 | B102: Płyn nabłyszczający FINISH, 400 ml | C102: Usuwa ślady po kroplach wody i osad z kamienia, pozostawiając Diamentowy Połysk Jednostka sprzedaży: 1 opakowanie (400 ml) | D102: op. (400 ml)
A103: 103 | B103: Sól ochronna do zmywarki LUDWIK, 1,5 kg | C103: Preparat chroniący zmywarkę przed osadzaniem się kamienia w jej wnętrzu i na mytych naczyniach Skutecznie zmiękcza wodę dzięki zastosowanej formule, preparat zawiera całkowicie rozpuszczalną szlachetną sól z granulkami o odpowiedniej wielkości Regularne stosowanie soli ochronnej Ludwik zapewnia prawidłowe funkcjonowanie zmywarki i długotrwałą ochronę jej mechanizmów Jednostka sprzedaży: 1 opakowanie (1,5 kg) | D103: op. (1 l)
A104: 104 | B104: Sól SOMAT do zmywarek, 1,5 kg | C104: Zabezpiecza zmywarkę oraz naczynia przed osadzaniem się kamienia Wygodna w użyciu sól ma postać granulek Opakowanie: 1,5 kg Jednostka sprzedaży: 1 sztuka | D104: op. (5 kg)
A105: 105 | B105: Tabletki do zmywarek LUDWIK, 30 sztuk | C105: Wielofunkcyjne tabletki czyszczą, nabłyszczają, chronią szkło i stal nierdzewną przed matowieniem oraz zabezpieczają zmywarkę przed osadzaniem się kamienia Funkcja zmiękczania wody pozwala na jeszcze bardziej efektywne wykorzystanie składników myjących Enzymy są aktywne już w 30°C Cytrusowy aromat tabletek nadaje długotrwały zapach świeżości w kuchni Zapewniają oszczędność wody i energii Jednostka sprzedaży: 1 opakowanie (20 g x 30 tabletek) | D105: op. (30 szt)
A106: 106 | B106: Płyn do mycia szyb i glazury LUDWIK grapefruit z octem, 750 ml | C106: Nie pozostawia smug, zacieków i szybko odparowuje., Skład: do 5% anionowe środki powierzchniowo czynne, konserwant (2-bromo-2-nitropropane-1,3-diol, methylchloroisothiazolinone, methylisothiazolinone), kompozycja zapachowa (limonene, linalool). | D106: op. (750ml)
A107: 107 | B107: Płyn do mycia szyb KUBUŚ z atomizerem, 1 l | C107: Przeznaczony do mycia szyb okiennych, luster oraz innych powierzchni szklanych, Doskonale usuwa brud, nie pozostawia smug | D107: op. (1 l)
A108: 108 | B108: Płyn do szyb i luster BUZIL G522 Profiglass, 600 ml | C108: Gotowy do użycia środek do mycia szyb i luster Skutecznie usuwa zabrudzenia, również te tłuste Butelka posiada specjalnie przyciętą końcówkę rozpryskującą, która ułatwia nanoszenie środka czyszczącego Wygodna butelka 600 ml ze spryskiwaczem | D108: op (600 ml)
A109: 109 | B109: Mleczko do czyszczenia CIF Regular Cream, 650 ml/780 g | C109: Uniwersalne mleczko CIF z mikrokryształkami, które pomaga utrzymać powierzchnie w czystości, jest delikatne i nie rysuje powierzchni. Usuwa najbardziej oporny brud taki jak: przypieczony tłuszcz, przypalone jedzenie, plamy z kamienia w łazience. Składniki: do 5% anionowe środki powierzchniowo, czynne niejonowe środki powierzchniowo czynne, mydło, kompozycja zapachowa Limonene, Benzisothiazolinone, Linalool, Butylphenyl Methylpropional, Hexyl Cinnamal. Sposób użycia: nanieść na wilgotną ściereczkę lub bezpośrednio na czyszczoną powierzchnię. Po wyczyszczeniu dokładnie spłukać. Nie połykać. Mleczko do czyszczenia powierzchni twardych. | D109: op (650 ml)
A110: 110 | B110: Czajnik elektryczny TEFAL Express 1,5 l, biały | C110: Czajnik z ukrytym elementem grzejnym i obrotową podstawą, Filtr antywapienny i dwustronny wskaźnik poziomu wody, Możliwość zagotowania minimalnej ilości wody (250 ml), Pojemność: 1,5 l | D110: szt.
A111: 111 | B111: Dzbanek filtrujący wodę AQUAPHOR Onyx 4,2 l + 3 wkłady filtrujące, biały | C111: Klasyczny i elegancki kształt pasuje do biur i sal konferencyjnych, Produkt wolny od bisfenolu A (BPA FREE), posiada atest NIZP-PZH, W zestawie 3 wkłady Maxfor MG wzbogacające wodę w magnez | D111: op. (3 szt.)
A112: 112 | B112: Filtr wody KRUPS F08801 do ekspresu ciśnieniowego, 1 sztuka | C112: Zapobiega nadmiernemu osadzaniu się kamienia Dostosowany do ekspresów Krups Artese oraz Krups Orchestro Jednostka sprzedaży: 1 sztuka | D112: szt
A113: 113 | B113: Termos TEFAL Campo, 1 l, czarny | C113: Termos TEFAL Campo, 1 l, czarnyObudowa ze stali nierdzewnej z kolorową powłoką z wkładką szklaną, Kolor: czarny | D113: szt
A114: 114 | B114: Reklamówki foliowe 9 micronów 210 + 2 x 60 x 435 mm (+/-12), 150 sztuk | C114: Reklamówki o wymiarach 210 + 2 x 60 x 435 mm (+/-12) Nawój: 150 sztuk Folia HDPE / grubość 9 mikronówJednostka sprzedaży: 1 rolka (150sztuk) | D114: op. (150 szt.)
A115: 115 | B115: Worki do segregacji 60 l, niebieskie na szkło, 60 x 72 cm | C115: Wytrzymałe worki ułatwiające segregację śmieci dzięki kodowi kolorystycznemu, Mają nadruk informujący, jakie typy odpadów należy do nich wrzucać, a jakich nie należy, Wymiary: 60 x 72 cm | D115: op.
A116: 116 | B116: Worki do segregacji 60 l, zielone na szkło, 60 x 72 cm | C116: Wytrzymałe worki ułatwiające segregację śmieci dzięki kodowi kolorystycznemu, Mają nadruk informujący, jakie typy odpadów należy do nich wrzucać, a jakich nie należy, Wymiary: 60 x 72 cm | D116: op
A117: 117 | B117: Worki do segregacji 60 l, zółte na szkło, 60 x 72 cm | C117: Wytrzymałe worki ułatwiające segregację śmieci dzięki kodowi kolorystycznemu, Mają nadruk informujący, jakie typy odpadów należy do nich wrzucać, a jakich nie należy, Wymiary: 60 x 72 cm | D117: op
A118: 118 | B118: Worki na śmieci LDPE sanitarne 120 l, niebieskie, 10 sztuk | C118: Wymiary: 110 x 70 cm, Grubość: folii: 0,03 mm | D118: op (10 szt)
A119: 119 | B119: Worki na śmieci LDPE sanitarne 160 l, czarne, 20 sztuk | C119: Worki na śmieci LDPE sanitarne 160 l, czarne, 20 sztuk Pojemność: 160 l Wymiary: 150 x 90 cm Grubość: folii: 0,027 mm Kolor folii: czarny Jednostka sprzedaży: 1 opakowanie (20 sztuk) | D119: op. (20 sztuk)
A120: 120 | B120: Worki na śmieci LDPE z taśmą ściągającą 60 l, czarne, 10 sztuk | C120: Posiadają taśmę ściągającą Pojemność: 60 l Wymiary: 72 x 60 cm Grubość: folii: 0,02 mm Kolor folii: czarny Jednostka sprzedaży: 1 opakowanie (10 sztuk) | D120: op. (10 sztuk)
A121: 121 | B121: Worki na śmieci łazienkowe, 20 l, białe, 40 sztuk | C121: Idealne worki na odpady łazienkowe, Pojemność: 20 l, Kolor: biały, Rozmiar: 40 x 50 cm | D121: op: (40 sztuk)
A122: 122 | B122: Worki na śmieci MDPE 35 l, niebieskie 20 sztuk | C122: Pojemność: 35 l Wymiary: 58 x 49 cm Grubość: folii: 0,011 mm Kolor folii: niebieski Jednostka sprzedaży: 1 opakowanie (20 sztuk) | D122: op. (20 sztuk)

Sheet Zadanie13 (hidden)
A1: 1 | B1: Filtr do expresu DELONGHI 45.76X | C1: Filtr do expresu DELONGHI 45.76X | D1: szt
A2: 2 | B2: ODKAMIENIACZ DO EKSPRESU MELITTA 250ML | C2: odkamieniacz do ekspresu MELITA poj. 250 ml. | D2: szt. (250 ml)
A3: 3 | B3: Odkamieniacz KAMIX, w proszku, 150 g | C3: Środek do usuwania osadów z kamienia Pojemność: 150 g Jednostka sprzedaży: 1 opakowanie | D3: op. ( 150 g)
A4: 4 | B4: Odkamieniacz uniwersalny KAMIX, w płynie, 500 ml | C4: Środek w płynie do usuwania osadów kamienia Pojemność: 500 ml Jednostka sprzedaży: 1 opakowanie | D4: op. (500 ml)
A5: 5 | B5: płyn do czyszczenia sekcji mlecznej ekspresu | C5: Tabletki do codziennego czyszczenia sekcji mlecznej zapewniają dokładne i higieniczne użytkowanie sekcji mlecznej Jednostka sprzedaży: 1 opakowanie | D5: op.
A6: 6 | B6: Płyn odkamieniający DELONGHI "EcoDecalk" | C6: odkamieniacz do ekspresu DELONGHI | D6: szt.
A7: 7 | B7: Tabletki czyszczące KRUPS XS3000, 10 sztuk | C7: Tabletki czyszczące przeznaczone do ekspresów ciśnieniowych i przelewowych Usuwają tłuszcz i pozostałości po kawie wewnątrz ekspresu. Regularne stosowanie gwarantuje utrzymanie wysokiej jakości kawy Jednostka sprzedaży: 1 opakowanie (10 sztuk) | D7: op (10 szt)
A8: 8 | B8: Tabletki do zmywarek FINISH All-in-1, 50 tabletek | C8: Jego unikalna formuła łączy w sobie działanie 10 funkcji Power Actions: usuwanie zaplamień, usuwanie tłuszczu, namaczanie, usuwanie zabrudzeń po herbacie, kryształowy połyski, lśniące sztućce, ochrona przed osadzaniem się kamienia w zmywarce, aktywna ochrona szkła, ochrona srebra, usuwanie opornych zabrudzeń, Dodatkowo spełnia funkcje soli i płynu nabłyszczającego, Składniki: 5 - 15 % związki wybielające na bazie tlenu, niejonowe środki powierzchniowo czynne, do 5 % polikarboksylany, fosfoniany. Enzymy (subtylizyna, amylaza), kompozycja zapachowa. | D8: op (50 szt)
A9: 9 | B9: UNIWERSALNY zestaw do odkamieniania ekspresów | C9: Uniwerslany zestaw do odkamieniania ekspresów Nespresso. Ilość sztuk w opakowaniu: 2 Jednostka sprzedaży: 1 opakowanie | D9: op
A10: 10 | B10: Apteczka VERA TOP 15 PLUS, DIN 13157, w walizce z ABS | C10: Apteczka w walizce z tworzywa ABS. Zawiera stelaż mocujący do ściany W skład wyposażenia wchodzą: kompres zimny – 1 szt., kompres na oko – 2 szt., kompres 10 x 10 cm - 3 opakowania (po 2 sztuki) opaska elastyczna 4 m x 6 cm – 2 szt., opaska elastyczna 4 m x 8 cm – 2 szt., zestaw plastrów 10 x 6 cm (8 szt.) – 1 komplet, zestaw plastrów (14 szt.) – 1 komplet, plaster 5 m x 2,5 cm – 1 szt., opatrunek indywidualny M sterylny – 3 szt. opatrunek indywidualny G sterylny – 1 szt., opatrunek indywidualny K sterylny – 1 szt., chusta opatrunkowa 60 x 80 cm – 1 szt. chusta trójkątna – 1 szt., chusta z flizeliny (5 szt.) – 1 komplet, koc ratunkowy 160 x 210 cm – 1 szt. nożyczki 19 cm – 1 szt., rękawice winylowe – 4 szt. chusteczka dezynfekująca – 6 sztuk, ustnik do sztucznego oddychania – 1 szt., instrukcja udzielania pierwszej pomocy Skład zgodny z normą DIN 13157. Rozmiar: 330 x 235 x 125 mm Jednostka sprzedaży: 1 sztuka | D10: szt
A11: 11 | B11: Wyposażenie apteczki DIN 13157 PLUS | C11: Czajnik posiada filtr antywapienny, który zapobiega przedostawaniu się kamienia do szklanki, Pojemność: 1,7 l Moc: 2400 W | D11: op
A12: 12 | B12: Chusteczki KATRIN Plus, 100 sztuk | C12: Białe, dwuwarstwowe chusteczki higieniczne w praktycznym podajniku Testowane dermatologicznie Jednostka sprzedaży: 1 opakowanie (100 sztuk) | D12: op (100 szt)
A13: 13 | B13: Czajnik elektryczny TEFAL Express 1,5 l, biały | C13: Filtr antywapienny i dwustronny wskaźnik poziomu wody, Możliwość zagotowania minimalnej ilości wody (250 ml), Pojemność: 1,5 l, Moc: 2400 W | D13: szt
A14: 14 | B14: Czajnik elektryczny TEFAL Loft, 1,7 l, czarny | C14: Zdejmowana pokrywa ułatwia napełnianie wodą, Czajnik posiada filtr antywapienny, który zapobiega przedostawaniu się kamienia do szklanki, Pojemność: 1,7 l, Moc: 2400 W | D14: szt
A15: 15 | B15: Czyściwo włókninowe, wielozadaniowe do trudnych zabrudzeń TORK, 1 rolka | C15: Jednowarstwowe, grube i mocne czyściwo wielozadaniowe non-woven (syntetyczno-celulozowe) Duża chłonność, także oleistych substancji Niskopylne i odporne na rozerwania Współpracuje z rozpuszczalnikami, ograniczając ich zużycie Polecane do stosowania w przemyśle maszynowym, poligraficznym, spożywczym nawet do najcięższych zadań związanych z czyszczeniem Atest PZH i certyfikat ISEGA, zezwalający na stosowanie produktu w przemyśle spożywczym W wygodnym kartonie mogącym służyć jako dozownik Perforacja co 38 cm Materiał: włóknina jednowarstwowa Tłoczenie: nie Ilość listków: 280 szerokość listka: 320 mm Długość roli: 106,4 m średnica r[...] | D15: szt
A16: 16 | B16: Ściereczki gąbczaste niebieskie, 3 sztuki | C16: Bardzo trwałe i chłonne ścierki gąbczaste, wzmocnione wewnętrzną bawełnianą siatką, Najlepsze do wycierania wody, zmywania powierzchni i usuwania brudu | D16: op. (3 szt)
A17: 17 | B17: Ścierka do podłogi, 50 x 60 cm, pomarańczowa | C17: Ścierka do podłogi, 50 x 60 cm, pomarańczowaWymiary: 50 x 60 cm, Do czyszczenia dużych powierzchni | D17: szt
A18: 18 | B18: Ścierka z mikrofibry KOLORADO, 35 x 35 cm | C18: Ścierka z mikrofibry przeznaczona do czyszczenia powierzchni szklanych i stosowania w łazience, Skuteczna na sucho i mokro, Nie pozostawia smug, zacieków ani kłaczków, Skład: 80% poliester, 20% poliamid (nylon) | D18: szt
A19: 19 | B19: Ścierki uniwersalne Practi Maxi 50sztuk | C19: Ścierki uniwersalne Practi Maxi 50sztuk rozmiar 25 x 40 | D19: op (50 szt)
A20: 20 | B20: Ścierki uniwersalne, 5 sztuk | C20: Ścierki wielokrotnego użytku Można je prać i sterylizować Wykonane z wiskozy, pachnące Miks kolorów Wymiary: 37 x 38 cm | D20: op (5 szt)
A21: 21 | B21: Chusteczki FELLOWES do czyszczenia ekranów, opakowanie 100szt | C21: Chusteczki FELLOWES do czyszczenia ekranów, opakowanie 100szt | D21: op (100 szt)
A22: 22 | B22: Płyn AJAX Floral Fiesta, 1 l | C22: Doskonale usuwa kurz i brud, pozostawiając na długo świeży zapach Miks zapachów Pojemność: 1 l Jednostka sprzedaży 1 sztuka | D22: op (1l)
A23: 23 | B23: Preparat do usuwania tłustego brudu VOIGT C457 Ultra Clean plus 1 l | C23: Odtłuszczanie, gruntowne mycie bez fosforanów – Produkt do profesjonalnego zastosowania, Nie zawierający fosforanów, Usuwa zabrudzenia pochodzenia tłuszczowego i przemysłowego m.in. oleje, smary. Zalecany do: warsztatów, hal produkcyjnych, galerii handlowych, centrów logistycznych | D23: op (1l)
A24: 24 | B24: Rozpuszczalnik do etykiet w sprayu, pojemność 200 ml | C24: Produkt zapewnia w pełni bezpieczne usunięcie etykiet z dowolnej powierzchni, nie pozostawiając żadnych, śladów kleju. Pojemność 200 ml. | D24: op (200 ml)
A25: 25 | B25: Gąbka do zmywania różowa, 5 sztuk | C25: Gąbka do różnorodnych zastosowań, Kolor: różowy | D25: op (5 szt)
A26: 26 | B26: Gąbki do zmywania standardowa, 5 sztuk | C26: Do zmywania naczyń, szkła, ceramiki, powierzchni emaliowanych Wytrzymała Miks kolorów w opakowaniu Jednostka sprzedaży: 1 opakowanie (5 sztuk) Opakowanie zbiorcze: 18 opakowań | D26: op (5 szt)
A27: 27 | B27: Kuchenka mikrofalowa SEVERIN 7890/7862, biała | C27: 5 poziomów mocy, Rozmrażanie w oparciu o czas i wagę, 35-minutowy timer z sygnałem akustycznym, Pokrętło regulacyjne z chromowanymi elementami, Średnica wyjmowanego talerza ok. 25,4 cm, Wysokość komory ok. 16,5 cm, Obudowa i komora lakierowana powłoką odporną na wysokie temperatur, Wymiary: szer. 43,5, gł. 34,5, wys. 25,4 cm, Moc: 700 W | D27: szt
A28: 28 | B28: Jednorazowa maska higieniczna 3-warstwowa, niebieska, 50 sztuk | C28: Trójwarstwowa maska higieniczna. Wykonana z włókniny polipropylenowej (100%). Materiał: Texfil 25 (Spunbond) + Texfil 25 (Spunbond) + Texfil 25 (Spunbond). Gramatura: 25 gsm + 25 gsm + 25 gsm= 75 gsm. Gumki – długość 16cm - 18cm (± 1cm). | D28: op (50szt)
A29: 29 | B29: Półmaska FILTERSERVICE FS-623V NR D, FFP2, z zaworem, 10 sztuk | C29: Czasza półmaski: - Igłowana włóknina poliestrowa, - Włóknina polipropylenowa typu melt blown, - Włóknina osłonowa, - Zawór wydechowy, - Zapinki taśm nagłowia, - Taśma nagłowia | D29: op (10szt)
A30: 30 | B30: Nawilżacz powietrza NU 5N | C30: 4 poziomy intensywności nawilżania, Automatyczna kontrola wilgotności, Demontowany zasobnik wody 5,2 l, Funkcja jonizacji | D30: szt
A31: 31 | B31: Odświeżacz powietrza AMBI PUR, zapach kwiatowy, 300 ml | C31: Wypełnia pomieszczenie zapachem najpiękniejszego wiosennego bukietu Pojemność: 300 ml Jednostka sprzedaży: 1 sztuka Opakowanie zbiorcze: 6 sztuk | D31: szt
A32: 32 | B32: Odświeżacz powietrza BRISE w sprayu | C32: Odświeżając pomieszczenia pozostawia przyjemny zapach Pojemność: 300 ml Jednostka sprzedaży: 1 sztuka | D32: szt.
A33: 33 | B33: Odświeżacz powietrza BRISE w żelu, miks zapachów | C33: Masa netto: 150 g Miks zapachów Jednostka sprzedaży: 1 sztuka | D33: szt.
A34: 34 | B34: Odświeżacz powietrza GREEN FRESH, 400 ml | C34: Skutecznie neutralizuje i pochłania nieprzyjemne zapachy Odświeża i nawilża powietrze, pozostawiając w pomieszczeniu uczucie świeżości i czystości Pojemność: 400 ml Jednostka sprzedaży: 1 sztuka | D34: op. (400 ml)
A35: 35 | B35: Patyczki zapachowe PACHNĄCA SZAFA, Słoneczne popołudnie, 50 ml | C35: Patyczki zapachowe PACHNĄCA SZAFA nadają przyjemny i odświeżający zapach w każdym pomieszczeniu. Odświeżać ma bardzo ładną formę eleganckich patyczków w szklanym flakoniku. | D35: op (50 ml)
A36: 36 | B36: Wkład do odświeżacza AMBI PUR, zapach ocean and wind | C36: Wkład do elektrycznego odświeżacza powietrza AMBI PUR (6.630.347) Wydajność wkładów: do 80 dni Jednostka sprzedaży: 1 sztuka | D36: szt
A37: 37 | B37: Supermocny Plaster do cięcia VISCOPLAST, 1 m x 8 cm | C37: Opatrunek włókninowy o wysokiej chłonności, Plaster natychmiast przykleja się do skóry, nawet do wilgotnej, Ogranicza przywieranie opatrunku do rany | D37: op (1m)
A38: 38 | B38: Uniwersalny zestaw plastrów 3M VISCOPLAST, 24 sztuki | C38: Plastry z opatrunkiem do opatrywania drobnych ran i skaleczeń Hypoalergiczne i wodoodporne Przepuszczające powietrze W opakowaniu 24 plastry: plastry Minifol: 72 x 25 mm - 4 sztuki, 72 x 19 mm - 8 sztuk, 57 x 16 mm - 6 sztuk, 38x10 mm - 4 sztuki Plaster Prestopor 10 x 6 cm Plaster Prestovis Plus 10 x 6 cm Jednostka sprzedaży: 1 opakowanie | D38: op. ( 24 szt)
A39: 39 | B39: Krem do rąk EVELINE ''Niewidzialne rękawiczki'', 100 ml | C39: Odżywczo-ochronny krem do rąk z formułą witaminową Polecany do suchych i podrażnionych dłoni Pojemność: 100 ml Jednostka sprzedaży: 1 sztuka | D39: op do (100 ml)
A40: 40 | B40: Krem do rąk GARNIER do skóry bardzo suchej, 100 g | C40: Regeneruje i odżywia zniszczoną skórę dłoni Zawiera alantoinę, glicerynę oraz czynnik filtrującyJednostka sprzedaży: 1 sztuka (100 g) | D40: op. (100 g)
A41: 41 | B41: Ręcznik MALFINI, chabrowy, 70x140 cm | C41: Tkana metka, która może również służyć jako wieszaczek, Ozdobiony wyszywaną bordiurą po obu brzegach, Sklad: 100% bawełna, frotte, Gramatura: 450g/m², Kolor: chabrowy, Rozmiar: 70x140 cm | D41: szt
A42: 42 | B42: Ręcznik MALFINI, granatowy, 50x100 cm | C42: Tkana metka, która może również służyć jako wieszaczek, Ozdobiony wyszywaną bordiurą po obu brzegach, Sklad: 100% bawełna, frotte, Gramatura: 450g/m², Kolor: granatowy | D42: szt
A43: 43 | B43: Chusteczki higieniczne VELVET, 120 sztuk | C43: Chusteczki higieniczne VELVET, 120 sztuk. W opakowaniu 120 sztuk, Produkt ma atest PZH, | D43: op (120 szt)
A44: 44 | B44: Ręcznik w roli ESTIMO 100/2, 500 listków | C44: Wytrzymały, dwuwarstwowy ręcznik w 100% wykonany z celulozy o wysokich parametrach i pięknym designie Długość rolki: 100 m W rolce 500 odcinków o wymiarach: 20,3 x 20 cm Kolor biały Jednostka sprzedaży: 1 rolka | D44: op. (rolka 100 m)
A45: 45 | B45: Ręczniki papierowe białe, składka V, 20 x 200 listków | C45: Gofrowane ręczniki w składce Kompatybilne ze standardowymi dozownikami do ręczników typu ZZ Materiał: makulatura jednowarstwowa Wymiary listka: 25 x 23 cm Gramatura: 1 x 30 g/m² Ilość bind w opakowaniu: 20 Ilość listków w bindzie: 200 Kolor: biały Jednostka sprzedaży: 1 karton (4000 listków) | D45: op. (20 x 200 listków)
A46: 46 | B46: Rękawice antystatyczne ANSELL HyFlex® 11-800, rozmiar 9, para | C46: Nylonowe rękawice z powłoką z pianki nitrylowej, wykonane w technologii KnitZonz™ Wszechstronne rozwiązanie do precyzyjnego montażu i prac ogólnych Zaawansowana technologia dziania zapewnia większą rozciągliwość i elastyczność w miejscach o zwiększonym nacisku Antystatyczne, zgodne z normą EN 1149 Norma EN 388 3131 (EN 388:2016 3131A) Rozmiar: 9 Jednostka sprzedaży: 1 para | D46: op. (1 para)
A47: 47 | B47: Rękawice nitrylowe MEDASEPT PF, czarne, rozmiar S, 100 sztuk | C47: Uniwersalne, rękawice pasujące na prawą i lewą dłoń, Nitrylowe, Tekstura na końcach palców, Rozmiar S | D47: op. (100 szt)
A48: 48 | B48: Rękawice nitrylowe MEDASEPT PREMIER, niebieskie, rozmiar XL, 100 sztuk | C48: Rękawice nitrylowe diagnostyczne i ochronne (kat. III), Bezpudrowe., Uniwersalny kształt pasuje na obie dłonie, Tekstura na końcach palców, Przeznaczone do kontaktu z żywnością. | D48: op. (100 szt)
A49: 49 | B49: Rękawice nitrylowe MEDASEPT PRIME, niebieskie, rozmiar L, 100 sztuk | C49: Rękawice nitrylowe diagnostyczne i ochronne, Bezpudrowe. Uniwersalny kształt pasuje na obie dłonie. | D49: op. (100 szt)
A50: 50 | B50: Rękawice nitrylowe MEDASEPT PRIME, niebieskie, rozmiar M, 100 sztuk | C50: Rękawice nitrylowe diagnostyczne i ochronne | D50: op. (100 szt)
A51: 51 | B51: Ręcznik kuchenny VELVET Jumbo, 1 rolka | C51: Dwuwarstwowy ręcznik papierowy, który świetnie nadaje się do generalnych porządków, prac w garażu, ogrodzie oraz w kuchni Giga rola = 13 standardowych rolek Nie tylko chłonny i wytrzymały, ale także wyjątkowo wydajny Jedna rolka zawiera aż 520 listków Wysokość rolki: 22 cm Kolor biały Jednostka sprzedaży: 1 rolka | D51: szt ( 1 rolka)
A52: 52 | B52: Ręczniki kuchenne VELVET, 2 rolki | C52: Produkt wolny od bisfenolu A (BPA FREE), posiada atest NIZP-PZH | D52: op. (2 rolki)
A53: 53 | B53: Łyżeczki do herbaty AMEFA Bologna, 12 sztuk | C53: subtelne i eleganckie łyżeczki do herbaty, Sztućce polerowane, stal 18/0 | D53: op (12 szt)
A54: 54 | B54: Łyżeczki do kawy AMEFA Bologna, 12 sztuk | C54: Klasyczne, proste w formie, subtelne i eleganckie łyżeczki do kawy Dobra jakość w atrakcyjnej cenie powodują, iż linia od lat cieszy się wyjątkową popularnością Sztućce polerowane, stal 18/0 | D54: op (12 szt)
A55: 55 | B55: Widelce AMEFA Bologna, 12 sztuk | C55: Sztućce polerowane, stal 18/0, | D55: op (12 szt)
A56: 56 | B56: Ściereczki mokre do mebli drewnianych PRESTO, opakowanie 72 sztuki | C56: Ściereczki nawilżane do czyszczenia różnych powierzchni, Usuwają kurz i zapobiegają jego osadzaniu, Nadają połysk czyszczonym powierzchniom | D56: op. (72 szt)
A57: 57 | B57: Płyn CILIT Bang Kamień i brud, 750 ml | C57: Żel CILIT kamień i brud z Turbo Power. Do czyszczenia wanien, kabin prysznicowych, płytek, toalet, armatury kuchennej i łazienkowej Usuwa kamień, rdzawe zacieki z twardej wody, osad z mydła i inne zabrudzenia Pojemność: 750 ml Jednostka sprzedaży: 1 sztuka | D57: op. (750 ml)
A58: 58 | B58: Płyn do WC DOMESTOS 24H, 1,25 l, cytrynowy | C58: Produkt czyszcząco-dezynfekująco-wybielający Możliwość stosowania do: muszli klozetowych, umywalek, zlewów itp. Produkt nadaje się także do wybielania tkanin Jednostka sprzedaży: 1 sztuka Pojemność: 1,25 l | D58: op. (1,25 l)
A59: 59 | B59: Żel CLINEX Drill do udrażniania odpływów, 1 l | C59: Szybko rozpuszcza wszelkie stałe i organiczne zanieczyszczenia takie jak: tłuszcz, papier, wata, odpadki kuchenne, Forma żelowa pozwala na osadzanie się preparatu na ściankach rur, przedłużając proces działania, Likwiduje nieprzyjemne zapachy, Nadaje się do udrażniania rur zarówno w kuchni, jak i w łazience | D59: op. (1 l)
A60: 60 | B60: Biobójczy płyn do dezynfekcji rąk HISKIN, 1 l | C60: Produkt przeznaczony do codziennego stosowania przez użytkownika powszechnego. Wykazuje działanie bakteriobójcze, grzybobójcze i wirusobójcze | D60: op. (1 l)
A61: 61 | B61: Dozownik do mydła w płynie MERIDA TOP, biały | C61: Mocny i trwały dozownik do mydła w płynie wykonany z tworzywa ABS Okienko umożliwiające kontrolę zużycia mydła Pojemność: 0,8 l Zestaw do montażu w komplecie Wymiary: dł. 11,5 x szer.11,5 x wys. 25 cm Kolor: biały Jednostka sprzedaży: 1 sztuka | D61: szt.
A62: 62 | B62: Mydło toaletowe NIVEA, 100 g | C62: Kremowe mydło z odżywczym olejkiem migdałowym Miks zapachów Jednostka sprzedaży: 1 sztuka | D62: szt. (100 g)
A63: 63 | B63: Pasta BHP do rąk, ścierna, 500 g | C63: Usuwa silne zabrudzenia smarami, tłuszczami, sadzami | D63: op. (500g)
A64: 64 | B64: Kapsułki do zmywarek FAIRY Jar All in 1, 115 kapsułek | C64: Wydajne kapsułki do maszynowego mycia naczyń Jednostka sprzedaży: 1 opakowanie (115 kapsułek) | D64: op. ( 115 szt)
A65: 65 | B65: Płyn do czyszczenia zmywarek FINISH, 250 ml | C65: Płyn do czyszczenia zmywarek o zapachu cytrynowym Pojemność: 250 ml Jednostka sprzedaży 1 opakowanie | D65: op (250 ml)
A66: 66 | B66: Płyn do mycia naczyń LUDWIK 1150 g | C66: Posiada bardzo dobre właściwości myjące oraz wysoką zdolność do emulgowania tłuszczów zarówno w ciepłej, jak i zimnej wodzie. Nie pozostawia zacieków na umytych powierzchniach, nadaje im połysk bez konieczności wycierania do sucha. Nowa receptura została również wzbogacona kompleksem witamin A,E,F,H, mającym działanie ochronne i odżywcze dla skóry rąk, Polecany również do mycia mebli, lodówek, wykładzin, podłóg, glazury, dywanów i tworzyw sztucznych | D66: op. (1150 g)
A67: 67 | B67: Płyn do mycia naczyń LUDWIK Miętowy 1 l. | C67: Posiada bardzo dobre właściwości myjące oraz wysoką zdolność do emulgowania tłuszczów zarówno w ciepłej, jak i zimnej wodzie. Nie pozostawia zacieków na umytych powierzchniach, nadaje im połysk bez konieczności wycierania do sucha. Nowa receptura została również wzbogacona kompleksem witamin A,E,F,H, mającym działanie ochronne i odżywcze dla skóry rąk, Polecany również do mycia mebli, lodówek, wykładzin, podłóg, glazury, dywanów i tworzyw sztucznych | D67: op. (1 l)
A68: 68 | B68: Płyn do mycia naczyń LUDWIK, cytrynowy, 450 g | C68: Posiada bardzo dobre właściwości myjące oraz wysoką zdolność do emulgowania tłuszczów zarówno w ciepłej, jak i zimnej wodzie. Nie pozostawia zacieków na umytych powierzchniach, nadaje im połysk bez konieczności wycierania do sucha. Nowa receptura została również wzbogacona kompleksem witamin A,E,F,H, mającym działanie ochronne i odżywcze dla skóry rąk, Polecany również do mycia mebli, lodówek, wykładzin, podłóg, glazury, dywanów i tworzyw sztucznych | D68: op. (450g)
A69: 69 | B69: Płyn do naczyń LUDWIK, 450 g, miętowy | C69: Nie pozostawia zacieków na umytych powierzchniach, nadaje im połysk bez konieczności wycierania do sucha. Polecany również do mycia mebli, lodówek, wykładzin, podłóg, glazury, dywanów i tworzyw sztucznych. | D69: op.(450g)
A70: 70 | B70: Płyn nabłyszczający do zmywarek LUDWIK, 750 ml | C70: Przeznaczony do płukania i nabłyszczania naczyń zmywanych w zmywarce Dzięki właściwie dobranym składnikom i zawartości kwasku cytrynowego płyn sprawia, że myte naczynia wysychają bez plam i zacieków Jednostka sprzedaży: 1 opakowanie (750 ml) | D70: op. (750 ml)
A71: 71 | B71: Płyn nabłyszczający FINISH, 400 ml | C71: Usuwa ślady po kroplach wody i osad z kamienia, pozostawiając Diamentowy Połysk Jednostka sprzedaży: 1 opakowanie (400 ml) | D71: op. (400 ml)
A72: 72 | B72: Sól ochronna do zmywarki LUDWIK, 1,5 kg | C72: Preparat chroniący zmywarkę przed osadzaniem się kamienia w jej wnętrzu i na mytych naczyniach Skutecznie zmiękcza wodę dzięki zastosowanej formule, preparat zawiera całkowicie rozpuszczalną szlachetną sól z granulkami o odpowiedniej wielkości Regularne stosowanie soli ochronnej Ludwik zapewnia prawidłowe funkcjonowanie zmywarki i długotrwałą ochronę jej mechanizmów Jednostka sprzedaży: 1 opakowanie (1,5 kg) | D72: op. (1 l)
A73: 73 | B73: Sól SOMAT do zmywarek, 1,5 kg | C73: Zabezpiecza zmywarkę oraz naczynia przed osadzaniem się kamienia Wygodna w użyciu sól ma postać granulek Opakowanie: 1,5 kg Jednostka sprzedaży: 1 sztuka | D73: op. (5 kg)
A74: 74 | B74: Tabletki do zmywarek LUDWIK, 30 sztuk | C74: Wielofunkcyjne tabletki czyszczą, nabłyszczają, chronią szkło i stal nierdzewną przed matowieniem oraz zabezpieczają zmywarkę przed osadzaniem się kamienia Funkcja zmiękczania wody pozwala na jeszcze bardziej efektywne wykorzystanie składników myjących Enzymy są aktywne już w 30°C Cytrusowy aromat tabletek nadaje długotrwały zapach świeżości w kuchni Zapewniają oszczędność wody i energii Jednostka sprzedaży: 1 opakowanie (20 g x 30 tabletek) | D74: op. (30 szt)
A75: 75 | B75: Płyn do mycia szyb i glazury LUDWIK grapefruit z octem, 750 ml | C75: Nie pozostawia smug, zacieków i szybko odparowuje., Skład: do 5% anionowe środki powierzchniowo czynne, konserwant (2-bromo-2-nitropropane-1,3-diol, methylchloroisothiazolinone, methylisothiazolinone), kompozycja zapachowa (limonene, linalool). | D75: op. (750ml)
A76: 76 | B76: Płyn do szyb i luster BUZIL G522 Profiglass, 600 ml | C76: Gotowy do użycia środek do mycia szyb i luster Skutecznie usuwa zabrudzenia, również te tłuste Butelka posiada specjalnie przyciętą końcówkę rozpryskującą, która ułatwia nanoszenie środka czyszczącego Wygodna butelka 600 ml ze spryskiwaczem | D76: op (600 ml)
A77: 77 | B77: Mleczko do czyszczenia CIF Regular Cream, 650 ml/780 g | C77: Uniwersalne mleczko CIF z mikrokryształkami, które pomaga utrzymać powierzchnie w czystości, jest delikatne i nie rysuje powierzchni. Usuwa najbardziej oporny brud taki jak: przypieczony tłuszcz, przypalone jedzenie, plamy z kamienia w łazience. Składniki: do 5% anionowe środki powierzchniowo, czynne niejonowe środki powierzchniowo czynne, mydło, kompozycja zapachowa Limonene, Benzisothiazolinone, Linalool, Butylphenyl Methylpropional, Hexyl Cinnamal. Sposób użycia: nanieść na wilgotną ściereczkę lub bezpośrednio na czyszczoną powierzchnię. Po wyczyszczeniu dokładnie spłukać. Nie połykać. Mleczko do czyszczenia powierzchni twardych. | D77: op (650 ml)
A78: 78 | B78: Czajnik elektryczny TEFAL Express 1,5 l, biały | C78: Czajnik z ukrytym elementem grzejnym i obrotową podstawą, Filtr antywapienny i dwustronny wskaźnik poziomu wody, Możliwość zagotowania minimalnej ilości wody (250 ml), Pojemność: 1,5 l | D78: szt.
A79: 79 | B79: Dzbanek filtrujący wodę AQUAPHOR Onyx 4,2 l + 3 wkłady filtrujące, biały | C79: Klasyczny i elegancki kształt pasuje do biur i sal konferencyjnych, Produkt wolny od bisfenolu A (BPA FREE), posiada atest NIZP-PZH, W zestawie 3 wkłady Maxfor MG wzbogacające wodę w magnez | D79: op. (3 szt.)
A80: 80 | B80: Filtr wody KRUPS F08801 do ekspresu ciśnieniowego, 1 sztuka | C80: Zapobiega nadmiernemu osadzaniu się kamienia Dostosowany do ekspresów Krups Artese oraz Krups Orchestro Jednostka sprzedaży: 1 sztuka | D80: szt
A81: 81 | B81: Termos TEFAL Campo, 1 l, czarny | C81: Termos TEFAL Campo, 1 l, czarnyObudowa ze stali nierdzewnej z kolorową powłoką z wkładką szklaną, Kolor: czarny | D81: szt
A82: 82 | B82: Reklamówki foliowe 9 micronów 210 + 2 x 60 x 435 mm (+/-12), 150 sztuk | C82: Reklamówki o wymiarach 210 + 2 x 60 x 435 mm (+/-12) Nawój: 150 sztuk Folia HDPE / grubość 9 mikronówJednostka sprzedaży: 1 rolka (150sztuk) | D82: op. (150 szt.)
A83: 83 | B83: Worki do segregacji 60 l, niebieskie na szkło, 60 x 72 cm | C83: Wytrzymałe worki ułatwiające segregację śmieci dzięki kodowi kolorystycznemu, Mają nadruk informujący, jakie typy odpadów należy do nich wrzucać, a jakich nie należy, Wymiary: 60 x 72 cm | D83: op.
A84: 84 | B84: Worki do segregacji 60 l, zielone na szkło, 60 x 72 cm | C84: Wytrzymałe worki ułatwiające segregację śmieci dzięki kodowi kolorystycznemu, Mają nadruk informujący, jakie typy odpadów należy do nich wrzucać, a jakich nie należy, Wymiary: 60 x 72 cm | D84: op
A85: 85 | B85: Worki do segregacji 60 l, zółte na szkło, 60 x 72 cm | C85: Wytrzymałe worki ułatwiające segregację śmieci dzięki kodowi kolorystycznemu, Mają nadruk informujący, jakie typy odpadów należy do nich wrzucać, a jakich nie należy, Wymiary: 60 x 72 cm | D85: op
A86: 86 | B86: Worki na śmieci LDPE sanitarne 120 l, niebieskie, 10 sztuk | C86: Wymiary: 110 x 70 cm, Grubość: folii: 0,03 mm | D86: op (10 szt)
A87: 87 | B87: Worki na śmieci LDPE sanitarne 160 l, czarne, 20 sztuk | C87: Worki na śmieci LDPE sanitarne 160 l, czarne, 20 sztuk Pojemność: 160 l Wymiary: 150 x 90 cm Grubość: folii: 0,027 mm Kolor folii: czarny Jednostka sprzedaży: 1 opakowanie (20 sztuk) | D87: op. (20 sztuk)
A88: 88 | B88: Worki na śmieci LDPE z taśmą ściągającą 60 l, czarne, 10 sztuk | C88: Posiadają taśmę ściągającą Pojemność: 60 l Wymiary: 72 x 60 cm Grubość: folii: 0,02 mm Kolor folii: czarny Jednostka sprzedaży: 1 opakowanie (10 sztuk) | D88: op. (10 sztuk)
A89: 89 | B89: Worki na śmieci łazienkowe, 20 l, białe, 40 sztuk | C89: Idealne worki na odpady łazienkowe, Pojemność: 20 l, Kolor: biały, Rozmiar: 40 x 50 cm | D89: op: (40 sztuk)
A90: 90 | B90: Worki na śmieci MDPE 35 l, niebieskie 20 sztuk | C90: Pojemność: 35 l Wymiary: 58 x 49 cm Grubość: folii: 0,011 mm Kolor folii: niebieski Jednostka sprzedaży: 1 opakowanie (20 sztuk) | D90: op. (20 sztuk)

Sheet Zadanie14 (hidden)
A1: 1 | B1: ODKAMIENIACZ DO EKSPRESU MELITTA 250ML | C1: odkamieniacz do ekspresu MELITA poj. 250 ml. | D1: szt. (250 ml)
A2: 2 | B2: Odkamieniacz KAMIX, w proszku, 150 g | C2: Środek do usuwania osadów z kamienia Pojemność: 150 g Jednostka sprzedaży: 1 opakowanie | D2: op. ( 150 g)
A3: 3 | B3: Odkamieniacz uniwersalny KAMIX, w płynie, 500 ml | C3: Środek w płynie do usuwania osadów kamienia Pojemność: 500 ml Jednostka sprzedaży: 1 opakowanie | D3: op. (500 ml)
A4: 4 | B4: płyn do czyszczenia sekcji mlecznej ekspresu | C4: Tabletki do codziennego czyszczenia sekcji mlecznej zapewniają dokładne i higieniczne użytkowanie sekcji mlecznej Jednostka sprzedaży: 1 opakowanie | D4: op.
A5: 5 | B5: Płyn odkamieniający DELONGHI "EcoDecalk" | C5: odkamieniacz do ekspresu DELONGHI | D5: szt.
A6: 6 | B6: Tabletki czyszczące KRUPS XS3000, 10 sztuk | C6: Tabletki czyszczące przeznaczone do ekspresów ciśnieniowych i przelewowych Usuwają tłuszcz i pozostałości po kawie wewnątrz ekspresu. Regularne stosowanie gwarantuje utrzymanie wysokiej jakości kawy Jednostka sprzedaży: 1 opakowanie (10 sztuk) | D6: op (10 szt)
A7: 7 | B7: Tabletki do zmywarek FINISH All-in-1, 50 tabletek | C7: Jego unikalna formuła łączy w sobie działanie 10 funkcji Power Actions: usuwanie zaplamień, usuwanie tłuszczu, namaczanie, usuwanie zabrudzeń po herbacie, kryształowy połyski, lśniące sztućce, ochrona przed osadzaniem się kamienia w zmywarce, aktywna ochrona szkła, ochrona srebra, usuwanie opornych zabrudzeń, Dodatkowo spełnia funkcje soli i płynu nabłyszczającego, Składniki: 5 - 15 % związki wybielające na bazie tlenu, niejonowe środki powierzchniowo czynne, do 5 % polikarboksylany, fosfoniany. Enzymy (subtylizyna, amylaza), kompozycja zapachowa. | D7: op (50 szt)
A8: 8 | B8: UNIWERSALNY zestaw do odkamieniania ekspresów | C8: Uniwerslany zestaw do odkamieniania ekspresów Nespresso. Ilość sztuk w opakowaniu: 2 Jednostka sprzedaży: 1 opakowanie | D8: op
A9: 9 | B9: Wkłady filtrujące BRITA Maxtra+ Pure Performance, 3 sztuki | C9: Wybierając wkłady filtrujące Brita Maxtra+ Pure Performance, zapewniasz sobie czystą wodę o doskonałym smaku. Zastosowane perełki węgla aktywnego skutecznie zatrzymują chlor i redukują mogące występować w wodzie zanieczyszczenia, jak herbicydy, pestycydy czy pozostałości po farmaceutykach. Z kolei perełki wymiennika jonowego zmiękczają wodę i zmniejszają występowanie metali w rodzaju miedzi i ołowiu. Wkłady filtrując są rekomendowane do wody miękkiej i średnio twardej. | D9: op (3 szt)
A10: 10 | B10: Worki papierowe do odkurzacza MERIDA Dex, 3 sztuki | C10: Worki papierowe do odkurzacza MERIDA Dex, 3 sztuki | D10: op (3 szt)
A11: 11 | B11: Wymienne wkłady do filtra wody AQUAPHOR MAXFOR | C11: Największa na rynku wydajność - do 200 l, Zawiera innowacyjne włókno Aqualen, dzięki czemu skutecznie usuwa z wody chlor, metale ciężkie, fenol, pestycydy i inne zanieczyszczenia, Redukuje twardość wody i zapobiega pojawianiu się osadu i kamienia na urządzeniach AGD np. w czajnikach i ekspresach, Produkt wolny od bisfenolu A (BPA FREE), wykonany z ekologicznych materiałów | D11: op
A12: 12 | B12: Zestaw do odkamieniania KRUPS F054, 2 saszetki po 40 g | C12: Zestaw polecany do ekspresów KRUPS Informacje na temat sposobu użytkowania dostępne w instrukcji obsługi ekspresu W opakowaniu: 2 saszetki środka odkamieniającego Jednostka sprzedaży: 1 opakowanie (2 saszetki x 40 g) | D12: op (2 saszetki)
A13: 13 | B13: Apteczka VERA TOP 15 PLUS, DIN 13157, w walizce z ABS | C13: Apteczka w walizce z tworzywa ABS. Zawiera stelaż mocujący do ściany W skład wyposażenia wchodzą: kompres zimny – 1 szt., kompres na oko – 2 szt., kompres 10 x 10 cm - 3 opakowania (po 2 sztuki) opaska elastyczna 4 m x 6 cm – 2 szt., opaska elastyczna 4 m x 8 cm – 2 szt., zestaw plastrów 10 x 6 cm (8 szt.) – 1 komplet, zestaw plastrów (14 szt.) – 1 komplet, plaster 5 m x 2,5 cm – 1 szt., opatrunek indywidualny M sterylny – 3 szt. opatrunek indywidualny G sterylny – 1 szt., opatrunek indywidualny K sterylny – 1 szt., chusta opatrunkowa 60 x 80 cm – 1 szt. chusta trójkątna – 1 szt., chusta z flizeliny (5 szt.) – 1 komplet, koc ratunkowy 160 x 210 cm – 1 szt. nożyczki 19 cm – 1 szt., rękawice winylowe – 4 szt. chusteczka dezynfekująca – 6 sztuk, ustnik do sztucznego oddychania – 1 szt., instrukcja udzielania pierwszej pomocy Skład zgodny z normą DIN 13157. Rozmiar: 330 x 235 x 125 mm Jednostka sprzedaży: 1 sztuka | D13: szt
A14: 14 | B14: Wyposażenie apteczki DIN 13157 PLUS | C14: Czajnik posiada filtr antywapienny, który zapobiega przedostawaniu się kamienia do szklanki, Pojemność: 1,7 l Moc: 2400 W | D14: op
A15: 15 | B15: Chusteczki KATRIN Plus, 100 sztuk | C15: Białe, dwuwarstwowe chusteczki higieniczne w praktycznym podajniku Testowane dermatologicznie Jednostka sprzedaży: 1 opakowanie (100 sztuk) | D15: op (100 szt)
A16: 16 | B16: Czajnik elektryczny TEFAL Express 1,5 l, biały | C16: Filtr antywapienny i dwustronny wskaźnik poziomu wody, Możliwość zagotowania minimalnej ilości wody (250 ml), Pojemność: 1,5 l, Moc: 2400 W | D16: szt
A17: 17 | B17: Czajnik elektryczny TEFAL Loft, 1,7 l, czarny | C17: Zdejmowana pokrywa ułatwia napełnianie wodą, Czajnik posiada filtr antywapienny, który zapobiega przedostawaniu się kamienia do szklanki, Pojemność: 1,7 l, Moc: 2400 W | D17: szt
A18: 18 | B18: Czyściwo włókninowe, wielozadaniowe do trudnych zabrudzeń TORK, 1 rolka | C18: Jednowarstwowe, grube i mocne czyściwo wielozadaniowe non-woven (syntetyczno-celulozowe) Duża chłonność, także oleistych substancji Niskopylne i odporne na rozerwania Współpracuje z rozpuszczalnikami, ograniczając ich zużycie Polecane do stosowania w przemyśle maszynowym, poligraficznym, spożywczym nawet do najcięższych zadań związanych z czyszczeniem Atest PZH i certyfikat ISEGA, zezwalający na stosowanie produktu w przemyśle spożywczym W wygodnym kartonie mogącym służyć jako dozownik Perforacja co 38 cm Materiał: włóknina jednowarstwowa Tłoczenie: nie Ilość listków: 280 szerokość listka: 320 mm Długość roli: 106,4 m średnica r[...] | D18: szt
A19: 19 | B19: Kij z mopem sznurkowym, 1 komplet | C19: Kij z mopem sznurkowym, Waga: 345 g, Jednostka sprzedaży: 1 sztuka | D19: szt
A20: 20 | B20: Nakładka CEG z mikrofibry na mop triple, długość 40 cm | C20: Mop trójskładnikowy DUO (kieszeń + klips), Wykonany z bawełny, mikrowłókna i poliestru, Długość: 40 cm | D20: szt
A21: 21 | B21: Ściereczki gąbczaste niebieskie, 3 sztuki | C21: Bardzo trwałe i chłonne ścierki gąbczaste, wzmocnione wewnętrzną bawełnianą siatką, Najlepsze do wycierania wody, zmywania powierzchni i usuwania brudu | D21: op. (3 szt)
A22: 22 | B22: Ścierka do podłogi, 50 x 60 cm, pomarańczowa | C22: Ścierka do podłogi, 50 x 60 cm, pomarańczowaWymiary: 50 x 60 cm, Do czyszczenia dużych powierzchni | D22: szt
A23: 23 | B23: Ścierka z mikrofibry KOLORADO, 35 x 35 cm | C23: Ścierka z mikrofibry przeznaczona do czyszczenia powierzchni szklanych i stosowania w łazience, Skuteczna na sucho i mokro, Nie pozostawia smug, zacieków ani kłaczków, Skład: 80% poliester, 20% poliamid (nylon) | D23: szt
A24: 24 | B24: Ścierki uniwersalne Practi Maxi 50sztuk | C24: Ścierki uniwersalne Practi Maxi 50sztuk rozmiar 25 x 40 | D24: op (50 szt)
A25: 25 | B25: Ścierki uniwersalne, 5 sztuk | C25: Ścierki wielokrotnego użytku Można je prać i sterylizować Wykonane z wiskozy, pachnące Miks kolorów Wymiary: 37 x 38 cm | D25: op (5 szt)
A26: 26 | B26: Proszek do prania tkanin kolorowych DOSIA, 300 g | C26: Proszek do prania tkanin kolorowych do wszystkich typów pralek i do prania ręcznego Zawiera enzymy i aktywne składniki piorące Nie zawiera chlorowych wybielaczy: jest delikatna dla kolorowych i ciemnych tkanin Jednostka sprzedaży: 1 sztuka (300 g) | D26: op (300g)
A27: 27 | B27: Proszek do prania tkanin PUROX, 5 kg | C27: Do wszystkich typów pralek i do prania ręcznego, Jednostka sprzedaży: 1 opakowanie (5 kg), Składniki: do 5% anionowe i niejonowe środki powierzchniowo czynne, enzymy, kompozycja zapachowa, krzemiany, niejonowe środki powierzchniowo, czynne, regulatory piany, rozjaśniacze optyczne, związki wybielające na bazie tlenu | D27: op (5 kg)
A28: 28 | B28: Chusteczki FELLOWES do czyszczenia ekranów, opakowanie 100szt | C28: Chusteczki FELLOWES do czyszczenia ekranów, opakowanie 100szt | D28: op (100 szt)
A29: 29 | B29: Płyn AJAX Floral Fiesta, 1 l | C29: Doskonale usuwa kurz i brud, pozostawiając na długo świeży zapach Miks zapachów Pojemność: 1 l Jednostka sprzedaży 1 sztuka | D29: op (1l)
A30: 30 | B30: Preparat do usuwania tłustego brudu VOIGT C457 Ultra Clean plus 1 l | C30: Odtłuszczanie, gruntowne mycie bez fosforanów – Produkt do profesjonalnego zastosowania, Nie zawierający fosforanów, Usuwa zabrudzenia pochodzenia tłuszczowego i przemysłowego m.in. oleje, smary. Zalecany do: warsztatów, hal produkcyjnych, galerii handlowych, centrów logistycznych | D30: op (1l)
A31: 31 | B31: Rozpuszczalnik do etykiet w sprayu, pojemność 200 ml | C31: Produkt zapewnia w pełni bezpieczne usunięcie etykiet z dowolnej powierzchni, nie pozostawiając żadnych, śladów kleju. Pojemność 200 ml. | D31: op (200 ml)
A32: 32 | B32: Gąbka do zmywania różowa, 5 sztuk | C32: Gąbka do różnorodnych zastosowań, Kolor: różowy | D32: op (5 szt)
A33: 33 | B33: Gąbki do zmywania standardowa, 5 sztuk | C33: Do zmywania naczyń, szkła, ceramiki, powierzchni emaliowanych Wytrzymała Miks kolorów w opakowaniu Jednostka sprzedaży: 1 opakowanie (5 sztuk) Opakowanie zbiorcze: 18 opakowań | D33: op (5 szt)
A34: 34 | B34: Kuchenka mikrofalowa SEVERIN 7890/7862, biała | C34: 5 poziomów mocy, Rozmrażanie w oparciu o czas i wagę, 35-minutowy timer z sygnałem akustycznym, Pokrętło regulacyjne z chromowanymi elementami, Średnica wyjmowanego talerza ok. 25,4 cm, Wysokość komory ok. 16,5 cm, Obudowa i komora lakierowana powłoką odporną na wysokie temperatur, Wymiary: szer. 43,5, gł. 34,5, wys. 25,4 cm, Moc: 700 W | D34: szt
A35: 35 | B35: Jednorazowa maska higieniczna 3-warstwowa, niebieska, 50 sztuk | C35: Trójwarstwowa maska higieniczna. Wykonana z włókniny polipropylenowej (100%). Materiał: Texfil 25 (Spunbond) + Texfil 25 (Spunbond) + Texfil 25 (Spunbond). Gramatura: 25 gsm + 25 gsm + 25 gsm= 75 gsm. Gumki – długość 16cm - 18cm (± 1cm). | D35: op (50szt)
A36: 36 | B36: Półmaska FILTERSERVICE FS-623V NR D, FFP2, z zaworem, 10 sztuk | C36: Czasza półmaski: - Igłowana włóknina poliestrowa, - Włóknina polipropylenowa typu melt blown, - Włóknina osłonowa, - Zawór wydechowy, - Zapinki taśm nagłowia, - Taśma nagłowia | D36: op (10szt)
A37: 37 | B37: Nawilżacz powietrza NU 5N | C37: 4 poziomy intensywności nawilżania, Automatyczna kontrola wilgotności, Demontowany zasobnik wody 5,2 l, Funkcja jonizacji | D37: szt
A38: 38 | B38: Odświeżacz powietrza AMBI PUR, zapach kwiatowy, 300 ml | C38: Wypełnia pomieszczenie zapachem najpiękniejszego wiosennego bukietu Pojemność: 300 ml Jednostka sprzedaży: 1 sztuka Opakowanie zbiorcze: 6 sztuk | D38: szt
A39: 39 | B39: Odświeżacz powietrza BRISE w sprayu | C39: Odświeżając pomieszczenia pozostawia przyjemny zapach Pojemność: 300 ml Jednostka sprzedaży: 1 sztuka | D39: szt.
A40: 40 | B40: Odświeżacz powietrza BRISE w żelu, miks zapachów | C40: Masa netto: 150 g Miks zapachów Jednostka sprzedaży: 1 sztuka | D40: szt.
A41: 41 | B41: Odświeżacz powietrza GREEN FRESH, 400 ml | C41: Skutecznie neutralizuje i pochłania nieprzyjemne zapachy Odświeża i nawilża powietrze, pozostawiając w pomieszczeniu uczucie świeżości i czystości Pojemność: 400 ml Jednostka sprzedaży: 1 sztuka | D41: op. (400 ml)
A42: 42 | B42: Patyczki zapachowe PACHNĄCA SZAFA, Słoneczne popołudnie, 50 ml | C42: Patyczki zapachowe PACHNĄCA SZAFA nadają przyjemny i odświeżający zapach w każdym pomieszczeniu. Odświeżać ma bardzo ładną formę eleganckich patyczków w szklanym flakoniku. | D42: op (50 ml)
A43: 43 | B43: Wkład do odświeżacza AMBI PUR, zapach ocean and wind | C43: Wkład do elektrycznego odświeżacza powietrza AMBI PUR (6.630.347) Wydajność wkładów: do 80 dni Jednostka sprzedaży: 1 sztuka | D43: szt
A44: 44 | B44: Papier toaletowy CLASSIC, biały, 8 rolek | C44: Papier toaletowy CLASSIC, biały, 8 rolek Wymiary listka: szer. 100 x dł. 112 mm, Szerokość taśmy: 100 mm | D44: op. (8 rolek)
A45: 45 | B45: Papier toaletowy ELLIS PROFESSIONAL JUMBO 130/2, 12 rolek | C45: Papier do użytku profesjonalnego w pomieszczeniach o zwiększonym natężeniu użytkowania, Materiał: celuloza dwuwarstwowa, Gramatura: 2 x 16 g/m², Długość roli: 120 m; średnica roli: 19 cm; średnica gilzy: 6 cm | D45: op (12 rolek)
A46: 46 | B46: Papier toaletowy KATRIN 11296 PLUS 160, biały, 8 rolek | C46: Papier toaletowy KATRIN 11296 PLUS 160, biały, 8 rolek Gramatura: 2 x 16,5 g/m², Długość jednej rolki: 18,3 m | D46: op. (8 rolek)
A47: 47 | B47: Supermocny Plaster do cięcia VISCOPLAST, 1 m x 8 cm | C47: Opatrunek włókninowy o wysokiej chłonności, Plaster natychmiast przykleja się do skóry, nawet do wilgotnej, Ogranicza przywieranie opatrunku do rany | D47: op (1m)
A48: 48 | B48: Uniwersalny zestaw plastrów 3M VISCOPLAST, 24 sztuki | C48: Plastry z opatrunkiem do opatrywania drobnych ran i skaleczeń Hypoalergiczne i wodoodporne Przepuszczające powietrze W opakowaniu 24 plastry: plastry Minifol: 72 x 25 mm - 4 sztuki, 72 x 19 mm - 8 sztuk, 57 x 16 mm - 6 sztuk, 38x10 mm - 4 sztuki Plaster Prestopor 10 x 6 cm Plaster Prestovis Plus 10 x 6 cm Jednostka sprzedaży: 1 opakowanie | D48: op. ( 24 szt)
A49: 49 | B49: Krem do rąk EVELINE ''Niewidzialne rękawiczki'', 100 ml | C49: Odżywczo-ochronny krem do rąk z formułą witaminową Polecany do suchych i podrażnionych dłoni Pojemność: 100 ml Jednostka sprzedaży: 1 sztuka | D49: op do (100 ml)
A50: 50 | B50: Krem do rąk GARNIER do skóry bardzo suchej, 100 g | C50: Regeneruje i odżywia zniszczoną skórę dłoni Zawiera alantoinę, glicerynę oraz czynnik filtrującyJednostka sprzedaży: 1 sztuka (100 g) | D50: op. (100 g)
A51: 51 | B51: Ręcznik MALFINI, chabrowy, 70x140 cm | C51: Tkana metka, która może również służyć jako wieszaczek, Ozdobiony wyszywaną bordiurą po obu brzegach, Sklad: 100% bawełna, frotte, Gramatura: 450g/m², Kolor: chabrowy, Rozmiar: 70x140 cm | D51: szt
A52: 52 | B52: Ręcznik MALFINI, granatowy, 50x100 cm | C52: Tkana metka, która może również służyć jako wieszaczek, Ozdobiony wyszywaną bordiurą po obu brzegach, Sklad: 100% bawełna, frotte, Gramatura: 450g/m², Kolor: granatowy | D52: szt
A53: 53 | B53: Ręcznik MALFINI, szaro-czarny, 50x100 cm | C53: Wykonane z wysokiej jakości frotte, odpowiednie pod haft, Miękkie, miłe w dotyku, dobrze absorbują wodę, Tkana metka, która może również służyć jako wieszaczek, Ozdobiony wyszywaną bordiurą po obu brzegach, Sklad: 100% bawełna, frotte, Gramatura: 450g/m² kolor szaroczany | D53: szt
A54: 54 | B54: Ręcznik MALFINI, szaro-czarny, 70x140 cm | C54: Tkana metka, która może również służyć jako wieszaczek, Ozdobiony wyszywaną bordiurą po obu brzegach, Sklad: 100% bawełna, frotte, Gramatura: 450g/m², Kolor: szaroczarny Rozmiar: 70x140 cm | D54: szt
A55: 55 | B55: Chusteczki higieniczne VELVET, 120 sztuk | C55: Chusteczki higieniczne VELVET, 120 sztuk. W opakowaniu 120 sztuk, Produkt ma atest PZH, | D55: op (120 szt)
A56: 56 | B56: Ręcznik w roli ESTIMO 100/2, 500 listków | C56: Wytrzymały, dwuwarstwowy ręcznik w 100% wykonany z celulozy o wysokich parametrach i pięknym designie Długość rolki: 100 m W rolce 500 odcinków o wymiarach: 20,3 x 20 cm Kolor biały Jednostka sprzedaży: 1 rolka | D56: op. (rolka 100 m)
A57: 57 | B57: Ręczniki papierowe białe, składka V, 20 x 200 listków | C57: Gofrowane ręczniki w składce Kompatybilne ze standardowymi dozownikami do ręczników typu ZZ Materiał: makulatura jednowarstwowa Wymiary listka: 25 x 23 cm Gramatura: 1 x 30 g/m² Ilość bind w opakowaniu: 20 Ilość listków w bindzie: 200 Kolor: biały Jednostka sprzedaży: 1 karton (4000 listków) | D57: op. (20 x 200 listków)
A58: 58 | B58: Ręczniki papierowe MERIDA składka V, 20 x 160 listków | C58: Gofrowane ręczniki w składce wysokiej chłonności Kompatybilne ze standardowymi dozownikami do ręczników typu ZZ Materiał: makulatura dwuwarstwowa Wymiary listka: 25 x 23 cm Gramatura:2 x 19 g/m² Tłoczenie: nie Ilość bind w opakowaniu: 20 Ilość listków w bindzie: 160 Kolor: biały Jednostka sprzedaży: 1 karton (3200 listków) | D58: op. (20 x 160 listków)
A59: 59 | B59: Ręczniki papierowe zielone, składka V, 20 x 200 listków | C59: Gofrowane ręczniki w składce wysokiej chłonności Kompatybilne ze standardowymi dozownikami do ręczników typu ZZ Materiał: makulatura dwuwarstwowa Wymiary listka: 25 x 23 cm Gramatura:2 x 19 g/m² Tłoczenie: nie Ilość bind w opakowaniu: 20 Ilość listków w bindzie: 160 Kolor: zielon. Jednostka sprzedaży: 1 karton (3200 listków) | D59: op. (20 x 200 listków)
A60: 60 | B60: Ręczniki w roli TORK UNIVERSAL Extra Długie do systemu TORK Matic H1, 6 rolek | C60: Materiał: makulatura jednowarstwowa, Tłoczenie: nie, Ilość listków:1120, Długość roli: 280 m; wysokość roli: 21 cm; średnica roli: 19 cm; średnica gilzy: 3,8 cm | D60: op. (1120 listków)
A61: 61 | B61: Rękawice antystatyczne ANSELL HyFlex® 11-800, rozmiar 9, para | C61: Nylonowe rękawice z powłoką z pianki nitrylowej, wykonane w technologii KnitZonz™ Wszechstronne rozwiązanie do precyzyjnego montażu i prac ogólnych Zaawansowana technologia dziania zapewnia większą rozciągliwość i elastyczność w miejscach o zwiększonym nacisku Antystatyczne, zgodne z normą EN 1149 Norma EN 388 3131 (EN 388:2016 3131A) Rozmiar: 9 Jednostka sprzedaży: 1 para | D61: op. (1 para)
A62: 62 | B62: Rękawice DELTAPLUS VV835 Chemsafe, rozmiar 11, para | C62: Rękawica z podwójną powłoką nitrylową na wkładzie z poliamidu, Trzecia powłoka z szorstkiej pianki nitrylowej na stronie chwytnej i końcach palców, Długość: 35 cm, Grubość: 1,15 mm - 1,30 mm na stronie chwytnej | D62: op, 1 (para)
A63: 63 | B63: Rękawice nitrylowe MEDASEPT PF, czarne, rozmiar S, 100 sztuk | C63: Uniwersalne, rękawice pasujące na prawą i lewą dłoń, Nitrylowe, Tekstura na końcach palców, Rozmiar S | D63: op. (100 szt)
A64: 64 | B64: Rękawice nitrylowe MEDASEPT PREMIER, niebieskie, rozmiar XL, 100 sztuk | C64: Rękawice nitrylowe diagnostyczne i ochronne (kat. III), Bezpudrowe., Uniwersalny kształt pasuje na obie dłonie, Tekstura na końcach palców, Przeznaczone do kontaktu z żywnością. | D64: op. (100 szt)
A65: 65 | B65: Rękawice nitrylowe MEDASEPT PRIME, niebieskie, rozmiar L, 100 sztuk | C65: Rękawice nitrylowe diagnostyczne i ochronne, Bezpudrowe. Uniwersalny kształt pasuje na obie dłonie. | D65: op. (100 szt)
A66: 66 | B66: Rękawice nitrylowe MEDASEPT PRIME, niebieskie, rozmiar M, 100 sztuk | C66: Rękawice nitrylowe diagnostyczne i ochronne | D66: op. (100 szt)
A67: 67 | B67: Ręcznik kuchenny VELVET Jumbo, 1 rolka | C67: Dwuwarstwowy ręcznik papierowy, który świetnie nadaje się do generalnych porządków, prac w garażu, ogrodzie oraz w kuchni Giga rola = 13 standardowych rolek Nie tylko chłonny i wytrzymały, ale także wyjątkowo wydajny Jedna rolka zawiera aż 520 listków Wysokość rolki: 22 cm Kolor biały Jednostka sprzedaży: 1 rolka | D67: szt ( 1 rolka)
A68: 68 | B68: Ręcznik papierowy BRATEK biały, 2 rolki | C68: Ręczniki kuchenne, dwuwarstwowe, celulozowe Szerokość rolki: 22 cm Długość rolki: 11 m Jednostka sprzedaży: 1 opakowanie (2 sztuki) | D68: op (2 rolki)
A69: 69 | B69: Ręczniki kuchenne AHA, 2 rolki | C69: Dwuwarstwowy ręcznik wykonany z czystej celulozy W rolce 50 odcinków o wymiarach: 23 x 20 cm W opakowaniu: 2 rolki Kolor biały Jednostka sprzedaży: 1 opakowanie | D69: op (2 rolki)
A70: 70 | B70: Ręczniki kuchenne VELVET, 2 rolki | C70: Produkt wolny od bisfenolu A (BPA FREE), posiada atest NIZP-PZH | D70: op. (2 rolki)
A71: 71 | B71: Łyżeczki do herbaty AMEFA Bologna, 12 sztuk | C71: subtelne i eleganckie łyżeczki do herbaty, Sztućce polerowane, stal 18/0 | D71: op (12 szt)
A72: 72 | B72: Łyżeczki do kawy AMEFA Bologna, 12 sztuk | C72: Klasyczne, proste w formie, subtelne i eleganckie łyżeczki do kawy Dobra jakość w atrakcyjnej cenie powodują, iż linia od lat cieszy się wyjątkową popularnością Sztućce polerowane, stal 18/0 | D72: op (12 szt)
A73: 73 | B73: Łyżki AMEFA Bologna, 12 sztuk | C73: Sztućce polerowane, stal 18/0 | D73: op (12 szt)
A74: 74 | B74: Widelce AMEFA Bologna, 12 sztuk | C74: Sztućce polerowane, stal 18/0, | D74: op (12 szt)
A75: 75 | B75: Ściereczki mokre do mebli drewnianych PRESTO, opakowanie 72 sztuki | C75: Ściereczki nawilżane do czyszczenia różnych powierzchni, Usuwają kurz i zapobiegają jego osadzaniu, Nadają połysk czyszczonym powierzchniom | D75: op. (72 szt)
A76: 76 | B76: Kulki do toalet BREF Power Activ, 50 g, zapach cytrynowy | C76: Nowoczesne rozwiązanie w postaci czterech kulek na wygodnej zawieszce Czyszczą, pozostawiają przyjemny zapach i chronią przed osadzaniem się kamienia Masa netto: 50 g Jednostka sprzedaży: 1 sztuka Opakowanie zbiorcze: 10 sztuk | D76: op. (50 g)
A77: 77 | B77: Kulki do toalet BREF Power Activ, 50 g, zapach morski | C77: Nowoczesne rozwiązanie w postaci czterech kulek na wygodnej zawieszce Czyszczą, pozostawiają przyjemny zapach i chronią przed osadzaniem się kamienia Masa netto: 50 g Jednostka sprzedaży: 1 sztuka | D77: op. (50 g)
A78: 78 | B78: Płyn CILIT Bang Kamień i brud, 750 ml | C78: Żel CILIT kamień i brud z Turbo Power. Do czyszczenia wanien, kabin prysznicowych, płytek, toalet, armatury kuchennej i łazienkowej Usuwa kamień, rdzawe zacieki z twardej wody, osad z mydła i inne zabrudzenia Pojemność: 750 ml Jednostka sprzedaży: 1 sztuka | D78: op. (750 ml)
A79: 79 | B79: Płyn do toalet DOMESTOS Toilet Limescale Remover, 750 ml | C79: Gęsty płyn do czyszczenia muszli klozetowych Formuła ściśle przylegająca do czyszczonych powierzchni, rozpuszcza kamień wapienny Przeznaczony do powierzchni porcelanowych i szkliwionych Butelka z wygodnym dozownikiem Pojemność: 750 ml Jednostka sprzedaży: 1 sztuka Opakowanie zbiorcze: 6 sztuk | D79: op. (750 ml)
A80: 80 | B80: Płyn do WC DOMESTOS 24H, 1,25 l, cytrynowy | C80: Produkt czyszcząco-dezynfekująco-wybielający Możliwość stosowania do: muszli klozetowych, umywalek, zlewów itp. Produkt nadaje się także do wybielania tkanin Jednostka sprzedaży: 1 sztuka Pojemność: 1,25 l | D80: op. (1,25 l)
A81: 81 | B81: Płyn do WC DOMESTOS 24H, 1,25 l, leśny | C81: Produkt czyszcząco-dezynfekująco-wybielający Możliwość stosowania do: muszli klozetowych, umywalek, zlewów itp. Produkt nadaje się także do wybielania tkanin Pojemność: 1,25 l Jednostka sprzedaży: 1 sztuka | D81: op. (1,25 l)
A82: 82 | B82: Wkład zapachowy do pisuarów MERIDA, czerwony | C82: Winylowy, elastyczny wkład zapachowy do pisuarów, Zapach utrzymuje się przez około 30 dni, Dodatkowo wkład zabezpiecza pisuar przed zapchaniem | D82: szt.
A83: 83 | B83: Zawieszka do WC DOMESTOS, zapach leśny | C83: Zawieszki czyszczące do toalet Chronią przed osadzaniem się kamienia i pozostawiają świeży zapach Jednostka sprzedaży 1 sztuka | D83: szt
A84: 84 | B84: Żel BREF do WC Fresh Mist, 700 ml | C84: Usuwa kamień, brud i osad, Gęsta formuła żelu sprawia, że działa on również pod powierzchnią wody. | D84: op. (700 ml)
A85: 85 | B85: Żel CLINEX Drill do udrażniania odpływów, 1 l | C85: Szybko rozpuszcza wszelkie stałe i organiczne zanieczyszczenia takie jak: tłuszcz, papier, wata, odpadki kuchenne, Forma żelowa pozwala na osadzanie się preparatu na ściankach rur, przedłużając proces działania, Likwiduje nieprzyjemne zapachy, Nadaje się do udrażniania rur zarówno w kuchni, jak i w łazience | D85: op. (1 l)
A86: 86 | B86: Biobójczy płyn do dezynfekcji rąk HISKIN, 1 l | C86: Produkt przeznaczony do codziennego stosowania przez użytkownika powszechnego. Wykazuje działanie bakteriobójcze, grzybobójcze i wirusobójcze | D86: op. (1 l)
A87: 87 | B87: Dozownik do mydła w płynie MERIDA TOP, biały | C87: Mocny i trwały dozownik do mydła w płynie wykonany z tworzywa ABS Okienko umożliwiające kontrolę zużycia mydła Pojemność: 0,8 l Zestaw do montażu w komplecie Wymiary: dł. 11,5 x szer.11,5 x wys. 25 cm Kolor: biały Jednostka sprzedaży: 1 sztuka | D87: szt.
A88: 88 | B88: Mydło toaletowe NIVEA, 100 g | C88: Kremowe mydło z odżywczym olejkiem migdałowym Miks zapachów Jednostka sprzedaży: 1 sztuka | D88: szt. (100 g)
A89: 89 | B89: Mydło w płynie MERIDA Silva, 5 l | C89: Mydło w płynie typu „dwa w jednym”, Zawiera m.in. glukopony mające doskonałe właściwości pielęgnacyjne skóry, jak również gluadyny – roślinne proteiny, szczególnie cenne składniki pielęgnacyjne chroniące skórę i włosy | D89: op. (5l)
A90: 90 | B90: Mydło w płynie PALMOLIVE, migdałowe, 300 ml | C90: Dzięki naturalnemu pH nie podrażnia nawet wrażliwej skóry Zawiera kombinację substancji czyszczących i odżywczych Opakowanie z dozownikiem Pojemność 300 ml Jednostka sprzedaży: 1 sztuka Opakowanie zbiorcze: 12 sztuk | D90: op. (300 ml)
A91: 91 | B91: Pasta BHP do rąk, ścierna, 500 g | C91: Usuwa silne zabrudzenia smarami, tłuszczami, sadzami | D91: op. (500g)
A92: 92 | B92: Pasta do rąk MERIDA PA12, 500 ml | C92: Usuwa wszelkie zabrudzenia nawet powstałe od smarów i olejów, Oszczędna w użyciu, Jest niealkaliczna i nie zawiera mineralnych środków ściernych | D92: op. (500 ml)
A93: 93 | B93: Kapsułki do zmywarek FAIRY Jar All in 1, 115 kapsułek | C93: Wydajne kapsułki do maszynowego mycia naczyń Jednostka sprzedaży: 1 opakowanie (115 kapsułek) | D93: op. ( 115 szt)
A94: 94 | B94: Płyn do czyszczenia zmywarek FINISH, 250 ml | C94: Płyn do czyszczenia zmywarek o zapachu cytrynowym Pojemność: 250 ml Jednostka sprzedaży 1 opakowanie | D94: op (250 ml)
A95: 95 | B95: Płyn do mycia naczyń LUDWIK 1150 g | C95: Posiada bardzo dobre właściwości myjące oraz wysoką zdolność do emulgowania tłuszczów zarówno w ciepłej, jak i zimnej wodzie. Nie pozostawia zacieków na umytych powierzchniach, nadaje im połysk bez konieczności wycierania do sucha. Nowa receptura została również wzbogacona kompleksem witamin A,E,F,H, mającym działanie ochronne i odżywcze dla skóry rąk, Polecany również do mycia mebli, lodówek, wykładzin, podłóg, glazury, dywanów i tworzyw sztucznych | D95: op. (1150 g)
A96: 96 | B96: Płyn do mycia naczyń LUDWIK cytrynowy, 5 kg | C96: Posiada bardzo dobre właściwości myjące oraz wysoką zdolność do emulgowania tłuszczów zarówno w ciepłej, jak i zimnej wodzie. Nie pozostawia zacieków na umytych powierzchniach, nadaje im połysk bez konieczności wycierania do sucha. Nowa receptura została również wzbogacona kompleksem witamin A,E,F,H, mającym działanie ochronne i odżywcze dla skóry rąk, Polecany również do mycia mebli, lodówek, wykładzin, podłóg, glazury, dywanów i tworzyw sztucznych | D96: 5 kg
A97: 97 | B97: Płyn do mycia naczyń LUDWIK Miętowy 1 l. | C97: Posiada bardzo dobre właściwości myjące oraz wysoką zdolność do emulgowania tłuszczów zarówno w ciepłej, jak i zimnej wodzie. Nie pozostawia zacieków na umytych powierzchniach, nadaje im połysk bez konieczności wycierania do sucha. Nowa receptura została również wzbogacona kompleksem witamin A,E,F,H, mającym działanie ochronne i odżywcze dla skóry rąk, Polecany również do mycia mebli, lodówek, wykładzin, podłóg, glazury, dywanów i tworzyw sztucznych | D97: op. (1 l)
A98: 98 | B98: Płyn do mycia naczyń LUDWIK, cytrynowy, 450 g | C98: Posiada bardzo dobre właściwości myjące oraz wysoką zdolność do emulgowania tłuszczów zarówno w ciepłej, jak i zimnej wodzie. Nie pozostawia zacieków na umytych powierzchniach, nadaje im połysk bez konieczności wycierania do sucha. Nowa receptura została również wzbogacona kompleksem witamin A,E,F,H, mającym działanie ochronne i odżywcze dla skóry rąk, Polecany również do mycia mebli, lodówek, wykładzin, podłóg, glazury, dywanów i tworzyw sztucznych | D98: op. (450g)
A99: 99 | B99: Płyn do naczyń LUDWIK, 450 g, miętowy | C99: Nie pozostawia zacieków na umytych powierzchniach, nadaje im połysk bez konieczności wycierania do sucha. Polecany również do mycia mebli, lodówek, wykładzin, podłóg, glazury, dywanów i tworzyw sztucznych. | D99: op.(450g)
A100: 100 | B100: Płyn nabłyszczający do zmywarek LUDWIK, 750 ml | C100: Przeznaczony do płukania i nabłyszczania naczyń zmywanych w zmywarce Dzięki właściwie dobranym składnikom i zawartości kwasku cytrynowego płyn sprawia, że myte naczynia wysychają bez plam i zacieków Jednostka sprzedaży: 1 opakowanie (750 ml) | D100: op. (750 ml)
A101: 101 | B101: Płyn nabłyszczający FINISH, 400 ml | C101: Usuwa ślady po kroplach wody i osad z kamienia, pozostawiając Diamentowy Połysk Jednostka sprzedaży: 1 opakowanie (400 ml) | D101: op. (400 ml)
A102: 102 | B102: Sól ochronna do zmywarki LUDWIK, 1,5 kg | C102: Preparat chroniący zmywarkę przed osadzaniem się kamienia w jej wnętrzu i na mytych naczyniach Skutecznie zmiękcza wodę dzięki zastosowanej formule, preparat zawiera całkowicie rozpuszczalną szlachetną sól z granulkami o odpowiedniej wielkości Regularne stosowanie soli ochronnej Ludwik zapewnia prawidłowe funkcjonowanie zmywarki i długotrwałą ochronę jej mechanizmów Jednostka sprzedaży: 1 opakowanie (1,5 kg) | D102: op. (1 l)
A103: 103 | B103: Sól SOMAT do zmywarek, 1,5 kg | C103: Zabezpiecza zmywarkę oraz naczynia przed osadzaniem się kamienia Wygodna w użyciu sól ma postać granulek Opakowanie: 1,5 kg Jednostka sprzedaży: 1 sztuka | D103: op. (5 kg)
A104: 104 | B104: Tabletki do zmywarek LUDWIK, 30 sztuk | C104: Wielofunkcyjne tabletki czyszczą, nabłyszczają, chronią szkło i stal nierdzewną przed matowieniem oraz zabezpieczają zmywarkę przed osadzaniem się kamienia Funkcja zmiękczania wody pozwala na jeszcze bardziej efektywne wykorzystanie składników myjących Enzymy są aktywne już w 30°C Cytrusowy aromat tabletek nadaje długotrwały zapach świeżości w kuchni Zapewniają oszczędność wody i energii Jednostka sprzedaży: 1 opakowanie (20 g x 30 tabletek) | D104: op. (30 szt)
A105: 105 | B105: Płyn do mycia szyb i glazury LUDWIK grapefruit z octem, 750 ml | C105: Nie pozostawia smug, zacieków i szybko odparowuje., Skład: do 5% anionowe środki powierzchniowo czynne, konserwant (2-bromo-2-nitropropane-1,3-diol, methylchloroisothiazolinone, methylisothiazolinone), kompozycja zapachowa (limonene, linalool). | D105: op. (750ml)
A106: 106 | B106: Płyn do mycia szyb KUBUŚ z atomizerem, 1 l | C106: Przeznaczony do mycia szyb okiennych, luster oraz innych powierzchni szklanych, Doskonale usuwa brud, nie pozostawia smug | D106: op. (1 l)
A107: 107 | B107: Płyn do szyb i luster BUZIL G522 Profiglass, 600 ml | C107: Gotowy do użycia środek do mycia szyb i luster Skutecznie usuwa zabrudzenia, również te tłuste Butelka posiada specjalnie przyciętą końcówkę rozpryskującą, która ułatwia nanoszenie środka czyszczącego Wygodna butelka 600 ml ze spryskiwaczem | D107: op (600 ml)
A108: 108 | B108: Mleczko do czyszczenia CIF Regular Cream, 650 ml/780 g | C108: Uniwersalne mleczko CIF z mikrokryształkami, które pomaga utrzymać powierzchnie w czystości, jest delikatne i nie rysuje powierzchni. Usuwa najbardziej oporny brud taki jak: przypieczony tłuszcz, przypalone jedzenie, plamy z kamienia w łazience. Składniki: do 5% anionowe środki powierzchniowo, czynne niejonowe środki powierzchniowo czynne, mydło, kompozycja zapachowa Limonene, Benzisothiazolinone, Linalool, Butylphenyl Methylpropional, Hexyl Cinnamal. Sposób użycia: nanieść na wilgotną ściereczkę lub bezpośrednio na czyszczoną powierzchnię. Po wyczyszczeniu dokładnie spłukać. Nie połykać. Mleczko do czyszczenia powierzchni twardych. | D108: op (650 ml)
A109: 109 | B109: Czajnik elektryczny TEFAL Express 1,5 l, biały | C109: Czajnik z ukrytym elementem grzejnym i obrotową podstawą, Filtr antywapienny i dwustronny wskaźnik poziomu wody, Możliwość zagotowania minimalnej ilości wody (250 ml), Pojemność: 1,5 l | D109: szt.
A110: 110 | B110: Dzbanek filtrujący wodę AQUAPHOR Onyx 4,2 l + 3 wkłady filtrujące, biały | C110: Klasyczny i elegancki kształt pasuje do biur i sal konferencyjnych, Produkt wolny od bisfenolu A (BPA FREE), posiada atest NIZP-PZH, W zestawie 3 wkłady Maxfor MG wzbogacające wodę w magnez | D110: op. (3 szt.)
A111: 111 | B111: Filtr wody KRUPS F08801 do ekspresu ciśnieniowego, 1 sztuka | C111: Zapobiega nadmiernemu osadzaniu się kamienia Dostosowany do ekspresów Krups Artese oraz Krups Orchestro Jednostka sprzedaży: 1 sztuka | D111: szt
A112: 112 | B112: Termos TEFAL Campo, 1 l, czarny | C112: Termos TEFAL Campo, 1 l, czarnyObudowa ze stali nierdzewnej z kolorową powłoką z wkładką szklaną, Kolor: czarny | D112: szt
A113: 113 | B113: Reklamówki foliowe 9 micronów 210 + 2 x 60 x 435 mm (+/-12), 150 sztuk | C113: Reklamówki o wymiarach 210 + 2 x 60 x 435 mm (+/-12) Nawój: 150 sztuk Folia HDPE / grubość 9 mikronówJednostka sprzedaży: 1 rolka (150sztuk) | D113: op. (150 szt.)
A114: 114 | B114: Worki do segregacji 60 l, niebieskie na szkło, 60 x 72 cm | C114: Wytrzymałe worki ułatwiające segregację śmieci dzięki kodowi kolorystycznemu, Mają nadruk informujący, jakie typy odpadów należy do nich wrzucać, a jakich nie należy, Wymiary: 60 x 72 cm | D114: op.
A115: 115 | B115: Worki do segregacji 60 l, zielone na szkło, 60 x 72 cm | C115: Wytrzymałe worki ułatwiające segregację śmieci dzięki kodowi kolorystycznemu, Mają nadruk informujący, jakie typy odpadów należy do nich wrzucać, a jakich nie należy, Wymiary: 60 x 72 cm | D115: op
A116: 116 | B116: Worki do segregacji 60 l, zółte na szkło, 60 x 72 cm | C116: Wytrzymałe worki ułatwiające segregację śmieci dzięki kodowi kolorystycznemu, Mają nadruk informujący, jakie typy odpadów należy do nich wrzucać, a jakich nie należy, Wymiary: 60 x 72 cm | D116: op
A117: 117 | B117: Worki na śmieci LDPE sanitarne 120 l, niebieskie, 10 sztuk | C117: Wymiary: 110 x 70 cm, Grubość: folii: 0,03 mm | D117: op (10 szt)
A118: 118 | B118: Worki na śmieci LDPE sanitarne 160 l, czarne, 20 sztuk | C118: Worki na śmieci LDPE sanitarne 160 l, czarne, 20 sztuk Pojemność: 160 l Wymiary: 150 x 90 cm Grubość: folii: 0,027 mm Kolor folii: czarny Jednostka sprzedaży: 1 opakowanie (20 sztuk) | D118: op. (20 sztuk)
A119: 119 | B119: Worki na śmieci LDPE z taśmą ściągającą 60 l, czarne, 10 sztuk | C119: Posiadają taśmę ściągającą Pojemność: 60 l Wymiary: 72 x 60 cm Grubość: folii: 0,02 mm Kolor folii: czarny Jednostka sprzedaży: 1 opakowanie (10 sztuk) | D119: op. (10 sztuk)
A120: 120 | B120: Worki na śmieci łazienkowe, 20 l, białe, 40 sztuk | C120: Idealne worki na odpady łazienkowe, Pojemność: 20 l, Kolor: biały, Rozmiar: 40 x 50 cm | D120: op: (40 sztuk)
A121: 121 | B121: Worki na śmieci MDPE 35 l, niebieskie 20 sztuk | C121: Pojemność: 35 l Wymiary: 58 x 49 cm Grubość: folii: 0,011 mm Kolor folii: niebieski Jednostka sprzedaży: 1 opakowanie (20 sztuk) | D121: op. (20 sztuk)

Sheet Zadanie15 (hidden)
A1: 1 | B1: Filtr do expresu DELONGHI 45.76X | C1: Filtr do expresu DELONGHI 45.76X | D1: szt
A2: 2 | B2: ODKAMIENIACZ DO EKSPRESU MELITTA 250ML | C2: odkamieniacz do ekspresu MELITA poj. 250 ml. | D2: szt. (250 ml)
A3: 3 | B3: Odkamieniacz KAMIX, w proszku, 150 g | C3: Środek do usuwania osadów z kamienia Pojemność: 150 g Jednostka sprzedaży: 1 opakowanie | D3: op. ( 150 g)
A4: 4 | B4: Odkamieniacz uniwersalny KAMIX, w płynie, 500 ml | C4: Środek w płynie do usuwania osadów kamienia Pojemność: 500 ml Jednostka sprzedaży: 1 opakowanie | D4: op. (500 ml)
A5: 5 | B5: płyn do czyszczenia sekcji mlecznej ekspresu | C5: Tabletki do codziennego czyszczenia sekcji mlecznej zapewniają dokładne i higieniczne użytkowanie sekcji mlecznej Jednostka sprzedaży: 1 opakowanie | D5: op.
A6: 6 | B6: Płyn odkamieniający DELONGHI "EcoDecalk" | C6: odkamieniacz do ekspresu DELONGHI | D6: szt.
A7: 7 | B7: Tabletki czyszczące KRUPS XS3000, 10 sztuk | C7: Tabletki czyszczące przeznaczone do ekspresów ciśnieniowych i przelewowych Usuwają tłuszcz i pozostałości po kawie wewnątrz ekspresu. Regularne stosowanie gwarantuje utrzymanie wysokiej jakości kawy Jednostka sprzedaży: 1 opakowanie (10 sztuk) | D7: op (10 szt)
A8: 8 | B8: Tabletki do zmywarek FINISH All-in-1, 50 tabletek | C8: Jego unikalna formuła łączy w sobie działanie 10 funkcji Power Actions: usuwanie zaplamień, usuwanie tłuszczu, namaczanie, usuwanie zabrudzeń po herbacie, kryształowy połyski, lśniące sztućce, ochrona przed osadzaniem się kamienia w zmywarce, aktywna ochrona szkła, ochrona srebra, usuwanie opornych zabrudzeń, Dodatkowo spełnia funkcje soli i płynu nabłyszczającego, Składniki: 5 - 15 % związki wybielające na bazie tlenu, niejonowe środki powierzchniowo czynne, do 5 % polikarboksylany, fosfoniany. Enzymy (subtylizyna, amylaza), kompozycja zapachowa. | D8: op (50 szt)
A9: 9 | B9: UNIWERSALNY zestaw do odkamieniania ekspresów | C9: Uniwerslany zestaw do odkamieniania ekspresów Nespresso. Ilość sztuk w opakowaniu: 2 Jednostka sprzedaży: 1 opakowanie | D9: op
A10: 10 | B10: Wymienne wkłady do filtra wody AQUAPHOR MAXFOR | C10: Największa na rynku wydajność - do 200 l, Zawiera innowacyjne włókno Aqualen, dzięki czemu skutecznie usuwa z wody chlor, metale ciężkie, fenol, pestycydy i inne zanieczyszczenia, Redukuje twardość wody i zapobiega pojawianiu się osadu i kamienia na urządzeniach AGD np. w czajnikach i ekspresach, Produkt wolny od bisfenolu A (BPA FREE), wykonany z ekologicznych materiałów | D10: op
A11: 11 | B11: Zestaw do odkamieniania KRUPS F054, 2 saszetki po 40 g | C11: Zestaw polecany do ekspresów KRUPS Informacje na temat sposobu użytkowania dostępne w instrukcji obsługi ekspresu W opakowaniu: 2 saszetki środka odkamieniającego Jednostka sprzedaży: 1 opakowanie (2 saszetki x 40 g) | D11: op (2 saszetki)
A12: 12 | B12: Apteczka VERA TOP 15 PLUS, DIN 13157, w walizce z ABS | C12: Apteczka w walizce z tworzywa ABS. Zawiera stelaż mocujący do ściany W skład wyposażenia wchodzą: kompres zimny – 1 szt., kompres na oko – 2 szt., kompres 10 x 10 cm - 3 opakowania (po 2 sztuki) opaska elastyczna 4 m x 6 cm – 2 szt., opaska elastyczna 4 m x 8 cm – 2 szt., zestaw plastrów 10 x 6 cm (8 szt.) – 1 komplet, zestaw plastrów (14 szt.) – 1 komplet, plaster 5 m x 2,5 cm – 1 szt., opatrunek indywidualny M sterylny – 3 szt. opatrunek indywidualny G sterylny – 1 szt., opatrunek indywidualny K sterylny – 1 szt., chusta opatrunkowa 60 x 80 cm – 1 szt. chusta trójkątna – 1 szt., chusta z flizeliny (5 szt.) – 1 komplet, koc ratunkowy 160 x 210 cm – 1 szt. nożyczki 19 cm – 1 szt., rękawice winylowe – 4 szt. chusteczka dezynfekująca – 6 sztuk, ustnik do sztucznego oddychania – 1 szt., instrukcja udzielania pierwszej pomocy Skład zgodny z normą DIN 13157. Rozmiar: 330 x 235 x 125 mm Jednostka sprzedaży: 1 sztuka | D12: szt
A13: 13 | B13: Wyposażenie apteczki DIN 13157 PLUS | C13: Czajnik posiada filtr antywapienny, który zapobiega przedostawaniu się kamienia do szklanki, Pojemność: 1,7 l Moc: 2400 W | D13: op
A14: 14 | B14: Chusteczki KATRIN Plus, 100 sztuk | C14: Białe, dwuwarstwowe chusteczki higieniczne w praktycznym podajniku Testowane dermatologicznie Jednostka sprzedaży: 1 opakowanie (100 sztuk) | D14: op (100 szt)
A15: 15 | B15: Czajnik elektryczny TEFAL Express 1,5 l, biały | C15: Filtr antywapienny i dwustronny wskaźnik poziomu wody, Możliwość zagotowania minimalnej ilości wody (250 ml), Pojemność: 1,5 l, Moc: 2400 W | D15: szt
A16: 16 | B16: Czajnik elektryczny TEFAL Loft, 1,7 l, czarny | C16: Zdejmowana pokrywa ułatwia napełnianie wodą, Czajnik posiada filtr antywapienny, który zapobiega przedostawaniu się kamienia do szklanki, Pojemność: 1,7 l, Moc: 2400 W | D16: szt
A17: 17 | B17: Czyściwo włókninowe, wielozadaniowe do trudnych zabrudzeń TORK, 1 rolka | C17: Jednowarstwowe, grube i mocne czyściwo wielozadaniowe non-woven (syntetyczno-celulozowe) Duża chłonność, także oleistych substancji Niskopylne i odporne na rozerwania Współpracuje z rozpuszczalnikami, ograniczając ich zużycie Polecane do stosowania w przemyśle maszynowym, poligraficznym, spożywczym nawet do najcięższych zadań związanych z czyszczeniem Atest PZH i certyfikat ISEGA, zezwalający na stosowanie produktu w przemyśle spożywczym W wygodnym kartonie mogącym służyć jako dozownik Perforacja co 38 cm Materiał: włóknina jednowarstwowa Tłoczenie: nie Ilość listków: 280 szerokość listka: 320 mm Długość roli: 106,4 m średnica r[...] | D17: szt
A18: 18 | B18: Kij z mopem sznurkowym, 1 komplet | C18: Kij z mopem sznurkowym, Waga: 345 g, Jednostka sprzedaży: 1 sztuka | D18: szt
A19: 19 | B19: Nakładka CEG z mikrofibry na mop triple, długość 40 cm | C19: Mop trójskładnikowy DUO (kieszeń + klips), Wykonany z bawełny, mikrowłókna i poliestru, Długość: 40 cm | D19: szt
A20: 20 | B20: Ściereczki gąbczaste niebieskie, 3 sztuki | C20: Bardzo trwałe i chłonne ścierki gąbczaste, wzmocnione wewnętrzną bawełnianą siatką, Najlepsze do wycierania wody, zmywania powierzchni i usuwania brudu | D20: op. (3 szt)
A21: 21 | B21: Ścierka do podłogi, 50 x 60 cm, pomarańczowa | C21: Ścierka do podłogi, 50 x 60 cm, pomarańczowaWymiary: 50 x 60 cm, Do czyszczenia dużych powierzchni | D21: szt
A22: 22 | B22: Ścierki uniwersalne Practi Maxi 50sztuk | C22: Ścierki uniwersalne Practi Maxi 50sztuk rozmiar 25 x 40 | D22: op (50 szt)
A23: 23 | B23: Ścierki uniwersalne, 5 sztuk | C23: Ścierki wielokrotnego użytku Można je prać i sterylizować Wykonane z wiskozy, pachnące Miks kolorów Wymiary: 37 x 38 cm | D23: op (5 szt)
A24: 24 | B24: Proszek do prania tkanin kolorowych DOSIA, 300 g | C24: Proszek do prania tkanin kolorowych do wszystkich typów pralek i do prania ręcznego Zawiera enzymy i aktywne składniki piorące Nie zawiera chlorowych wybielaczy: jest delikatna dla kolorowych i ciemnych tkanin Jednostka sprzedaży: 1 sztuka (300 g) | D24: op (300g)
A25: 25 | B25: Proszek do prania tkanin PUROX, 5 kg | C25: Do wszystkich typów pralek i do prania ręcznego, Jednostka sprzedaży: 1 opakowanie (5 kg), Składniki: do 5% anionowe i niejonowe środki powierzchniowo czynne, enzymy, kompozycja zapachowa, krzemiany, niejonowe środki powierzchniowo, czynne, regulatory piany, rozjaśniacze optyczne, związki wybielające na bazie tlenu | D25: op (5 kg)
A26: 26 | B26: Chusteczki FELLOWES do czyszczenia ekranów, opakowanie 100szt | C26: Chusteczki FELLOWES do czyszczenia ekranów, opakowanie 100szt | D26: op (100 szt)
A27: 27 | B27: Płyn AJAX Floral Fiesta, 1 l | C27: Doskonale usuwa kurz i brud, pozostawiając na długo świeży zapach Miks zapachów Pojemność: 1 l Jednostka sprzedaży 1 sztuka | D27: op (1l)
A28: 28 | B28: Preparat do usuwania tłustego brudu VOIGT C457 Ultra Clean plus 1 l | C28: Odtłuszczanie, gruntowne mycie bez fosforanów – Produkt do profesjonalnego zastosowania, Nie zawierający fosforanów, Usuwa zabrudzenia pochodzenia tłuszczowego i przemysłowego m.in. oleje, smary. Zalecany do: warsztatów, hal produkcyjnych, galerii handlowych, centrów logistycznych | D28: op (1l)
A29: 29 | B29: Rozpuszczalnik do etykiet w sprayu, pojemność 200 ml | C29: Produkt zapewnia w pełni bezpieczne usunięcie etykiet z dowolnej powierzchni, nie pozostawiając żadnych, śladów kleju. Pojemność 200 ml. | D29: op (200 ml)
A30: 30 | B30: Gąbka do zmywania różowa, 5 sztuk | C30: Gąbka do różnorodnych zastosowań, Kolor: różowy | D30: op (5 szt)
A31: 31 | B31: Gąbki do zmywania standardowa, 5 sztuk | C31: Do zmywania naczyń, szkła, ceramiki, powierzchni emaliowanych Wytrzymała Miks kolorów w opakowaniu Jednostka sprzedaży: 1 opakowanie (5 sztuk) Opakowanie zbiorcze: 18 opakowań | D31: op (5 szt)
A32: 32 | B32: Kuchenka mikrofalowa SEVERIN 7890/7862, biała | C32: 5 poziomów mocy, Rozmrażanie w oparciu o czas i wagę, 35-minutowy timer z sygnałem akustycznym, Pokrętło regulacyjne z chromowanymi elementami, Średnica wyjmowanego talerza ok. 25,4 cm, Wysokość komory ok. 16,5 cm, Obudowa i komora lakierowana powłoką odporną na wysokie temperatur, Wymiary: szer. 43,5, gł. 34,5, wys. 25,4 cm, Moc: 700 W | D32: szt
A33: 33 | B33: Jednorazowa maska higieniczna 3-warstwowa, niebieska, 50 sztuk | C33: Trójwarstwowa maska higieniczna. Wykonana z włókniny polipropylenowej (100%). Materiał: Texfil 25 (Spunbond) + Texfil 25 (Spunbond) + Texfil 25 (Spunbond). Gramatura: 25 gsm + 25 gsm + 25 gsm= 75 gsm. Gumki – długość 16cm - 18cm (± 1cm). | D33: op (50szt)
A34: 34 | B34: Półmaska FILTERSERVICE FS-623V NR D, FFP2, z zaworem, 10 sztuk | C34: Czasza półmaski: - Igłowana włóknina poliestrowa, - Włóknina polipropylenowa typu melt blown, - Włóknina osłonowa, - Zawór wydechowy, - Zapinki taśm nagłowia, - Taśma nagłowia | D34: op (10szt)
A35: 35 | B35: Nawilżacz powietrza NU 5N | C35: 4 poziomy intensywności nawilżania, Automatyczna kontrola wilgotności, Demontowany zasobnik wody 5,2 l, Funkcja jonizacji | D35: szt
A36: 36 | B36: Odświeżacz powietrza AMBI PUR, zapach kwiatowy, 300 ml | C36: Wypełnia pomieszczenie zapachem najpiękniejszego wiosennego bukietu Pojemność: 300 ml Jednostka sprzedaży: 1 sztuka Opakowanie zbiorcze: 6 sztuk | D36: szt
A37: 37 | B37: Odświeżacz powietrza BRISE w sprayu | C37: Odświeżając pomieszczenia pozostawia przyjemny zapach Pojemność: 300 ml Jednostka sprzedaży: 1 sztuka | D37: szt.
A38: 38 | B38: Odświeżacz powietrza BRISE w żelu, miks zapachów | C38: Masa netto: 150 g Miks zapachów Jednostka sprzedaży: 1 sztuka | D38: szt.
A39: 39 | B39: Odświeżacz powietrza GREEN FRESH, 400 ml | C39: Skutecznie neutralizuje i pochłania nieprzyjemne zapachy Odświeża i nawilża powietrze, pozostawiając w pomieszczeniu uczucie świeżości i czystości Pojemność: 400 ml Jednostka sprzedaży: 1 sztuka | D39: op. (400 ml)
A40: 40 | B40: Patyczki zapachowe PACHNĄCA SZAFA, Słoneczne popołudnie, 50 ml | C40: Patyczki zapachowe PACHNĄCA SZAFA nadają przyjemny i odświeżający zapach w każdym pomieszczeniu. Odświeżać ma bardzo ładną formę eleganckich patyczków w szklanym flakoniku. | D40: op (50 ml)
A41: 41 | B41: Wkład do odświeżacza AMBI PUR, zapach ocean and wind | C41: Wkład do elektrycznego odświeżacza powietrza AMBI PUR (6.630.347) Wydajność wkładów: do 80 dni Jednostka sprzedaży: 1 sztuka | D41: szt
A42: 42 | B42: Papier toaletowy CLASSIC, biały, 8 rolek | C42: Papier toaletowy CLASSIC, biały, 8 rolek Wymiary listka: szer. 100 x dł. 112 mm, Szerokość taśmy: 100 mm | D42: op. (8 rolek)
A43: 43 | B43: Papier toaletowy ELLIS PROFESSIONAL JUMBO 130/2, 12 rolek | C43: Papier do użytku profesjonalnego w pomieszczeniach o zwiększonym natężeniu użytkowania, Materiał: celuloza dwuwarstwowa, Gramatura: 2 x 16 g/m², Długość roli: 120 m; średnica roli: 19 cm; średnica gilzy: 6 cm | D43: op (12 rolek)
A44: 44 | B44: Papier toaletowy KATRIN 11296 PLUS 160, biały, 8 rolek | C44: Papier toaletowy KATRIN 11296 PLUS 160, biały, 8 rolek Gramatura: 2 x 16,5 g/m², Długość jednej rolki: 18,3 m | D44: op. (8 rolek)
A45: 45 | B45: Supermocny Plaster do cięcia VISCOPLAST, 1 m x 8 cm | C45: Opatrunek włókninowy o wysokiej chłonności, Plaster natychmiast przykleja się do skóry, nawet do wilgotnej, Ogranicza przywieranie opatrunku do rany | D45: op (1m)
A46: 46 | B46: Uniwersalny zestaw plastrów 3M VISCOPLAST, 24 sztuki | C46: Plastry z opatrunkiem do opatrywania drobnych ran i skaleczeń Hypoalergiczne i wodoodporne Przepuszczające powietrze W opakowaniu 24 plastry: plastry Minifol: 72 x 25 mm - 4 sztuki, 72 x 19 mm - 8 sztuk, 57 x 16 mm - 6 sztuk, 38x10 mm - 4 sztuki Plaster Prestopor 10 x 6 cm Plaster Prestovis Plus 10 x 6 cm Jednostka sprzedaży: 1 opakowanie | D46: op. ( 24 szt)
A47: 47 | B47: Krem do rąk EVELINE ''Niewidzialne rękawiczki'', 100 ml | C47: Odżywczo-ochronny krem do rąk z formułą witaminową Polecany do suchych i podrażnionych dłoni Pojemność: 100 ml Jednostka sprzedaży: 1 sztuka | D47: op do (100 ml)
A48: 48 | B48: Krem do rąk GARNIER do skóry bardzo suchej, 100 g | C48: Regeneruje i odżywia zniszczoną skórę dłoni Zawiera alantoinę, glicerynę oraz czynnik filtrującyJednostka sprzedaży: 1 sztuka (100 g) | D48: op. (100 g)
A49: 49 | B49: Ręcznik MALFINI, chabrowy, 70x140 cm | C49: Tkana metka, która może również służyć jako wieszaczek, Ozdobiony wyszywaną bordiurą po obu brzegach, Sklad: 100% bawełna, frotte, Gramatura: 450g/m², Kolor: chabrowy, Rozmiar: 70x140 cm | D49: szt
A50: 50 | B50: Ręcznik MALFINI, granatowy, 50x100 cm | C50: Tkana metka, która może również służyć jako wieszaczek, Ozdobiony wyszywaną bordiurą po obu brzegach, Sklad: 100% bawełna, frotte, Gramatura: 450g/m², Kolor: granatowy | D50: szt
A51: 51 | B51: Ręcznik MALFINI, szaro-czarny, 50x100 cm | C51: Wykonane z wysokiej jakości frotte, odpowiednie pod haft, Miękkie, miłe w dotyku, dobrze absorbują wodę, Tkana metka, która może również służyć jako wieszaczek, Ozdobiony wyszywaną bordiurą po obu brzegach, Sklad: 100% bawełna, frotte, Gramatura: 450g/m² kolor szaroczany | D51: szt
A52: 52 | B52: Ręcznik MALFINI, szaro-czarny, 70x140 cm | C52: Tkana metka, która może również służyć jako wieszaczek, Ozdobiony wyszywaną bordiurą po obu brzegach, Sklad: 100% bawełna, frotte, Gramatura: 450g/m², Kolor: szaroczarny Rozmiar: 70x140 cm | D52: szt
A53: 53 | B53: Chusteczki higieniczne VELVET, 120 sztuk | C53: Chusteczki higieniczne VELVET, 120 sztuk. W opakowaniu 120 sztuk, Produkt ma atest PZH, | D53: op (120 szt)
A54: 54 | B54: Ręcznik w roli ESTIMO 100/2, 500 listków | C54: Wytrzymały, dwuwarstwowy ręcznik w 100% wykonany z celulozy o wysokich parametrach i pięknym designie Długość rolki: 100 m W rolce 500 odcinków o wymiarach: 20,3 x 20 cm Kolor biały Jednostka sprzedaży: 1 rolka | D54: op. (rolka 100 m)
A55: 55 | B55: Ręczniki papierowe białe, składka V, 20 x 200 listków | C55: Gofrowane ręczniki w składce Kompatybilne ze standardowymi dozownikami do ręczników typu ZZ Materiał: makulatura jednowarstwowa Wymiary listka: 25 x 23 cm Gramatura: 1 x 30 g/m² Ilość bind w opakowaniu: 20 Ilość listków w bindzie: 200 Kolor: biały Jednostka sprzedaży: 1 karton (4000 listków) | D55: op. (20 x 200 listków)
A56: 56 | B56: Ręczniki papierowe MERIDA składka V, 20 x 160 listków | C56: Gofrowane ręczniki w składce wysokiej chłonności Kompatybilne ze standardowymi dozownikami do ręczników typu ZZ Materiał: makulatura dwuwarstwowa Wymiary listka: 25 x 23 cm Gramatura:2 x 19 g/m² Tłoczenie: nie Ilość bind w opakowaniu: 20 Ilość listków w bindzie: 160 Kolor: biały Jednostka sprzedaży: 1 karton (3200 listków) | D56: op. (20 x 160 listków)
A57: 57 | B57: Ręczniki papierowe zielone, składka V, 20 x 200 listków | C57: Gofrowane ręczniki w składce wysokiej chłonności Kompatybilne ze standardowymi dozownikami do ręczników typu ZZ Materiał: makulatura dwuwarstwowa Wymiary listka: 25 x 23 cm Gramatura:2 x 19 g/m² Tłoczenie: nie Ilość bind w opakowaniu: 20 Ilość listków w bindzie: 160 Kolor: zielon. Jednostka sprzedaży: 1 karton (3200 listków) | D57: op. (20 x 200 listków)
A58: 58 | B58: Ręczniki w roli TORK UNIVERSAL Extra Długie do systemu TORK Matic H1, 6 rolek | C58: Materiał: makulatura jednowarstwowa, Tłoczenie: nie, Ilość listków:1120, Długość roli: 280 m; wysokość roli: 21 cm; średnica roli: 19 cm; średnica gilzy: 3,8 cm | D58: op. (1120 listków)
A59: 59 | B59: Rękawice antystatyczne ANSELL HyFlex® 11-800, rozmiar 9, para | C59: Nylonowe rękawice z powłoką z pianki nitrylowej, wykonane w technologii KnitZonz™ Wszechstronne rozwiązanie do precyzyjnego montażu i prac ogólnych Zaawansowana technologia dziania zapewnia większą rozciągliwość i elastyczność w miejscach o zwiększonym nacisku Antystatyczne, zgodne z normą EN 1149 Norma EN 388 3131 (EN 388:2016 3131A) Rozmiar: 9 Jednostka sprzedaży: 1 para | D59: op. (1 para)
A60: 60 | B60: Rękawice DELTAPLUS VV835 Chemsafe, rozmiar 11, para | C60: Rękawica z podwójną powłoką nitrylową na wkładzie z poliamidu, Trzecia powłoka z szorstkiej pianki nitrylowej na stronie chwytnej i końcach palców, Długość: 35 cm, Grubość: 1,15 mm - 1,30 mm na stronie chwytnej | D60: op, 1 (para)
A61: 61 | B61: Rękawice nitrylowe MEDASEPT PF, czarne, rozmiar S, 100 sztuk | C61: Uniwersalne, rękawice pasujące na prawą i lewą dłoń, Nitrylowe, Tekstura na końcach palców, Rozmiar S | D61: op. (100 szt)
A62: 62 | B62: Rękawice nitrylowe MEDASEPT PREMIER, niebieskie, rozmiar XL, 100 sztuk | C62: Rękawice nitrylowe diagnostyczne i ochronne (kat. III), Bezpudrowe., Uniwersalny kształt pasuje na obie dłonie, Tekstura na końcach palców, Przeznaczone do kontaktu z żywnością. | D62: op. (100 szt)
A63: 63 | B63: Rękawice nitrylowe MEDASEPT PRIME, niebieskie, rozmiar L, 100 sztuk | C63: Rękawice nitrylowe diagnostyczne i ochronne, Bezpudrowe. Uniwersalny kształt pasuje na obie dłonie. | D63: op. (100 szt)
A64: 64 | B64: Rękawice nitrylowe MEDASEPT PRIME, niebieskie, rozmiar M, 100 sztuk | C64: Rękawice nitrylowe diagnostyczne i ochronne | D64: op. (100 szt)
A65: 65 | B65: Ręcznik kuchenny VELVET Jumbo, 1 rolka | C65: Dwuwarstwowy ręcznik papierowy, który świetnie nadaje się do generalnych porządków, prac w garażu, ogrodzie oraz w kuchni Giga rola = 13 standardowych rolek Nie tylko chłonny i wytrzymały, ale także wyjątkowo wydajny Jedna rolka zawiera aż 520 listków Wysokość rolki: 22 cm Kolor biały Jednostka sprzedaży: 1 rolka | D65: szt ( 1 rolka)
A66: 66 | B66: Ręcznik papierowy BRATEK biały, 2 rolki | C66: Ręczniki kuchenne, dwuwarstwowe, celulozowe Szerokość rolki: 22 cm Długość rolki: 11 m Jednostka sprzedaży: 1 opakowanie (2 sztuki) | D66: op (2 rolki)
A67: 67 | B67: Ręczniki kuchenne AHA, 2 rolki | C67: Dwuwarstwowy ręcznik wykonany z czystej celulozy W rolce 50 odcinków o wymiarach: 23 x 20 cm W opakowaniu: 2 rolki Kolor biały Jednostka sprzedaży: 1 opakowanie | D67: op (2 rolki)
A68: 68 | B68: Ręczniki kuchenne VELVET, 2 rolki | C68: Produkt wolny od bisfenolu A (BPA FREE), posiada atest NIZP-PZH | D68: op. (2 rolki)
A69: 69 | B69: Łyżeczki do herbaty AMEFA Bologna, 12 sztuk | C69: subtelne i eleganckie łyżeczki do herbaty, Sztućce polerowane, stal 18/0 | D69: op (12 szt)
A70: 70 | B70: Łyżeczki do kawy AMEFA Bologna, 12 sztuk | C70: Klasyczne, proste w formie, subtelne i eleganckie łyżeczki do kawy Dobra jakość w atrakcyjnej cenie powodują, iż linia od lat cieszy się wyjątkową popularnością Sztućce polerowane, stal 18/0 | D70: op (12 szt)
A71: 71 | B71: Łyżki AMEFA Bologna, 12 sztuk | C71: Sztućce polerowane, stal 18/0 | D71: op (12 szt)
A72: 72 | B72: Widelce AMEFA Bologna, 12 sztuk | C72: Sztućce polerowane, stal 18/0, | D72: op (12 szt)
A73: 73 | B73: Ściereczki mokre do mebli drewnianych PRESTO, opakowanie 72 sztuki | C73: Ściereczki nawilżane do czyszczenia różnych powierzchni, Usuwają kurz i zapobiegają jego osadzaniu, Nadają połysk czyszczonym powierzchniom | D73: op. (72 szt)
A74: 74 | B74: Kulki do toalet BREF Power Activ, 50 g, zapach cytrynowy | C74: Nowoczesne rozwiązanie w postaci czterech kulek na wygodnej zawieszce Czyszczą, pozostawiają przyjemny zapach i chronią przed osadzaniem się kamienia Masa netto: 50 g Jednostka sprzedaży: 1 sztuka Opakowanie zbiorcze: 10 sztuk | D74: op. (50 g)
A75: 75 | B75: Kulki do toalet BREF Power Activ, 50 g, zapach morski | C75: Nowoczesne rozwiązanie w postaci czterech kulek na wygodnej zawieszce Czyszczą, pozostawiają przyjemny zapach i chronią przed osadzaniem się kamienia Masa netto: 50 g Jednostka sprzedaży: 1 sztuka | D75: op. (50 g)
A76: 76 | B76: Płyn CILIT Bang Kamień i brud, 750 ml | C76: Żel CILIT kamień i brud z Turbo Power. Do czyszczenia wanien, kabin prysznicowych, płytek, toalet, armatury kuchennej i łazienkowej Usuwa kamień, rdzawe zacieki z twardej wody, osad z mydła i inne zabrudzenia Pojemność: 750 ml Jednostka sprzedaży: 1 sztuka | D76: op. (750 ml)
A77: 77 | B77: Płyn do toalet DOMESTOS Toilet Limescale Remover, 750 ml | C77: Gęsty płyn do czyszczenia muszli klozetowych Formuła ściśle przylegająca do czyszczonych powierzchni, rozpuszcza kamień wapienny Przeznaczony do powierzchni porcelanowych i szkliwionych Butelka z wygodnym dozownikiem Pojemność: 750 ml Jednostka sprzedaży: 1 sztuka Opakowanie zbiorcze: 6 sztuk | D77: op. (750 ml)
A78: 78 | B78: Płyn do WC DOMESTOS 24H, 1,25 l, cytrynowy | C78: Produkt czyszcząco-dezynfekująco-wybielający Możliwość stosowania do: muszli klozetowych, umywalek, zlewów itp. Produkt nadaje się także do wybielania tkanin Jednostka sprzedaży: 1 sztuka Pojemność: 1,25 l | D78: op. (1,25 l)
A79: 79 | B79: Płyn do WC DOMESTOS 24H, 1,25 l, leśny | C79: Produkt czyszcząco-dezynfekująco-wybielający Możliwość stosowania do: muszli klozetowych, umywalek, zlewów itp. Produkt nadaje się także do wybielania tkanin Pojemność: 1,25 l Jednostka sprzedaży: 1 sztuka | D79: op. (1,25 l)
A80: 80 | B80: Wkład zapachowy do pisuarów MERIDA, czerwony | C80: Winylowy, elastyczny wkład zapachowy do pisuarów, Zapach utrzymuje się przez około 30 dni, Dodatkowo wkład zabezpiecza pisuar przed zapchaniem | D80: szt.
A81: 81 | B81: Zawieszka do WC DOMESTOS, zapach leśny | C81: Zawieszki czyszczące do toalet Chronią przed osadzaniem się kamienia i pozostawiają świeży zapach Jednostka sprzedaży 1 sztuka | D81: szt
A82: 82 | B82: Żel BREF do WC Fresh Mist, 700 ml | C82: Usuwa kamień, brud i osad, Gęsta formuła żelu sprawia, że działa on również pod powierzchnią wody. | D82: op. (700 ml)
A83: 83 | B83: Żel CLINEX Drill do udrażniania odpływów, 1 l | C83: Szybko rozpuszcza wszelkie stałe i organiczne zanieczyszczenia takie jak: tłuszcz, papier, wata, odpadki kuchenne, Forma żelowa pozwala na osadzanie się preparatu na ściankach rur, przedłużając proces działania, Likwiduje nieprzyjemne zapachy, Nadaje się do udrażniania rur zarówno w kuchni, jak i w łazience | D83: op. (1 l)
A84: 84 | B84: Biobójczy płyn do dezynfekcji rąk HISKIN, 1 l | C84: Produkt przeznaczony do codziennego stosowania przez użytkownika powszechnego. Wykazuje działanie bakteriobójcze, grzybobójcze i wirusobójcze | D84: op. (1 l)
A85: 85 | B85: Dozownik do mydła w płynie MERIDA TOP, biały | C85: Mocny i trwały dozownik do mydła w płynie wykonany z tworzywa ABS Okienko umożliwiające kontrolę zużycia mydła Pojemność: 0,8 l Zestaw do montażu w komplecie Wymiary: dł. 11,5 x szer.11,5 x wys. 25 cm Kolor: biały Jednostka sprzedaży: 1 sztuka | D85: szt.
A86: 86 | B86: Mydło toaletowe NIVEA, 100 g | C86: Kremowe mydło z odżywczym olejkiem migdałowym Miks zapachów Jednostka sprzedaży: 1 sztuka | D86: szt. (100 g)
A87: 87 | B87: Mydło w płynie MERIDA Silva, 5 l | C87: Mydło w płynie typu „dwa w jednym”, Zawiera m.in. glukopony mające doskonałe właściwości pielęgnacyjne skóry, jak również gluadyny – roślinne proteiny, szczególnie cenne składniki pielęgnacyjne chroniące skórę i włosy | D87: op. (5l)
A88: 88 | B88: Mydło w płynie PALMOLIVE, migdałowe, 300 ml | C88: Dzięki naturalnemu pH nie podrażnia nawet wrażliwej skóry Zawiera kombinację substancji czyszczących i odżywczych Opakowanie z dozownikiem Pojemność 300 ml Jednostka sprzedaży: 1 sztuka Opakowanie zbiorcze: 12 sztuk | D88: op. (300 ml)
A89: 89 | B89: Pasta BHP do rąk, ścierna, 500 g | C89: Usuwa silne zabrudzenia smarami, tłuszczami, sadzami | D89: op. (500g)
A90: 90 | B90: Pasta do rąk MERIDA PA12, 500 ml | C90: Usuwa wszelkie zabrudzenia nawet powstałe od smarów i olejów, Oszczędna w użyciu, Jest niealkaliczna i nie zawiera mineralnych środków ściernych | D90: op. (500 ml)
A91: 91 | B91: Kapsułki do zmywarek FAIRY Jar All in 1, 115 kapsułek | C91: Wydajne kapsułki do maszynowego mycia naczyń Jednostka sprzedaży: 1 opakowanie (115 kapsułek) | D91: op. ( 115 szt)
A92: 92 | B92: Płyn do czyszczenia zmywarek FINISH, 250 ml | C92: Płyn do czyszczenia zmywarek o zapachu cytrynowym Pojemność: 250 ml Jednostka sprzedaży 1 opakowanie | D92: op (250 ml)
A93: 93 | B93: Płyn do mycia naczyń LUDWIK 1150 g | C93: Posiada bardzo dobre właściwości myjące oraz wysoką zdolność do emulgowania tłuszczów zarówno w ciepłej, jak i zimnej wodzie. Nie pozostawia zacieków na umytych powierzchniach, nadaje im połysk bez konieczności wycierania do sucha. Nowa receptura została również wzbogacona kompleksem witamin A,E,F,H, mającym działanie ochronne i odżywcze dla skóry rąk, Polecany również do mycia mebli, lodówek, wykładzin, podłóg, glazury, dywanów i tworzyw sztucznych | D93: op. (1150 g)
A94: 94 | B94: Płyn do mycia naczyń LUDWIK cytrynowy, 5 kg | C94: Posiada bardzo dobre właściwości myjące oraz wysoką zdolność do emulgowania tłuszczów zarówno w ciepłej, jak i zimnej wodzie. Nie pozostawia zacieków na umytych powierzchniach, nadaje im połysk bez konieczności wycierania do sucha. Nowa receptura została również wzbogacona kompleksem witamin A,E,F,H, mającym działanie ochronne i odżywcze dla skóry rąk, Polecany również do mycia mebli, lodówek, wykładzin, podłóg, glazury, dywanów i tworzyw sztucznych | D94: 5 kg
A95: 95 | B95: Płyn do mycia naczyń LUDWIK Miętowy 1 l. | C95: Posiada bardzo dobre właściwości myjące oraz wysoką zdolność do emulgowania tłuszczów zarówno w ciepłej, jak i zimnej wodzie. Nie pozostawia zacieków na umytych powierzchniach, nadaje im połysk bez konieczności wycierania do sucha. Nowa receptura została również wzbogacona kompleksem witamin A,E,F,H, mającym działanie ochronne i odżywcze dla skóry rąk, Polecany również do mycia mebli, lodówek, wykładzin, podłóg, glazury, dywanów i tworzyw sztucznych | D95: op. (1 l)
A96: 96 | B96: Płyn do mycia naczyń LUDWIK, cytrynowy, 450 g | C96: Posiada bardzo dobre właściwości myjące oraz wysoką zdolność do emulgowania tłuszczów zarówno w ciepłej, jak i zimnej wodzie. Nie pozostawia zacieków na umytych powierzchniach, nadaje im połysk bez konieczności wycierania do sucha. Nowa receptura została również wzbogacona kompleksem witamin A,E,F,H, mającym działanie ochronne i odżywcze dla skóry rąk, Polecany również do mycia mebli, lodówek, wykładzin, podłóg, glazury, dywanów i tworzyw sztucznych | D96: op. (450g)
A97: 97 | B97: Płyn do naczyń LUDWIK, 450 g, miętowy | C97: Nie pozostawia zacieków na umytych powierzchniach, nadaje im połysk bez konieczności wycierania do sucha. Polecany również do mycia mebli, lodówek, wykładzin, podłóg, glazury, dywanów i tworzyw sztucznych. | D97: op.(450g)
A98: 98 | B98: Płyn nabłyszczający do zmywarek LUDWIK, 750 ml | C98: Przeznaczony do płukania i nabłyszczania naczyń zmywanych w zmywarce Dzięki właściwie dobranym składnikom i zawartości kwasku cytrynowego płyn sprawia, że myte naczynia wysychają bez plam i zacieków Jednostka sprzedaży: 1 opakowanie (750 ml) | D98: op. (750 ml)
A99: 99 | B99: Płyn nabłyszczający FINISH, 400 ml | C99: Usuwa ślady po kroplach wody i osad z kamienia, pozostawiając Diamentowy Połysk Jednostka sprzedaży: 1 opakowanie (400 ml) | D99: op. (400 ml)
A100: 100 | B100: Sól ochronna do zmywarki LUDWIK, 1,5 kg | C100: Preparat chroniący zmywarkę przed osadzaniem się kamienia w jej wnętrzu i na mytych naczyniach Skutecznie zmiękcza wodę dzięki zastosowanej formule, preparat zawiera całkowicie rozpuszczalną szlachetną sól z granulkami o odpowiedniej wielkości Regularne stosowanie soli ochronnej Ludwik zapewnia prawidłowe funkcjonowanie zmywarki i długotrwałą ochronę jej mechanizmów Jednostka sprzedaży: 1 opakowanie (1,5 kg) | D100: op. (1 l)
A101: 101 | B101: Sól SOMAT do zmywarek, 1,5 kg | C101: Zabezpiecza zmywarkę oraz naczynia przed osadzaniem się kamienia Wygodna w użyciu sól ma postać granulek Opakowanie: 1,5 kg Jednostka sprzedaży: 1 sztuka | D101: op. (5 kg)
A102: 102 | B102: Tabletki do zmywarek LUDWIK, 30 sztuk | C102: Wielofunkcyjne tabletki czyszczą, nabłyszczają, chronią szkło i stal nierdzewną przed matowieniem oraz zabezpieczają zmywarkę przed osadzaniem się kamienia Funkcja zmiękczania wody pozwala na jeszcze bardziej efektywne wykorzystanie składników myjących Enzymy są aktywne już w 30°C Cytrusowy aromat tabletek nadaje długotrwały zapach świeżości w kuchni Zapewniają oszczędność wody i energii Jednostka sprzedaży: 1 opakowanie (20 g x 30 tabletek) | D102: op. (30 szt)
A103: 103 | B103: Płyn do mycia szyb i glazury LUDWIK grapefruit z octem, 750 ml | C103: Nie pozostawia smug, zacieków i szybko odparowuje., Skład: do 5% anionowe środki powierzchniowo czynne, konserwant (2-bromo-2-nitropropane-1,3-diol, methylchloroisothiazolinone, methylisothiazolinone), kompozycja zapachowa (limonene, linalool). | D103: op. (750ml)
A104: 104 | B104: Płyn do mycia szyb KUBUŚ z atomizerem, 1 l | C104: Przeznaczony do mycia szyb okiennych, luster oraz innych powierzchni szklanych, Doskonale usuwa brud, nie pozostawia smug | D104: op. (1 l)
A105: 105 | B105: Płyn do szyb i luster BUZIL G522 Profiglass, 600 ml | C105: Gotowy do użycia środek do mycia szyb i luster Skutecznie usuwa zabrudzenia, również te tłuste Butelka posiada specjalnie przyciętą końcówkę rozpryskującą, która ułatwia nanoszenie środka czyszczącego Wygodna butelka 600 ml ze spryskiwaczem | D105: op (600 ml)
A106: 106 | B106: Mleczko do czyszczenia CIF Regular Cream, 650 ml/780 g | C106: Uniwersalne mleczko CIF z mikrokryształkami, które pomaga utrzymać powierzchnie w czystości, jest delikatne i nie rysuje powierzchni. Usuwa najbardziej oporny brud taki jak: przypieczony tłuszcz, przypalone jedzenie, plamy z kamienia w łazience. Składniki: do 5% anionowe środki powierzchniowo, czynne niejonowe środki powierzchniowo czynne, mydło, kompozycja zapachowa Limonene, Benzisothiazolinone, Linalool, Butylphenyl Methylpropional, Hexyl Cinnamal. Sposób użycia: nanieść na wilgotną ściereczkę lub bezpośrednio na czyszczoną powierzchnię. Po wyczyszczeniu dokładnie spłukać. Nie połykać. Mleczko do czyszczenia powierzchni twardych. | D106: op (650 ml)
A107: 107 | B107: Czajnik elektryczny TEFAL Express 1,5 l, biały | C107: Czajnik z ukrytym elementem grzejnym i obrotową podstawą, Filtr antywapienny i dwustronny wskaźnik poziomu wody, Możliwość zagotowania minimalnej ilości wody (250 ml), Pojemność: 1,5 l | D107: szt.
A108: 108 | B108: Dzbanek filtrujący wodę AQUAPHOR Onyx 4,2 l + 3 wkłady filtrujące, biały | C108: Klasyczny i elegancki kształt pasuje do biur i sal konferencyjnych, Produkt wolny od bisfenolu A (BPA FREE), posiada atest NIZP-PZH, W zestawie 3 wkłady Maxfor MG wzbogacające wodę w magnez | D108: op. (3 szt.)
A109: 109 | B109: Filtr wody KRUPS F08801 do ekspresu ciśnieniowego, 1 sztuka | C109: Zapobiega nadmiernemu osadzaniu się kamienia Dostosowany do ekspresów Krups Artese oraz Krups Orchestro Jednostka sprzedaży: 1 sztuka | D109: szt
A110: 110 | B110: Termos TEFAL Campo, 1 l, czarny | C110: Termos TEFAL Campo, 1 l, czarnyObudowa ze stali nierdzewnej z kolorową powłoką z wkładką szklaną, Kolor: czarny | D110: szt
A111: 111 | B111: Reklamówki foliowe 9 micronów 210 + 2 x 60 x 435 mm (+/-12), 150 sztuk | C111: Reklamówki o wymiarach 210 + 2 x 60 x 435 mm (+/-12) Nawój: 150 sztuk Folia HDPE / grubość 9 mikronówJednostka sprzedaży: 1 rolka (150sztuk) | D111: op. (150 szt.)
A112: 112 | B112: Worki do segregacji 60 l, niebieskie na szkło, 60 x 72 cm | C112: Wytrzymałe worki ułatwiające segregację śmieci dzięki kodowi kolorystycznemu, Mają nadruk informujący, jakie typy odpadów należy do nich wrzucać, a jakich nie należy, Wymiary: 60 x 72 cm | D112: op.
A113: 113 | B113: Worki do segregacji 60 l, zielone na szkło, 60 x 72 cm | C113: Wytrzymałe worki ułatwiające segregację śmieci dzięki kodowi kolorystycznemu, Mają nadruk informujący, jakie typy odpadów należy do nich wrzucać, a jakich nie należy, Wymiary: 60 x 72 cm | D113: op
A114: 114 | B114: Worki do segregacji 60 l, zółte na szkło, 60 x 72 cm | C114: Wytrzymałe worki ułatwiające segregację śmieci dzięki kodowi kolorystycznemu, Mają nadruk informujący, jakie typy odpadów należy do nich wrzucać, a jakich nie należy, Wymiary: 60 x 72 cm | D114: op
A115: 115 | B115: Worki na śmieci LDPE sanitarne 120 l, niebieskie, 10 sztuk | C115: Wymiary: 110 x 70 cm, Grubość: folii: 0,03 mm | D115: op (10 szt)
A116: 116 | B116: Worki na śmieci LDPE sanitarne 160 l, czarne, 20 sztuk | C116: Worki na śmieci LDPE sanitarne 160 l, czarne, 20 sztuk Pojemność: 160 l Wymiary: 150 x 90 cm Grubość: folii: 0,027 mm Kolor folii: czarny Jednostka sprzedaży: 1 opakowanie (20 sztuk) | D116: op. (20 sztuk)
A117: 117 | B117: Worki na śmieci LDPE z taśmą ściągającą 60 l, czarne, 10 sztuk | C117: Posiadają taśmę ściągającą Pojemność: 60 l Wymiary: 72 x 60 cm Grubość: folii: 0,02 mm Kolor folii: czarny Jednostka sprzedaży: 1 opakowanie (10 sztuk) | D117: op. (10 sztuk)
A118: 118 | B118: Worki na śmieci MDPE 35 l, niebieskie 20 sztuk | C118: Pojemność: 35 l Wymiary: 58 x 49 cm Grubość: folii: 0,011 mm Kolor folii: niebieski Jednostka sprzedaży: 1 opakowanie (20 sztuk) | D118: op. (20 sztuk)

Sheet Załącznik14-F.O. dla Zadania 11
B1: Oznaczenie sprawy: 1400/DW00/ZU/KZ/2022/0000079539
B3: ZAŁĄCZNIK NR 14 - FORMULARZ OFERTY DLA ZADANIA 11 - DOSTAWA ARTYKUŁÓW HIGIENICZNYCH: POZNAŃ+ WOJ. WIELKOPOLSKIE; BYDGOSZCZ+ WOJ. KUJAWSKO-POMORSKIE; CHOJNICE + WOJ. POMORSKIE
C6: (pieczęć wykonawcy)
B8: Ja, niżej podpisany (My niżej podpisani):
B11: działając w imieniu i na rzecz:
B14: Składam(y) ofertę na wykonanie zamówienia, którego przedmiotem jest:
B15: Dostawa artykułów biurowych, spożywczych i higienicznych dla spółek GK ENEA
B17: ZADANIE 11 - Dostawa artykułów higienicznych: Poznań+ woj. Wielkopolskie; Bydgoszcz+ woj. Kujawsko-Pomorskie; Chojnice + woj. Pomorskie
B19: ŁĄCZNA CENA NETTO OFERTY DLA ZADANIA 11: | D19: =SUM(H22:H143) -> 0
B21: LP | C21: Nazwa produktu | D21: Opis szczegółowy | E21: Jednostka | F21: cena jednostkowa netto | G21: Ilość | H21: Wartość | I21: ENEA Centrum Sp. z o.o. - Szacowana ilość | J21: ŁĄCZNA CENA NETTO DLA ENEA Centrum Sp. z o.o. | K21: Enea Logistyka sp.z o.o. - Szacowana ilość | L21: ŁĄCZNA CENA NETTO DLA ENEA Logistyka sp. z o.o. | M21: ENEA Operator Sp. z o.o. - Szacowana ilość | N21: ŁĄCZNA CENA NETTO DLA ENEA Operator Sp. z o.o. | O21: ENEA Oświetlenie Sp. z o.o. - Szacowana ilość | P21: ŁĄCZNA CENA NETTO DLA ENEA Oświetlenie Sp. z o.o. | Q21: ENEA Pomiary Sp. z o.o. - Szacowana ilość | R21: ŁĄCZNA CENA NETTO DLA ENEA Pomiary Sp. z o.o. | S21: ENEA Serwis Sp. z o.o. - Szacowana ilość | T21: ŁĄCZNA CENA NETTO DLA ENEA Serwis Sp. z o.o. | U21: ENEA S.A. - Szacowana ilość | V21: ŁĄCZNA CENA NETTO DLA ENEA S.A.
B22: 1 | C22: Filtr do expresu DELONGHI 45.76X | D22: Filtr do expresu DELONGHI 45.76X | E22: szt | F22: =IF('Załącznik 13-F.O. Zad 11-15 '!$V$55,VLOOKUP(C22,'Załącznik 13-F.O. Zad 11-15 '!$C$52:$G$174,5,0),0) -> 0 | G22: =I22+K22+M22+O22+Q22+S22+U22 -> 1 | H22: =G22*F22 -> 0 | J22: =I22*F22 -> 0 | K22: 0 | L22: =K22*F22 -> 0 | M22: 0 | N22: =M22*F22 -> 0 | P22: =O22*F22 -> 0 | R22: =Q22*F22 -> 0 | S22: 1 | T22: =S22*F22 -> 0 | V22: =U22*F22 -> 0
B23: 2 | C23: ODKAMIENIACZ DO EKSPRESU MELITTA 250ML | D23: odkamieniacz do ekspresu MELITA poj. 250 ml. | E23: szt. (250 ml) | F23: =IF('Załącznik 13-F.O. Zad 11-15 '!$V$55,VLOOKUP(C23,'Załącznik 13-F.O. Zad 11-15 '!$C$52:$G$174,5,0),0) -> 0 | G23: =I23+K23+M23+O23+Q23+S23+U23 -> 20 | H23: =G23*F23 -> 0 | I23: 6 | J23: =I23*F23 -> 0 | K23: 0 | L23: =K23*F23 -> 0 | M23: 13 | N23: =M23*F23 -> 0 | P23: =O23*F23 -> 0 | R23: =Q23*F23 -> 0 | S23: 1 | T23: =S23*F23 -> 0 | V23: =U23*F23 -> 0
B24: 3 | C24: Odkamieniacz KAMIX, w proszku, 150 g | D24: Środek do usuwania osadów z kamienia Pojemność: 150 g Jednostka sprzedaży: 1 opakowanie | E24: op. ( 150 g) | F24: =IF('Załącznik 13-F.O. Zad 11-15 '!$V$55,VLOOKUP(C24,'Załącznik 13-F.O. Zad 11-15 '!$C$52:$G$174,5,0),0) -> 0 | G24: 47 | H24: 0 | I24: 1 | J24: 0 | K24: =10*1.8 -> 18 | L24: 0 | M24: 21 | N24: 0 | O24: 5 | P24: 0 | Q24: 1 | R24: 0 | S24: 1 | T24: 0 | V24: 0
B25: 4 | C25: Odkamieniacz uniwersalny KAMIX, w płynie, 500 ml | D25: Środek w płynie do usuwania osadów kamienia Pojemność: 500 ml Jednostka sprzedaży: 1 opakowanie | E25: op. (500 ml) | F25: =IF('Załącznik 13-F.O. Zad 11-15 '!$V$55,VLOOKUP(C25,'Załącznik 13-F.O. Zad 11-15 '!$C$52:$G$174,5,0),0) -> 0 | G25: 89 | H25: 0 | I25: 8 | J25: 0 | K25: 36 | L25: 0 | M25: 40 | N25: 0 | O25: 3 | P25: 0 | Q25: 1 | R25: 0 | S25: 1 | T25: 0 | V25: 0
B26: 5 | C26: Tabletki do czyszczenia sekcji mlecznej ekspresu | D26: Tabletki do codziennego czyszczenia sekcji mlecznej zapewniają dokładne i higieniczne użytkowanie sekcji mlecznej Jednostka sprzedaży: 1 opakowanie | E26: op. ( 62 szt ) | F26: =IF('Załącznik 13-F.O. Zad 11-15 '!$V$55,VLOOKUP(C26,'Załącznik 13-F.O. Zad 11-15 '!$C$52:$G$174,5,0),0) -> 0 | G26: 1 | H26: 0 | J26: 0 | K26: 0 | L26: 0 | M26: 0 | N26: 0 | P26: 0 | R26: 0 | S26: 1 | T26: 0 | V26: 0
B27: 6 | C27: Płyn odkamieniający DELONGHI "EcoDecalk" | D27: odkamieniacz do ekspresu DELONGHI | E27: szt. | F27: =IF('Załącznik 13-F.O. Zad 11-15 '!$V$55,VLOOKUP(C27,'Załącznik 13-F.O. Zad 11-15 '!$C$52:$G$174,5,0),0) -> 0 | G27: 9 | H27: 0 | J27: 0 | K27: 4 | L27: 0 | M27: 4 | N27: 0 | P27: 0 | R27: 0 | S27: 1 | T27: 0 | V27: 0
B28: 7 | C28: Tabletki czyszczące KRUPS XS3000, 10 sztuk | D28: Tabletki czyszczące przeznaczone do ekspresów ciśnieniowych i przelewowych Usuwają tłuszcz i pozostałości po kawie wewnątrz ekspresu. Regularne stosowanie gwarantuje utrzymanie wysokiej jakości kawy Jednostka sprzedaży: 1 opakowanie (10 sztuk) | E28: op (10 szt) | F28: =IF('Załącznik 13-F.O. Zad 11-15 '!$V$55,VLOOKUP(C28,'Załącznik 13-F.O. Zad 11-15 '!$C$52:$G$174,5,0),0) -> 0 | G28: 44 | H28: 0 | I28: 11 | J28: 0 | K28: 4 | L28: 0 | M28: 19 | N28: 0 | O28: 3 | P28: 0 | Q28: 6 | R28: 0 | S28: 1 | T28: 0 | V28: 0
B29: 8 | C29: Tabletki do zmywarek FINISH All-in-1, 50 tabletek | D29: Jego unikalna formuła łączy w sobie działanie 10 funkcji Power Actions: usuwanie zaplamień, usuwanie tłuszczu, namaczanie, usuwanie zabrudzeń po herbacie, kryształowy połyski, lśniące sztućce, ochrona przed osadzaniem się kamienia w zmywarce, aktywna ochrona szkła, ochrona srebra, usuwanie opornych zabrudzeń, Dodatkowo spełnia funkcje soli i płynu nabłyszczającego, Składniki: 5 - 15 % związki wybielające na bazie tlenu, niejonowe środki powierzchniowo czynne, do 5 % polikarboksylany, fosfoniany. Enzymy (subtylizyna, amylaza), kompozycja zapachowa. | E29: op (50 szt) | F29: =IF('Załącznik 13-F.O. Zad 11-15 '!$V$55,VLOOKUP(C29,'Załącznik 13-F.O. Zad 11-15 '!$C$52:$G$174,5,0),0) -> 0 | G29: 78 | H29: 0 | I29: 5 | J29: 0 | K29: 11 | L29: 0 | M29: 39 | N29: 0 | O29: 15 | P29: 0 | Q29: 7 | R29: 0 | S29: 1 | T29: 0 | V29: 0
B30: 9 | C30: UNIWERSALNY zestaw do odkamieniania ekspresów | D30: Uniwerslany zestaw do odkamieniania ekspresów Nespresso. Ilość sztuk w opakowaniu: 2 Jednostka sprzedaży: 1 opakowanie | E30: op | F30: =IF('Załącznik 13-F.O. Zad 11-15 '!$V$55,VLOOKUP(C30,'Załącznik 13-F.O. Zad 11-15 '!$C$52:$G$174,5,0),0) -> 0 | G30: 35 | H30: 0 | I30: 16 | J30: 0 | K30: 8 | L30: 0 | M30: 10 | N30: 0 | P30: 0 | R30: 0 | S30: 1 | T30: 0 | V30: 0
B31: 10 | C31: Wkłady filtrujące BRITA Maxtra+ Pure Performance, 3 sztuki | D31: Wybierając wkłady filtrujące Brita Maxtra+ Pure Performance, zapewniasz sobie czystą wodę o doskonałym smaku. Zastosowane perełki węgla aktywnego skutecznie zatrzymują chlor i redukują mogące występować w wodzie zanieczyszczenia, jak herbicydy, pestycydy czy pozostałości po farmaceutykach. Z kolei perełki wymiennika jonowego zmiękczają wodę i zmniejszają występowanie metali w rodzaju miedzi i ołowiu. Wkłady filtrując są rekomendowane do wody miękkiej i średnio twardej. | E31: op (3 szt) | F31: =IF('Załącznik 13-F.O. Zad 11-15 '!$V$55,VLOOKUP(C31,'Załącznik 13-F.O. Zad 11-15 '!$C$52:$G$174,5,0),0) -> 0 | G31: 57 | H31: 0 | J31: 0 | K31: 15 | L31: 0 | M31: 38 | N31: 0 | O31: 3 | P31: 0 | R31: 0 | S31: 1 | T31: 0 | V31: 0
B32: 11 | C32: Worki papierowe do odkurzacza MERIDA Dex, 3 sztuki | D32: Worki papierowe do odkurzacza MERIDA Dex, 3 sztuki | E32: op (3 szt) | F32: =IF('Załącznik 13-F.O. Zad 11-15 '!$V$55,VLOOKUP(C32,'Załącznik 13-F.O. Zad 11-15 '!$C$52:$G$174,5,0),0) -> 0 | G32: 10 | H32: 0 | J32: 0 | K32: 9 | L32: 0 | M32: 0 | N32: 0 | P32: 0 | R32: 0 | S32: 1 | T32: 0 | V32: 0
B33: 12 | C33: Wymienne wkłady do filtra wody AQUAPHOR MAXFOR | D33: Największa na rynku wydajność - do 200 l, Zawiera innowacyjne włókno Aqualen, dzięki czemu skutecznie usuwa z wody chlor, metale ciężkie, fenol, pestycydy i inne zanieczyszczenia, Redukuje twardość wody i zapobiega pojawianiu się osadu i kamienia na urządzeniach AGD np. w czajnikach i ekspresach, Produkt wolny od bisfenolu A (BPA FREE), wykonany z ekologicznych materiałów | E33: op (3 szt) | F33: =IF('Załącznik 13-F.O. Zad 11-15 '!$V$55,VLOOKUP(C33,'Załącznik 13-F.O. Zad 11-15 '!$C$52:$G$174,5,0),0) -> 0 | G33: 61 | H33: 0 | I33: 18 | J33: 0 | K33: 0 | L33: 0 | M33: 39 | N33: 0 | P33: 0 | Q33: 3 | R33: 0 | S33: 1 | T33: 0 | V33: 0
B34: 13 | C34: Zestaw do odkamieniania KRUPS F054, 2 saszetki po 40 g | D34: Zestaw polecany do ekspresów KRUPS Informacje na temat sposobu użytkowania dostępne w instrukcji obsługi ekspresu W opakowaniu: 2 saszetki środka odkamieniającego Jednostka sprzedaży: 1 opakowanie (2 saszetki x 40 g) | E34: op (2 saszetki) | F34: =IF('Załącznik 13-F.O. Zad 11-15 '!$V$55,VLOOKUP(C34,'Załącznik 13-F.O. Zad 11-15 '!$C$52:$G$174,5,0),0) -> 0 | G34: 9 | H34: 0 | J34: 0 | K34: 6 | L34: 0 | M34: 0 | N34: 0 | O34: 2 | P34: 0 | R34: 0 | S34: 1 | T34: 0 | V34: 0
B35: 14 | C35: Apteczka VERA TOP 15 PLUS, DIN 13157, w walizce z ABS | D35: Apteczka w walizce z tworzywa ABS. Zawiera stelaż mocujący do ściany W skład wyposażenia wchodzą: kompres zimny – 1 szt., kompres na oko – 2 szt., kompres 10 x 10 cm - 3 opakowania (po 2 sztuki) opaska elastyczna 4 m x 6 cm – 2 szt., opaska elastyczna 4 m x 8 cm – 2 szt., zestaw plastrów 10 x 6 cm (8 szt.) – 1 komplet, zestaw plastrów (14 szt.) – 1 komplet, plaster 5 m x 2,5 cm – 1 szt., opatrunek indywidualny M sterylny – 3 szt. opatrunek indywidualny G sterylny – 1 szt., opatrunek indywidualny K sterylny – 1 szt., chusta opatrunkowa 60 x 80 cm – 1 szt. chusta trójkątna – 1 szt., chusta z flizeliny (5 szt.) – 1 komplet, koc ratunkowy 160 x 210 cm – 1 szt. nożyczki 19 cm – 1 szt., rękawice winylowe – 4 szt. chusteczka dezynfekująca – 6 sztuk, ustnik do sztucznego oddychania – 1 szt., instrukcja udzielania pierwszej pomocy Skład zgodny z normą DIN 13157. Rozmiar: 330 x 235 x 125 mm Jednostka sprzedaży: 1 sztuka | E35: szt | F35: =IF('Załącznik 13-F.O. Zad 11-15 '!$V$55,VLOOKUP(C35,'Załącznik 13-F.O. Zad 11-15 '!$C$52:$G$174,5,0),0) -> 0 | G35: 27 | H35: 0 | I35: 7 | J35: 0 | K35: 0 | L35: 0 | M35: 7 | N35: 0 | P35: 0 | Q35: 2 | R35: 0 | S35: 1 | T35: 0 | U35: 10 | V35: 0
B36: 15 | C36: Wyposażenie apteczki DIN 13157 PLUS | D36: Czajnik posiada filtr antywapienny, który zapobiega przedostawaniu się kamienia do szklanki, Pojemność: 1,7 l Moc: 2400 W | E36: op | F36: =IF('Załącznik 13-F.O. Zad 11-15 '!$V$55,VLOOKUP(C36,'Załącznik 13-F.O. Zad 11-15 '!$C$52:$G$174,5,0),0) -> 0 | G36: 45 | H36: 0 | I36: 10 | J36: 0 | K36: 0 | L36: 0 | M36: 2 | N36: 0 | O36: 20 | P36: 0 | Q36: 2 | R36: 0 | S36: 1 | T36: 0 | U36: 10 | V36: 0
B37: 16 | C37: Chusteczki KATRIN Plus, 100 sztuk | D37: Białe, dwuwarstwowe chusteczki higieniczne w praktycznym podajniku Testowane dermatologicznie Jednostka sprzedaży: 1 opakowanie (100 sztuk) | E37: op (100 szt) | F37: =IF('Załącznik 13-F.O. Zad 11-15 '!$V$55,VLOOKUP(C37,'Załącznik 13-F.O. Zad 11-15 '!$C$52:$G$174,5,0),0) -> 0 | G37: 224 | H37: 0 | I37: 152 | J37: 0 | K37: 26 | L37: 0 | M37: 2 | N37: 0 | O37: 10 | P37: 0 | Q37: 13 | R37: 0 | S37: 1 | T37: 0 | U37: 20 | V37: 0
B38: 17 | C38: Czajnik elektryczny TEFAL Express 1,5 l, biały | D38: Filtr antywapienny i dwustronny wskaźnik poziomu wody, Możliwość zagotowania minimalnej ilości wody (250 ml), Pojemność: 1,5 l, Moc: 2400 W | E38: szt | F38: =IF('Załącznik 13-F.O. Zad 11-15 '!$V$55,VLOOKUP(C38,'Załącznik 13-F.O. Zad 11-15 '!$C$52:$G$174,5,0),0) -> 0 | G38: 74 | H38: 0 | I38: 24 | J38: 0 | K38: 4 | L38: 0 | M38: 36 | N38: 0 | O38: 3 | P38: 0 | Q38: 1 | R38: 0 | S38: 1 | T38: 0 | U38: 5 | V38: 0
B39: 18 | C39: Czajnik elektryczny TEFAL Loft, 1,7 l, czarny | D39: Zdejmowana pokrywa ułatwia napełnianie wodą, Czajnik posiada filtr antywapienny, który zapobiega przedostawaniu się kamienia do szklanki, Pojemność: 1,7 l, Moc: 2400 W | E39: szt | F39: =IF('Załącznik 13-F.O. Zad 11-15 '!$V$55,VLOOKUP(C39,'Załącznik 13-F.O. Zad 11-15 '!$C$52:$G$174,5,0),0) -> 0 | G39: 81 | H39: 0 | I39: 21 | J39: 0 | K39: 4 | L39: 0 | M39: 43 | N39: 0 | O39: 3 | P39: 0 | Q39: 1 | R39: 0 | S39: 1 | T39: 0 | U39: 8 | V39: 0
B40: 19 | C40: Czyściwo włókninowe, wielozadaniowe do trudnych zabrudzeń TORK, 1 rolka | D40: Jednowarstwowe, grube i mocne czyściwo wielozadaniowe non-woven (syntetyczno-celulozowe) Duża chłonność, także oleistych substancji Niskopylne i odporne na rozerwania Współpracuje z rozpuszczalnikami, ograniczając ich zużycie Polecane do stosowania w przemyśle maszynowym, poligraficznym, spożywczym nawet do najcięższych zadań związanych z czyszczeniem Atest PZH i certyfikat ISEGA, zezwalający na stosowanie produktu w przemyśle spożywczym W wygodnym kartonie mogącym służyć jako dozownik Perforacja co 38 cm Materiał: włóknina jednowarstwowa Tłoczenie: nie Ilość listków: 280 szerokość listka: 320 mm Długość roli: 106,4 m średnica r[...] | E40: szt | F40: =IF('Załącznik 13-F.O. Zad 11-15 '!$V$55,VLOOKUP(C40,'Załącznik 13-F.O. Zad 11-15 '!$C$52:$G$174,5,0),0) -> 0 | G40: 4 | H40: 0 | I40: 1 | J40: 0 | K40: 0 | L40: 0 | M40: 2 | N40: 0 | P40: 0 | R40: 0 | S40: 1 | T40: 0 | V40: 0
B41: 20 | C41: Kij z mopem sznurkowym, 1 komplet | D41: Kij z mopem sznurkowym, Waga: 345 g, Jednostka sprzedaży: 1 sztuka | E41: szt | F41: =IF('Załącznik 13-F.O. Zad 11-15 '!$V$55,VLOOKUP(C41,'Załącznik 13-F.O. Zad 11-15 '!$C$52:$G$174,5,0),0) -> 0 | G41: 14 | H41: 0 | I41: 3 | J41: 0 | K41: 5 | L41: 0 | M41: 5 | N41: 0 | P41: 0 | R41: 0 | S41: 1 | T41: 0 | V41: 0
B42: 21 | C42: Nakładka CEG z mikrofibry na mop triple, długość 40 cm | D42: Mop trójskładnikowy DUO (kieszeń + klips), Wykonany z bawełny, mikrowłókna i poliestru, Długość: 40 cm | E42: szt | F42: =IF('Załącznik 13-F.O. Zad 11-15 '!$V$55,VLOOKUP(C42,'Załącznik 13-F.O. Zad 11-15 '!$C$52:$G$174,5,0),0) -> 0 | G42: 31 | H42: 0 | J42: 0 | K42: 27 | L42: 0 | M42: 3 | N42: 0 | P42: 0 | R42: 0 | S42: 1 | T42: 0 | V42: 0
B43: 22 | C43: Ściereczki gąbczaste niebieskie, 3 sztuki | D43: Bardzo trwałe i chłonne ścierki gąbczaste, wzmocnione wewnętrzną bawełnianą siatką, Najlepsze do wycierania wody, zmywania powierzchni i usuwania brudu | E43: op. (3 szt) | F43: =IF('Załącznik 13-F.O. Zad 11-15 '!$V$55,VLOOKUP(C43,'Załącznik 13-F.O. Zad 11-15 '!$C$52:$G$174,5,0),0) -> 0 | G43: 43 | H43: 0 | I43: 5 | J43: 0 | K43: 0 | L43: 0 | M43: 6 | N43: 0 | O43: 20 | P43: 0 | R43: 0 | S43: 1 | T43: 0 | U43: 11 | V43: 0
B44: 23 | C44: Ścierka do podłogi, 50 x 60 cm, pomarańczowa | D44: Ścierka do podłogi, 50 x 60 cm, pomarańczowaWymiary: 50 x 60 cm, Do czyszczenia dużych powierzchni | E44: szt | F44: =IF('Załącznik 13-F.O. Zad 11-15 '!$V$55,VLOOKUP(C44,'Załącznik 13-F.O. Zad 11-15 '!$C$52:$G$174,5,0),0) -> 0 | G44: 7 | H44: 0 | J44: 0 | K44: 0 | L44: 0 | M44: 4 | N44: 0 | P44: 0 | Q44: 1 | R44: 0 | S44: 1 | T44: 0 | U44: 1 | V44: 0
B45: 24 | C45: Ścierka z mikrofibry KOLORADO, 35 x 35 cm | D45: Ścierka z mikrofibry przeznaczona do czyszczenia powierzchni szklanych i stosowania w łazience, Skuteczna na sucho i mokro, Nie pozostawia smug, zacieków ani kłaczków, Skład: 80% poliester, 20% poliamid (nylon) | E45: szt | F45: =IF('Załącznik 13-F.O. Zad 11-15 '!$V$55,VLOOKUP(C45,'Załącznik 13-F.O. Zad 11-15 '!$C$52:$G$174,5,0),0) -> 0 | G45: 47 | H45: 0 | J45: 0 | K45: 18 | L45: 0 | M45: 15 | N45: 0 | P45: 0 | Q45: 13 | R45: 0 | S45: 1 | T45: 0 | V45: 0
B46: 25 | C46: Ścierki uniwersalne Practi Maxi 50sztuk | D46: Ścierki uniwersalne Practi Maxi 50sztuk rozmiar 25 x 40 | E46: op (50 szt) | F46: =IF('Załącznik 13-F.O. Zad 11-15 '!$V$55,VLOOKUP(C46,'Załącznik 13-F.O. Zad 11-15 '!$C$52:$G$174,5,0),0) -> 0 | G46: 6 | H46: 0 | J46: 0 | K46: 0 | L46: 0 | M46: 3 | N46: 0 | P46: 0 | R46: 0 | S46: 1 | T46: 0 | U46: 2 | V46: 0
B47: 26 | C47: Ścierki uniwersalne, 5 sztuk | D47: Ścierki wielokrotnego użytku Można je prać i sterylizować Wykonane z wiskozy, pachnące Miks kolorów Wymiary: 37 x 38 cm | E47: op (5 szt) | F47: =IF('Załącznik 13-F.O. Zad 11-15 '!$V$55,VLOOKUP(C47,'Załącznik 13-F.O. Zad 11-15 '!$C$52:$G$174,5,0),0) -> 0 | G47: 47 | H47: 0 | I47: 6 | J47: 0 | K47: 18 | L47: 0 | M47: 12 | N47: 0 | O47: 10 | P47: 0 | R47: 0 | S47: 1 | T47: 0 | V47: 0
B48: 27 | C48: Proszek do prania tkanin kolorowych DOSIA, 300 g | D48: Proszek do prania tkanin kolorowych do wszystkich typów pralek i do prania ręcznego Zawiera enzymy i aktywne składniki piorące Nie zawiera chlorowych wybielaczy: jest delikatna dla kolorowych i ciemnych tkanin Jednostka sprzedaży: 1 sztuka (300 g) | E48: op (300g) | F48: =IF('Załącznik 13-F.O. Zad 11-15 '!$V$55,VLOOKUP(C48,'Załącznik 13-F.O. Zad 11-15 '!$C$52:$G$174,5,0),0) -> 0 | G48: 329 | H48: 0 | J48: 0 | K48: 300 | L48: 0 | M48: 2 | N48: 0 | P48: 0 | Q48: 26 | R48: 0 | S48: 1 | T48: 0 | V48: 0
B49: 28 | C49: Proszek do prania tkanin PUROX, 5 kg | D49: Do wszystkich typów pralek i do prania ręcznego, Jednostka sprzedaży: 1 opakowanie (5 kg), Składniki: do 5% anionowe i niejonowe środki powierzchniowo czynne, enzymy, kompozycja zapachowa, krzemiany, niejonowe środki powierzchniowo, czynne, regulatory piany, rozjaśniacze optyczne, związki wybielające na bazie tlenu | E49: op (5 kg) | F49: =IF('Załącznik 13-F.O. Zad 11-15 '!$V$55,VLOOKUP(C49,'Załącznik 13-F.O. Zad 11-15 '!$C$52:$G$174,5,0),0) -> 0 | G49: 14 | H49: 0 | J49: 0 | K49: 0 | L49: 0 | M49: 0 | N49: 0 | P49: 0 | Q49: 13 | R49: 0 | S49: 1 | T49: 0 | V49: 0
B50: 29 | C50: Chusteczki FELLOWES do czyszczenia ekranów, opakowanie 100szt | D50: Chusteczki FELLOWES do czyszczenia ekranów, opakowanie 100szt | E50: op (100 szt) | F50: =IF('Załącznik 13-F.O. Zad 11-15 '!$V$55,VLOOKUP(C50,'Załącznik 13-F.O. Zad 11-15 '!$C$52:$G$174,5,0),0) -> 0 | G50: 30 | H50: 0 | I50: 10 | J50: 0 | K50: 0 | L50: 0 | M50: 14 | N50: 0 | O50: 5 | P50: 0 | R50: 0 | S50: 1 | T50: 0 | V50: 0
B51: 30 | C51: Płyn AJAX Floral Fiesta, 1 l | D51: Doskonale usuwa kurz i brud, pozostawiając na długo świeży zapach Miks zapachów Pojemność: 1 l Jednostka sprzedaży 1 sztuka | E51: op (1l) | F51: =IF('Załącznik 13-F.O. Zad 11-15 '!$V$55,VLOOKUP(C51,'Załącznik 13-F.O. Zad 11-15 '!$C$52:$G$174,5,0),0) -> 0 | G51: 98 | H51: 0 | J51: 0 | K51: 90 | L51: 0 | M51: 7 | N51: 0 | P51: 0 | R51: 0 | S51: 1 | T51: 0 | V51: 0
B52: 31 | C52: Preparat do usuwania tłustego brudu VOIGT C457 Ultra Clean plus 1 l | D52: Odtłuszczanie, gruntowne mycie bez fosforanów – Produkt do profesjonalnego zastosowania, Nie zawierający fosforanów, Usuwa zabrudzenia pochodzenia tłuszczowego i przemysłowego m.in. oleje, smary. Zalecany do: warsztatów, hal produkcyjnych, galerii handlowych, centrów logistycznych | E52: op (1l) | F52: =IF('Załącznik 13-F.O. Zad 11-15 '!$V$55,VLOOKUP(C52,'Załącznik 13-F.O. Zad 11-15 '!$C$52:$G$174,5,0),0) -> 0 | G52: 1 | H52: 0 | J52: 0 | K52: 0 | L52: 0 | M52: 0 | N52: 0 | P52: 0 | R52: 0 | S52: 1 | T52: 0 | V52: 0
B53: 32 | C53: Rozpuszczalnik do etykiet w sprayu, pojemność 200 ml | D53: Produkt zapewnia w pełni bezpieczne usunięcie etykiet z dowolnej powierzchni, nie pozostawiając żadnych, śladów kleju. Pojemność 200 ml. | E53: op (200 ml) | F53: =IF('Załącznik 13-F.O. Zad 11-15 '!$V$55,VLOOKUP(C53,'Załącznik 13-F.O. Zad 11-15 '!$C$52:$G$174,5,0),0) -> 0 | G53: 9 | H53: 0 | I53: 1 | J53: 0 | K53: 0 | L53: 0 | M53: 7 | N53: 0 | P53: 0 | R53: 0 | S53: 1 | T53: 0 | V53: 0
B54: 33 | C54: Gąbka do zmywania różowa, 5 sztuk | D54: Gąbka do różnorodnych zastosowań, Kolor: różowy | E54: op (5 szt) | F54: =IF('Załącznik 13-F.O. Zad 11-15 '!$V$55,VLOOKUP(C54,'Załącznik 13-F.O. Zad 11-15 '!$C$52:$G$174,5,0),0) -> 0 | G54: 60 | H54: 0 | I54: 31 | J54: 0 | K54: 20 | L54: 0 | M54: 8 | N54: 0 | P54: 0 | R54: 0 | S54: 1 | T54: 0 | V54: 0
B55: 34 | C55: Gąbki do zmywania standardowa, 5 sztuk | D55: Do zmywania naczyń, szkła, ceramiki, powierzchni emaliowanych Wytrzymała Miks kolorów w opakowaniu Jednostka sprzedaży: 1 opakowanie (5 sztuk) Opakowanie zbiorcze: 18 opakowań | E55: op (5 szt) | F55: =IF('Załącznik 13-F.O. Zad 11-15 '!$V$55,VLOOKUP(C55,'Załącznik 13-F.O. Zad 11-15 '!$C$52:$G$174,5,0),0) -> 0 | G55: 322 | H55: 0 | I55: 29 | J55: 0 | K55: 20 | L55: 0 | M55: 42 | N55: 0 | O55: 17 | P55: 0 | Q55: 213 | R55: 0 | S55: 1 | T55: 0 | V55: 0
B56: 35 | C56: Kuchenka mikrofalowa SEVERIN 7890/7862, biała | D56: 5 poziomów mocy, Rozmrażanie w oparciu o czas i wagę, 35-minutowy timer z sygnałem akustycznym, Pokrętło regulacyjne z chromowanymi elementami, Średnica wyjmowanego talerza ok. 25,4 cm, Wysokość komory ok. 16,5 cm, Obudowa i komora lakierowana powłoką odporną na wysokie temperatur, Wymiary: szer. 43,5, gł. 34,5, wys. 25,4 cm, Moc: 700 W | E56: szt | F56: =IF('Załącznik 13-F.O. Zad 11-15 '!$V$55,VLOOKUP(C56,'Załącznik 13-F.O. Zad 11-15 '!$C$52:$G$174,5,0),0) -> 0 | G56: 7 | H56: 0 | J56: 0 | K56: 0 | L56: 0 | M56: 4 | N56: 0 | O56: 2 | P56: 0 | R56: 0 | S56: 1 | T56: 0 | V56: 0
B57: 36 | C57: Jednorazowa maska higieniczna 3-warstwowa, niebieska, 50 sztuk | D57: Trójwarstwowa maska higieniczna. Wykonana z włókniny polipropylenowej (100%). Materiał: Texfil 25 (Spunbond) + Texfil 25 (Spunbond) + Texfil 25 (Spunbond). Gramatura: 25 gsm + 25 gsm + 25 gsm= 75 gsm. Gumki – długość 16cm - 18cm (± 1cm). | E57: op (50szt) | F57: =IF('Załącznik 13-F.O. Zad 11-15 '!$V$55,VLOOKUP(C57,'Załącznik 13-F.O. Zad 11-15 '!$C$52:$G$174,5,0),0) -> 0 | G57: 176 | H57: 0 | I57: 111 | J57: 0 | K57: 0 | L57: 0 | M57: 14 | N57: 0 | O57: 50 | P57: 0 | R57: 0 | S57: 1 | T57: 0 | V57: 0
B58: 37 | C58: Półmaska FILTERSERVICE FS-623V NR D, FFP2, z zaworem, 10 sztuk | D58: Czasza półmaski: - Igłowana włóknina poliestrowa, - Włóknina polipropylenowa typu melt blown, - Włóknina osłonowa, - Zawór wydechowy, - Zapinki taśm nagłowia, - Taśma nagłowia | E58: op (10szt) | F58: =IF('Załącznik 13-F.O. Zad 11-15 '!$V$55,VLOOKUP(C58,'Załącznik 13-F.O. Zad 11-15 '!$C$52:$G$174,5,0),0) -> 0 | G58: 1 | H58: 0 | J58: 0 | K58: 0 | L58: 0 | M58: 0 | N58: 0 | P58: 0 | R58: 0 | S58: 1 | T58: 0 | V58: 0
B59: 38 | C59: Nawilżacz powietrza NU 5N | D59: 4 poziomy intensywności nawilżania, Automatyczna kontrola wilgotności, Demontowany zasobnik wody 5,2 l, Funkcja jonizacji | E59: szt | F59: =IF('Załącznik 13-F.O. Zad 11-15 '!$V$55,VLOOKUP(C59,'Załącznik 13-F.O. Zad 11-15 '!$C$52:$G$174,5,0),0) -> 0 | G59: 9 | H59: 0 | I59: 4 | J59: 0 | K59: 0 | L59: 0 | M59: 4 | N59: 0 | P59: 0 | R59: 0 | S59: 1 | T59: 0 | V59: 0
B60: 39 | C60: Odświeżacz powietrza AMBI PUR, zapach kwiatowy, 300 ml | D60: Wypełnia pomieszczenie zapachem najpiękniejszego wiosennego bukietu Pojemność: 300 ml Jednostka sprzedaży: 1 sztuka Opakowanie zbiorcze: 6 sztuk | E60: szt | F60: =IF('Załącznik 13-F.O. Zad 11-15 '!$V$55,VLOOKUP(C60,'Załącznik 13-F.O. Zad 11-15 '!$C$52:$G$174,5,0),0) -> 0 | G60: 148 | H60: 0 | I60: 18 | J60: 0 | K60: 108 | L60: 0 | M60: 11 | N60: 0 | O60: 10 | P60: 0 | R60: 0 | S60: 1 | T60: 0 | V60: 0
B61: 40 | C61: Odświeżacz powietrza BRISE w sprayu | D61: Odświeżając pomieszczenia pozostawia przyjemny zapach Pojemność: 300 ml Jednostka sprzedaży: 1 sztuka | E61: szt. | F61: =IF('Załącznik 13-F.O. Zad 11-15 '!$V$55,VLOOKUP(C61,'Załącznik 13-F.O. Zad 11-15 '!$C$52:$G$174,5,0),0) -> 0 | G61: 87 | H61: 0 | I61: 16 | J61: 0 | K61: 0 | L61: 0 | M61: 0 | N61: 0 | O61: 10 | P61: 0 | Q61: 60 | R61: 0 | S61: 1 | T61: 0 | V61: 0
B62: 41 | C62: Odświeżacz powietrza BRISE w żelu, miks zapachów | D62: Masa netto: 150 g Miks zapachów Jednostka sprzedaży: 1 sztuka | E62: szt. | F62: =IF('Załącznik 13-F.O. Zad 11-15 '!$V$55,VLOOKUP(C62,'Załącznik 13-F.O. Zad 11-15 '!$C$52:$G$174,5,0),0) -> 0 | G62: 19 | H62: 0 | I62: 2 | J62: 0 | K62: 0 | L62: 0 | M62: 3 | N62: 0 | P62: 0 | Q62: 13 | R62: 0 | S62: 1 | T62: 0 | V62: 0
B63: 42 | C63: Odświeżacz powietrza GREEN FRESH, 400 ml | D63: Skutecznie neutralizuje i pochłania nieprzyjemne zapachy Odświeża i nawilża powietrze, pozostawiając w pomieszczeniu uczucie świeżości i czystości Pojemność: 400 ml Jednostka sprzedaży: 1 sztuka | E63: op. (400 ml) | F63: =IF('Załącznik 13-F.O. Zad 11-15 '!$V$55,VLOOKUP(C63,'Załącznik 13-F.O. Zad 11-15 '!$C$52:$G$174,5,0),0) -> 0 | G63: 5 | H63: 0 | J63: 0 | K63: 0 | L63: 0 | M63: 4 | N63: 0 | P63: 0 | R63: 0 | S63: 1 | T63: 0 | V63: 0
B64: 43 | C64: Patyczki zapachowe PACHNĄCA SZAFA, Słoneczne popołudnie, 50 ml | D64: Patyczki zapachowe PACHNĄCA SZAFA nadają przyjemny i odświeżający zapach w każdym pomieszczeniu. Odświeżać ma bardzo ładną formę eleganckich patyczków w szklanym flakoniku. | E64: op (50 ml) | F64: =IF('Załącznik 13-F.O. Zad 11-15 '!$V$55,VLOOKUP(C64,'Załącznik 13-F.O. Zad 11-15 '!$C$52:$G$174,5,0),0) -> 0 | G64: 19 | H64: 0 | J64: 0 | K64: 10 | L64: 0 | M64: 8 | N64: 0 | P64: 0 | R64: 0 | S64: 1 | T64: 0 | V64: 0
B65: 44 | C65: Wkład do odświeżacza AMBI PUR, zapach ocean and wind | D65: Wkład do elektrycznego odświeżacza powietrza AMBI PUR (6.630.347) Wydajność wkładów: do 80 dni Jednostka sprzedaży: 1 sztuka | E65: szt | F65: =IF('Załącznik 13-F.O. Zad 11-15 '!$V$55,VLOOKUP(C65,'Załącznik 13-F.O. Zad 11-15 '!$C$52:$G$174,5,0),0) -> 0 | G65: 5 | H65: 0 | J65: 0 | K65: 0 | L65: 0 | M65: 4 | N65: 0 | P65: 0 | R65: 0 | S65: 1 | T65: 0 | V65: 0
B66: 45 | C66: Papier toaletowy CLASSIC, biały, 8 rolek | D66: Papier toaletowy CLASSIC, biały, 8 rolek Wymiary listka: szer. 100 x dł. 112 mm, Szerokość taśmy: 100 mm | E66: op. (8 rolek) | F66: =IF('Załącznik 13-F.O. Zad 11-15 '!$V$55,VLOOKUP(C66,'Załącznik 13-F.O. Zad 11-15 '!$C$52:$G$174,5,0),0) -> 0 | G66: 72 | H66: 0 | J66: 0 | K66: 60 | L66: 0 | M66: 11 | N66: 0 | P66: 0 | R66: 0 | S66: 1 | T66: 0 | V66: 0
B67: 46 | C67: Papier toaletowy ELLIS PROFESSIONAL JUMBO 130/2, 12 rolek | D67: Papier do użytku profesjonalnego w pomieszczeniach o zwiększonym natężeniu użytkowania, Materiał: celuloza dwuwarstwowa, Gramatura: 2 x 16 g/m², Długość roli: 120 m; średnica roli: 19 cm; średnica gilzy: 6 cm | E67: op (12 rolek) | F67: =IF('Załącznik 13-F.O. Zad 11-15 '!$V$55,VLOOKUP(C67,'Załącznik 13-F.O. Zad 11-15 '!$C$52:$G$174,5,0),0) -> 0 | G67: 75 | H67: 0 | J67: 0 | K67: 72 | L67: 0 | M67: 0 | N67: 0 | P67: 0 | R67: 0 | S67: 1 | T67: 0 | U67: 2 | V67: 0
B68: 47 | C68: Papier toaletowy KATRIN 11296 PLUS 160, biały, 8 rolek | D68: Papier toaletowy KATRIN 11296 PLUS 160, biały, 8 rolek Gramatura: 2 x 16,5 g/m², Długość jednej rolki: 18,3 m | E68: op. (8 rolek) | F68: =IF('Załącznik 13-F.O. Zad 11-15 '!$V$55,VLOOKUP(C68,'Załącznik 13-F.O. Zad 11-15 '!$C$52:$G$174,5,0),0) -> 0 | G68: 41 | H68: 0 | J68: 0 | K68: 40 | L68: 0 | M68: 0 | N68: 0 | P68: 0 | R68: 0 | S68: 1 | T68: 0 | V68: 0
B69: 48 | C69: Supermocny Plaster do cięcia VISCOPLAST, 1 m x 8 cm | D69: Opatrunek włókninowy o wysokiej chłonności, Plaster natychmiast przykleja się do skóry, nawet do wilgotnej, Ogranicza przywieranie opatrunku do rany | E69: op (1m) | F69: =IF('Załącznik 13-F.O. Zad 11-15 '!$V$55,VLOOKUP(C69,'Załącznik 13-F.O. Zad 11-15 '!$C$52:$G$174,5,0),0) -> 0 | G69: 10 | H69: 0 | I69: 5 | J69: 0 | K69: 2 | L69: 0 | M69: 2 | N69: 0 | P69: 0 | R69: 0 | S69: 1 | T69: 0 | V69: 0
B70: 49 | C70: Uniwersalny zestaw plastrów 3M VISCOPLAST, 24 sztuki | D70: Plastry z opatrunkiem do opatrywania drobnych ran i skaleczeń Hypoalergiczne i wodoodporne Przepuszczające powietrze W opakowaniu 24 plastry: plastry Minifol: 72 x 25 mm - 4 sztuki, 72 x 19 mm - 8 sztuk, 57 x 16 mm - 6 sztuk, 38x10 mm - 4 sztuki Plaster Prestopor 10 x 6 cm Plaster Prestovis Plus 10 x 6 cm Jednostka sprzedaży: 1 opakowanie | E70: op. ( 24 szt) | F70: =IF('Załącznik 13-F.O. Zad 11-15 '!$V$55,VLOOKUP(C70,'Załącznik 13-F.O. Zad 11-15 '!$C$52:$G$174,5,0),0) -> 0 | G70: 28 | H70: 0 | I70: 6 | J70: 0 | K70: 2 | L70: 0 | M70: 4 | N70: 0 | O70: 10 | P70: 0 | R70: 0 | S70: 1 | T70: 0 | U70: 5 | V70: 0
B71: 50 | C71: Krem do rąk EVELINE ''Niewidzialne rękawiczki'', 100 ml | D71: Odżywczo-ochronny krem do rąk z formułą witaminową Polecany do suchych i podrażnionych dłoni Pojemność: 100 ml Jednostka sprzedaży: 1 sztuka | E71: op do (100 ml) | F71: =IF('Załącznik 13-F.O. Zad 11-15 '!$V$55,VLOOKUP(C71,'Załącznik 13-F.O. Zad 11-15 '!$C$52:$G$174,5,0),0) -> 0 | G71: 451 | H71: 0 | J71: 0 | K71: 450 | L71: 0 | M71: 0 | N71: 0 | P71: 0 | R71: 0 | S71: 1 | T71: 0 | V71: 0
B72: 51 | C72: Krem do rąk GARNIER do skóry bardzo suchej, 100 g | D72: Regeneruje i odżywia zniszczoną skórę dłoni Zawiera alantoinę, glicerynę oraz czynnik filtrującyJednostka sprzedaży: 1 sztuka (100 g) | E72: op. (100 g) | F72: =IF('Załącznik 13-F.O. Zad 11-15 '!$V$55,VLOOKUP(C72,'Załącznik 13-F.O. Zad 11-15 '!$C$52:$G$174,5,0),0) -> 0 | G72: 1714 | H72: 0 | J72: 0 | K72: 1000 | L72: 0 | M72: 0 | N72: 0 | O72: 710 | P72: 0 | Q72: 3 | R72: 0 | S72: 1 | T72: 0 | V72: 0
B73: 52 | C73: Ręcznik MALFINI, chabrowy, 70x140 cm | D73: Tkana metka, która może również służyć jako wieszaczek, Ozdobiony wyszywaną bordiurą po obu brzegach, Sklad: 100% bawełna, frotte, Gramatura: 450g/m², Kolor: chabrowy, Rozmiar: 70x140 cm | E73: szt | F73: =IF('Załącznik 13-F.O. Zad 11-15 '!$V$55,VLOOKUP(C73,'Załącznik 13-F.O. Zad 11-15 '!$C$52:$G$174,5,0),0) -> 0 | G73: 121 | H73: 0 | J73: 0 | K73: =40*1.8 -> 72 | L73: 0 | M73: 2 | N73: 0 | P73: 0 | Q73: 46 | R73: 0 | S73: 1 | T73: 0 | V73: 0
B74: 53 | C74: Ręcznik MALFINI, granatowy, 50x100 cm | D74: Tkana metka, która może również służyć jako wieszaczek, Ozdobiony wyszywaną bordiurą po obu brzegach, Sklad: 100% bawełna, frotte, Gramatura: 450g/m², Kolor: granatowy | E74: szt | F74: =IF('Załącznik 13-F.O. Zad 11-15 '!$V$55,VLOOKUP(C74,'Załącznik 13-F.O. Zad 11-15 '!$C$52:$G$174,5,0),0) -> 0 | G74: 76 | H74: 0 | J74: 0 | K74: 0 | L74: 0 | M74: 0 | N74: 0 | O74: 75 | P74: 0 | R74: 0 | S74: 1 | T74: 0 | V74: 0
B75: 54 | C75: Ręcznik MALFINI, szaro-czarny, 50x100 cm | D75: Wykonane z wysokiej jakości frotte, odpowiednie pod haft, Miękkie, miłe w dotyku, dobrze absorbują wodę, Tkana metka, która może również służyć jako wieszaczek, Ozdobiony wyszywaną bordiurą po obu brzegach, Sklad: 100% bawełna, frotte, Gramatura: 450g/m² kolor szaroczany | E75: szt | F75: =IF('Załącznik 13-F.O. Zad 11-15 '!$V$55,VLOOKUP(C75,'Załącznik 13-F.O. Zad 11-15 '!$C$52:$G$174,5,0),0) -> 0 | G75: 76 | H75: 0 | J75: 0 | K75: 0 | L75: 0 | M75: 0 | N75: 0 | O75: 75 | P75: 0 | R75: 0 | S75: 1 | T75: 0 | V75: 0
B76: 55 | C76: Ręcznik MALFINI, szaro-czarny, 70x140 cm | D76: Tkana metka, która może również służyć jako wieszaczek, Ozdobiony wyszywaną bordiurą po obu brzegach, Sklad: 100% bawełna, frotte, Gramatura: 450g/m², Kolor: szaroczarny Rozmiar: 70x140 cm | E76: szt | F76: =IF('Załącznik 13-F.O. Zad 11-15 '!$V$55,VLOOKUP(C76,'Załącznik 13-F.O. Zad 11-15 '!$C$52:$G$174,5,0),0) -> 0 | G76: 68 | H76: 0 | J76: 0 | K76: =15*1.8 -> 27 | L76: 0 | M76: 0 | N76: 0 | P76: 0 | Q76: 40 | R76: 0 | S76: 1 | T76: 0 | V76: 0
B77: 56 | C77: Chusteczki higieniczne VELVET, 120 sztuk | D77: Chusteczki higieniczne VELVET, 120 sztuk. W opakowaniu 120 sztuk, Produkt ma atest PZH, | E77: op (120 szt) | F77: =IF('Załącznik 13-F.O. Zad 11-15 '!$V$55,VLOOKUP(C77,'Załącznik 13-F.O. Zad 11-15 '!$C$52:$G$174,5,0),0) -> 0 | G77: 98 | H77: 0 | I77: 1 | J77: 0 | K77: 70 | L77: 0 | M77: 14 | N77: 0 | O77: 10 | P77: 0 | Q77: 2 | R77: 0 | S77: 1 | T77: 0 | V77: 0
B78: 57 | C78: Ręcznik w roli ESTIMO 100/2, 500 listków | D78: Wytrzymały, dwuwarstwowy ręcznik w 100% wykonany z celulozy o wysokich parametrach i pięknym designie Długość rolki: 100 m W rolce 500 odcinków o wymiarach: 20,3 x 20 cm Kolor biały Jednostka sprzedaży: 1 rolka | E78: op. (rolka 100 m) | F78: =IF('Załącznik 13-F.O. Zad 11-15 '!$V$55,VLOOKUP(C78,'Załącznik 13-F.O. Zad 11-15 '!$C$52:$G$174,5,0),0) -> 0 | G78: 209 | H78: 0 | J78: 0 | K78: 190 | L78: 0 | M78: 18 | N78: 0 | P78: 0 | R78: 0 | S78: 1 | T78: 0 | V78: 0
B79: 58 | C79: Ręczniki papierowe białe, składka V, 20 x 200 listków | D79: Gofrowane ręczniki w składce Kompatybilne ze standardowymi dozownikami do ręczników typu ZZ Materiał: makulatura jednowarstwowa Wymiary listka: 25 x 23 cm Gramatura: 1 x 30 g/m² Ilość bind w opakowaniu: 20 Ilość listków w bindzie: 200 Kolor: biały Jednostka sprzedaży: 1 karton (4000 listków) | E79: op. (20 x 200 listków) | F79: =IF('Załącznik 13-F.O. Zad 11-15 '!$V$55,VLOOKUP(C79,'Załącznik 13-F.O. Zad 11-15 '!$C$52:$G$174,5,0),0) -> 0 | G79: 23 | H79: 0 | J79: 0 | K79: 17 | L79: 0 | M79: 5 | N79: 0 | P79: 0 | R79: 0 | S79: 1 | T79: 0 | V79: 0
B80: 59 | C80: Ręczniki papierowe MERIDA składka V, 20 x 160 listków | D80: Gofrowane ręczniki w składce wysokiej chłonności Kompatybilne ze standardowymi dozownikami do ręczników typu ZZ Materiał: makulatura dwuwarstwowa Wymiary listka: 25 x 23 cm Gramatura:2 x 19 g/m² Tłoczenie: nie Ilość bind w opakowaniu: 20 Ilość listków w bindzie: 160 Kolor: biały Jednostka sprzedaży: 1 karton (3200 listków) | E80: op. (20 x 160 listków) | F80: =IF('Załącznik 13-F.O. Zad 11-15 '!$V$55,VLOOKUP(C80,'Załącznik 13-F.O. Zad 11-15 '!$C$52:$G$174,5,0),0) -> 0 | G80: 44 | H80: 0 | J80: 0 | K80: 40 | L80: 0 | M80: 3 | N80: 0 | P80: 0 | R80: 0 | S80: 1 | T80: 0 | V80: 0
B81: 60 | C81: Ręczniki papierowe zielone, składka V, 20 x 200 listków | D81: Gofrowane ręczniki w składce wysokiej chłonności Kompatybilne ze standardowymi dozownikami do ręczników typu ZZ Materiał: makulatura jednowarstwowa Wymiary listka: 25 x 23 cm Gramatura:2 x 19 g/m² Tłoczenie: nie Ilość bind w opakowaniu: 20 Ilość listków w bindzie: 160 Kolor: zielon. | E81: op. (20 x 200 listków) | F81: =IF('Załącznik 13-F.O. Zad 11-15 '!$V$55,VLOOKUP(C81,'Załącznik 13-F.O. Zad 11-15 '!$C$52:$G$174,5,0),0) -> 0 | G81: 1 | H81: 0 | J81: 0 | K81: 0 | L81: 0 | M81: 0 | N81: 0 | P81: 0 | R81: 0 | S81: 1 | T81: 0 | V81: 0
B82: 61 | C82: Ręczniki w roli TORK UNIVERSAL Extra Długie do systemu TORK Matic H1, 6 rolek | D82: Materiał: makulatura jednowarstwowa, Tłoczenie: nie, Ilość listków:1120, Długość roli: 280 m; wysokość roli: 21 cm; średnica roli: 19 cm; średnica gilzy: 3,8 cm | E82: op. (6 rolek) | F82: =IF('Załącznik 13-F.O. Zad 11-15 '!$V$55,VLOOKUP(C82,'Załącznik 13-F.O. Zad 11-15 '!$C$52:$G$174,5,0),0) -> 0 | G82: 143 | H82: 0 | I82: 88 | J82: 0 | K82: 54 | L82: 0 | M82: 0 | N82: 0 | P82: 0 | R82: 0 | S82: 1 | T82: 0 | V82: 0
B83: 62 | C83: Rękawice antystatyczne ANSELL HyFlex® 11-800, rozmiar 9, para | D83: Nylonowe rękawice z powłoką z pianki nitrylowej, wykonane w technologii KnitZonz™ Wszechstronne rozwiązanie do precyzyjnego montażu i prac ogólnych Zaawansowana technologia dziania zapewnia większą rozciągliwość i elastyczność w miejscach o zwiększonym nacisku Antystatyczne, zgodne z normą EN 1149 Norma EN 388 3131 (EN 388:2016 3131A) Rozmiar: 9 Jednostka sprzedaży: 1 para | E83: op. (1 para) | F83: =IF('Załącznik 13-F.O. Zad 11-15 '!$V$55,VLOOKUP(C83,'Załącznik 13-F.O. Zad 11-15 '!$C$52:$G$174,5,0),0) -> 0 | G83: 16 | H83: 0 | J83: 0 | K83: 2 | L83: 0 | M83: 0 | N83: 0 | P83: 0 | Q83: 10 | R83: 0 | S83: 1 | T83: 0 | U83: 3 | V83: 0
B84: 63 | C84: Rękawice DELTAPLUS VV835 Chemsafe, rozmiar 11, para | D84: Rękawica z podwójną powłoką nitrylową na wkładzie z poliamidu, Trzecia powłoka z szorstkiej pianki nitrylowej na stronie chwytnej i końcach palców, Długość: 35 cm, Grubość: 1,15 mm - 1,30 mm na stronie chwytnej | E84: op, 1 (para) | F84: =IF('Załącznik 13-F.O. Zad 11-15 '!$V$55,VLOOKUP(C84,'Załącznik 13-F.O. Zad 11-15 '!$C$52:$G$174,5,0),0) -> 0 | G84: 4 | H84: 0 | J84: 0 | K84: 0 | L84: 0 | M84: 0 | N84: 0 | P84: 0 | R84: 0 | S84: 1 | T84: 0 | U84: 3 | V84: 0
B85: 64 | C85: Rękawice nitrylowe MEDASEPT PF, czarne, rozmiar S, 100 sztuk | D85: Uniwersalne, rękawice pasujące na prawą i lewą dłoń, Nitrylowe, Tekstura na końcach palców, Rozmiar S | E85: op. (100 szt) | F85: =IF('Załącznik 13-F.O. Zad 11-15 '!$V$55,VLOOKUP(C85,'Załącznik 13-F.O. Zad 11-15 '!$C$52:$G$174,5,0),0) -> 0 | G85: 100 | H85: 0 | I85: 34 | J85: 0 | K85: 0 | L85: 0 | M85: 7 | N85: 0 | P85: 0 | Q85: 53 | R85: 0 | S85: 1 | T85: 0 | U85: 5 | V85: 0
B86: 65 | C86: Rękawice nitrylowe MEDASEPT PREMIER, niebieskie, rozmiar XL, 100 sztuk | D86: Rękawice nitrylowe diagnostyczne i ochronne (kat. III), Bezpudrowe., Uniwersalny kształt pasuje na obie dłonie, Tekstura na końcach palców, Przeznaczone do kontaktu z żywnością. | E86: op. (100 szt) | F86: =IF('Załącznik 13-F.O. Zad 11-15 '!$V$55,VLOOKUP(C86,'Załącznik 13-F.O. Zad 11-15 '!$C$52:$G$174,5,0),0) -> 0 | G86: 64 | H86: 0 | I86: 5 | J86: 0 | L86: 0 | M86: 0 | N86: 0 | P86: 0 | Q86: 53 | R86: 0 | S86: 1 | T86: 0 | U86: 5 | V86: 0
B87: 66 | C87: Rękawice nitrylowe MEDASEPT PRIME, niebieskie, rozmiar L, 100 sztuk | D87: Rękawice nitrylowe diagnostyczne i ochronne, Bezpudrowe. Uniwersalny kształt pasuje na obie dłonie. | E87: op. (100 szt) | F87: =IF('Załącznik 13-F.O. Zad 11-15 '!$V$55,VLOOKUP(C87,'Załącznik 13-F.O. Zad 11-15 '!$C$52:$G$174,5,0),0) -> 0 | G87: =I87+K87+M87+O87+Q87+S87+U87 -> 79 | H87: =G87*F87 -> 0 | I87: 20 | J87: =I87*F87 -> 0 | K87: 0 | L87: =K87*F87 -> 0 | M87: 0 | N87: =M87*F87 -> 0 | P87: =O87*F87 -> 0 | Q87: 53 | R87: =Q87*F87 -> 0 | S87: 1 | T87: =S87*F87 -> 0 | U87: 5 | V87: =U87*F87 -> 0
B88: 67 | C88: Rękawice nitrylowe MEDASEPT PRIME, niebieskie, rozmiar M, 100 sztuk | D88: Rękawice nitrylowe diagnostyczne i ochronne | E88: op. (100 szt) | F88: =IF('Załącznik 13-F.O. Zad 11-15 '!$V$55,VLOOKUP(C88,'Załącznik 13-F.O. Zad 11-15 '!$C$52:$G$174,5,0),0) -> 0 | G88: 93 | H88: 0 | I88: 34 | J88: 0 | K88: 0 | L88: 0 | M88: 0 | N88: 0 | P88: 0 | Q88: 53 | R88: 0 | S88: 1 | T88: 0 | U88: 5 | V88: 0
B89: 68 | C89: Ręcznik kuchenny VELVET Jumbo, 1 rolka | D89: Dwuwarstwowy ręcznik papierowy, który świetnie nadaje się do generalnych porządków, prac w garażu, ogrodzie oraz w kuchni Giga rola = 13 standardowych rolek Nie tylko chłonny i wytrzymały, ale także wyjątkowo wydajny Jedna rolka zawiera aż 520 listków Wysokość rolki: 22 cm Kolor biały Jednostka sprzedaży: 1 rolka | E89: szt ( 1 rolka) | F89: =IF('Załącznik 13-F.O. Zad 11-15 '!$V$55,VLOOKUP(C89,'Załącznik 13-F.O. Zad 11-15 '!$C$52:$G$174,5,0),0) -> 0 | G89: 27 | H89: 0 | J89: 0 | K89: 0 | L89: 0 | M89: 6 | N89: 0 | O89: 15 | P89: 0 | R89: 0 | S89: 1 | T89: 0 | U89: 5 | V89: 0
B90: 69 | C90: Ręcznik papierowy BRATEK biały, 2 rolki | D90: Ręczniki kuchenne, dwuwarstwowe, celulozowe Szerokość rolki: 22 cm Długość rolki: 11 m Jednostka sprzedaży: 1 opakowanie (2 sztuki) | E90: op (2 rolki) | F90: =IF('Załącznik 13-F.O. Zad 11-15 '!$V$55,VLOOKUP(C90,'Załącznik 13-F.O. Zad 11-15 '!$C$52:$G$174,5,0),0) -> 0 | G90: 3 | H90: 0 | J90: 0 | K90: 0 | L90: 0 | M90: 2 | N90: 0 | P90: 0 | R90: 0 | S90: 1 | T90: 0 | V90: 0
B91: 70 | C91: Ręczniki kuchenne AHA, 2 rolki | D91: Dwuwarstwowy ręcznik wykonany z czystej celulozy W rolce 50 odcinków o wymiarach: 23 x 20 cm W opakowaniu: 2 rolki Kolor biały Jednostka sprzedaży: 1 opakowanie | E91: op (2 rolki) | F91: =IF('Załącznik 13-F.O. Zad 11-15 '!$V$55,VLOOKUP(C91,'Załącznik 13-F.O. Zad 11-15 '!$C$52:$G$174,5,0),0) -> 0 | G91: 13 | H91: 0 | J91: 0 | K91: 0 | L91: 0 | M91: 6 | N91: 0 | P91: 0 | Q91: 6 | R91: 0 | S91: 1 | T91: 0 | V91: 0
B92: 71 | C92: Ręczniki kuchenne VELVET, 2 rolki | D92: Produkt wolny od bisfenolu A (BPA FREE), posiada atest NIZP-PZH | E92: op. (2 rolki) | F92: =IF('Załącznik 13-F.O. Zad 11-15 '!$V$55,VLOOKUP(C92,'Załącznik 13-F.O. Zad 11-15 '!$C$52:$G$174,5,0),0) -> 0 | G92: 221 | H92: 0 | I92: 11 | J92: 0 | K92: 160 | L92: 0 | M92: 26 | N92: 0 | P92: 0 | Q92: 23 | R92: 0 | S92: 1 | T92: 0 | V92: 0
B93: 72 | C93: Łyżeczki do herbaty AMEFA Bologna, 12 sztuk | D93: subtelne i eleganckie łyżeczki do herbaty, Sztućce polerowane, stal 18/0 | E93: op (12 szt) | F93: =IF('Załącznik 13-F.O. Zad 11-15 '!$V$55,VLOOKUP(C93,'Załącznik 13-F.O. Zad 11-15 '!$C$52:$G$174,5,0),0) -> 0 | G93: 14 | H93: 0 | I93: 1 | J93: 0 | K93: 0 | L93: 0 | M93: 12 | N93: 0 | P93: 0 | R93: 0 | S93: 1 | T93: 0 | V93: 0
B94: 73 | C94: Łyżeczki do kawy AMEFA Bologna, 12 sztuk | D94: Klasyczne, proste w formie, subtelne i eleganckie łyżeczki do kawy Dobra jakość w atrakcyjnej cenie powodują, iż linia od lat cieszy się wyjątkową popularnością Sztućce polerowane, stal 18/0 | E94: op (12 szt) | F94: =IF('Załącznik 13-F.O. Zad 11-15 '!$V$55,VLOOKUP(C94,'Załącznik 13-F.O. Zad 11-15 '!$C$52:$G$174,5,0),0) -> 0 | G94: 5 | H94: 0 | I94: 1 | J94: 0 | K94: 0 | L94: 0 | M94: 3 | N94: 0 | P94: 0 | R94: 0 | S94: 1 | T94: 0 | V94: 0
B95: 74 | C95: Łyżki AMEFA Bologna, 12 sztuk | D95: Sztućce polerowane, stal 18/0 | E95: op (12 szt) | F95: =IF('Załącznik 13-F.O. Zad 11-15 '!$V$55,VLOOKUP(C95,'Załącznik 13-F.O. Zad 11-15 '!$C$52:$G$174,5,0),0) -> 0 | G95: 7 | H95: 0 | I95: 1 | J95: 0 | K95: 0 | L95: 0 | M95: 5 | N95: 0 | P95: 0 | R95: 0 | S95: 1 | T95: 0 | V95: 0
B96: 75 | C96: Widelce AMEFA Bologna, 12 sztuk | D96: Sztućce polerowane, stal 18/0, | E96: op (12 szt) | F96: =IF('Załącznik 13-F.O. Zad 11-15 '!$V$55,VLOOKUP(C96,'Załącznik 13-F.O. Zad 11-15 '!$C$52:$G$174,5,0),0) -> 0 | G96: 6 | H96: 0 | I96: 1 | J96: 0 | K96: 0 | L96: 0 | M96: 4 | N96: 0 | P96: 0 | R96: 0 | S96: 1 | T96: 0 | V96: 0
B97: 76 | C97: Ściereczki mokre do mebli drewnianych PRESTO, opakowanie 72 sztuki | D97: Ściereczki nawilżane do czyszczenia różnych powierzchni, Usuwają kurz i zapobiegają jego osadzaniu, Nadają połysk czyszczonym powierzchniom | E97: op. (72 szt) | F97: =IF('Załącznik 13-F.O. Zad 11-15 '!$V$55,VLOOKUP(C97,'Załącznik 13-F.O. Zad 11-15 '!$C$52:$G$174,5,0),0) -> 0 | G97: 15 | H97: 0 | I97: 1 | J97: 0 | K97: 0 | L97: 0 | M97: 13 | N97: 0 | P97: 0 | R97: 0 | S97: 1 | T97: 0 | V97: 0
B98: 77 | C98: Kulki do toalet BREF Power Activ, 50 g, zapach cytrynowy | D98: Nowoczesne rozwiązanie w postaci czterech kulek na wygodnej zawieszce Czyszczą, pozostawiają przyjemny zapach i chronią przed osadzaniem się kamienia Masa netto: 50 g Jednostka sprzedaży: 1 sztuka Opakowanie zbiorcze: 10 sztuk | E98: op. (50 g) | F98: =IF('Załącznik 13-F.O. Zad 11-15 '!$V$55,VLOOKUP(C98,'Załącznik 13-F.O. Zad 11-15 '!$C$52:$G$174,5,0),0) -> 0 | G98: 221 | H98: 0 | J98: 0 | K98: 50 | L98: 0 | M98: 4 | N98: 0 | P98: 0 | Q98: 166 | R98: 0 | S98: 1 | T98: 0 | V98: 0
B99: 78 | C99: Kulki do toalet BREF Power Activ, 50 g, zapach morski | D99: Nowoczesne rozwiązanie w postaci czterech kulek na wygodnej zawieszce Czyszczą, pozostawiają przyjemny zapach i chronią przed osadzaniem się kamienia Masa netto: 50 g Jednostka sprzedaży: 1 sztuka | E99: op. (50 g) | F99: =IF('Załącznik 13-F.O. Zad 11-15 '!$V$55,VLOOKUP(C99,'Załącznik 13-F.O. Zad 11-15 '!$C$52:$G$174,5,0),0) -> 0 | G99: 76 | H99: 0 | J99: 0 | K99: 4 | L99: 0 | M99: 5 | N99: 0 | P99: 0 | Q99: 66 | R99: 0 | S99: 1 | T99: 0 | V99: 0
B100: 79 | C100: Płyn CILIT Bang Kamień i brud, 750 ml | D100: Żel CILIT kamień i brud z Turbo Power. Do czyszczenia wanien, kabin prysznicowych, płytek, toalet, armatury kuchennej i łazienkowej Usuwa kamień, rdzawe zacieki z twardej wody, osad z mydła i inne zabrudzenia Pojemność: 750 ml Jednostka sprzedaży: 1 sztuka | E100: op. (750 ml) | F100: =IF('Załącznik 13-F.O. Zad 11-15 '!$V$55,VLOOKUP(C100,'Załącznik 13-F.O. Zad 11-15 '!$C$52:$G$174,5,0),0) -> 0 | G100: 37 | H100: 0 | J100: 0 | K100: 10 | L100: 0 | M100: 11 | N100: 0 | O100: 2 | P100: 0 | Q100: 13 | R100: 0 | S100: 1 | T100: 0 | V100: 0
B101: 80 | C101: Płyn do toalet DOMESTOS Toilet Limescale Remover, 750 ml | D101: Gęsty płyn do czyszczenia muszli klozetowych Formuła ściśle przylegająca do czyszczonych powierzchni, rozpuszcza kamień wapienny Przeznaczony do powierzchni porcelanowych i szkliwionych Butelka z wygodnym dozownikiem Pojemność: 750 ml Jednostka sprzedaży: 1 sztuka Opakowanie zbiorcze: 6 sztuk | E101: op. (750 ml) | F101: =IF('Załącznik 13-F.O. Zad 11-15 '!$V$55,VLOOKUP(C101,'Załącznik 13-F.O. Zad 11-15 '!$C$52:$G$174,5,0),0) -> 0 | G101: 69 | H101: 0 | J101: 0 | K101: 0 | L101: 0 | M101: 2 | N101: 0 | P101: 0 | Q101: 66 | R101: 0 | S101: 1 | T101: 0 | V101: 0
B102: 81 | C102: Płyn do WC DOMESTOS 24H, 1,25 l, cytrynowy | D102: Produkt czyszcząco-dezynfekująco-wybielający Możliwość stosowania do: muszli klozetowych, umywalek, zlewów itp. Produkt nadaje się także do wybielania tkanin Jednostka sprzedaży: 1 sztuka Pojemność: 1,25 l | E102: op. (1,25 l) | F102: =IF('Załącznik 13-F.O. Zad 11-15 '!$V$55,VLOOKUP(C102,'Załącznik 13-F.O. Zad 11-15 '!$C$52:$G$174,5,0),0) -> 0 | G102: 130 | H102: 0 | I102: 18 | J102: 0 | K102: 40 | L102: 0 | M102: 5 | N102: 0 | P102: 0 | Q102: 66 | R102: 0 | S102: 1 | T102: 0 | V102: 0
B103: 82 | C103: Płyn do WC DOMESTOS 24H, 1,25 l, leśny | D103: Produkt czyszcząco-dezynfekująco-wybielający Możliwość stosowania do: muszli klozetowych, umywalek, zlewów itp. Produkt nadaje się także do wybielania tkanin Pojemność: 1,25 l Jednostka sprzedaży: 1 sztuka | E103: op. (1,25 l) | F103: =IF('Załącznik 13-F.O. Zad 11-15 '!$V$55,VLOOKUP(C103,'Załącznik 13-F.O. Zad 11-15 '!$C$52:$G$174,5,0),0) -> 0 | G103: 59 | H103: 0 | I103: 18 | J103: 0 | K103: 40 | L103: 0 | M103: 0 | N103: 0 | P103: 0 | R103: 0 | S103: 1 | T103: 0 | V103: 0
B104: 83 | C104: Wkład zapachowy do pisuarów MERIDA, czerwony | D104: Winylowy, elastyczny wkład zapachowy do pisuarów, Zapach utrzymuje się przez około 30 dni, Dodatkowo wkład zabezpiecza pisuar przed zapchaniem | E104: szt. | F104: =IF('Załącznik 13-F.O. Zad 11-15 '!$V$55,VLOOKUP(C104,'Załącznik 13-F.O. Zad 11-15 '!$C$52:$G$174,5,0),0) -> 0 | G104: 24 | H104: 0 | J104: 0 | K104: 20 | L104: 0 | M104: 3 | N104: 0 | P104: 0 | R104: 0 | S104: 1 | T104: 0 | V104: 0
B105: 84 | C105: Zawieszka do WC DOMESTOS, zapach leśny | D105: Zawieszki czyszczące do toalet Chronią przed osadzaniem się kamienia i pozostawiają świeży zapach Jednostka sprzedaży 1 sztuka | E105: szt | F105: =IF('Załącznik 13-F.O. Zad 11-15 '!$V$55,VLOOKUP(C105,'Załącznik 13-F.O. Zad 11-15 '!$C$52:$G$174,5,0),0) -> 0 | G105: 19 | H105: 0 | I105: 4 | J105: 0 | K105: 0 | L105: 0 | M105: 13 | N105: 0 | P105: 0 | Q105: 1 | R105: 0 | S105: 1 | T105: 0 | V105: 0
B106: 85 | C106: Żel BREF do WC Fresh Mist, 700 ml | D106: Usuwa kamień, brud i osad, Gęsta formuła żelu sprawia, że działa on również pod powierzchnią wody. | E106: op. (700 ml) | F106: =IF('Załącznik 13-F.O. Zad 11-15 '!$V$55,VLOOKUP(C106,'Załącznik 13-F.O. Zad 11-15 '!$C$52:$G$174,5,0),0) -> 0 | G106: 33 | H106: 0 | J106: 0 | K106: 24 | L106: 0 | M106: 2 | N106: 0 | P106: 0 | Q106: 6 | R106: 0 | S106: 1 | T106: 0 | V106: 0
B107: 86 | C107: Żel CLINEX Drill do udrażniania odpływów, 1 l | D107: Szybko rozpuszcza wszelkie stałe i organiczne zanieczyszczenia takie jak: tłuszcz, papier, wata, odpadki kuchenne, Forma żelowa pozwala na osadzanie się preparatu na ściankach rur, przedłużając proces działania, Likwiduje nieprzyjemne zapachy, Nadaje się do udrażniania rur zarówno w kuchni, jak i w łazience | E107: op. (1 l) | F107: =IF('Załącznik 13-F.O. Zad 11-15 '!$V$55,VLOOKUP(C107,'Załącznik 13-F.O. Zad 11-15 '!$C$52:$G$174,5,0),0) -> 0 | G107: 32 | H107: 0 | J107: 0 | K107: 4 | L107: 0 | M107: 4 | N107: 0 | P107: 0 | Q107: 3 | R107: 0 | S107: 1 | T107: 0 | U107: 20 | V107: 0
B108: 87 | C108: Biobójczy płyn do dezynfekcji rąk HISKIN, 1 l | D108: Produkt przeznaczony do codziennego stosowania przez użytkownika powszechnego. Wykazuje działanie bakteriobójcze, grzybobójcze i wirusobójcze | E108: op. (1 l) | F108: =IF('Załącznik 13-F.O. Zad 11-15 '!$V$55,VLOOKUP(C108,'Załącznik 13-F.O. Zad 11-15 '!$C$52:$G$174,5,0),0) -> 0 | G108: 100 | H108: 0 | I108: 10 | J108: 0 | K108: 0 | L108: 0 | M108: 3 | N108: 0 | P108: 0 | Q108: 66 | R108: 0 | S108: 1 | T108: 0 | U108: 20 | V108: 0
B109: 88 | C109: Dozownik do mydła w płynie MERIDA TOP, biały | D109: Mocny i trwały dozownik do mydła w płynie wykonany z tworzywa ABS Okienko umożliwiające kontrolę zużycia mydła Pojemność: 0,8 l Zestaw do montażu w komplecie Wymiary: dł. 11,5 x szer.11,5 x wys. 25 cm Kolor: biały Jednostka sprzedaży: 1 sztuka | E109: szt. | F109: =IF('Załącznik 13-F.O. Zad 11-15 '!$V$55,VLOOKUP(C109,'Załącznik 13-F.O. Zad 11-15 '!$C$52:$G$174,5,0),0) -> 0 | G109: 13 | H109: 0 | J109: 0 | K109: 4 | L109: 0 | M109: 5 | N109: 0 | O109: 3 | P109: 0 | R109: 0 | S109: 1 | T109: 0 | V109: 0
B110: 89 | C110: Mydło toaletowe NIVEA, 100 g | D110: Kremowe mydło z odżywczym olejkiem migdałowym Miks zapachów Jednostka sprzedaży: 1 sztuka | E110: szt. (100 g) | F110: =IF('Załącznik 13-F.O. Zad 11-15 '!$V$55,VLOOKUP(C110,'Załącznik 13-F.O. Zad 11-15 '!$C$52:$G$174,5,0),0) -> 0 | G110: 2040 | H110: 0 | J110: 0 | K110: 1420 | L110: 0 | M110: 2 | N110: 0 | O110: 617 | P110: 0 | R110: 0 | S110: 1 | T110: 0 | V110: 0
B111: 90 | C111: Mydło w płynie MERIDA Silva, 5 l | D111: Mydło w płynie typu „dwa w jednym”, Zawiera m.in. glukopony mające doskonałe właściwości pielęgnacyjne skóry, jak również gluadyny – roślinne proteiny, szczególnie cenne składniki pielęgnacyjne chroniące skórę i włosy | E111: op. (5l) | F111: =IF('Załącznik 13-F.O. Zad 11-15 '!$V$55,VLOOKUP(C111,'Załącznik 13-F.O. Zad 11-15 '!$C$52:$G$174,5,0),0) -> 0 | G111: 21 | H111: 0 | J111: 0 | K111: 13 | L111: 0 | M111: 7 | N111: 0 | P111: 0 | R111: 0 | S111: 1 | T111: 0 | V111: 0
B112: 91 | C112: Mydło w płynie PALMOLIVE, migdałowe, 300 ml | D112: Dzięki naturalnemu pH nie podrażnia nawet wrażliwej skóry Zawiera kombinację substancji czyszczących i odżywczych Opakowanie z dozownikiem Pojemność 300 ml Jednostka sprzedaży: 1 sztuka Opakowanie zbiorcze: 12 sztuk | E112: op. (300 ml) | F112: =IF('Załącznik 13-F.O. Zad 11-15 '!$V$55,VLOOKUP(C112,'Załącznik 13-F.O. Zad 11-15 '!$C$52:$G$174,5,0),0) -> 0 | G112: 529 | H112: 0 | I112: 11 | J112: 0 | K112: 261 | L112: 0 | M112: 23 | N112: 0 | O112: 225 | P112: 0 | Q112: 3 | R112: 0 | S112: 1 | T112: 0 | U112: 5 | V112: 0
B113: 92 | C113: Pasta BHP do rąk, ścierna, 500 g | D113: Usuwa silne zabrudzenia smarami, tłuszczami, sadzami | E113: op. (500g) | F113: =IF('Załącznik 13-F.O. Zad 11-15 '!$V$55,VLOOKUP(C113,'Załącznik 13-F.O. Zad 11-15 '!$C$52:$G$174,5,0),0) -> 0 | G113: 62 | H113: 0 | J113: 0 | K113: 0 | L113: 0 | M113: 0 | N113: 0 | O113: 48 | P113: 0 | Q113: 13 | R113: 0 | S113: 1 | T113: 0 | V113: 0
B114: 93 | C114: Pasta do rąk MERIDA PA12, 500 ml | D114: Usuwa wszelkie zabrudzenia nawet powstałe od smarów i olejów, Oszczędna w użyciu, Jest niealkaliczna i nie zawiera mineralnych środków ściernych | E114: op. (500 ml) | F114: =IF('Załącznik 13-F.O. Zad 11-15 '!$V$55,VLOOKUP(C114,'Załącznik 13-F.O. Zad 11-15 '!$C$52:$G$174,5,0),0) -> 0 | G114: 67 | H114: 0 | J114: 0 | K114: 10 | L114: 0 | M114: 0 | N114: 0 | O114: 48 | P114: 0 | Q114: 8 | R114: 0 | S114: 1 | T114: 0 | V114: 0
B115: 94 | C115: Kapsułki do zmywarek FAIRY Jar All in 1, 115 kapsułek | D115: Wydajne kapsułki do maszynowego mycia naczyń Jednostka sprzedaży: 1 opakowanie (115 kapsułek) | E115: op. ( 115 szt) | F115: =IF('Załącznik 13-F.O. Zad 11-15 '!$V$55,VLOOKUP(C115,'Załącznik 13-F.O. Zad 11-15 '!$C$52:$G$174,5,0),0) -> 0 | G115: 43 | H115: 0 | J115: 0 | K115: 2 | L115: 0 | M115: 19 | N115: 0 | O115: 15 | P115: 0 | Q115: 6 | R115: 0 | S115: 1 | T115: 0 | V115: 0
B116: 95 | C116: Płyn do czyszczenia zmywarek FINISH, 250 ml | D116: Płyn do czyszczenia zmywarek o zapachu cytrynowym Pojemność: 250 ml Jednostka sprzedaży 1 opakowanie | E116: op (250 ml) | F116: =IF('Załącznik 13-F.O. Zad 11-15 '!$V$55,VLOOKUP(C116,'Załącznik 13-F.O. Zad 11-15 '!$C$52:$G$174,5,0),0) -> 0 | G116: 22 | H116: 0 | J116: 0 | K116: 2 | L116: 0 | M116: 13 | N116: 0 | O116: 6 | P116: 0 | R116: 0 | S116: 1 | T116: 0 | V116: 0
B117: 96 | C117: Płyn do mycia naczyń LUDWIK 1150 g | D117: Posiada bardzo dobre właściwości myjące oraz wysoką zdolność do emulgowania tłuszczów zarówno w ciepłej, jak i zimnej wodzie. Nie pozostawia zacieków na umytych powierzchniach, nadaje im połysk bez konieczności wycierania do sucha. Nowa receptura została również wzbogacona kompleksem witamin A,E,F,H, mającym działanie ochronne i odżywcze dla skóry rąk, Polecany również do mycia mebli, lodówek, wykładzin, podłóg, glazury, dywanów i tworzyw sztucznych | E117: op. (1150 g) | F117: =IF('Załącznik 13-F.O. Zad 11-15 '!$V$55,VLOOKUP(C117,'Załącznik 13-F.O. Zad 11-15 '!$C$52:$G$174,5,0),0) -> 0 | G117: 1 | H117: 0 | J117: 0 | K117: 0 | L117: 0 | M117: 0 | N117: 0 | P117: 0 | R117: 0 | S117: 1 | T117: 0 | V117: 0
B118: 97 | C118: Płyn do mycia naczyń LUDWIK cytrynowy, 5 kg | D118: Posiada bardzo dobre właściwości myjące oraz wysoką zdolność do emulgowania tłuszczów zarówno w ciepłej, jak i zimnej wodzie. Nie pozostawia zacieków na umytych powierzchniach, nadaje im połysk bez konieczności wycierania do sucha. Nowa receptura została również wzbogacona kompleksem witamin A,E,F,H, mającym działanie ochronne i odżywcze dla skóry rąk, Polecany również do mycia mebli, lodówek, wykładzin, podłóg, glazury, dywanów i tworzyw sztucznych | E118: 5 kg | F118: =IF('Załącznik 13-F.O. Zad 11-15 '!$V$55,VLOOKUP(C118,'Załącznik 13-F.O. Zad 11-15 '!$C$52:$G$174,5,0),0) -> 0 | G118: 52 | H118: 0 | I118: 24 | J118: 0 | K118: 15 | L118: 0 | M118: 12 | N118: 0 | P118: 0 | R118: 0 | S118: 1 | T118: 0 | V118: 0
B119: 98 | C119: Płyn do mycia naczyń LUDWIK Miętowy 1 l. | D119: Posiada bardzo dobre właściwości myjące oraz wysoką zdolność do emulgowania tłuszczów zarówno w ciepłej, jak i zimnej wodzie. Nie pozostawia zacieków na umytych powierzchniach, nadaje im połysk bez konieczności wycierania do sucha. Nowa receptura została również wzbogacona kompleksem witamin A,E,F,H, mającym działanie ochronne i odżywcze dla skóry rąk, Polecany również do mycia mebli, lodówek, wykładzin, podłóg, glazury, dywanów i tworzyw sztucznych | E119: op. (1 l) | F119: =IF('Załącznik 13-F.O. Zad 11-15 '!$V$55,VLOOKUP(C119,'Załącznik 13-F.O. Zad 11-15 '!$C$52:$G$174,5,0),0) -> 0 | G119: 22 | H119: 0 | I119: 5 | J119: 0 | K119: 0 | L119: 0 | M119: 16 | N119: 0 | P119: 0 | R119: 0 | S119: 1 | T119: 0 | V119: 0
B120: 99 | C120: Płyn do mycia naczyń LUDWIK, cytrynowy, 450 g | D120: Posiada bardzo dobre właściwości myjące oraz wysoką zdolność do emulgowania tłuszczów zarówno w ciepłej, jak i zimnej wodzie. Nie pozostawia zacieków na umytych powierzchniach, nadaje im połysk bez konieczności wycierania do sucha. Nowa receptura została również wzbogacona kompleksem witamin A,E,F,H, mającym działanie ochronne i odżywcze dla skóry rąk, Polecany również do mycia mebli, lodówek, wykładzin, podłóg, glazury, dywanów i tworzyw sztucznych | E120: op. (450g) | F120: =IF('Załącznik 13-F.O. Zad 11-15 '!$V$55,VLOOKUP(C120,'Załącznik 13-F.O. Zad 11-15 '!$C$52:$G$174,5,0),0) -> 0 | G120: 248 | H120: 0 | I120: 8 | J120: 0 | K120: 56 | L120: 0 | M120: 40 | N120: 0 | O120: 10 | P120: 0 | Q120: 133 | R120: 0 | S120: 1 | T120: 0 | V120: 0
B121: 100 | C121: Płyn do naczyń LUDWIK, 450 g, miętowy | D121: Nie pozostawia zacieków na umytych powierzchniach, nadaje im połysk bez konieczności wycierania do sucha. Polecany również do mycia mebli, lodówek, wykładzin, podłóg, glazury, dywanów i tworzyw sztucznych. | E121: op.(450g) | F121: =IF('Załącznik 13-F.O. Zad 11-15 '!$V$55,VLOOKUP(C121,'Załącznik 13-F.O. Zad 11-15 '!$C$52:$G$174,5,0),0) -> 0 | G121: 205 | H121: 0 | I121: 11 | J121: 0 | K121: 42 | L121: 0 | M121: 11 | N121: 0 | O121: 7 | P121: 0 | Q121: 133 | R121: 0 | S121: 1 | T121: 0 | V121: 0
B122: 101 | C122: Płyn nabłyszczający do zmywarek LUDWIK, 750 ml | D122: Przeznaczony do płukania i nabłyszczania naczyń zmywanych w zmywarce Dzięki właściwie dobranym składnikom i zawartości kwasku cytrynowego płyn sprawia, że myte naczynia wysychają bez plam i zacieków Jednostka sprzedaży: 1 opakowanie (750 ml) | E122: op. (750 ml) | F122: =IF('Załącznik 13-F.O. Zad 11-15 '!$V$55,VLOOKUP(C122,'Załącznik 13-F.O. Zad 11-15 '!$C$52:$G$174,5,0),0) -> 0 | G122: 26 | H122: 0 | I122: 8 | J122: 0 | K122: 4 | L122: 0 | M122: 8 | N122: 0 | O122: 5 | P122: 0 | R122: 0 | S122: 1 | T122: 0 | V122: 0
B123: 102 | C123: Płyn nabłyszczający FINISH, 400 ml | D123: Usuwa ślady po kroplach wody i osad z kamienia, pozostawiając Diamentowy Połysk Jednostka sprzedaży: 1 opakowanie (400 ml) | E123: op. (400 ml) | F123: =IF('Załącznik 13-F.O. Zad 11-15 '!$V$55,VLOOKUP(C123,'Załącznik 13-F.O. Zad 11-15 '!$C$52:$G$174,5,0),0) -> 0 | G123: 31 | H123: 0 | J123: 0 | K123: 4 | L123: 0 | M123: 20 | N123: 0 | O123: 5 | P123: 0 | Q123: 1 | R123: 0 | S123: 1 | T123: 0 | V123: 0
B124: 103 | C124: Sól ochronna do zmywarki LUDWIK, 1,5 kg | D124: Preparat chroniący zmywarkę przed osadzaniem się kamienia w jej wnętrzu i na mytych naczyniach Skutecznie zmiękcza wodę dzięki zastosowanej formule, preparat zawiera całkowicie rozpuszczalną szlachetną sól z granulkami o odpowiedniej wielkości Regularne stosowanie soli ochronnej Ludwik zapewnia prawidłowe funkcjonowanie zmywarki i długotrwałą ochronę jej mechanizmów Jednostka sprzedaży: 1 opakowanie (1,5 kg) | E124: op. (1 l) | F124: =IF('Załącznik 13-F.O. Zad 11-15 '!$V$55,VLOOKUP(C124,'Załącznik 13-F.O. Zad 11-15 '!$C$52:$G$174,5,0),0) -> 0 | G124: 29 | H124: 0 | J124: 0 | K124: 4 | L124: 0 | M124: 11 | N124: 0 | O124: 10 | P124: 0 | Q124: 3 | R124: 0 | S124: 1 | T124: 0 | V124: 0
B125: 104 | C125: Sól SOMAT do zmywarek, 1,5 kg | D125: Zabezpiecza zmywarkę oraz naczynia przed osadzaniem się kamienia Wygodna w użyciu sól ma postać granulek Opakowanie: 1,5 kg Jednostka sprzedaży: 1 sztuka | E125: op. (5 kg) | F125: =IF('Załącznik 13-F.O. Zad 11-15 '!$V$55,VLOOKUP(C125,'Załącznik 13-F.O. Zad 11-15 '!$C$52:$G$174,5,0),0) -> 0 | G125: 35 | H125: 0 | J125: 0 | K125: 4 | L125: 0 | M125: 22 | N125: 0 | O125: 5 | P125: 0 | Q125: 3 | R125: 0 | S125: 1 | T125: 0 | V125: 0
B126: 105 | C126: Tabletki do zmywarek LUDWIK, 30 sztuk | D126: Wielofunkcyjne tabletki czyszczą, nabłyszczają, chronią szkło i stal nierdzewną przed matowieniem oraz zabezpieczają zmywarkę przed osadzaniem się kamienia Funkcja zmiękczania wody pozwala na jeszcze bardziej efektywne wykorzystanie składników myjących Enzymy są aktywne już w 30°C Cytrusowy aromat tabletek nadaje długotrwały zapach świeżości w kuchni Zapewniają oszczędność wody i energii Jednostka sprzedaży: 1 opakowanie ( 30 tabletek) | E126: op. (30 szt) | F126: =IF('Załącznik 13-F.O. Zad 11-15 '!$V$55,VLOOKUP(C126,'Załącznik 13-F.O. Zad 11-15 '!$C$52:$G$174,5,0),0) -> 0 | G126: 23 | H126: 0 | J126: 0 | K126: 0 | L126: 0 | M126: 15 | N126: 0 | P126: 0 | Q126: 7 | R126: 0 | S126: 1 | T126: 0 | V126: 0
B127: 106 | C127: Płyn do mycia szyb i glazury LUDWIK grapefruit z octem, 750 ml | D127: Nie pozostawia smug, zacieków i szybko odparowuje., Skład: do 5% anionowe środki powierzchniowo czynne, konserwant (2-bromo-2-nitropropane-1,3-diol, methylchloroisothiazolinone, methylisothiazolinone), kompozycja zapachowa (limonene, linalool). | E127: op. (750ml) | F127: =IF('Załącznik 13-F.O. Zad 11-15 '!$V$55,VLOOKUP(C127,'Załącznik 13-F.O. Zad 11-15 '!$C$52:$G$174,5,0),0) -> 0 | G127: 44 | H127: 0 | I127: 1 | J127: 0 | K127: 34 | L127: 0 | M127: 8 | N127: 0 | P127: 0 | R127: 0 | S127: 1 | T127: 0 | V127: 0
B128: 107 | C128: Płyn do mycia szyb KUBUŚ z atomizerem, 1 l | D128: Przeznaczony do mycia szyb okiennych, luster oraz innych powierzchni szklanych, Doskonale usuwa brud, nie pozostawia smug | E128: op. (1 l) | F128: =IF('Załącznik 13-F.O. Zad 11-15 '!$V$55,VLOOKUP(C128,'Załącznik 13-F.O. Zad 11-15 '!$C$52:$G$174,5,0),0) -> 0 | G128: 4 | H128: 0 | J128: 0 | K128: 0 | L128: 0 | M128: 3 | N128: 0 | P128: 0 | R128: 0 | S128: 1 | T128: 0 | V128: 0
B129: 108 | C129: Płyn do szyb i luster BUZIL G522 Profiglass, 600 ml | D129: Gotowy do użycia środek do mycia szyb i luster Skutecznie usuwa zabrudzenia, również te tłuste Butelka posiada specjalnie przyciętą końcówkę rozpryskującą, która ułatwia nanoszenie środka czyszczącego Wygodna butelka 600 ml ze spryskiwaczem | E129: op (600 ml) | F129: =IF('Załącznik 13-F.O. Zad 11-15 '!$V$55,VLOOKUP(C129,'Załącznik 13-F.O. Zad 11-15 '!$C$52:$G$174,5,0),0) -> 0 | G129: 18 | H129: 0 | J129: 0 | K129: 0 | L129: 0 | M129: 4 | N129: 0 | P129: 0 | Q129: 13 | R129: 0 | S129: 1 | T129: 0 | V129: 0
B130: 109 | C130: Mleczko do czyszczenia CIF Regular Cream, 650 ml/780 g | D130: Uniwersalne mleczko CIF z mikrokryształkami, które pomaga utrzymać powierzchnie w czystości, jest delikatne i nie rysuje powierzchni. Usuwa najbardziej oporny brud taki jak: przypieczony tłuszcz, przypalone jedzenie, plamy z kamienia w łazience. Składniki: do 5% anionowe środki powierzchniowo, czynne niejonowe środki powierzchniowo czynne, mydło, kompozycja zapachowa Limonene, Benzisothiazolinone, Linalool, Butylphenyl Methylpropional, Hexyl Cinnamal. Sposób użycia: nanieść na wilgotną ściereczkę lub bezpośrednio na czyszczoną powierzchnię. Po wyczyszczeniu dokładnie spłukać. Nie połykać. Mleczko do czyszczenia powierzchni twardych. | E130: op (650 ml) | F130: =IF('Załącznik 13-F.O. Zad 11-15 '!$V$55,VLOOKUP(C130,'Załącznik 13-F.O. Zad 11-15 '!$C$52:$G$174,5,0),0) -> 0 | G130: 79 | H130: 0 | I130: 1 | J130: 0 | K130: 24 | L130: 0 | M130: 15 | N130: 0 | O130: 5 | P130: 0 | Q130: 33 | R130: 0 | S130: 1 | T130: 0 | V130: 0
B131: 110 | C131: Czajnik elektryczny TEFAL Express 1,5 l, biały | D131: Czajnik z ukrytym elementem grzejnym i obrotową podstawą, Filtr antywapienny i dwustronny wskaźnik poziomu wody, Możliwość zagotowania minimalnej ilości wody (250 ml), Pojemność: 1,5 l | E131: szt. | F131: =IF('Załącznik 13-F.O. Zad 11-15 '!$V$55,VLOOKUP(C131,'Załącznik 13-F.O. Zad 11-15 '!$C$52:$G$174,5,0),0) -> 0 | G131: 16 | H131: 0 | I131: 5 | J131: 0 | K131: 0 | L131: 0 | M131: 5 | N131: 0 | O131: 5 | P131: 0 | R131: 0 | S131: 1 | T131: 0 | V131: 0
B132: 111 | C132: Dzbanek filtrujący wodę AQUAPHOR Onyx 4,2 l + 3 wkłady filtrujące, biały | D132: Klasyczny i elegancki kształt pasuje do biur i sal konferencyjnych, Produkt wolny od bisfenolu A (BPA FREE), posiada atest NIZP-PZH, W zestawie 3 wkłady Maxfor MG wzbogacające wodę w magnez | E132: op. (1 szt dzbanek + 3 szt. filtrów) | F132: =IF('Załącznik 13-F.O. Zad 11-15 '!$V$55,VLOOKUP(C132,'Załącznik 13-F.O. Zad 11-15 '!$C$52:$G$174,5,0),0) -> 0 | G132: 67 | H132: 0 | I132: 18 | J132: 0 | K132: 0 | L132: 0 | M132: 45 | N132: 0 | O132: 3 | P132: 0 | R132: 0 | S132: 1 | T132: 0 | V132: 0
B133: 112 | C133: Filtr wody KRUPS F08801 do ekspresu ciśnieniowego, 1 sztuka | D133: Zapobiega nadmiernemu osadzaniu się kamienia Dostosowany do ekspresów Krups Artese oraz Krups Orchestro Jednostka sprzedaży: 1 sztuka | E133: szt | F133: =IF('Załącznik 13-F.O. Zad 11-15 '!$V$55,VLOOKUP(C133,'Załącznik 13-F.O. Zad 11-15 '!$C$52:$G$174,5,0),0) -> 0 | G133: 22 | H133: 0 | I133: 13 | J133: 0 | K133: 0 | L133: 0 | M133: 8 | N133: 0 | P133: 0 | R133: 0 | S133: 1 | T133: 0 | V133: 0
B134: 113 | C134: Termos TEFAL Campo, 1 l, czarny | D134: Termos TEFAL Campo, 1 l, czarnyObudowa ze stali nierdzewnej z kolorową powłoką z wkładką szklaną, Kolor: czarny | E134: szt | F134: =IF('Załącznik 13-F.O. Zad 11-15 '!$V$55,VLOOKUP(C134,'Załącznik 13-F.O. Zad 11-15 '!$C$52:$G$174,5,0),0) -> 0 | G134: 5 | H134: 0 | I134: 2 | J134: 0 | K134: 0 | L134: 0 | M134: 2 | N134: 0 | P134: 0 | R134: 0 | S134: 1 | T134: 0 | V134: 0
B135: 114 | C135: Reklamówki foliowe 9 micronów 210 + 2 x 60 x 435 mm (+/-12), 150 sztuk | D135: Reklamówki o wymiarach 210 + 2 x 60 x 435 mm (+/-12) Nawój: 150 sztuk Folia HDPE / grubość 9 mikronówJednostka sprzedaży: 1 rolka (150sztuk) | E135: op. (150 szt.) | F135: =IF('Załącznik 13-F.O. Zad 11-15 '!$V$55,VLOOKUP(C135,'Załącznik 13-F.O. Zad 11-15 '!$C$52:$G$174,5,0),0) -> 0 | G135: 3 | H135: 0 | J135: 0 | K135: 0 | L135: 0 | M135: 2 | N135: 0 | P135: 0 | R135: 0 | S135: 1 | T135: 0 | V135: 0
B136: 115 | C136: Worki do segregacji 60 l, niebieskie na papier, 60 x 72 cm | D136: Wytrzymałe worki ułatwiające segregację śmieci dzięki kodowi kolorystycznemu, Mają nadruk informujący, jakie typy odpadów należy do nich wrzucać, a jakich nie należy, Wymiary: 60 x 72 cm | E136: op. (10 worków) | F136: =IF('Załącznik 13-F.O. Zad 11-15 '!$V$55,VLOOKUP(C136,'Załącznik 13-F.O. Zad 11-15 '!$C$52:$G$174,5,0),0) -> 0 | G136: 43 | H136: 0 | J136: 0 | K136: 30 | L136: 0 | M136: 12 | N136: 0 | P136: 0 | R136: 0 | S136: 1 | T136: 0 | V136: 0
B137: 116 | C137: Worki do segregacji 60 l, zielone na szkło, 60 x 72 cm | D137: Wytrzymałe worki ułatwiające segregację śmieci dzięki kodowi kolorystycznemu, Mają nadruk informujący, jakie typy odpadów należy do nich wrzucać, a jakich nie należy, Wymiary: 60 x 72 cm | E137: op. (10 worków) | F137: =IF('Załącznik 13-F.O. Zad 11-15 '!$V$55,VLOOKUP(C137,'Załącznik 13-F.O. Zad 11-15 '!$C$52:$G$174,5,0),0) -> 0 | G137: 31 | H137: 0 | J137: 0 | K137: 30 | L137: 0 | M137: 0 | N137: 0 | P137: 0 | R137: 0 | S137: 1 | T137: 0 | V137: 0
B138: 117 | C138: Worki do segregacji 60 l, zółte na plastik, 60 x 72 cm | D138: Wytrzymałe worki ułatwiające segregację śmieci dzięki kodowi kolorystycznemu, Mają nadruk informujący, jakie typy odpadów należy do nich wrzucać, a jakich nie należy, Wymiary: 60 x 72 cm | E138: op. (10 worków) | F138: =IF('Załącznik 13-F.O. Zad 11-15 '!$V$55,VLOOKUP(C138,'Załącznik 13-F.O. Zad 11-15 '!$C$52:$G$174,5,0),0) -> 0 | G138: 31 | H138: 0 | J138: 0 | K138: 30 | L138: 0 | M138: 0 | N138: 0 | P138: 0 | R138: 0 | S138: 1 | T138: 0 | V138: 0
B139: 118 | C139: Worki na śmieci LDPE sanitarne 120 l, niebieskie, 10 sztuk | D139: Wymiary: 110 x 70 cm, Grubość: folii: 0,03 mm | E139: op (10 szt) | F139: =IF('Załącznik 13-F.O. Zad 11-15 '!$V$55,VLOOKUP(C139,'Załącznik 13-F.O. Zad 11-15 '!$C$52:$G$174,5,0),0) -> 0 | G139: 53 | H139: 0 | I139: 16 | J139: 0 | K139: 30 | L139: 0 | M139: 0 | N139: 0 | P139: 0 | Q139: 6 | R139: 0 | S139: 1 | T139: 0 | V139: 0
B140: 119 | C140: Worki na śmieci LDPE sanitarne 160 l, czarne, 20 sztuk | D140: Worki na śmieci LDPE sanitarne 160 l, czarne, 20 sztuk Pojemność: 160 l Wymiary: 150 x 90 cm Grubość: folii: 0,027 mm Kolor folii: czarny Jednostka sprzedaży: 1 opakowanie (20 sztuk) | E140: op. (20 sztuk) | F140: =IF('Załącznik 13-F.O. Zad 11-15 '!$V$55,VLOOKUP(C140,'Załącznik 13-F.O. Zad 11-15 '!$C$52:$G$174,5,0),0) -> 0 | G140: 66 | H140: 0 | J140: 0 | K140: 18 | L140: 0 | M140: 7 | N140: 0 | P140: 0 | Q140: 40 | R140: 0 | S140: 1 | T140: 0 | V140: 0
B141: 120 | C141: Worki na śmieci LDPE z taśmą ściągającą 60 l, czarne, 10 sztuk | D141: Posiadają taśmę ściągającą Pojemność: 60 l Wymiary: 72 x 60 cm Grubość: folii: 0,02 mm Kolor folii: czarny Jednostka sprzedaży: 1 opakowanie (10 sztuk) | E141: op. (10 sztuk) | F141: =IF('Załącznik 13-F.O. Zad 11-15 '!$V$55,VLOOKUP(C141,'Załącznik 13-F.O. Zad 11-15 '!$C$52:$G$174,5,0),0) -> 0 | G141: 146 | H141: 0 | J141: 0 | K141: 100 | L141: 0 | M141: 0 | N141: 0 | P141: 0 | Q141: 40 | R141: 0 | S141: 1 | T141: 0 | U141: 5 | V141: 0
B142: 121 | C142: Worki na śmieci łazienkowe, 20 l, białe, 40 sztuk | D142: Idealne worki na odpady łazienkowe, Pojemność: 20 l, Kolor: biały, Rozmiar: 40 x 50 cm | E142: op: (40 sztuk) | F142: =IF('Załącznik 13-F.O. Zad 11-15 '!$V$55,VLOOKUP(C142,'Załącznik 13-F.O. Zad 11-15 '!$C$52:$G$174,5,0),0) -> 0 | G142: 53 | H142: 0 | J142: 0 | K142: 44 | L142: 0 | M142: 3 | N142: 0 | P142: 0 | R142: 0 | S142: 1 | T142: 0 | U142: 5 | V142: 0
B143: 122 | C143: Worki na śmieci MDPE 35 l, niebieskie 20 sztuk | D143: Pojemność: 35 l Wymiary: 58 x 49 cm Grubość: folii: 0,011 mm Kolor folii: niebieski Jednostka sprzedaży: 1 opakowanie (20 sztuk) | E143: op. (20 sztuk) | F143: =IF('Załącznik 13-F.O. Zad 11-15 '!$V$55,VLOOKUP(C143,'Załącznik 13-F.O. Zad 11-15 '!$C$52:$G$174,5,0),0) -> 0 | G143: 70 | H143: 0 | I143: 8 | J143: 0 | K143: 15 | L143: 0 | M143: 6 | N143: 0 | P143: 0 | Q143: 40 | R143: 0 | S143: 1 | T143: 0 | V143: 0
G144: =SUM(G22:G143) -> 11387 | I144: =SUM(I22:I143) -> 906 | K144: =SUM(K22:K143) -> 5407 | M144: =SUM(M22:M143) -> 1034 | O144: =SUM(O22:O143) -> 2105 | Q144: =SUM(Q22:Q143) -> 1653 | S144: =SUM(S22:S143) -> 122 | U144: =SUM(U22:U143) -> 160
I145: ŁĄCZNA CENA NETTO DLA ENEA Centrum Sp. z o.o. | J145: =SUM(J22:J143) -> 0 | K145: ŁĄCZNA CENA NETTO DLA ENEA Logistyka sp. z o.o. | L145: =SUM(L22:L143) -> 0 | M145: ŁĄCZNA CENA NETTO DLA ENEA Operator sp. z.o.o. | N145: =SUM(N22:N143) -> 0 | O145: ŁĄCZNA CENA NETTO DLA ENEA Oświetlenie Sp. z o.o. | P145: =SUM(P22:P143) -> 0 | Q145: ŁĄCZNA CENA NETTO DLA ENEA Pomiary sp. z.o.o. | R145: =SUM(R22:R143) -> 0 | S145: ŁĄCZNA CENA NETTO DLA ENEA Serwis Sp. z o.o. | T145: =SUM(T22:T143) -> 0 | U145: ŁĄCZNA CENA NETTO DLA ENEA S.A. | V145: =SUM(V22:V143) -> 0
C149: miejscowość i data | F149: Pieczęć imienna i podpis przedstawiciela(i) Wykonawcy

Sheet Załącznik15-F.O. dla Zadania 12
B1: Oznaczenie sprawy: 1400/DW00/ZU/KZ/2022/0000079539
B3: ZAŁĄCZNIK NR 15 - FORMULARZ OFERTY DLA ZADANIA 12 - DOSTAWA ARTYKUŁÓW HIGIENICZNYCH: ZIELONA GÓRA; GORZÓW WLKP. + WOJ. LUBUSKIE; SZCZECIN + WOJ. ZACHODNIOPOMORSKIE
C6: (pieczęć wykonawcy)
B8: Ja, niżej podpisany (My niżej podpisani):
B11: działając w imieniu i na rzecz:
B14: Składam(y) ofertę na wykonanie zamówienia, którego przedmiotem jest:
B15: Dostawa artykułów biurowych, spożywczych i higienicznych dla spółek GK ENEA
B17: ZADANIE 12 - Dostawa artykułów higienicznych: Zielona Góra; Gorzów Wlkp. + woj. Lubuskie; Szczecin + woj. Zachodniopomorskie
B19: ŁĄCZNA CENA NETTO OFERTY DLA ZADANIA 12: | D19: =SUM(H22:H143) -> 0
B21: LP | C21: Nazwa produktu | D21: Opis szczegółowy | E21: Jednostka | F21: cena jednostkowa netto | G21: Ilość | H21: Wartość | I21: ENEA Centrum Sp. z o.o. - Szacowana ilość | J21: ŁĄCZNA CENA NETTO DLA ENEA Centrum Sp. z o.o. | K21: Enea Logistyka sp.z o.o. - Szacowana ilość | L21: ŁĄCZNA CENA NETTO DLA Logistyka sp. z o.o. | M21: ENEA Operator Sp. z o.o. - Szacowana ilość | N21: ŁĄCZNA CENA NETTO DLA ENEA Operator Sp. z o.o. | O21: ENEA Oświetlenie Sp. z o.o. - Szacowana ilość | P21: ŁĄCZNA CENA NETTO DLA ENEA Oświetlenie Sp. z o.o. | Q21: ENEA Pomiary Sp. z o.o. - Szacowana ilość | R21: ŁĄCZNA CENA NETTO DLA ENEA Pomiary Sp. z o.o. | S21: ENEA Serwis Sp. z o.o. - Szacowana ilość | T21: ŁĄCZNA CENA NETTO DLA ENEA Serwis Sp. z o.o. | U21: ENEA S.A. - Szacowana ilość | V21: ŁĄCZNA CENA NETTO DLA ENEA S.A.
B22: 1 | C22: Filtr do expresu DELONGHI 45.76X | D22: Filtr do expresu DELONGHI 45.76X | E22: szt | F22: =IF('Załącznik 13-F.O. Zad 11-15 '!$V$56,VLOOKUP(C22,'Załącznik 13-F.O. Zad 11-15 '!$C$52:$G$175,5,0),0) -> 0 | G22: =I22+K22+M22+O22+Q22+S22+U22 -> 10 | H22: =G22*F22 -> 0 | J22: =I22*F22 -> 0 | K22: 4 | L22: =K22*F22 -> 0 | M22: 0 | N22: =M22*F22 -> 0 | O22: 5 | P22: =O22*F22 -> 0 | R22: =Q22*F22 -> 0 | S22: 1 | T22: =S22*F22 -> 0 | V22: =U22*F22 -> 0
B23: 2 | C23: ODKAMIENIACZ DO EKSPRESU MELITTA 250ML | D23: odkamieniacz do ekspresu MELITA poj. 250 ml. | E23: szt. (250 ml) | F23: =IF('Załącznik 13-F.O. Zad 11-15 '!$V$56,VLOOKUP(C23,'Załącznik 13-F.O. Zad 11-15 '!$C$52:$G$175,5,0),0) -> 0 | G23: =I23+K23+M23+O23+Q23+S23+U23 -> 13 | H23: =G23*F23 -> 0 | I23: 1 | J23: =I23*F23 -> 0 | K23: 0 | L23: =K23*F23 -> 0 | M23: 10 | N23: =M23*F23 -> 0 | O23: 1 | P23: =O23*F23 -> 0 | R23: =Q23*F23 -> 0 | S23: 1 | T23: =S23*F23 -> 0 | V23: =U23*F23 -> 0
B24: 3 | C24: Odkamieniacz KAMIX, w proszku, 150 g | D24: Środek do usuwania osadów z kamienia Pojemność: 150 g Jednostka sprzedaży: 1 opakowanie | E24: op. ( 150 g) | F24: =IF('Załącznik 13-F.O. Zad 11-15 '!$V$56,VLOOKUP(C24,'Załącznik 13-F.O. Zad 11-15 '!$C$52:$G$175,5,0),0) -> 0 | G24: 49 | H24: 0 | I24: 24 | J24: 0 | K24: 4 | L24: 0 | M24: 16 | N24: 0 | O24: 3 | P24: 0 | Q24: 1 | R24: 0 | S24: 1 | T24: 0 | V24: 0
B25: 4 | C25: Odkamieniacz uniwersalny KAMIX, w płynie, 500 ml | D25: Środek w płynie do usuwania osadów kamienia Pojemność: 500 ml Jednostka sprzedaży: 1 opakowanie | E25: op. (500 ml) | F25: =IF('Załącznik 13-F.O. Zad 11-15 '!$V$56,VLOOKUP(C25,'Załącznik 13-F.O. Zad 11-15 '!$C$52:$G$175,5,0),0) -> 0 | G25: 56 | H25: 0 | I25: 1 | J25: 0 | K25: 20 | L25: 0 | M25: 31 | N25: 0 | O25: 2 | P25: 0 | Q25: 1 | R25: 0 | S25: 1 | T25: 0 | V25: 0
B26: 5 | C26: Tabletki do czyszczenia sekcji mlecznej ekspresu | D26: Tabletki do codziennego czyszczenia sekcji mlecznej zapewniają dokładne i higieniczne użytkowanie sekcji mlecznej Jednostka sprzedaży: 1 opakowanie | E26: op. ( 62 szt ) | F26: =IF('Załącznik 13-F.O. Zad 11-15 '!$V$56,VLOOKUP(C26,'Załącznik 13-F.O. Zad 11-15 '!$C$52:$G$175,5,0),0) -> 0 | G26: 3 | H26: 0 | J26: 0 | K26: 0 | L26: 0 | M26: 0 | N26: 0 | O26: 2 | P26: 0 | R26: 0 | S26: 1 | T26: 0 | V26: 0
B27: 6 | C27: Płyn odkamieniający DELONGHI "EcoDecalk" | D27: odkamieniacz do ekspresu DELONGHI | E27: szt. | F27: =IF('Załącznik 13-F.O. Zad 11-15 '!$V$56,VLOOKUP(C27,'Załącznik 13-F.O. Zad 11-15 '!$C$52:$G$175,5,0),0) -> 0 | G27: 10 | H27: 0 | J27: 0 | K27: 6 | L27: 0 | M27: 3 | N27: 0 | O27: 0 | P27: 0 | R27: 0 | S27: 1 | T27: 0 | V27: 0
B28: 7 | C28: Tabletki czyszczące KRUPS XS3000, 10 sztuk | D28: Tabletki czyszczące przeznaczone do ekspresów ciśnieniowych i przelewowych Usuwają tłuszcz i pozostałości po kawie wewnątrz ekspresu. Regularne stosowanie gwarantuje utrzymanie wysokiej jakości kawy Jednostka sprzedaży: 1 opakowanie (10 sztuk) | E28: op (10 szt) | F28: =IF('Załącznik 13-F.O. Zad 11-15 '!$V$56,VLOOKUP(C28,'Załącznik 13-F.O. Zad 11-15 '!$C$52:$G$175,5,0),0) -> 0 | G28: 26 | H28: 0 | J28: 0 | K28: 0 | L28: 0 | M28: 14 | N28: 0 | O28: 7 | P28: 0 | Q28: 4 | R28: 0 | S28: 1 | T28: 0 | V28: 0
B29: 8 | C29: Tabletki do zmywarek FINISH All-in-1, 50 tabletek | D29: Jego unikalna formuła łączy w sobie działanie 10 funkcji Power Actions: usuwanie zaplamień, usuwanie tłuszczu, namaczanie, usuwanie zabrudzeń po herbacie, kryształowy połyski, lśniące sztućce, ochrona przed osadzaniem się kamienia w zmywarce, aktywna ochrona szkła, ochrona srebra, usuwanie opornych zabrudzeń, Dodatkowo spełnia funkcje soli i płynu nabłyszczającego, Składniki: 5 - 15 % związki wybielające na bazie tlenu, niejonowe środki powierzchniowo czynne, do 5 % polikarboksylany, fosfoniany. Enzymy (subtylizyna, amylaza), kompozycja zapachowa. | E29: op (50 szt) | F29: =IF('Załącznik 13-F.O. Zad 11-15 '!$V$56,VLOOKUP(C29,'Załącznik 13-F.O. Zad 11-15 '!$C$52:$G$175,5,0),0) -> 0 | G29: 64 | H29: 0 | I29: 16 | J29: 0 | K29: 0 | L29: 0 | M29: 30 | N29: 0 | O29: 13 | P29: 0 | Q29: 4 | R29: 0 | S29: 1 | T29: 0 | V29: 0
B30: 9 | C30: UNIWERSALNY zestaw do odkamieniania ekspresów | D30: Uniwerslany zestaw do odkamieniania ekspresów Nespresso. Ilość sztuk w opakowaniu: 2 Jednostka sprzedaży: 1 opakowanie | E30: op | F30: =IF('Załącznik 13-F.O. Zad 11-15 '!$V$56,VLOOKUP(C30,'Załącznik 13-F.O. Zad 11-15 '!$C$52:$G$175,5,0),0) -> 0 | G30: 18 | H30: 0 | I30: 2 | J30: 0 | K30: 0 | L30: 0 | M30: 7 | N30: 0 | O30: 8 | P30: 0 | R30: 0 | S30: 1 | T30: 0 | V30: 0
B31: 10 | C31: Wkłady filtrujące BRITA Maxtra+ Pure Performance, 3 sztuki | D31: Wybierając wkłady filtrujące Brita Maxtra+ Pure Performance, zapewniasz sobie czystą wodę o doskonałym smaku. Zastosowane perełki węgla aktywnego skutecznie zatrzymują chlor i redukują mogące występować w wodzie zanieczyszczenia, jak herbicydy, pestycydy czy pozostałości po farmaceutykach. Z kolei perełki wymiennika jonowego zmiękczają wodę i zmniejszają występowanie metali w rodzaju miedzi i ołowiu. Wkłady filtrując są rekomendowane do wody miękkiej i średnio twardej. | E31: op (3 szt) | F31: =IF('Załącznik 13-F.O. Zad 11-15 '!$V$56,VLOOKUP(C31,'Załącznik 13-F.O. Zad 11-15 '!$C$52:$G$175,5,0),0) -> 0 | G31: 42 | H31: 0 | J31: 0 | K31: 4 | L31: 0 | M31: 29 | N31: 0 | O31: 8 | P31: 0 | R31: 0 | S31: 1 | T31: 0 | V31: 0
B32: 11 | C32: Worki papierowe do odkurzacza MERIDA Dex, 3 sztuki | D32: Worki papierowe do odkurzacza MERIDA Dex, 3 sztuki | E32: op (3 szt) | F32: =IF('Załącznik 13-F.O. Zad 11-15 '!$V$56,VLOOKUP(C32,'Załącznik 13-F.O. Zad 11-15 '!$C$52:$G$175,5,0),0) -> 0 | G32: 1 | H32: 0 | J32: 0 | K32: 0 | L32: 0 | M32: 0 | N32: 0 | O32: 0 | P32: 0 | R32: 0 | S32: 1 | T32: 0 | V32: 0
B33: 12 | C33: Wymienne wkłady do filtra wody AQUAPHOR MAXFOR | D33: Największa na rynku wydajność - do 200 l, Zawiera innowacyjne włókno Aqualen, dzięki czemu skutecznie usuwa z wody chlor, metale ciężkie, fenol, pestycydy i inne zanieczyszczenia, Redukuje twardość wody i zapobiega pojawianiu się osadu i kamienia na urządzeniach AGD np. w czajnikach i ekspresach, Produkt wolny od bisfenolu A (BPA FREE), wykonany z ekologicznych materiałów | E33: op (3 szt) | F33: =IF('Załącznik 13-F.O. Zad 11-15 '!$V$56,VLOOKUP(C33,'Załącznik 13-F.O. Zad 11-15 '!$C$52:$G$175,5,0),0) -> 0 | G33: 44 | H33: 0 | I33: 11 | J33: 0 | K33: 0 | L33: 0 | M33: 30 | N33: 0 | O33: 0 | P33: 0 | Q33: 2 | R33: 0 | S33: 1 | T33: 0 | V33: 0
B34: 13 | C34: Zestaw do odkamieniania KRUPS F054, 2 saszetki po 40 g | D34: Zestaw polecany do ekspresów KRUPS Informacje na temat sposobu użytkowania dostępne w instrukcji obsługi ekspresu W opakowaniu: 2 saszetki środka odkamieniającego Jednostka sprzedaży: 1 opakowanie (2 saszetki x 40 g) | E34: op (2 saszetki) | F34: =IF('Załącznik 13-F.O. Zad 11-15 '!$V$56,VLOOKUP(C34,'Załącznik 13-F.O. Zad 11-15 '!$C$52:$G$175,5,0),0) -> 0 | G34: 6 | H34: 0 | J34: 0 | K34: 0 | L34: 0 | M34: 0 | N34: 0 | O34: 5 | P34: 0 | R34: 0 | S34: 1 | T34: 0 | V34: 0
B35: 14 | C35: Apteczka VERA TOP 15 PLUS, DIN 13157, w walizce z ABS | D35: Apteczka w walizce z tworzywa ABS. Zawiera stelaż mocujący do ściany W skład wyposażenia wchodzą: kompres zimny – 1 szt., kompres na oko – 2 szt., kompres 10 x 10 cm - 3 opakowania (po 2 sztuki) opaska elastyczna 4 m x 6 cm – 2 szt., opaska elastyczna 4 m x 8 cm – 2 szt., zestaw plastrów 10 x 6 cm (8 szt.) – 1 komplet, zestaw plastrów (14 szt.) – 1 komplet, plaster 5 m x 2,5 cm – 1 szt., opatrunek indywidualny M sterylny – 3 szt. opatrunek indywidualny G sterylny – 1 szt., opatrunek indywidualny K sterylny – 1 szt., chusta opatrunkowa 60 x 80 cm – 1 szt. chusta trójkątna – 1 szt., chusta z flizeliny (5 szt.) – 1 komplet, koc ratunkowy 160 x 210 cm – 1 szt. nożyczki 19 cm – 1 szt., rękawice winylowe – 4 szt. chusteczka dezynfekująca – 6 sztuk, ustnik do sztucznego oddychania – 1 szt., instrukcja udzielania pierwszej pomocy Skład zgodny z normą DIN 13157. Rozmiar: 330 x 235 x 125 mm Jednostka sprzedaży: 1 sztuka | E35: szt | F35: =IF('Załącznik 13-F.O. Zad 11-15 '!$V$56,VLOOKUP(C35,'Załącznik 13-F.O. Zad 11-15 '!$C$52:$G$175,5,0),0) -> 0 | G35: 22 | H35: 0 | I35: 7 | J35: 0 | K35: 1 | L35: 0 | M35: 6 | N35: 0 | O35: 6 | P35: 0 | Q35: 1 | R35: 0 | S35: 1 | T35: 0 | V35: 0
B36: 15 | C36: Wyposażenie apteczki DIN 13157 PLUS | D36: Czajnik posiada filtr antywapienny, który zapobiega przedostawaniu się kamienia do szklanki, Pojemność: 1,7 l Moc: 2400 W | E36: op | F36: =IF('Załącznik 13-F.O. Zad 11-15 '!$V$56,VLOOKUP(C36,'Załącznik 13-F.O. Zad 11-15 '!$C$52:$G$175,5,0),0) -> 0 | G36: 32 | H36: 0 | I36: 10 | J36: 0 | K36: 9 | L36: 0 | M36: 1 | N36: 0 | O36: 10 | P36: 0 | Q36: 1 | R36: 0 | S36: 1 | T36: 0 | V36: 0
B37: 16 | C37: Chusteczki KATRIN Plus, 100 sztuk | D37: Białe, dwuwarstwowe chusteczki higieniczne w praktycznym podajniku Testowane dermatologicznie Jednostka sprzedaży: 1 opakowanie (100 sztuk) | E37: op (100 szt) | F37: =IF('Załącznik 13-F.O. Zad 11-15 '!$V$56,VLOOKUP(C37,'Załącznik 13-F.O. Zad 11-15 '!$C$52:$G$175,5,0),0) -> 0 | G37: 229 | H37: 0 | I37: 200 | J37: 0 | K37: 0 | L37: 0 | M37: 1 | N37: 0 | O37: 20 | P37: 0 | Q37: 7 | R37: 0 | S37: 1 | T37: 0 | V37: 0
B38: 17 | C38: Czajnik elektryczny TEFAL Express 1,5 l, biały | D38: Filtr antywapienny i dwustronny wskaźnik poziomu wody, Możliwość zagotowania minimalnej ilości wody (250 ml), Pojemność: 1,5 l, Moc: 2400 W | E38: szt | F38: =IF('Załącznik 13-F.O. Zad 11-15 '!$V$56,VLOOKUP(C38,'Załącznik 13-F.O. Zad 11-15 '!$C$52:$G$175,5,0),0) -> 0 | G38: 43 | H38: 0 | I38: 13 | J38: 0 | K38: 1 | L38: 0 | M38: 27 | N38: 0 | O38: 0 | P38: 0 | Q38: 1 | R38: 0 | S38: 1 | T38: 0 | V38: 0
B39: 18 | C39: Czajnik elektryczny TEFAL Loft, 1,7 l, czarny | D39: Zdejmowana pokrywa ułatwia napełnianie wodą, Czajnik posiada filtr antywapienny, który zapobiega przedostawaniu się kamienia do szklanki, Pojemność: 1,7 l, Moc: 2400 W | E39: szt | F39: =IF('Załącznik 13-F.O. Zad 11-15 '!$V$56,VLOOKUP(C39,'Załącznik 13-F.O. Zad 11-15 '!$C$52:$G$175,5,0),0) -> 0 | G39: 52 | H39: 0 | I39: 13 | J39: 0 | K39: 1 | L39: 0 | M39: 32 | N39: 0 | O39: 4 | P39: 0 | Q39: 1 | R39: 0 | S39: 1 | T39: 0 | V39: 0
B40: 19 | C40: Czyściwo włókninowe, wielozadaniowe do trudnych zabrudzeń TORK, 1 rolka | D40: Jednowarstwowe, grube i mocne czyściwo wielozadaniowe non-woven (syntetyczno-celulozowe) Duża chłonność, także oleistych substancji Niskopylne i odporne na rozerwania Współpracuje z rozpuszczalnikami, ograniczając ich zużycie Polecane do stosowania w przemyśle maszynowym, poligraficznym, spożywczym nawet do najcięższych zadań związanych z czyszczeniem Atest PZH i certyfikat ISEGA, zezwalający na stosowanie produktu w przemyśle spożywczym W wygodnym kartonie mogącym służyć jako dozownik Perforacja co 38 cm Materiał: włóknina jednowarstwowa Tłoczenie: nie Ilość listków: 280 szerokość listka: 320 mm Długość roli: 106,4 m średnica r[...] | E40: szt | F40: =IF('Załącznik 13-F.O. Zad 11-15 '!$V$56,VLOOKUP(C40,'Załącznik 13-F.O. Zad 11-15 '!$C$52:$G$175,5,0),0) -> 0 | G40: 2 | H40: 0 | J40: 0 | K40: 0 | L40: 0 | M40: 1 | N40: 0 | O40: 0 | P40: 0 | R40: 0 | S40: 1 | T40: 0 | V40: 0
B41: 20 | C41: Kij z mopem sznurkowym, 1 komplet | D41: Kij z mopem sznurkowym, Waga: 345 g, Jednostka sprzedaży: 1 sztuka | E41: szt | F41: =IF('Załącznik 13-F.O. Zad 11-15 '!$V$56,VLOOKUP(C41,'Załącznik 13-F.O. Zad 11-15 '!$C$52:$G$175,5,0),0) -> 0 | G41: 12 | H41: 0 | I41: 3 | J41: 0 | K41: 2 | L41: 0 | M41: 4 | N41: 0 | O41: 2 | P41: 0 | R41: 0 | S41: 1 | T41: 0 | V41: 0
B42: 21 | C42: Nakładka CEG z mikrofibry na mop triple, długość 40 cm | D42: Mop trójskładnikowy DUO (kieszeń + klips), Wykonany z bawełny, mikrowłókna i poliestru, Długość: 40 cm | E42: szt | F42: =IF('Załącznik 13-F.O. Zad 11-15 '!$V$56,VLOOKUP(C42,'Załącznik 13-F.O. Zad 11-15 '!$C$52:$G$175,5,0),0) -> 0 | G42: 3 | H42: 0 | J42: 0 | K42: 0 | L42: 0 | M42: 2 | N42: 0 | O42: 0 | P42: 0 | R42: 0 | S42: 1 | T42: 0 | V42: 0
B43: 22 | C43: Ściereczki gąbczaste niebieskie, 3 sztuki | D43: Bardzo trwałe i chłonne ścierki gąbczaste, wzmocnione wewnętrzną bawełnianą siatką, Najlepsze do wycierania wody, zmywania powierzchni i usuwania brudu | E43: op. (3 szt) | F43: =IF('Załącznik 13-F.O. Zad 11-15 '!$V$56,VLOOKUP(C43,'Załącznik 13-F.O. Zad 11-15 '!$C$52:$G$175,5,0),0) -> 0 | G43: 83 | H43: 0 | I43: 52 | J43: 0 | K43: 13 | L43: 0 | M43: 5 | N43: 0 | O43: 12 | P43: 0 | R43: 0 | S43: 1 | T43: 0 | V43: 0
B44: 23 | C44: Ścierka do podłogi, 50 x 60 cm, pomarańczowa | D44: Ścierka do podłogi, 50 x 60 cm, pomarańczowaWymiary: 50 x 60 cm, Do czyszczenia dużych powierzchni | E44: szt | F44: =IF('Załącznik 13-F.O. Zad 11-15 '!$V$56,VLOOKUP(C44,'Załącznik 13-F.O. Zad 11-15 '!$C$52:$G$175,5,0),0) -> 0 | G44: 6 | H44: 0 | J44: 0 | K44: 2 | L44: 0 | M44: 3 | N44: 0 | O44: 0 | P44: 0 | R44: 0 | S44: 1 | T44: 0 | V44: 0
B45: 24 | C45: Ścierka z mikrofibry KOLORADO, 35 x 35 cm | D45: Ścierka z mikrofibry przeznaczona do czyszczenia powierzchni szklanych i stosowania w łazience, Skuteczna na sucho i mokro, Nie pozostawia smug, zacieków ani kłaczków, Skład: 80% poliester, 20% poliamid (nylon) | E45: szt | F45: =IF('Załącznik 13-F.O. Zad 11-15 '!$V$56,VLOOKUP(C45,'Załącznik 13-F.O. Zad 11-15 '!$C$52:$G$175,5,0),0) -> 0 | G45: 30 | H45: 0 | J45: 0 | K45: 4 | L45: 0 | M45: 12 | N45: 0 | O45: 6 | P45: 0 | Q45: 7 | R45: 0 | S45: 1 | T45: 0 | V45: 0
B46: 25 | C46: Ścierki uniwersalne Practi Maxi 50sztuk | D46: Ścierki uniwersalne Practi Maxi 50sztuk rozmiar 25 x 40 | E46: op (50 szt) | F46: =IF('Załącznik 13-F.O. Zad 11-15 '!$V$56,VLOOKUP(C46,'Załącznik 13-F.O. Zad 11-15 '!$C$52:$G$175,5,0),0) -> 0 | G46: 3 | H46: 0 | J46: 0 | K46: 0 | L46: 0 | M46: 2 | N46: 0 | O46: 0 | P46: 0 | R46: 0 | S46: 1 | T46: 0 | V46: 0
B47: 26 | C47: Ścierki uniwersalne, 5 sztuk | D47: Ścierki wielokrotnego użytku Można je prać i sterylizować Wykonane z wiskozy, pachnące Miks kolorów Wymiary: 37 x 38 cm | E47: op (5 szt) | F47: =IF('Załącznik 13-F.O. Zad 11-15 '!$V$56,VLOOKUP(C47,'Załącznik 13-F.O. Zad 11-15 '!$C$52:$G$175,5,0),0) -> 0 | G47: 20 | H47: 0 | J47: 0 | K47: 10 | L47: 0 | M47: 9 | N47: 0 | O47: 0 | P47: 0 | R47: 0 | S47: 1 | T47: 0 | V47: 0
B48: 27 | C48: Proszek do prania tkanin kolorowych DOSIA, 300 g | D48: Proszek do prania tkanin kolorowych do wszystkich typów pralek i do prania ręcznego Zawiera enzymy i aktywne składniki piorące Nie zawiera chlorowych wybielaczy: jest delikatna dla kolorowych i ciemnych tkanin Jednostka sprzedaży: 1 sztuka (300 g) | E48: op (300g) | F48: =IF('Załącznik 13-F.O. Zad 11-15 '!$V$56,VLOOKUP(C48,'Załącznik 13-F.O. Zad 11-15 '!$C$52:$G$175,5,0),0) -> 0 | G48: 64 | H48: 0 | J48: 0 | K48: 48 | L48: 0 | M48: 1 | N48: 0 | O48: 0 | P48: 0 | Q48: 14 | R48: 0 | S48: 1 | T48: 0 | V48: 0
B49: 28 | C49: Proszek do prania tkanin PUROX, 5 kg | D49: Do wszystkich typów pralek i do prania ręcznego, Jednostka sprzedaży: 1 opakowanie (5 kg), Składniki: do 5% anionowe i niejonowe środki powierzchniowo czynne, enzymy, kompozycja zapachowa, krzemiany, niejonowe środki powierzchniowo, czynne, regulatory piany, rozjaśniacze optyczne, związki wybielające na bazie tlenu | E49: op (5 kg) | F49: =IF('Załącznik 13-F.O. Zad 11-15 '!$V$56,VLOOKUP(C49,'Załącznik 13-F.O. Zad 11-15 '!$C$52:$G$175,5,0),0) -> 0 | G49: 8 | H49: 0 | J49: 0 | K49: 0 | L49: 0 | M49: 0 | N49: 0 | O49: 0 | P49: 0 | Q49: 7 | R49: 0 | S49: 1 | T49: 0 | V49: 0
B50: 29 | C50: Chusteczki FELLOWES do czyszczenia ekranów, opakowanie 100szt | D50: Chusteczki FELLOWES do czyszczenia ekranów, opakowanie 100szt | E50: op (100 szt) | F50: =IF('Załącznik 13-F.O. Zad 11-15 '!$V$56,VLOOKUP(C50,'Załącznik 13-F.O. Zad 11-15 '!$C$52:$G$175,5,0),0) -> 0 | G50: 41 | H50: 0 | I50: 10 | J50: 0 | K50: 10 | L50: 0 | M50: 11 | N50: 0 | O50: 2 | P50: 0 | R50: 0 | S50: 1 | T50: 0 | U50: 7 | V50: 0
B51: 30 | C51: Płyn AJAX Floral Fiesta, 1 l | D51: Doskonale usuwa kurz i brud, pozostawiając na długo świeży zapach Miks zapachów Pojemność: 1 l Jednostka sprzedaży 1 sztuka | E51: op (1l) | F51: =IF('Załącznik 13-F.O. Zad 11-15 '!$V$56,VLOOKUP(C51,'Załącznik 13-F.O. Zad 11-15 '!$C$52:$G$175,5,0),0) -> 0 | G51: 19 | H51: 0 | J51: 0 | K51: 12 | L51: 0 | M51: 6 | N51: 0 | O51: 0 | P51: 0 | R51: 0 | S51: 1 | T51: 0 | V51: 0
B52: 31 | C52: Preparat do usuwania tłustego brudu VOIGT C457 Ultra Clean plus 1 l | D52: Odtłuszczanie, gruntowne mycie bez fosforanów – Produkt do profesjonalnego zastosowania, Nie zawierający fosforanów, Usuwa zabrudzenia pochodzenia tłuszczowego i przemysłowego m.in. oleje, smary. Zalecany do: warsztatów, hal produkcyjnych, galerii handlowych, centrów logistycznych | E52: op (1l) | F52: =IF('Załącznik 13-F.O. Zad 11-15 '!$V$56,VLOOKUP(C52,'Załącznik 13-F.O. Zad 11-15 '!$C$52:$G$175,5,0),0) -> 0 | G52: 1 | H52: 0 | J52: 0 | K52: 0 | L52: 0 | M52: 0 | N52: 0 | O52: 0 | P52: 0 | R52: 0 | S52: 1 | T52: 0 | V52: 0
B53: 32 | C53: Rozpuszczalnik do etykiet w sprayu, pojemność 200 ml | D53: Produkt zapewnia w pełni bezpieczne usunięcie etykiet z dowolnej powierzchni, nie pozostawiając żadnych, śladów kleju. Pojemność 200 ml. | E53: op (200 ml) | F53: =IF('Załącznik 13-F.O. Zad 11-15 '!$V$56,VLOOKUP(C53,'Załącznik 13-F.O. Zad 11-15 '!$C$52:$G$175,5,0),0) -> 0 | G53: 12 | H53: 0 | I53: 1 | J53: 0 | K53: 4 | L53: 0 | M53: 6 | N53: 0 | O53: 0 | P53: 0 | R53: 0 | S53: 1 | T53: 0 | V53: 0
B54: 33 | C54: Gąbka do zmywania różowa, 5 sztuk | D54: Gąbka do różnorodnych zastosowań, Kolor: różowy | E54: op (5 szt) | F54: =IF('Załącznik 13-F.O. Zad 11-15 '!$V$56,VLOOKUP(C54,'Załącznik 13-F.O. Zad 11-15 '!$C$52:$G$175,5,0),0) -> 0 | G54: 26 | H54: 0 | J54: 0 | K54: 3 | L54: 0 | M54: 7 | N54: 0 | O54: 5 | P54: 0 | R54: 0 | S54: 1 | T54: 0 | U54: 10 | V54: 0
B55: 34 | C55: Gąbki do zmywania standardowa, 5 sztuk | D55: Do zmywania naczyń, szkła, ceramiki, powierzchni emaliowanych Wytrzymała Miks kolorów w opakowaniu Jednostka sprzedaży: 1 opakowanie (5 sztuk) Opakowanie zbiorcze: 18 opakowań | E55: op (5 szt) | F55: =IF('Załącznik 13-F.O. Zad 11-15 '!$V$56,VLOOKUP(C55,'Załącznik 13-F.O. Zad 11-15 '!$C$52:$G$175,5,0),0) -> 0 | G55: 284 | H55: 0 | I55: 132 | J55: 0 | K55: 2 | L55: 0 | M55: 31 | N55: 0 | O55: 1 | P55: 0 | Q55: 107 | R55: 0 | S55: 1 | T55: 0 | U55: 10 | V55: 0
B56: 35 | C56: Kuchenka mikrofalowa SEVERIN 7890/7862, biała | D56: 5 poziomów mocy, Rozmrażanie w oparciu o czas i wagę, 35-minutowy timer z sygnałem akustycznym, Pokrętło regulacyjne z chromowanymi elementami, Średnica wyjmowanego talerza ok. 25,4 cm, Wysokość komory ok. 16,5 cm, Obudowa i komora lakierowana powłoką odporną na wysokie temperatur, Wymiary: szer. 43,5, gł. 34,5, wys. 25,4 cm, Moc: 700 W | E56: szt | F56: =IF('Załącznik 13-F.O. Zad 11-15 '!$V$56,VLOOKUP(C56,'Załącznik 13-F.O. Zad 11-15 '!$C$52:$G$175,5,0),0) -> 0 | G56: 6 | H56: 0 | J56: 0 | K56: 2 | L56: 0 | M56: 3 | N56: 0 | O56: 0 | P56: 0 | R56: 0 | S56: 1 | T56: 0 | V56: 0
B57: 36 | C57: Jednorazowa maska higieniczna 3-warstwowa, niebieska, 50 sztuk | D57: Trójwarstwowa maska higieniczna. Wykonana z włókniny polipropylenowej (100%). Materiał: Texfil 25 (Spunbond) + Texfil 25 (Spunbond) + Texfil 25 (Spunbond). Gramatura: 25 gsm + 25 gsm + 25 gsm= 75 gsm. Gumki – długość 16cm - 18cm (± 1cm). | E57: op (50szt) | F57: =IF('Załącznik 13-F.O. Zad 11-15 '!$V$56,VLOOKUP(C57,'Załącznik 13-F.O. Zad 11-15 '!$C$52:$G$175,5,0),0) -> 0 | G57: 137 | H57: 0 | I57: 85 | J57: 0 | K57: 0 | L57: 0 | M57: 11 | N57: 0 | O57: 40 | P57: 0 | R57: 0 | S57: 1 | T57: 0 | V57: 0
B58: 37 | C58: Półmaska FILTERSERVICE FS-623V NR D, FFP2, z zaworem, 10 sztuk | D58: Czasza półmaski: - Igłowana włóknina poliestrowa, - Włóknina polipropylenowa typu melt blown, - Włóknina osłonowa, - Zawór wydechowy, - Zapinki taśm nagłowia, - Taśma nagłowia | E58: op (10szt) | F58: =IF('Załącznik 13-F.O. Zad 11-15 '!$V$56,VLOOKUP(C58,'Załącznik 13-F.O. Zad 11-15 '!$C$52:$G$175,5,0),0) -> 0 | G58: 1 | H58: 0 | J58: 0 | K58: 0 | L58: 0 | M58: 0 | N58: 0 | O58: 0 | P58: 0 | R58: 0 | S58: 1 | T58: 0 | V58: 0
B59: 38 | C59: Nawilżacz powietrza NU 5N | D59: 4 poziomy intensywności nawilżania, Automatyczna kontrola wilgotności, Demontowany zasobnik wody 5,2 l, Funkcja jonizacji | E59: szt | F59: =IF('Załącznik 13-F.O. Zad 11-15 '!$V$56,VLOOKUP(C59,'Załącznik 13-F.O. Zad 11-15 '!$C$52:$G$175,5,0),0) -> 0 | G59: 8 | H59: 0 | I59: 4 | J59: 0 | K59: 0 | L59: 0 | M59: 3 | N59: 0 | O59: 0 | P59: 0 | R59: 0 | S59: 1 | T59: 0 | V59: 0
B60: 39 | C60: Odświeżacz powietrza AMBI PUR, zapach kwiatowy, 300 ml | D60: Wypełnia pomieszczenie zapachem najpiękniejszego wiosennego bukietu Pojemność: 300 ml Jednostka sprzedaży: 1 sztuka Opakowanie zbiorcze: 6 sztuk | E60: szt | F60: =IF('Załącznik 13-F.O. Zad 11-15 '!$V$56,VLOOKUP(C60,'Załącznik 13-F.O. Zad 11-15 '!$C$52:$G$175,5,0),0) -> 0 | G60: 20 | H60: 0 | J60: 0 | K60: 5 | L60: 0 | M60: 8 | N60: 0 | O60: 6 | P60: 0 | R60: 0 | S60: 1 | T60: 0 | V60: 0
B61: 40 | C61: Odświeżacz powietrza BRISE w sprayu | D61: Odświeżając pomieszczenia pozostawia przyjemny zapach Pojemność: 300 ml Jednostka sprzedaży: 1 sztuka | E61: szt. | F61: =IF('Załącznik 13-F.O. Zad 11-15 '!$V$56,VLOOKUP(C61,'Załącznik 13-F.O. Zad 11-15 '!$C$52:$G$175,5,0),0) -> 0 | G61: 31 | H61: 0 | I61: 5 | J61: 0 | K61: 0 | L61: 0 | M61: 0 | N61: 0 | O61: 5 | P61: 0 | Q61: 20 | R61: 0 | S61: 1 | T61: 0 | V61: 0
B62: 41 | C62: Odświeżacz powietrza BRISE w żelu, miks zapachów | D62: Masa netto: 150 g Miks zapachów Jednostka sprzedaży: 1 sztuka | E62: szt. | F62: =IF('Załącznik 13-F.O. Zad 11-15 '!$V$56,VLOOKUP(C62,'Załącznik 13-F.O. Zad 11-15 '!$C$52:$G$175,5,0),0) -> 0 | G62: 24 | H62: 0 | I62: 2 | J62: 0 | K62: 12 | L62: 0 | M62: 2 | N62: 0 | O62: 0 | P62: 0 | Q62: 7 | R62: 0 | S62: 1 | T62: 0 | V62: 0
B63: 42 | C63: Odświeżacz powietrza GREEN FRESH, 400 ml | D63: Skutecznie neutralizuje i pochłania nieprzyjemne zapachy Odświeża i nawilża powietrze, pozostawiając w pomieszczeniu uczucie świeżości i czystości Pojemność: 400 ml Jednostka sprzedaży: 1 sztuka | E63: op. (400 ml) | F63: =IF('Załącznik 13-F.O. Zad 11-15 '!$V$56,VLOOKUP(C63,'Załącznik 13-F.O. Zad 11-15 '!$C$52:$G$175,5,0),0) -> 0 | G63: 4 | H63: 0 | J63: 0 | K63: 0 | L63: 0 | M63: 3 | N63: 0 | O63: 0 | P63: 0 | R63: 0 | S63: 1 | T63: 0 | V63: 0
B64: 43 | C64: Patyczki zapachowe PACHNĄCA SZAFA, Słoneczne popołudnie, 50 ml | D64: Patyczki zapachowe PACHNĄCA SZAFA nadają przyjemny i odświeżający zapach w każdym pomieszczeniu. Odświeżać ma bardzo ładną formę eleganckich patyczków w szklanym flakoniku. | E64: op (50 ml) | F64: =IF('Załącznik 13-F.O. Zad 11-15 '!$V$56,VLOOKUP(C64,'Załącznik 13-F.O. Zad 11-15 '!$C$52:$G$175,5,0),0) -> 0 | G64: 8 | H64: 0 | J64: 0 | K64: 0 | L64: 0 | M64: 7 | N64: 0 | O64: 0 | P64: 0 | R64: 0 | S64: 1 | T64: 0 | V64: 0
B65: 44 | C65: Wkład do odświeżacza AMBI PUR, zapach ocean and wind | D65: Wkład do elektrycznego odświeżacza powietrza AMBI PUR (6.630.347) Wydajność wkładów: do 80 dni Jednostka sprzedaży: 1 sztuka | E65: szt | F65: =IF('Załącznik 13-F.O. Zad 11-15 '!$V$56,VLOOKUP(C65,'Załącznik 13-F.O. Zad 11-15 '!$C$52:$G$175,5,0),0) -> 0 | G65: 16 | H65: 0 | J65: 0 | K65: 6 | L65: 0 | M65: 3 | N65: 0 | O65: 6 | P65: 0 | R65: 0 | S65: 1 | T65: 0 | V65: 0
B66: 45 | C66: Papier toaletowy CLASSIC, biały, 8 rolek | D66: Papier toaletowy CLASSIC, biały, 8 rolek Wymiary listka: szer. 100 x dł. 112 mm, Szerokość taśmy: 100 mm | E66: op. (8 rolek) | F66: =IF('Załącznik 13-F.O. Zad 11-15 '!$V$56,VLOOKUP(C66,'Załącznik 13-F.O. Zad 11-15 '!$C$52:$G$175,5,0),0) -> 0 | G66: 89 | H66: 0 | J66: 0 | K66: 80 | L66: 0 | M66: 8 | N66: 0 | O66: 0 | P66: 0 | R66: 0 | S66: 1 | T66: 0 | V66: 0
B67: 46 | C67: Papier toaletowy ELLIS PROFESSIONAL JUMBO 130/2, 12 rolek | D67: Papier do użytku profesjonalnego w pomieszczeniach o zwiększonym natężeniu użytkowania, Materiał: celuloza dwuwarstwowa, Gramatura: 2 x 16 g/m², Długość roli: 120 m; średnica roli: 19 cm; średnica gilzy: 6 cm | E67: op (12 rolek) | F67: =IF('Załącznik 13-F.O. Zad 11-15 '!$V$56,VLOOKUP(C67,'Załącznik 13-F.O. Zad 11-15 '!$C$52:$G$175,5,0),0) -> 0 | G67: 11 | H67: 0 | J67: 0 | K67: 10 | L67: 0 | M67: 0 | N67: 0 | O67: 0 | P67: 0 | R67: 0 | S67: 1 | T67: 0 | V67: 0
B68: 47 | C68: Papier toaletowy KATRIN 11296 PLUS 160, biały, 8 rolek | D68: Papier toaletowy KATRIN 11296 PLUS 160, biały, 8 rolek Gramatura: 2 x 16,5 g/m², Długość jednej rolki: 18,3 m | E68: op. (8 rolek) | F68: =IF('Załącznik 13-F.O. Zad 11-15 '!$V$56,VLOOKUP(C68,'Załącznik 13-F.O. Zad 11-15 '!$C$52:$G$175,5,0),0) -> 0 | G68: 1 | H68: 0 | J68: 0 | K68: 0 | L68: 0 | M68: 0 | N68: 0 | O68: 0 | P68: 0 | R68: 0 | S68: 1 | T68: 0 | V68: 0
B69: 48 | C69: Supermocny Plaster do cięcia VISCOPLAST, 1 m x 8 cm | D69: Opatrunek włókninowy o wysokiej chłonności, Plaster natychmiast przykleja się do skóry, nawet do wilgotnej, Ogranicza przywieranie opatrunku do rany | E69: op (1m) | F69: =IF('Załącznik 13-F.O. Zad 11-15 '!$V$56,VLOOKUP(C69,'Załącznik 13-F.O. Zad 11-15 '!$C$52:$G$175,5,0),0) -> 0 | G69: 11 | H69: 0 | I69: 5 | J69: 0 | K69: 4 | L69: 0 | M69: 1 | N69: 0 | O69: 0 | P69: 0 | R69: 0 | S69: 1 | T69: 0 | V69: 0
B70: 49 | C70: Uniwersalny zestaw plastrów 3M VISCOPLAST, 24 sztuki | D70: Plastry z opatrunkiem do opatrywania drobnych ran i skaleczeń Hypoalergiczne i wodoodporne Przepuszczające powietrze W opakowaniu 24 plastry: plastry Minifol: 72 x 25 mm - 4 sztuki, 72 x 19 mm - 8 sztuk, 57 x 16 mm - 6 sztuk, 38x10 mm - 4 sztuki Plaster Prestopor 10 x 6 cm Plaster Prestovis Plus 10 x 6 cm Jednostka sprzedaży: 1 opakowanie | E70: op. ( 24 szt) | F70: =IF('Załącznik 13-F.O. Zad 11-15 '!$V$56,VLOOKUP(C70,'Załącznik 13-F.O. Zad 11-15 '!$C$52:$G$175,5,0),0) -> 0 | G70: 20 | H70: 0 | I70: 1 | J70: 0 | K70: 10 | L70: 0 | M70: 3 | N70: 0 | O70: 5 | P70: 0 | R70: 0 | S70: 1 | T70: 0 | V70: 0
B71: 50 | C71: Krem do rąk EVELINE ''Niewidzialne rękawiczki'', 100 ml | D71: Odżywczo-ochronny krem do rąk z formułą witaminową Polecany do suchych i podrażnionych dłoni Pojemność: 100 ml Jednostka sprzedaży: 1 sztuka | E71: op do (100 ml) | F71: =IF('Załącznik 13-F.O. Zad 11-15 '!$V$56,VLOOKUP(C71,'Załącznik 13-F.O. Zad 11-15 '!$C$52:$G$175,5,0),0) -> 0 | G71: 91 | H71: 0 | J71: 0 | K71: 90 | L71: 0 | M71: 0 | N71: 0 | O71: 0 | P71: 0 | R71: 0 | S71: 1 | T71: 0 | V71: 0
B72: 51 | C72: Krem do rąk GARNIER do skóry bardzo suchej, 100 g | D72: Regeneruje i odżywia zniszczoną skórę dłoni Zawiera alantoinę, glicerynę oraz czynnik filtrującyJednostka sprzedaży: 1 sztuka (100 g) | E72: op. (100 g) | F72: =IF('Załącznik 13-F.O. Zad 11-15 '!$V$56,VLOOKUP(C72,'Załącznik 13-F.O. Zad 11-15 '!$C$52:$G$175,5,0),0) -> 0 | G72: 747 | H72: 0 | J72: 0 | K72: 216 | L72: 0 | M72: 0 | N72: 0 | O72: 528 | P72: 0 | Q72: 2 | R72: 0 | S72: 1 | T72: 0 | V72: 0
B73: 52 | C73: Ręcznik MALFINI, chabrowy, 70x140 cm | D73: Tkana metka, która może również służyć jako wieszaczek, Ozdobiony wyszywaną bordiurą po obu brzegach, Sklad: 100% bawełna, frotte, Gramatura: 450g/m², Kolor: chabrowy, Rozmiar: 70x140 cm | E73: szt | F73: =IF('Załącznik 13-F.O. Zad 11-15 '!$V$56,VLOOKUP(C73,'Załącznik 13-F.O. Zad 11-15 '!$C$52:$G$175,5,0),0) -> 0 | G73: 155 | H73: 0 | J73: 0 | K73: 23 | L73: 0 | M73: 1 | N73: 0 | O73: 106 | P73: 0 | Q73: 24 | R73: 0 | S73: 1 | T73: 0 | V73: 0
B74: 53 | C74: Ręcznik MALFINI, granatowy, 50x100 cm | D74: Tkana metka, która może również służyć jako wieszaczek, Ozdobiony wyszywaną bordiurą po obu brzegach, Sklad: 100% bawełna, frotte, Gramatura: 450g/m², Kolor: granatowy | E74: szt | F74: =IF('Załącznik 13-F.O. Zad 11-15 '!$V$56,VLOOKUP(C74,'Załącznik 13-F.O. Zad 11-15 '!$C$52:$G$175,5,0),0) -> 0 | G74: 22 | H74: 0 | J74: 0 | K74: 21 | L74: 0 | M74: 0 | N74: 0 | O74: 0 | P74: 0 | R74: 0 | S74: 1 | T74: 0 | V74: 0
B75: 54 | C75: Ręcznik MALFINI, szaro-czarny, 50x100 cm | D75: Wykonane z wysokiej jakości frotte, odpowiednie pod haft, Miękkie, miłe w dotyku, dobrze absorbują wodę, Tkana metka, która może również służyć jako wieszaczek, Ozdobiony wyszywaną bordiurą po obu brzegach, Sklad: 100% bawełna, frotte, Gramatura: 450g/m² kolor szaroczany | E75: szt | F75: =IF('Załącznik 13-F.O. Zad 11-15 '!$V$56,VLOOKUP(C75,'Załącznik 13-F.O. Zad 11-15 '!$C$52:$G$175,5,0),0) -> 0 | G75: 22 | H75: 0 | J75: 0 | K75: 21 | L75: 0 | M75: 0 | N75: 0 | O75: 0 | P75: 0 | R75: 0 | S75: 1 | T75: 0 | V75: 0
B76: 55 | C76: Ręcznik MALFINI, szaro-czarny, 70x140 cm | D76: Tkana metka, która może również służyć jako wieszaczek, Ozdobiony wyszywaną bordiurą po obu brzegach, Sklad: 100% bawełna, frotte, Gramatura: 450g/m², Kolor: szaroczarny Rozmiar: 70x140 cm | E76: szt | F76: =IF('Załącznik 13-F.O. Zad 11-15 '!$V$56,VLOOKUP(C76,'Załącznik 13-F.O. Zad 11-15 '!$C$52:$G$175,5,0),0) -> 0 | G76: 26 | H76: 0 | J76: 0 | K76: 5 | L76: 0 | M76: 0 | N76: 0 | O76: 0 | P76: 0 | Q76: 20 | R76: 0 | S76: 1 | T76: 0 | V76: 0
B77: 56 | C77: Chusteczki higieniczne VELVET, 120 sztuk | D77: Chusteczki higieniczne VELVET, 120 sztuk. W opakowaniu 120 sztuk, Produkt ma atest PZH, | E77: op (120 szt) | F77: =IF('Załącznik 13-F.O. Zad 11-15 '!$V$56,VLOOKUP(C77,'Załącznik 13-F.O. Zad 11-15 '!$C$52:$G$175,5,0),0) -> 0 | G77: 24 | H77: 0 | I77: 1 | J77: 0 | K77: 0 | L77: 0 | M77: 11 | N77: 0 | O77: 10 | P77: 0 | Q77: 1 | R77: 0 | S77: 1 | T77: 0 | V77: 0
B78: 57 | C78: Ręcznik w roli ESTIMO 100/2, 500 listków | D78: Wytrzymały, dwuwarstwowy ręcznik w 100% wykonany z celulozy o wysokich parametrach i pięknym designie Długość rolki: 100 m W rolce 500 odcinków o wymiarach: 20,3 x 20 cm Kolor biały Jednostka sprzedaży: 1 rolka | E78: op. (rolka 100 m) | F78: =IF('Załącznik 13-F.O. Zad 11-15 '!$V$56,VLOOKUP(C78,'Załącznik 13-F.O. Zad 11-15 '!$C$52:$G$175,5,0),0) -> 0 | G78: 14 | H78: 0 | J78: 0 | K78: 0 | L78: 0 | M78: 13 | N78: 0 | O78: 0 | P78: 0 | R78: 0 | S78: 1 | T78: 0 | V78: 0
B79: 58 | C79: Ręczniki papierowe białe, składka V, 20 x 200 listków | D79: Gofrowane ręczniki w składce Kompatybilne ze standardowymi dozownikami do ręczników typu ZZ Materiał: makulatura jednowarstwowa Wymiary listka: 25 x 23 cm Gramatura: 1 x 30 g/m² Ilość bind w opakowaniu: 20 Ilość listków w bindzie: 200 Kolor: biały Jednostka sprzedaży: 1 karton (4000 listków) | E79: op. (20 x 200 listków) | F79: =IF('Załącznik 13-F.O. Zad 11-15 '!$V$56,VLOOKUP(C79,'Załącznik 13-F.O. Zad 11-15 '!$C$52:$G$175,5,0),0) -> 0 | G79: 51 | H79: 0 | I79: 34 | J79: 0 | K79: 12 | L79: 0 | M79: 4 | N79: 0 | O79: 0 | P79: 0 | R79: 0 | S79: 1 | T79: 0 | V79: 0
B80: 59 | C80: Ręczniki papierowe MERIDA składka V, 20 x 160 listków | D80: Gofrowane ręczniki w składce wysokiej chłonności Kompatybilne ze standardowymi dozownikami do ręczników typu ZZ Materiał: makulatura dwuwarstwowa Wymiary listka: 25 x 23 cm Gramatura:2 x 19 g/m² Tłoczenie: nie Ilość bind w opakowaniu: 20 Ilość listków w bindzie: 160 Kolor: biały Jednostka sprzedaży: 1 karton (3200 listków) | E80: op. (20 x 160 listków) | F80: =IF('Załącznik 13-F.O. Zad 11-15 '!$V$56,VLOOKUP(C80,'Załącznik 13-F.O. Zad 11-15 '!$C$52:$G$175,5,0),0) -> 0 | G80: 9 | H80: 0 | J80: 0 | K80: 6 | L80: 0 | M80: 2 | N80: 0 | O80: 0 | P80: 0 | R80: 0 | S80: 1 | T80: 0 | V80: 0
B81: 60 | C81: Ręczniki papierowe zielone, składka V, 20 x 200 listków | D81: Gofrowane ręczniki w składce wysokiej chłonności Kompatybilne ze standardowymi dozownikami do ręczników typu ZZ Materiał: makulatura jednowarstwowa Wymiary listka: 25 x 23 cm Gramatura:2 x 19 g/m² Tłoczenie: nie Ilość bind w opakowaniu: 20 Ilość listków w bindzie: 160 Kolor: zielon. | E81: op. (20 x 200 listków) | F81: =IF('Załącznik 13-F.O. Zad 11-15 '!$V$56,VLOOKUP(C81,'Załącznik 13-F.O. Zad 11-15 '!$C$52:$G$175,5,0),0) -> 0 | G81: 1 | H81: 0 | J81: 0 | K81: 0 | L81: 0 | M81: 0 | N81: 0 | O81: 0 | P81: 0 | R81: 0 | S81: 1 | T81: 0 | V81: 0
B82: 61 | C82: Ręczniki w roli TORK UNIVERSAL Extra Długie do systemu TORK Matic H1, 6 rolek | D82: Materiał: makulatura jednowarstwowa, Tłoczenie: nie, Ilość listków:1120, Długość roli: 280 m; wysokość roli: 21 cm; średnica roli: 19 cm; średnica gilzy: 3,8 cm | E82: op. (6 rolek) | F82: =IF('Załącznik 13-F.O. Zad 11-15 '!$V$56,VLOOKUP(C82,'Załącznik 13-F.O. Zad 11-15 '!$C$52:$G$175,5,0),0) -> 0 | G82: 55 | H82: 0 | I82: 54 | J82: 0 | K82: 0 | L82: 0 | M82: 0 | N82: 0 | O82: 0 | P82: 0 | R82: 0 | S82: 1 | T82: 0 | V82: 0
B83: 62 | C83: Rękawice antystatyczne ANSELL HyFlex® 11-800, rozmiar 9, para | D83: Nylonowe rękawice z powłoką z pianki nitrylowej, wykonane w technologii KnitZonz™ Wszechstronne rozwiązanie do precyzyjnego montażu i prac ogólnych Zaawansowana technologia dziania zapewnia większą rozciągliwość i elastyczność w miejscach o zwiększonym nacisku Antystatyczne, zgodne z normą EN 1149 Norma EN 388 3131 (EN 388:2016 3131A) Rozmiar: 9 Jednostka sprzedaży: 1 para | E83: op. (1 para) | F83: =IF('Załącznik 13-F.O. Zad 11-15 '!$V$56,VLOOKUP(C83,'Załącznik 13-F.O. Zad 11-15 '!$C$52:$G$175,5,0),0) -> 0 | G83: 6 | H83: 0 | J83: 0 | K83: 0 | L83: 0 | M83: 0 | N83: 0 | O83: 0 | P83: 0 | Q83: 5 | R83: 0 | S83: 1 | T83: 0 | V83: 0
B84: 63 | C84: Rękawice DELTAPLUS VV835 Chemsafe, rozmiar 11, para | D84: Rękawica z podwójną powłoką nitrylową na wkładzie z poliamidu, Trzecia powłoka z szorstkiej pianki nitrylowej na stronie chwytnej i końcach palców, Długość: 35 cm, Grubość: 1,15 mm - 1,30 mm na stronie chwytnej | E84: op, 1 (para) | F84: =IF('Załącznik 13-F.O. Zad 11-15 '!$V$56,VLOOKUP(C84,'Załącznik 13-F.O. Zad 11-15 '!$C$52:$G$175,5,0),0) -> 0 | G84: 1 | H84: 0 | J84: 0 | K84: 0 | L84: 0 | M84: 0 | N84: 0 | O84: 0 | P84: 0 | R84: 0 | S84: 1 | T84: 0 | V84: 0
B85: 64 | C85: Rękawice nitrylowe MEDASEPT PF, czarne, rozmiar S, 100 sztuk | D85: Uniwersalne, rękawice pasujące na prawą i lewą dłoń, Nitrylowe, Tekstura na końcach palców, Rozmiar S | E85: op. (100 szt) | F85: =IF('Załącznik 13-F.O. Zad 11-15 '!$V$56,VLOOKUP(C85,'Załącznik 13-F.O. Zad 11-15 '!$C$52:$G$175,5,0),0) -> 0 | G85: 54 | H85: 0 | I85: 20 | J85: 0 | K85: 0 | L85: 0 | M85: 6 | N85: 0 | O85: 0 | P85: 0 | Q85: 27 | R85: 0 | S85: 1 | T85: 0 | V85: 0
B86: 65 | C86: Rękawice nitrylowe MEDASEPT PREMIER, niebieskie, rozmiar XL, 100 sztuk | D86: Rękawice nitrylowe diagnostyczne i ochronne (kat. III), Bezpudrowe., Uniwersalny kształt pasuje na obie dłonie, Tekstura na końcach palców, Przeznaczone do kontaktu z żywnością. | E86: op. (100 szt) | F86: =IF('Załącznik 13-F.O. Zad 11-15 '!$V$56,VLOOKUP(C86,'Załącznik 13-F.O. Zad 11-15 '!$C$52:$G$175,5,0),0) -> 0 | G86: 33 | H86: 0 | I86: 5 | J86: 0 | K86: 0 | L86: 0 | M86: 0 | N86: 0 | O86: 0 | P86: 0 | Q86: 27 | R86: 0 | S86: 1 | T86: 0 | V86: 0
B87: 66 | C87: Rękawice nitrylowe MEDASEPT PRIME, niebieskie, rozmiar L, 100 sztuk | D87: Rękawice nitrylowe diagnostyczne i ochronne, Bezpudrowe. Uniwersalny kształt pasuje na obie dłonie. | E87: op. (100 szt) | F87: =IF('Załącznik 13-F.O. Zad 11-15 '!$V$56,VLOOKUP(C87,'Załącznik 13-F.O. Zad 11-15 '!$C$52:$G$175,5,0),0) -> 0 | G87: =I87+K87+M87+O87+Q87+S87+U87 -> 68 | H87: =G87*F87 -> 0 | I87: 20 | J87: =I87*F87 -> 0 | K87: 0 | L87: =K87*F87 -> 0 | M87: 0 | N87: =M87*F87 -> 0 | O87: 20 | P87: =O87*F87 -> 0 | Q87: 27 | R87: =Q87*F87 -> 0 | S87: 1 | T87: =S87*F87 -> 0 | V87: =U87*F87 -> 0
B88: 67 | C88: Rękawice nitrylowe MEDASEPT PRIME, niebieskie, rozmiar M, 100 sztuk | D88: Rękawice nitrylowe diagnostyczne i ochronne | E88: op. (100 szt) | F88: =IF('Załącznik 13-F.O. Zad 11-15 '!$V$56,VLOOKUP(C88,'Załącznik 13-F.O. Zad 11-15 '!$C$52:$G$175,5,0),0) -> 0 | G88: 118 | H88: 0 | I88: 67 | J88: 0 | K88: 3 | L88: 0 | M88: 0 | N88: 0 | O88: 20 | P88: 0 | Q88: 27 | R88: 0 | S88: 1 | T88: 0 | V88: 0
B89: 68 | C89: Ręcznik kuchenny VELVET Jumbo, 1 rolka | D89: Dwuwarstwowy ręcznik papierowy, który świetnie nadaje się do generalnych porządków, prac w garażu, ogrodzie oraz w kuchni Giga rola = 13 standardowych rolek Nie tylko chłonny i wytrzymały, ale także wyjątkowo wydajny Jedna rolka zawiera aż 520 listków Wysokość rolki: 22 cm Kolor biały Jednostka sprzedaży: 1 rolka | E89: szt ( 1 rolka) | F89: =IF('Załącznik 13-F.O. Zad 11-15 '!$V$56,VLOOKUP(C89,'Załącznik 13-F.O. Zad 11-15 '!$C$52:$G$175,5,0),0) -> 0 | G89: 11 | H89: 0 | J89: 0 | K89: 0 | L89: 0 | M89: 5 | N89: 0 | O89: 5 | P89: 0 | R89: 0 | S89: 1 | T89: 0 | V89: 0
B90: 69 | C90: Ręcznik papierowy BRATEK biały, 2 rolki | D90: Ręczniki kuchenne, dwuwarstwowe, celulozowe Szerokość rolki: 22 cm Długość rolki: 11 m Jednostka sprzedaży: 1 opakowanie (2 sztuki) | E90: op (2 rolki) | F90: =IF('Załącznik 13-F.O. Zad 11-15 '!$V$56,VLOOKUP(C90,'Załącznik 13-F.O. Zad 11-15 '!$C$52:$G$175,5,0),0) -> 0 | G90: 15 | H90: 0 | I90: 13 | J90: 0 | K90: 0 | L90: 0 | M90: 1 | N90: 0 | O90: 0 | P90: 0 | R90: 0 | S90: 1 | T90: 0 | V90: 0
B91: 70 | C91: Ręczniki kuchenne AHA, 2 rolki | D91: Dwuwarstwowy ręcznik wykonany z czystej celulozy W rolce 50 odcinków o wymiarach: 23 x 20 cm W opakowaniu: 2 rolki Kolor biały Jednostka sprzedaży: 1 opakowanie | E91: op (2 rolki) | F91: =IF('Załącznik 13-F.O. Zad 11-15 '!$V$56,VLOOKUP(C91,'Załącznik 13-F.O. Zad 11-15 '!$C$52:$G$175,5,0),0) -> 0 | G91: 16 | H91: 0 | J91: 0 | K91: 6 | L91: 0 | M91: 5 | N91: 0 | O91: 0 | P91: 0 | Q91: 4 | R91: 0 | S91: 1 | T91: 0 | V91: 0
B92: 71 | C92: Ręczniki kuchenne VELVET, 2 rolki | D92: Produkt wolny od bisfenolu A (BPA FREE), posiada atest NIZP-PZH | E92: op. (2 rolki) | F92: =IF('Załącznik 13-F.O. Zad 11-15 '!$V$56,VLOOKUP(C92,'Załącznik 13-F.O. Zad 11-15 '!$C$52:$G$175,5,0),0) -> 0 | G92: 132 | H92: 0 | J92: 0 | K92: 100 | L92: 0 | M92: 19 | N92: 0 | O92: 0 | P92: 0 | Q92: 12 | R92: 0 | S92: 1 | T92: 0 | V92: 0
B93: 72 | C93: Łyżeczki do herbaty AMEFA Bologna, 12 sztuk | D93: subtelne i eleganckie łyżeczki do herbaty, Sztućce polerowane, stal 18/0 | E93: op (12 szt) | F93: =IF('Załącznik 13-F.O. Zad 11-15 '!$V$56,VLOOKUP(C93,'Załącznik 13-F.O. Zad 11-15 '!$C$52:$G$175,5,0),0) -> 0 | G93: 11 | H93: 0 | J93: 0 | K93: 1 | L93: 0 | M93: 9 | N93: 0 | O93: 0 | P93: 0 | R93: 0 | S93: 1 | T93: 0 | V93: 0
B94: 73 | C94: Łyżeczki do kawy AMEFA Bologna, 12 sztuk | D94: Klasyczne, proste w formie, subtelne i eleganckie łyżeczki do kawy Dobra jakość w atrakcyjnej cenie powodują, iż linia od lat cieszy się wyjątkową popularnością Sztućce polerowane, stal 18/0 | E94: op (12 szt) | F94: =IF('Załącznik 13-F.O. Zad 11-15 '!$V$56,VLOOKUP(C94,'Załącznik 13-F.O. Zad 11-15 '!$C$52:$G$175,5,0),0) -> 0 | G94: 4 | H94: 0 | J94: 0 | K94: 1 | L94: 0 | M94: 2 | N94: 0 | O94: 0 | P94: 0 | R94: 0 | S94: 1 | T94: 0 | V94: 0
B95: 74 | C95: Łyżki AMEFA Bologna, 12 sztuk | D95: Sztućce polerowane, stal 18/0 | E95: op (12 szt) | F95: =IF('Załącznik 13-F.O. Zad 11-15 '!$V$56,VLOOKUP(C95,'Załącznik 13-F.O. Zad 11-15 '!$C$52:$G$175,5,0),0) -> 0 | G95: 6 | H95: 0 | J95: 0 | K95: 1 | L95: 0 | M95: 4 | N95: 0 | O95: 0 | P95: 0 | R95: 0 | S95: 1 | T95: 0 | V95: 0
B96: 75 | C96: Widelce AMEFA Bologna, 12 sztuk | D96: Sztućce polerowane, stal 18/0, | E96: op (12 szt) | F96: =IF('Załącznik 13-F.O. Zad 11-15 '!$V$56,VLOOKUP(C96,'Załącznik 13-F.O. Zad 11-15 '!$C$52:$G$175,5,0),0) -> 0 | G96: 5 | H96: 0 | J96: 0 | K96: 1 | L96: 0 | M96: 3 | N96: 0 | O96: 0 | P96: 0 | R96: 0 | S96: 1 | T96: 0 | V96: 0
B97: 76 | C97: Ściereczki mokre do mebli drewnianych PRESTO, opakowanie 72 sztuki | D97: Ściereczki nawilżane do czyszczenia różnych powierzchni, Usuwają kurz i zapobiegają jego osadzaniu, Nadają połysk czyszczonym powierzchniom | E97: op. (72 szt) | F97: =IF('Załącznik 13-F.O. Zad 11-15 '!$V$56,VLOOKUP(C97,'Załącznik 13-F.O. Zad 11-15 '!$C$52:$G$175,5,0),0) -> 0 | G97: 15 | H97: 0 | J97: 0 | K97: 0 | L97: 0 | M97: 10 | N97: 0 | O97: 4 | P97: 0 | R97: 0 | S97: 1 | T97: 0 | V97: 0
B98: 77 | C98: Kulki do toalet BREF Power Activ, 50 g, zapach cytrynowy | D98: Nowoczesne rozwiązanie w postaci czterech kulek na wygodnej zawieszce Czyszczą, pozostawiają przyjemny zapach i chronią przed osadzaniem się kamienia Masa netto: 50 g Jednostka sprzedaży: 1 sztuka Opakowanie zbiorcze: 10 sztuk | E98: op. (50 g) | F98: =IF('Załącznik 13-F.O. Zad 11-15 '!$V$56,VLOOKUP(C98,'Załącznik 13-F.O. Zad 11-15 '!$C$52:$G$175,5,0),0) -> 0 | G98: 91 | H98: 0 | J98: 0 | K98: 3 | L98: 0 | M98: 3 | N98: 0 | O98: 0 | P98: 0 | Q98: 84 | R98: 0 | S98: 1 | T98: 0 | V98: 0
B99: 78 | C99: Kulki do toalet BREF Power Activ, 50 g, zapach morski | D99: Nowoczesne rozwiązanie w postaci czterech kulek na wygodnej zawieszce Czyszczą, pozostawiają przyjemny zapach i chronią przed osadzaniem się kamienia Masa netto: 50 g Jednostka sprzedaży: 1 sztuka | E99: op. (50 g) | F99: =IF('Załącznik 13-F.O. Zad 11-15 '!$V$56,VLOOKUP(C99,'Załącznik 13-F.O. Zad 11-15 '!$C$52:$G$175,5,0),0) -> 0 | G99: 80 | H99: 0 | J99: 0 | K99: 23 | L99: 0 | M99: 4 | N99: 0 | O99: 18 | P99: 0 | Q99: 34 | R99: 0 | S99: 1 | T99: 0 | V99: 0
B100: 79 | C100: Płyn CILIT Bang Kamień i brud, 750 ml | D100: Żel CILIT kamień i brud z Turbo Power. Do czyszczenia wanien, kabin prysznicowych, płytek, toalet, armatury kuchennej i łazienkowej Usuwa kamień, rdzawe zacieki z twardej wody, osad z mydła i inne zabrudzenia Pojemność: 750 ml Jednostka sprzedaży: 1 sztuka | E100: op. (750 ml) | F100: =IF('Załącznik 13-F.O. Zad 11-15 '!$V$56,VLOOKUP(C100,'Załącznik 13-F.O. Zad 11-15 '!$C$52:$G$175,5,0),0) -> 0 | G100: 22 | H100: 0 | J100: 0 | K100: 6 | L100: 0 | M100: 8 | N100: 0 | O100: 0 | P100: 0 | Q100: 7 | R100: 0 | S100: 1 | T100: 0 | V100: 0
B101: 80 | C101: Płyn do toalet DOMESTOS Toilet Limescale Remover, 750 ml | D101: Gęsty płyn do czyszczenia muszli klozetowych Formuła ściśle przylegająca do czyszczonych powierzchni, rozpuszcza kamień wapienny Przeznaczony do powierzchni porcelanowych i szkliwionych Butelka z wygodnym dozownikiem Pojemność: 750 ml Jednostka sprzedaży: 1 sztuka Opakowanie zbiorcze: 6 sztuk | E101: op. (750 ml) | F101: =IF('Załącznik 13-F.O. Zad 11-15 '!$V$56,VLOOKUP(C101,'Załącznik 13-F.O. Zad 11-15 '!$C$52:$G$175,5,0),0) -> 0 | G101: 42 | H101: 0 | J101: 0 | K101: 6 | L101: 0 | M101: 1 | N101: 0 | O101: 0 | P101: 0 | Q101: 34 | R101: 0 | S101: 1 | T101: 0 | V101: 0
B102: 81 | C102: Płyn do WC DOMESTOS 24H, 1,25 l, cytrynowy | D102: Produkt czyszcząco-dezynfekująco-wybielający Możliwość stosowania do: muszli klozetowych, umywalek, zlewów itp. Produkt nadaje się także do wybielania tkanin Jednostka sprzedaży: 1 sztuka Pojemność: 1,25 l | E102: op. (1,25 l) | F102: =IF('Załącznik 13-F.O. Zad 11-15 '!$V$56,VLOOKUP(C102,'Załącznik 13-F.O. Zad 11-15 '!$C$52:$G$175,5,0),0) -> 0 | G102: 59 | H102: 0 | J102: 0 | K102: 20 | L102: 0 | M102: 4 | N102: 0 | O102: 0 | P102: 0 | Q102: 34 | R102: 0 | S102: 1 | T102: 0 | V102: 0
B103: 82 | C103: Płyn do WC DOMESTOS 24H, 1,25 l, leśny | D103: Produkt czyszcząco-dezynfekująco-wybielający Możliwość stosowania do: muszli klozetowych, umywalek, zlewów itp. Produkt nadaje się także do wybielania tkanin Pojemność: 1,25 l Jednostka sprzedaży: 1 sztuka | E103: op. (1,25 l) | F103: =IF('Załącznik 13-F.O. Zad 11-15 '!$V$56,VLOOKUP(C103,'Załącznik 13-F.O. Zad 11-15 '!$C$52:$G$175,5,0),0) -> 0 | G103: 1 | H103: 0 | J103: 0 | K103: 0 | L103: 0 | M103: 0 | N103: 0 | O103: 0 | P103: 0 | R103: 0 | S103: 1 | T103: 0 | V103: 0
B104: 83 | C104: Wkład zapachowy do pisuarów MERIDA, czerwony | D104: Winylowy, elastyczny wkład zapachowy do pisuarów, Zapach utrzymuje się przez około 30 dni, Dodatkowo wkład zabezpiecza pisuar przed zapchaniem | E104: szt. | F104: =IF('Załącznik 13-F.O. Zad 11-15 '!$V$56,VLOOKUP(C104,'Załącznik 13-F.O. Zad 11-15 '!$C$52:$G$175,5,0),0) -> 0 | G104: 10 | H104: 0 | J104: 0 | K104: 6 | L104: 0 | M104: 2 | N104: 0 | O104: 0 | P104: 0 | R104: 0 | S104: 1 | T104: 0 | U104: 1 | V104: 0
B105: 84 | C105: Zawieszka do WC DOMESTOS, zapach leśny | D105: Zawieszki czyszczące do toalet Chronią przed osadzaniem się kamienia i pozostawiają świeży zapach Jednostka sprzedaży 1 sztuka | E105: szt | F105: =IF('Załącznik 13-F.O. Zad 11-15 '!$V$56,VLOOKUP(C105,'Załącznik 13-F.O. Zad 11-15 '!$C$52:$G$175,5,0),0) -> 0 | G105: 11 | H105: 0 | J105: 0 | K105: 0 | L105: 0 | M105: 10 | N105: 0 | O105: 0 | P105: 0 | R105: 0 | S105: 1 | T105: 0 | V105: 0
B106: 85 | C106: Żel BREF do WC Fresh Mist, 700 ml | D106: Usuwa kamień, brud i osad, Gęsta formuła żelu sprawia, że działa on również pod powierzchnią wody. | E106: op. (700 ml) | F106: =IF('Załącznik 13-F.O. Zad 11-15 '!$V$56,VLOOKUP(C106,'Załącznik 13-F.O. Zad 11-15 '!$C$52:$G$175,5,0),0) -> 0 | G106: 12 | H106: 0 | J106: 0 | K106: 0 | L106: 0 | M106: 1 | N106: 0 | O106: 6 | P106: 0 | Q106: 4 | R106: 0 | S106: 1 | T106: 0 | V106: 0
B107: 86 | C107: Żel CLINEX Drill do udrażniania odpływów, 1 l | D107: Szybko rozpuszcza wszelkie stałe i organiczne zanieczyszczenia takie jak: tłuszcz, papier, wata, odpadki kuchenne, Forma żelowa pozwala na osadzanie się preparatu na ściankach rur, przedłużając proces działania, Likwiduje nieprzyjemne zapachy, Nadaje się do udrażniania rur zarówno w kuchni, jak i w łazience | E107: op. (1 l) | F107: =IF('Załącznik 13-F.O. Zad 11-15 '!$V$56,VLOOKUP(C107,'Załącznik 13-F.O. Zad 11-15 '!$C$52:$G$175,5,0),0) -> 0 | G107: 13 | H107: 0 | J107: 0 | K107: 7 | L107: 0 | M107: 3 | N107: 0 | O107: 0 | P107: 0 | Q107: 2 | R107: 0 | S107: 1 | T107: 0 | V107: 0
B108: 87 | C108: Biobójczy płyn do dezynfekcji rąk HISKIN, 1 l | D108: Produkt przeznaczony do codziennego stosowania przez użytkownika powszechnego. Wykazuje działanie bakteriobójcze, grzybobójcze i wirusobójcze | E108: op. (1 l) | F108: =IF('Załącznik 13-F.O. Zad 11-15 '!$V$56,VLOOKUP(C108,'Załącznik 13-F.O. Zad 11-15 '!$C$52:$G$175,5,0),0) -> 0 | G108: 54 | H108: 0 | I108: 16 | J108: 0 | K108: 0 | L108: 0 | M108: 2 | N108: 0 | O108: 0 | P108: 0 | Q108: 34 | R108: 0 | S108: 1 | T108: 0 | U108: 1 | V108: 0
B109: 88 | C109: Dozownik do mydła w płynie MERIDA TOP, biały | D109: Mocny i trwały dozownik do mydła w płynie wykonany z tworzywa ABS Okienko umożliwiające kontrolę zużycia mydła Pojemność: 0,8 l Zestaw do montażu w komplecie Wymiary: dł. 11,5 x szer.11,5 x wys. 25 cm Kolor: biały Jednostka sprzedaży: 1 sztuka | E109: szt. | F109: =IF('Załącznik 13-F.O. Zad 11-15 '!$V$56,VLOOKUP(C109,'Załącznik 13-F.O. Zad 11-15 '!$C$52:$G$175,5,0),0) -> 0 | G109: 9 | H109: 0 | J109: 0 | K109: 2 | L109: 0 | M109: 4 | N109: 0 | O109: 2 | P109: 0 | R109: 0 | S109: 1 | T109: 0 | V109: 0
B110: 89 | C110: Mydło toaletowe NIVEA, 100 g | D110: Kremowe mydło z odżywczym olejkiem migdałowym Miks zapachów Jednostka sprzedaży: 1 sztuka | E110: szt. (100 g) | F110: =IF('Załącznik 13-F.O. Zad 11-15 '!$V$56,VLOOKUP(C110,'Załącznik 13-F.O. Zad 11-15 '!$C$52:$G$175,5,0),0) -> 0 | G110: 2003 | H110: 0 | J110: 0 | K110: 552 | L110: 0 | M110: 1 | N110: 0 | O110: 1449 | P110: 0 | R110: 0 | S110: 1 | T110: 0 | V110: 0
B111: 90 | C111: Mydło w płynie MERIDA Silva, 5 l | D111: Mydło w płynie typu „dwa w jednym”, Zawiera m.in. glukopony mające doskonałe właściwości pielęgnacyjne skóry, jak również gluadyny – roślinne proteiny, szczególnie cenne składniki pielęgnacyjne chroniące skórę i włosy | E111: op. (5l) | F111: =IF('Załącznik 13-F.O. Zad 11-15 '!$V$56,VLOOKUP(C111,'Załącznik 13-F.O. Zad 11-15 '!$C$52:$G$175,5,0),0) -> 0 | G111: 8 | H111: 0 | J111: 0 | K111: 1 | L111: 0 | M111: 6 | N111: 0 | O111: 0 | P111: 0 | R111: 0 | S111: 1 | T111: 0 | V111: 0
B112: 91 | C112: Mydło w płynie PALMOLIVE, migdałowe, 300 ml | D112: Dzięki naturalnemu pH nie podrażnia nawet wrażliwej skóry Zawiera kombinację substancji czyszczących i odżywczych Opakowanie z dozownikiem Pojemność 300 ml Jednostka sprzedaży: 1 sztuka Opakowanie zbiorcze: 12 sztuk | E112: op. (300 ml) | F112: =IF('Załącznik 13-F.O. Zad 11-15 '!$V$56,VLOOKUP(C112,'Załącznik 13-F.O. Zad 11-15 '!$C$52:$G$175,5,0),0) -> 0 | G112: 165 | H112: 0 | J112: 0 | K112: 144 | L112: 0 | M112: 18 | N112: 0 | O112: 0 | P112: 0 | Q112: 2 | R112: 0 | S112: 1 | T112: 0 | V112: 0
B113: 92 | C113: Pasta BHP do rąk, ścierna, 500 g | D113: Usuwa silne zabrudzenia smarami, tłuszczami, sadzami | E113: op. (500g) | F113: =IF('Załącznik 13-F.O. Zad 11-15 '!$V$56,VLOOKUP(C113,'Załącznik 13-F.O. Zad 11-15 '!$C$52:$G$175,5,0),0) -> 0 | G113: 147 | H113: 0 | J113: 0 | K113: 4 | L113: 0 | M113: 0 | N113: 0 | O113: 135 | P113: 0 | Q113: 7 | R113: 0 | S113: 1 | T113: 0 | V113: 0
B114: 93 | C114: Pasta do rąk MERIDA PA12, 500 ml | D114: Usuwa wszelkie zabrudzenia nawet powstałe od smarów i olejów, Oszczędna w użyciu, Jest niealkaliczna i nie zawiera mineralnych środków ściernych | E114: op. (500 ml) | F114: =IF('Załącznik 13-F.O. Zad 11-15 '!$V$56,VLOOKUP(C114,'Załącznik 13-F.O. Zad 11-15 '!$C$52:$G$175,5,0),0) -> 0 | G114: 15 | H114: 0 | J114: 0 | K114: 10 | L114: 0 | M114: 0 | N114: 0 | O114: 0 | P114: 0 | Q114: 4 | R114: 0 | S114: 1 | T114: 0 | V114: 0
B115: 94 | C115: Kapsułki do zmywarek FAIRY Jar All in 1, 115 kapsułek | D115: Wydajne kapsułki do maszynowego mycia naczyń Jednostka sprzedaży: 1 opakowanie (115 kapsułek) | E115: op. ( 115 szt) | F115: =IF('Załącznik 13-F.O. Zad 11-15 '!$V$56,VLOOKUP(C115,'Załącznik 13-F.O. Zad 11-15 '!$C$52:$G$175,5,0),0) -> 0 | G115: 24 | H115: 0 | I115: 5 | J115: 0 | K115: 0 | L115: 0 | M115: 14 | N115: 0 | O115: 0 | P115: 0 | Q115: 4 | R115: 0 | S115: 1 | T115: 0 | V115: 0
B116: 95 | C116: Płyn do czyszczenia zmywarek FINISH, 250 ml | D116: Płyn do czyszczenia zmywarek o zapachu cytrynowym Pojemność: 250 ml Jednostka sprzedaży 1 opakowanie | E116: op (250 ml) | F116: =IF('Załącznik 13-F.O. Zad 11-15 '!$V$56,VLOOKUP(C116,'Załącznik 13-F.O. Zad 11-15 '!$C$52:$G$175,5,0),0) -> 0 | G116: 47 | H116: 0 | I116: 36 | J116: 0 | K116: 0 | L116: 0 | M116: 10 | N116: 0 | O116: 0 | P116: 0 | R116: 0 | S116: 1 | T116: 0 | V116: 0
B117: 96 | C117: Płyn do mycia naczyń LUDWIK 1150 g | D117: Posiada bardzo dobre właściwości myjące oraz wysoką zdolność do emulgowania tłuszczów zarówno w ciepłej, jak i zimnej wodzie. Nie pozostawia zacieków na umytych powierzchniach, nadaje im połysk bez konieczności wycierania do sucha. Nowa receptura została również wzbogacona kompleksem witamin A,E,F,H, mającym działanie ochronne i odżywcze dla skóry rąk, Polecany również do mycia mebli, lodówek, wykładzin, podłóg, glazury, dywanów i tworzyw sztucznych | E117: op. (1150 g) | F117: =IF('Załącznik 13-F.O. Zad 11-15 '!$V$56,VLOOKUP(C117,'Załącznik 13-F.O. Zad 11-15 '!$C$52:$G$175,5,0),0) -> 0 | G117: 1 | H117: 0 | J117: 0 | K117: 0 | L117: 0 | M117: 0 | N117: 0 | O117: 0 | P117: 0 | R117: 0 | S117: 1 | T117: 0 | V117: 0
B118: 97 | C118: Płyn do mycia naczyń LUDWIK cytrynowy, 5 kg | D118: Posiada bardzo dobre właściwości myjące oraz wysoką zdolność do emulgowania tłuszczów zarówno w ciepłej, jak i zimnej wodzie. Nie pozostawia zacieków na umytych powierzchniach, nadaje im połysk bez konieczności wycierania do sucha. Nowa receptura została również wzbogacona kompleksem witamin A,E,F,H, mającym działanie ochronne i odżywcze dla skóry rąk, Polecany również do mycia mebli, lodówek, wykładzin, podłóg, glazury, dywanów i tworzyw sztucznych | E118: 5 kg | F118: =IF('Załącznik 13-F.O. Zad 11-15 '!$V$56,VLOOKUP(C118,'Załącznik 13-F.O. Zad 11-15 '!$C$52:$G$175,5,0),0) -> 0 | G118: 15 | H118: 0 | I118: 1 | J118: 0 | K118: 4 | L118: 0 | M118: 9 | N118: 0 | O118: 0 | P118: 0 | R118: 0 | S118: 1 | T118: 0 | V118: 0
B119: 98 | C119: Płyn do mycia naczyń LUDWIK Miętowy 1 l. | D119: Posiada bardzo dobre właściwości myjące oraz wysoką zdolność do emulgowania tłuszczów zarówno w ciepłej, jak i zimnej wodzie. Nie pozostawia zacieków na umytych powierzchniach, nadaje im połysk bez konieczności wycierania do sucha. Nowa receptura została również wzbogacona kompleksem witamin A,E,F,H, mającym działanie ochronne i odżywcze dla skóry rąk, Polecany również do mycia mebli, lodówek, wykładzin, podłóg, glazury, dywanów i tworzyw sztucznych | E119: op. (1 l) | F119: =IF('Załącznik 13-F.O. Zad 11-15 '!$V$56,VLOOKUP(C119,'Załącznik 13-F.O. Zad 11-15 '!$C$52:$G$175,5,0),0) -> 0 | G119: 25 | H119: 0 | J119: 0 | K119: 10 | L119: 0 | M119: 13 | N119: 0 | O119: 1 | P119: 0 | R119: 0 | S119: 1 | T119: 0 | V119: 0
B120: 99 | C120: Płyn do mycia naczyń LUDWIK, cytrynowy, 450 g | D120: Posiada bardzo dobre właściwości myjące oraz wysoką zdolność do emulgowania tłuszczów zarówno w ciepłej, jak i zimnej wodzie. Nie pozostawia zacieków na umytych powierzchniach, nadaje im połysk bez konieczności wycierania do sucha. Nowa receptura została również wzbogacona kompleksem witamin A,E,F,H, mającym działanie ochronne i odżywcze dla skóry rąk, Polecany również do mycia mebli, lodówek, wykładzin, podłóg, glazury, dywanów i tworzyw sztucznych | E120: op. (450g) | F120: =IF('Załącznik 13-F.O. Zad 11-15 '!$V$56,VLOOKUP(C120,'Załącznik 13-F.O. Zad 11-15 '!$C$52:$G$175,5,0),0) -> 0 | G120: 145 | H120: 0 | I120: 24 | J120: 0 | K120: 10 | L120: 0 | M120: 31 | N120: 0 | O120: 12 | P120: 0 | Q120: 67 | R120: 0 | S120: 1 | T120: 0 | V120: 0
B121: 100 | C121: Płyn do naczyń LUDWIK, 450 g, miętowy | D121: Nie pozostawia zacieków na umytych powierzchniach, nadaje im połysk bez konieczności wycierania do sucha. Polecany również do mycia mebli, lodówek, wykładzin, podłóg, glazury, dywanów i tworzyw sztucznych. | E121: op.(450g) | F121: =IF('Załącznik 13-F.O. Zad 11-15 '!$V$56,VLOOKUP(C121,'Załącznik 13-F.O. Zad 11-15 '!$C$52:$G$175,5,0),0) -> 0 | G121: 95 | H121: 0 | I121: 10 | J121: 0 | K121: 3 | L121: 0 | M121: 8 | N121: 0 | O121: 0 | P121: 0 | Q121: 67 | R121: 0 | S121: 1 | T121: 0 | U121: 6 | V121: 0
B122: 101 | C122: Płyn nabłyszczający do zmywarek LUDWIK, 750 ml | D122: Przeznaczony do płukania i nabłyszczania naczyń zmywanych w zmywarce Dzięki właściwie dobranym składnikom i zawartości kwasku cytrynowego płyn sprawia, że myte naczynia wysychają bez plam i zacieków Jednostka sprzedaży: 1 opakowanie (750 ml) | E122: op. (750 ml) | F122: =IF('Załącznik 13-F.O. Zad 11-15 '!$V$56,VLOOKUP(C122,'Załącznik 13-F.O. Zad 11-15 '!$C$52:$G$175,5,0),0) -> 0 | G122: 8 | H122: 0 | J122: 0 | K122: 0 | L122: 0 | M122: 7 | N122: 0 | O122: 0 | P122: 0 | R122: 0 | S122: 1 | T122: 0 | V122: 0
B123: 102 | C123: Płyn nabłyszczający FINISH, 400 ml | D123: Usuwa ślady po kroplach wody i osad z kamienia, pozostawiając Diamentowy Połysk Jednostka sprzedaży: 1 opakowanie (400 ml) | E123: op. (400 ml) | F123: =IF('Załącznik 13-F.O. Zad 11-15 '!$V$56,VLOOKUP(C123,'Załącznik 13-F.O. Zad 11-15 '!$C$52:$G$175,5,0),0) -> 0 | G123: 28 | H123: 0 | I123: 11 | J123: 0 | K123: 0 | L123: 0 | M123: 15 | N123: 0 | O123: 1 | P123: 0 | R123: 0 | S123: 1 | T123: 0 | V123: 0
B124: 103 | C124: Sól ochronna do zmywarki LUDWIK, 1,5 kg | D124: Preparat chroniący zmywarkę przed osadzaniem się kamienia w jej wnętrzu i na mytych naczyniach Skutecznie zmiękcza wodę dzięki zastosowanej formule, preparat zawiera całkowicie rozpuszczalną szlachetną sól z granulkami o odpowiedniej wielkości Regularne stosowanie soli ochronnej Ludwik zapewnia prawidłowe funkcjonowanie zmywarki i długotrwałą ochronę jej mechanizmów Jednostka sprzedaży: 1 opakowanie (1,5 kg) | E124: op. (1 l) | F124: =IF('Załącznik 13-F.O. Zad 11-15 '!$V$56,VLOOKUP(C124,'Załącznik 13-F.O. Zad 11-15 '!$C$52:$G$175,5,0),0) -> 0 | G124: 19 | H124: 0 | I124: 8 | J124: 0 | K124: 0 | L124: 0 | M124: 8 | N124: 0 | O124: 0 | P124: 0 | Q124: 2 | R124: 0 | S124: 1 | T124: 0 | V124: 0
B125: 104 | C125: Sól SOMAT do zmywarek, 1,5 kg | D125: Zabezpiecza zmywarkę oraz naczynia przed osadzaniem się kamienia Wygodna w użyciu sól ma postać granulek Opakowanie: 1,5 kg Jednostka sprzedaży: 1 sztuka | E125: op. (5 kg) | F125: =IF('Załącznik 13-F.O. Zad 11-15 '!$V$56,VLOOKUP(C125,'Załącznik 13-F.O. Zad 11-15 '!$C$52:$G$175,5,0),0) -> 0 | G125: 20 | H125: 0 | J125: 0 | K125: 0 | L125: 0 | M125: 17 | N125: 0 | O125: 0 | P125: 0 | Q125: 2 | R125: 0 | S125: 1 | T125: 0 | V125: 0
B126: 105 | C126: Tabletki do zmywarek LUDWIK, 30 sztuk | D126: Wielofunkcyjne tabletki czyszczą, nabłyszczają, chronią szkło i stal nierdzewną przed matowieniem oraz zabezpieczają zmywarkę przed osadzaniem się kamienia Funkcja zmiękczania wody pozwala na jeszcze bardziej efektywne wykorzystanie składników myjących Enzymy są aktywne już w 30°C Cytrusowy aromat tabletek nadaje długotrwały zapach świeżości w kuchni Zapewniają oszczędność wody i energii Jednostka sprzedaży: 1 opakowanie (30 tabletek) | E126: op. (30 szt) | F126: =IF('Załącznik 13-F.O. Zad 11-15 '!$V$56,VLOOKUP(C126,'Załącznik 13-F.O. Zad 11-15 '!$C$52:$G$175,5,0),0) -> 0 | G126: 23 | H126: 0 | J126: 0 | K126: 0 | L126: 0 | M126: 12 | N126: 0 | O126: 6 | P126: 0 | Q126: 4 | R126: 0 | S126: 1 | T126: 0 | V126: 0
B127: 106 | C127: Płyn do mycia szyb i glazury LUDWIK grapefruit z octem, 750 ml | D127: Nie pozostawia smug, zacieków i szybko odparowuje., Skład: do 5% anionowe środki powierzchniowo czynne, konserwant (2-bromo-2-nitropropane-1,3-diol, methylchloroisothiazolinone, methylisothiazolinone), kompozycja zapachowa (limonene, linalool). | E127: op. (750ml) | F127: =IF('Załącznik 13-F.O. Zad 11-15 '!$V$56,VLOOKUP(C127,'Załącznik 13-F.O. Zad 11-15 '!$C$52:$G$175,5,0),0) -> 0 | G127: 32 | H127: 0 | I127: 1 | J127: 0 | K127: 23 | L127: 0 | M127: 7 | N127: 0 | O127: 0 | P127: 0 | R127: 0 | S127: 1 | T127: 0 | V127: 0
B128: 107 | C128: Płyn do mycia szyb KUBUŚ z atomizerem, 1 l | D128: Przeznaczony do mycia szyb okiennych, luster oraz innych powierzchni szklanych, Doskonale usuwa brud, nie pozostawia smug | E128: op. (1 l) | F128: =IF('Załącznik 13-F.O. Zad 11-15 '!$V$56,VLOOKUP(C128,'Załącznik 13-F.O. Zad 11-15 '!$C$52:$G$175,5,0),0) -> 0 | G128: 3 | H128: 0 | J128: 0 | K128: 0 | L128: 0 | M128: 2 | N128: 0 | O128: 0 | P128: 0 | R128: 0 | S128: 1 | T128: 0 | V128: 0
B129: 108 | C129: Płyn do szyb i luster BUZIL G522 Profiglass, 600 ml | D129: Gotowy do użycia środek do mycia szyb i luster Skutecznie usuwa zabrudzenia, również te tłuste Butelka posiada specjalnie przyciętą końcówkę rozpryskującą, która ułatwia nanoszenie środka czyszczącego Wygodna butelka 600 ml ze spryskiwaczem | E129: op (600 ml) | F129: =IF('Załącznik 13-F.O. Zad 11-15 '!$V$56,VLOOKUP(C129,'Załącznik 13-F.O. Zad 11-15 '!$C$52:$G$175,5,0),0) -> 0 | G129: 11 | H129: 0 | J129: 0 | K129: 0 | L129: 0 | M129: 3 | N129: 0 | O129: 0 | P129: 0 | Q129: 7 | R129: 0 | S129: 1 | T129: 0 | V129: 0
B130: 109 | C130: Mleczko do czyszczenia CIF Regular Cream, 650 ml/780 g | D130: Uniwersalne mleczko CIF z mikrokryształkami, które pomaga utrzymać powierzchnie w czystości, jest delikatne i nie rysuje powierzchni. Usuwa najbardziej oporny brud taki jak: przypieczony tłuszcz, przypalone jedzenie, plamy z kamienia w łazience. Składniki: do 5% anionowe środki powierzchniowo, czynne niejonowe środki powierzchniowo czynne, mydło, kompozycja zapachowa Limonene, Benzisothiazolinone, Linalool, Butylphenyl Methylpropional, Hexyl Cinnamal. Sposób użycia: nanieść na wilgotną ściereczkę lub bezpośrednio na czyszczoną powierzchnię. Po wyczyszczeniu dokładnie spłukać. Nie połykać. Mleczko do czyszczenia powierzchni twardych. | E130: op (650 ml) | F130: =IF('Załącznik 13-F.O. Zad 11-15 '!$V$56,VLOOKUP(C130,'Załącznik 13-F.O. Zad 11-15 '!$C$52:$G$175,5,0),0) -> 0 | G130: 45 | H130: 0 | I130: 1 | J130: 0 | K130: 14 | L130: 0 | M130: 12 | N130: 0 | O130: 0 | P130: 0 | Q130: 17 | R130: 0 | S130: 1 | T130: 0 | V130: 0
B131: 110 | C131: Czajnik elektryczny TEFAL Express 1,5 l, biały | D131: Czajnik z ukrytym elementem grzejnym i obrotową podstawą, Filtr antywapienny i dwustronny wskaźnik poziomu wody, Możliwość zagotowania minimalnej ilości wody (250 ml), Pojemność: 1,5 l | E131: szt. | F131: =IF('Załącznik 13-F.O. Zad 11-15 '!$V$56,VLOOKUP(C131,'Załącznik 13-F.O. Zad 11-15 '!$C$52:$G$175,5,0),0) -> 0 | G131: 11 | H131: 0 | I131: 5 | J131: 0 | K131: 1 | L131: 0 | M131: 4 | N131: 0 | O131: 0 | P131: 0 | R131: 0 | S131: 1 | T131: 0 | V131: 0
B132: 111 | C132: Dzbanek filtrujący wodę AQUAPHOR Onyx 4,2 l + 3 wkłady filtrujące, biały | D132: Klasyczny i elegancki kształt pasuje do biur i sal konferencyjnych, Produkt wolny od bisfenolu A (BPA FREE), posiada atest NIZP-PZH, W zestawie 3 wkłady Maxfor MG wzbogacające wodę w magnez | E132: op. (1 szt dzbanek + 3 szt. filtrów) | F132: =IF('Załącznik 13-F.O. Zad 11-15 '!$V$56,VLOOKUP(C132,'Załącznik 13-F.O. Zad 11-15 '!$C$52:$G$175,5,0),0) -> 0 | G132: 36 | H132: 0 | I132: 1 | J132: 0 | K132: 0 | L132: 0 | M132: 34 | N132: 0 | O132: 0 | P132: 0 | R132: 0 | S132: 1 | T132: 0 | V132: 0
B133: 112 | C133: Filtr wody KRUPS F08801 do ekspresu ciśnieniowego, 1 sztuka | D133: Zapobiega nadmiernemu osadzaniu się kamienia Dostosowany do ekspresów Krups Artese oraz Krups Orchestro Jednostka sprzedaży: 1 sztuka | E133: szt | F133: =IF('Załącznik 13-F.O. Zad 11-15 '!$V$56,VLOOKUP(C133,'Załącznik 13-F.O. Zad 11-15 '!$C$52:$G$175,5,0),0) -> 0 | G133: 11 | H133: 0 | J133: 0 | K133: 0 | L133: 0 | M133: 7 | N133: 0 | O133: 3 | P133: 0 | R133: 0 | S133: 1 | T133: 0 | V133: 0
B134: 113 | C134: Termos TEFAL Campo, 1 l, czarny | D134: Termos TEFAL Campo, 1 l, czarnyObudowa ze stali nierdzewnej z kolorową powłoką z wkładką szklaną, Kolor: czarny | E134: szt | F134: =IF('Załącznik 13-F.O. Zad 11-15 '!$V$56,VLOOKUP(C134,'Załącznik 13-F.O. Zad 11-15 '!$C$52:$G$175,5,0),0) -> 0 | G134: 4 | H134: 0 | J134: 0 | K134: 0 | L134: 0 | M134: 1 | N134: 0 | O134: 2 | P134: 0 | R134: 0 | S134: 1 | T134: 0 | V134: 0
B135: 114 | C135: Reklamówki foliowe 9 micronów 210 + 2 x 60 x 435 mm (+/-12), 150 sztuk | D135: Reklamówki o wymiarach 210 + 2 x 60 x 435 mm (+/-12) Nawój: 150 sztuk Folia HDPE / grubość 9 mikronówJednostka sprzedaży: 1 rolka (150sztuk) | E135: op. (150 szt.) | F135: =IF('Załącznik 13-F.O. Zad 11-15 '!$V$56,VLOOKUP(C135,'Załącznik 13-F.O. Zad 11-15 '!$C$52:$G$175,5,0),0) -> 0 | G135: 13 | H135: 0 | J135: 0 | K135: 11 | L135: 0 | M135: 1 | N135: 0 | O135: 0 | P135: 0 | R135: 0 | S135: 1 | T135: 0 | V135: 0
B136: 115 | C136: Worki do segregacji 60 l, niebieskie na papier, 60 x 72 cm | D136: Wytrzymałe worki ułatwiające segregację śmieci dzięki kodowi kolorystycznemu, Mają nadruk informujący, jakie typy odpadów należy do nich wrzucać, a jakich nie należy, Wymiary: 60 x 72 cm | E136: op. (10 worków) | F136: =IF('Załącznik 13-F.O. Zad 11-15 '!$V$56,VLOOKUP(C136,'Załącznik 13-F.O. Zad 11-15 '!$C$52:$G$175,5,0),0) -> 0 | G136: 12 | H136: 0 | I136: 2 | J136: 0 | K136: 0 | L136: 0 | M136: 9 | N136: 0 | O136: 0 | P136: 0 | R136: 0 | S136: 1 | T136: 0 | V136: 0
B137: 116 | C137: Worki do segregacji 60 l, zielone na szkło, 60 x 72 cm | D137: Wytrzymałe worki ułatwiające segregację śmieci dzięki kodowi kolorystycznemu, Mają nadruk informujący, jakie typy odpadów należy do nich wrzucać, a jakich nie należy, Wymiary: 60 x 72 cm | E137: op. (10 worków) | F137: =IF('Załącznik 13-F.O. Zad 11-15 '!$V$56,VLOOKUP(C137,'Załącznik 13-F.O. Zad 11-15 '!$C$52:$G$175,5,0),0) -> 0 | G137: 3 | H137: 0 | I137: 2 | J137: 0 | K137: 0 | L137: 0 | M137: 0 | N137: 0 | O137: 0 | P137: 0 | R137: 0 | S137: 1 | T137: 0 | V137: 0
B138: 117 | C138: Worki do segregacji 60 l, zółte na plastik, 60 x 72 cm | D138: Wytrzymałe worki ułatwiające segregację śmieci dzięki kodowi kolorystycznemu, Mają nadruk informujący, jakie typy odpadów należy do nich wrzucać, a jakich nie należy, Wymiary: 60 x 72 cm | E138: op. (10 worków) | F138: =IF('Załącznik 13-F.O. Zad 11-15 '!$V$56,VLOOKUP(C138,'Załącznik 13-F.O. Zad 11-15 '!$C$52:$G$175,5,0),0) -> 0 | G138: 3 | H138: 0 | I138: 2 | J138: 0 | K138: 0 | L138: 0 | M138: 0 | N138: 0 | O138: 0 | P138: 0 | R138: 0 | S138: 1 | T138: 0 | V138: 0
B139: 118 | C139: Worki na śmieci LDPE sanitarne 120 l, niebieskie, 10 sztuk | D139: Wymiary: 110 x 70 cm, Grubość: folii: 0,03 mm | E139: op (10 szt) | F139: =IF('Załącznik 13-F.O. Zad 11-15 '!$V$56,VLOOKUP(C139,'Załącznik 13-F.O. Zad 11-15 '!$C$52:$G$175,5,0),0) -> 0 | G139: 5 | H139: 0 | J139: 0 | K139: 0 | L139: 0 | M139: 0 | N139: 0 | O139: 0 | P139: 0 | Q139: 4 | R139: 0 | S139: 1 | T139: 0 | V139: 0
